{"text_format":"3","workbook":"xlsx","n_sheets":18,"sheets":["Instructions","90-2-Start Here","Yearly Breakdown","second 90-2","Yearly Breakdown (2)","NewPartner","PartnerSearch","90-2formulas","FocusAreas","SPcodes","TRLs","ProgramIDs","ProjectRecords","FundingRecords","yearly breakdown worksheet","CHECK DATA FIT","ProjDataInput","FundDataInput"],"not_rendered":{"images":2,"macros":1,"defined_names":5,"comments":2},"read":"whole","date_system":"1900"}

{"sheet":"Instructions","index":0,"n_rows":20,"n_cols":3,"rows_kept":20}
["90-2 SHORT FORM ","filename:","90-2-Project-Summary-SHORT-Form-092717.xlsm"]
[]
["INSTRUCTIONS"]
[]
["You must use the lookup table to fill in boxes if it is available. Do not type alternate text in those boxes."]
[]
["  1. After you have fully read these instructions, go to first worksheet tab \"90-1-Start Here\"--this is the  blank 90-2 form. "]
[]
["  2. Fill in all the colored cells on the 90-2 form.. Your Sea Grant program can help if there are cells you don't know the answer to, or they may say to just leave those blank."]
["- First, Select the Program from a dropdown menu of all Sea Grant Program standard abbreviations."]
["- Unless your Sea Grant Program tells you differently, you can leave the Prefix and Project Number fields blank"]
["- There's only room for four Pis. If you have more, report them in the Methodology. Add a sentence like this: \n\"Additional PIs: John Smith, Auburn University; Jane Doe, Auburn University\""]
["- Certain cells are filled using lookup tables. To fill these cells, click the \"Look Up\" button next to the cell, and follow the directions. If a cell has a \"Look Up\" button next to it, you must use the lookup table to fill it out (don't just write in)."]
["- Some cells (\"Partners\",\"Classification Codes\", \"Focus Areas\") allow multiple values. Get them from the lookup table one at a time. Look up your first partner, enter it and return to look up your second, etc. Again, consult with your SG program if you don't know what to do."]
["- Don't neglect to include the total Federal request, and the total match."]
["- You do not need to fill in any of the uncolored cells."]
[]
["  3. When you are done filling in the 90-2 tab, go to the second tab, \"Yearly Breakdown\", and fill in your total Federal and Matching Fund amounts for each year of your project. "]
[]
["4. Save the Excel file, and include the file in your full application as an \"Other\" attachment. \nATTACH TO YOUR APPLICATION AS AN EXCEL FILE, NOT A PDF OF THE EXCEL FILE!"]

{"sheet":"90-2-Start Here","index":1,"n_rows":41,"n_cols":15,"rows_kept":41}
["This worksheet is:",{"$f":"MID(CELL(\"filename\",'90-2-Start Here'!B1),FIND(\"]\",CELL(\"filename\",'90-2-Start Here'!B1))+1,24)","v":"90-2-Start Here"},"OMB no. ","0648-0362, exp x/x/xxxx",{"$nulls":9},"S1-Start Here","(default worksheet name)"]
[null,28,"Don't use after","2017-12-31","Why?",{"$nulls":8},{"$f":"IF(LEFT(N1,3)=\"S1-\",2,VALUE(MID(N1,2,99))+1)","v":2}]
[null,null,"updated","2017-12-06",{"$nulls":9},"","(temp workspace for a current cell value)"]
[null,"SEA GRANT PROJECT SUMMARY FORM 90-2",{"$nulls":4},"NSGO use only",{"$nulls":6},"2375 Resilient Communities and Economies","(temp workspace for a new selected value)"]
[{"$nulls":13},{"$f":"IF(N3=\"\",IF(N4=\"\",\"\",N4),IF(N4=\"\",N3,N3&\"; \"&N4))","v":"2375 Resilient Communities and Economies"},"(function to concatenate the above two cells)"]
["INSTITUTION (Program): "]
["TITLE: ",{"$f":"MID(INDIRECT(\"'ProjDataInput'!C\"&TEXT($N$2,\"###\")),1,999)","v":""},{"$nulls":11},{"$f":"IF('90-2-Start Here'!B6=\"\",\"\",'90-2-Start Here'!B6)","v":""},"(Program listed on first 90-2)"]
[{"$nulls":3},"START DATE:"]
["PREFIX (A,C,E,M,P or R): "," PROJECT NUMBER",null,"END DATE:"]
[{"$f":"LEFT(INDIRECT(\"'ProjDataInput'!b\"&TEXT($N$2,\"###\")),2)","v":""},{"$f":"MID(INDIRECT(\"'ProjDataInput'!b\"&TEXT($N$2,\"###\")),3,999)","v":""}]
["(every project must have a prefix)"]
[{"$nulls":3},"READINESS LEVELS: "]
["PI: ",{"$f":"MID(INDIRECT(\"'ProjDataInput'!j\"&TEXT($N$2,\"###\")),1,999)","v":""}]
["AFFILIATION: ",{"$f":"MID(INDIRECT(\"'ProjDataInput'!k\"&TEXT($N$2,\"###\")),1,999)","v":""},{"$nulls":4},"Worksheet"]
[{"$nulls":6},"tools:"]
["co-PI:",{"$f":"MID(INDIRECT(\"'ProjDataInput'!L\"&TEXT($N$2,\"###\")),1,999)","v":""}]
["AFFILIATION: ",{"$f":"MID(INDIRECT(\"'ProjDataInput'!m\"&TEXT($N$2,\"###\")),1,999)","v":""}]
[]
["co-PI:",{"$f":"MID(INDIRECT(\"'ProjDataInput'!n\"&TEXT($N$2,\"###\")),1,999)","v":""}]
["AFFILIATION: ",{"$f":"MID(INDIRECT(\"'ProjDataInput'!o\"&TEXT($N$2,\"###\")),1,999)","v":""}]
[]
["co-PI:",{"$f":"MID(INDIRECT(\"'ProjDataInput'!p\"&TEXT($N$2,\"###\")),1,999)","v":""}]
["AFFILIATION: ",{"$f":"MID(INDIRECT(\"'ProjDataInput'!q\"&TEXT($N$2,\"###\")),1,999)","v":""}]
[]
["FEDERAL $ REQUEST: ",{"$f":"INDIRECT(\"'ProjDataInput'!h\"&TEXT($N$2,\"###\"))","v":0}]
["MATCH $: ",{"$f":"INDIRECT(\"'ProjDataInput'!i\"&TEXT($N$2,\"###\"))","v":0}]
[]
["CLASSIFICATION CODES: ",{"$f":"MID(INDIRECT(\"'ProjDataInput'!f\"&TEXT($N$2,\"###\")),1,999)","v":""}]
[null,"(Primary Code First)"]
["FOCUS AREAS: "]
[null,"(Primary Focus Area First)"]
["PARTNERS: ",{"$f":"MID(INDIRECT(\"'ProjDataInput'!e\"&TEXT($N$2,\"###\")),1,999)","v":""}]
[]
["OBJECTIVES: ",{"$f":"MID(INDIRECT(\"'ProjDataInput'!g\"&TEXT($N$2,\"###\")),1,19999)","v":""},null,"MULTIPROGRAM? "]
[]
["METHODOLOGY: ",null,null,"OTHER INFORMATION: "]
[null,"(The Data Sharing Plan may be included in the Methodology section)"]
["RATIONALE: "]
[]
["DATA SHARING PLAN: ",{"$f":"MID(INDIRECT(\"'ProjDataInput'!r\"&TEXT($N$2,\"###\")),1,19999)","v":""}]
[null,"(Required for all research projects)"]

{"sheet":"Yearly Breakdown","index":2,"n_rows":15,"n_cols":4,"rows_kept":15,"merged":[[1,2,1,7],[2,2,2,7]]}
[null,null,"INFORMATION FROM 90-2 FORM"]
[null,"TITLE:",{"$f":"'90-2-Start Here'!A10&'90-2-Start Here'!B10","v":""}]
[null,"PI:",{"$f":"'90-2-Start Here'!B13","v":""}]
[null,"Project No:",{"$f":"'90-2-Start Here'!A10&'90-2-Start Here'!B10","v":""}]
[null,null,"FEDERAL ","MATCH"]
[null,"TOTAL REQUEST:",{"$f":"'90-2-Start Here'!B25","v":0},{"$f":"'90-2-Start Here'!B26","v":0}]
[]
[null,null,"PLEASE FILL IN YEARLY TOTALS:"]
[null,null,"FEDERAL ","MATCH"]
[null,"YEAR 1",{"$f":"'yearly breakdown worksheet'!L2","v":0},{"$f":"'yearly breakdown worksheet'!M2","v":0}]
[null,"YEAR 2",{"$f":"'yearly breakdown worksheet'!N2","v":0},{"$f":"'yearly breakdown worksheet'!O2","v":0}]
[null,"YEAR 3",{"$f":"'yearly breakdown worksheet'!P2","v":0},{"$f":"'yearly breakdown worksheet'!Q2","v":0}]
[null,"YEAR 4",{"$f":"'yearly breakdown worksheet'!R2","v":0},{"$f":"'yearly breakdown worksheet'!S2","v":0}]
[]
[null,"sum:",{"$f":"SUM(C10:C13)","v":0},{"$f":"SUM(D10:D13)","v":0}]

{"sheet":"second 90-2","index":3,"n_rows":41,"n_cols":15,"rows_kept":41}
["This worksheet is:",{"$f":"MID(CELL(\"filename\",'second 90-2'!B1),FIND(\"]\",CELL(\"filename\",'second 90-2'!B1))+1,24)","v":"second 90-2"},"OMB no. ","0648-0362, exp x/xx/xx",{"$nulls":9},"S1-Start Here","(default worksheet name)"]
[null,30,"Don't use after","21/31/2017","Why?",{"$nulls":8},{"$f":"IF(LEFT(N1,3)=\"S1-\",2,VALUE(MID(N1,2,99))+1)","v":2}]
[null,null,"updated","2017-12-06",{"$nulls":9},"","(temp workspace for a current cell value)"]
[null,"SEA GRANT PROJECT SUMMARY FORM 90-2",{"$nulls":4},"NSGO use only",{"$nulls":6},"2392 Environmental Literacy and Workforce Development","(temp workspace for a new selected value)"]
[{"$nulls":13},{"$f":"IF(N3=\"\",IF(N4=\"\",\"\",N4),IF(N4=\"\",N3,N3&\"; \"&N4))","v":"2392 Environmental Literacy and Workforce Development"},"(function to concatenate the above two cells)"]
["INSTITUTION (Program): "]
["TITLE: ",{"$f":"MID(INDIRECT(\"'ProjDataInput'!C\"&TEXT($N$2,\"###\")),1,999)","v":""},{"$nulls":11},{"$f":"IF('second 90-2'!B6=\"\",\"\",'second 90-2'!B6)","v":""},"(Program listed on first 90-2)"]
[{"$nulls":3},"START DATE:"]
["PREFIX (A,C,E,M,P or R): "," PROJECT NUMBER",null,"END DATE:"]
[{"$f":"LEFT(INDIRECT(\"'ProjDataInput'!b\"&TEXT($N$2,\"###\")),2)","v":""},{"$f":"MID(INDIRECT(\"'ProjDataInput'!b\"&TEXT($N$2,\"###\")),3,999)","v":""}]
["(every project must have a prefix)",false]
[{"$nulls":3},"READINESS LEVELS: "]
["PI: ",{"$f":"MID(INDIRECT(\"'ProjDataInput'!j\"&TEXT($N$2,\"###\")),1,999)","v":""}]
["AFFILIATION: ",{"$f":"MID(INDIRECT(\"'ProjDataInput'!k\"&TEXT($N$2,\"###\")),1,999)","v":""},{"$nulls":4},"Worksheet"]
[{"$nulls":6},"tools:"]
["co-PI:",{"$f":"MID(INDIRECT(\"'ProjDataInput'!L\"&TEXT($N$2,\"###\")),1,999)","v":""}]
["AFFILIATION: ",{"$f":"MID(INDIRECT(\"'ProjDataInput'!m\"&TEXT($N$2,\"###\")),1,999)","v":""}]
[]
["co-PI:",{"$f":"MID(INDIRECT(\"'ProjDataInput'!n\"&TEXT($N$2,\"###\")),1,999)","v":""}]
["AFFILIATION: ",{"$f":"MID(INDIRECT(\"'ProjDataInput'!o\"&TEXT($N$2,\"###\")),1,999)","v":""}]
[]
["co-PI:",{"$f":"MID(INDIRECT(\"'ProjDataInput'!p\"&TEXT($N$2,\"###\")),1,999)","v":""}]
["AFFILIATION: ",{"$f":"MID(INDIRECT(\"'ProjDataInput'!q\"&TEXT($N$2,\"###\")),1,999)","v":""}]
[]
["FEDERAL $ REQUEST: ",{"$f":"INDIRECT(\"'ProjDataInput'!h\"&TEXT($N$2,\"###\"))","v":0}]
["MATCH $: ",{"$f":"INDIRECT(\"'ProjDataInput'!i\"&TEXT($N$2,\"###\"))","v":0}]
[]
["CLASSIFICATION CODES: ",{"$f":"MID(INDIRECT(\"'ProjDataInput'!f\"&TEXT($N$2,\"###\")),1,999)","v":""}]
[null,"(Primary Code First)"]
["FOCUS AREAS: "]
[null,"(Primary Focus Area First)"]
["PARTNERS: ",{"$f":"MID(INDIRECT(\"'ProjDataInput'!e\"&TEXT($N$2,\"###\")),1,999)","v":""}]
[]
["OBJECTIVES: ",{"$f":"MID(INDIRECT(\"'ProjDataInput'!g\"&TEXT($N$2,\"###\")),1,19999)","v":""},null,"MULTIPROGRAM? "]
[]
["METHODOLOGY: ",null,null,"OTHER INFORMATION: "]
[null,"(The Data Sharing Plan may be included in the Methodology section)"]
["RATIONALE: "]
[]
["DATA SHARING PLAN: ",{"$f":"MID(INDIRECT(\"'ProjDataInput'!r\"&TEXT($N$2,\"###\")),1,19999)","v":""}]
[null,"(Required for all research projects)"]

{"sheet":"Yearly Breakdown (2)","index":4,"n_rows":15,"n_cols":4,"rows_kept":15,"merged":[[1,2,1,7],[2,2,2,7]]}
[null,null,"INFORMATION FROM 90-2 FORM"]
[null,"TITLE:",{"$f":"'second 90-2'!B7","v":""}]
[null,"PI:",{"$f":"'second 90-2'!B13","v":""}]
[null,"Project No:",{"$f":"'second 90-2'!A10&'second 90-2'!B10","v":""}]
[null,null,"FEDERAL ","MATCH"]
[null,"TOTAL REQUEST:",{"$f":"'second 90-2'!B25","v":0},{"$f":"'second 90-2'!B26","v":0}]
[]
[null,null,"PLEASE FILL IN YEARLY TOTALS:"]
[null,null,"FEDERAL ","MATCH"]
[null,"YEAR 1",{"$f":"'yearly breakdown worksheet'!L3","v":0},{"$f":"'yearly breakdown worksheet'!M3","v":0}]
[null,"YEAR 2",{"$f":"'yearly breakdown worksheet'!N3","v":0},{"$f":"'yearly breakdown worksheet'!O3","v":0}]
[null,"YEAR 3",{"$f":"'yearly breakdown worksheet'!P3","v":0},{"$f":"'yearly breakdown worksheet'!Q3","v":0}]
[null,"YEAR 4",{"$f":"'yearly breakdown worksheet'!R3","v":0},{"$f":"'yearly breakdown worksheet'!S3","v":0}]
[]
[null,"sum:",{"$f":"SUM(C10:C13)","v":0},{"$f":"SUM(D10:D13)","v":0}]

{"sheet":"NewPartner","index":5,"n_rows":14,"n_cols":16,"rows_kept":14}
[null,"ADD A NEW PARTNER",{"$nulls":12},"S1-Start Here","(worksheet that called the macro)"]
[null,"Use this page after you have tried unsuccessfully to search for your Partner or Affiliation on",{"$nulls":12},32,"(row to paste the result into)"]
[null,"the search page. If you haven't searched yet, hit \"Cancel\" and start over. ",{"$nulls":12},{"$f":"IF(O2=-1,\"'\"&O1&\"'!F17\",\"'\"&O1&\"'!B\"&O2)","v":"'S1-Start Here'!B32"},"(full formula of where the result is pasted into)"]
[{"$nulls":14},{"$f":"HYPERLINK(INDIRECT(O3),\"return\")","v":{"$error":"#REF!"}}]
[{"$nulls":3},"(2) Answer these questions:",{"$nulls":10},{"$f":"\"00000 \"&B7&\" (\"&D7&\") (\"&E7&\")\"","v":"00000  () ()"}]
[null,"(1) Write the name of the new partner below:",null,"Scale?","Type?"]
[]
[null,"Standard Naming Convention:"]
[null,"o Governmental - Office Name or Organization Name Spelled Out (Department ",null,"(3) Hit \"Add\" to add your new Partner"]
[null,"Abbreviation, Agency Abbreviation, Line Abbreviation, Office Abbreviation)"]
[null,"Example: Coastal Services Center (DOC, NOAA, NOS, CSC)"]
[null,"o Academic – University, Office Name or Organization Name Spelled Out (University ",null,"or hit \"Cancel\" if you change your mind."]
[null,"Abbreviation)"]
[null,"Example: University of Hawaii at Manoa, Department of Zoology (UHM)"]

{"sheet":"PartnerSearch","index":6,"n_rows":16000,"n_cols":20,"rows_kept":4500,"cut":true,"bounds":{"rows_first":2000,"rows_last":500,"rows_between":2000,"halvings":0}}
[null,"AFFILIATION LOOKUP. Use the search function to find your institutional affiliation. ",null,"Partner info downloaded from PIER on:",{"$nulls":8},"2016-11-30",null,"second 90-2","(worksheet that called the macro)"]
[null,"SEARCH DIRECTIONS: (1) put in search words or parts of words below; (2) click on \"Search\":",{"$nulls":12},17,"(row to paste the result into)"]
[null,"(3) Select one affiliation (single-click on that cell), then hit \"Add\":",{"$nulls":12},{"$f":"IF(O2=-1,\"'\"&O1&\"'!F17\",\"'\"&O1&\"'!B\"&O2)","v":"'second 90-2'!B17"},"(full formula of where the result is pasted into)"]
[null,"To return without adding a partner, hit \"Cancel\":",{"$nulls":12},{"$f":"HYPERLINK(INDIRECT(O3),\"return\")","v":"return"}]
[]
[null,"SEARCH TERMS:  Institution name contains:"]
[null,null,"AND"]
[null,"(entering NAT will get you NATIONAL, natural, International, etc )","BUT NOT"]
[]
[null,"IF YOU'RE SURE your Partner or Affiliation is not in the list below, click on the \"****Add New Partner****\" button."]
[]
[null,null,"Can also search scale and type. Hit \"Show All Partners\" to clear."]
[null,"Name","Scale","Type","x","y",{"$nulls":6},"found?",{"$nulls":5},"IDs","Names"]
[null,"(David) Willis Seafood","STATE","INDUSTRY AND BUSINESS",2,3,3978,{"$nulls":5},{"$f":"AND(  NOT(ISERROR(FIND(UPPER($B$7),UPPER($B14),1))),  OR($D$7=\"\",NOT(ISERROR(FIND(UPPER($D$7),UPPER($B14),1)))),    OR($D$8=\"\",(ISERROR(FIND(UPPER($D$8),UPPER($B14),1))))           )","v":true},{"$nulls":5},0,"UNKNOWN"]
[null,"‘Opihi Monitoring Partnership","STATE","NGO",2,2,14274,{"$nulls":5},true,{"$nulls":5},1,"LOCAL"]
[null,"100 Resilient Cities","FEDERAL or NATIONAL","NGO",4,2,15978,{"$nulls":5},true,{"$nulls":5},2,"STATE"]
[null,"1000 Friends Nature Center","LOCAL","SEA GRANT PROGRAMS",1,5,16019,{"$nulls":5},true,{"$nulls":5},3,"REGIONAL"]
[null,"1000 Friends of Wisconsin","STATE","NGO",2,2,11468,{"$nulls":5},true,{"$nulls":5},4,"FEDERAL or NATIONAL"]
[null,1079,"Unknown","Unknown",0,0,15828,{"$nulls":5},true,{"$nulls":5},5,"INTERNATIONAL"]
[null,"113 Calhoun Street Foundation","LOCAL","NGO",1,2,1,{"$nulls":5},true,{"$nulls":5},13,"TRIBAL"]
[null,"11th Hour Racing","LOCAL","NGO",1,2,9555,{"$nulls":5},true]
[null,"16th Street Community Health Center","LOCAL","OTHER PARTNERS",1,6,9586,{"$nulls":5},true]
[null,"18 Seaboard","STATE","INDUSTRY AND BUSINESS",2,3,3889,{"$nulls":5},true,{"$nulls":5},"IDs","Names"]
[null,"1836 Treaty Waters Technical Fisheries Committee","Tribal","GOVERNMENT",13,1,10922,{"$nulls":5},true,{"$nulls":5},0,"Unknown"]
[null,"1854 Treaty Authority","REGIONAL","GOVERNMENT",3,1,7972,{"$nulls":5},true,{"$nulls":5},1,"GOVERNMENT"]
[null,"2020 Engineering","LOCAL","INDUSTRY AND BUSINESS",1,3,8390,{"$nulls":5},true,{"$nulls":5},2,"NGO"]
[null,"21 Agricultural Research Service (USDA, ARS)","Unknown","Unknown",0,0,11042,{"$nulls":5},true,{"$nulls":5},3,"INDUSTRY AND BUSINESS"]
[null,"21st Century Learning Centers","FEDERAL or NATIONAL","GOVERNMENT",4,1,4854,{"$nulls":5},true,{"$nulls":5},4,"ACADEMIC INSTITUTION"]
[null,"29 Radio Stations that carry Sea Talk","LOCAL","NGO",1,2,2,{"$nulls":5},true,{"$nulls":5},5,"SEA GRANT PROGRAMS"]
[null,"389 California State University Maritime","Unknown","Unknown",0,0,14333,{"$nulls":5},true,{"$nulls":5},6,"OTHER"]
[null,"396 California State University Monterey Bay","Unknown","Unknown",0,0,14330,{"$nulls":5},true]
[null,"4Cs Breeding Technologies, Inc.","FEDERAL or NATIONAL","INDUSTRY AND BUSINESS",4,3,16911,{"$nulls":5},true]
[null,"4Cs Breeding Technology, Inc","FEDERAL or NATIONAL","INDUSTRY AND BUSINESS",4,3,5664,{"$nulls":5},true]
[null,"5 Gyres","INTERNATIONAL","NGO",5,2,10910,{"$nulls":5},true]
[null,"5 Rivers Delta Resource Center","STATE","GOVERNMENT",2,1,14288,{"$nulls":5},true]
[null,8906,"Unknown","Unknown",0,0,15829,{"$nulls":5},true]
[null,"A La Carte Specialty Foods","LOCAL","INDUSTRY AND BUSINESS",1,3,17620,{"$nulls":5},true]
[null,"A Living Museum","LOCAL","NGO",1,2,3,{"$nulls":5},true]
[null,"A Time for Science","LOCAL","NGO",1,2,14436,{"$nulls":5},true]
[null,"A. Kakubik","LOCAL","Unknown",1,0,14851,{"$nulls":5},true]
[null,"A. La Rocca Seafoods Inc.","INTERNATIONAL","INDUSTRY AND BUSINESS",5,3,8195,{"$nulls":5},true]
[null,"A.H. Zeppa Foundation","LOCAL","NGO",1,2,6287,{"$nulls":5},true]
[null,"A.S. Fiskevegn","INTERNATIONAL","INDUSTRY AND BUSINESS",5,3,4,{"$nulls":5},true]
[null,"A-1 Quality Designs","LOCAL","INDUSTRY AND BUSINESS",1,3,5,{"$nulls":5},true]
[null,"AAA Septic Service","LOCAL","INDUSTRY AND BUSINESS",1,3,6,{"$nulls":5},true]
[null,"AAUW","REGIONAL","NGO",3,2,8851,{"$nulls":5},true]
[null,"Abandoned Farms, Inc.","Unknown","Unknown",0,0,3498,{"$nulls":5},true]
[null,"ABB Corporate Research Center","INTERNATIONAL","INDUSTRY AND BUSINESS",5,3,6866,{"$nulls":5},true]
[null,"ABB Corporate Research Center - United States","INTERNATIONAL","INDUSTRY AND BUSINESS",5,3,7619,{"$nulls":5},true]
[null,"Abbeville Harbor and Terminal","LOCAL","INDUSTRY AND BUSINESS",1,3,17601,{"$nulls":5},true]
[null,"Abbey Marina, Lake Geneva, Wis.","STATE","INDUSTRY AND BUSINESS",2,3,3682,{"$nulls":5},true]
[null,"Abbotsford-Sumas Aquifer International Task Force","INTERNATIONAL","OTHER PARTNERS",5,6,8391,{"$nulls":5},true]
[null,"ABC Mussel Company, Ltd.","STATE","INDUSTRY AND BUSINESS",2,3,7,{"$nulls":5},true]
[null,"ABC Research Co.","FEDERAL or NATIONAL","INDUSTRY AND BUSINESS",4,3,8,{"$nulls":5},true]
[null,"ABDI Land and Water Conservation District, Wis.","LOCAL","GOVERNMENT",1,1,11426,{"$nulls":5},true]
[null,"Aberdeen Township","LOCAL","GOVERNMENT",1,1,14990,{"$nulls":5},true]
[null,"Abt Associates, Inc.","LOCAL","INDUSTRY AND BUSINESS",1,3,9,{"$nulls":5},true]
[null,"Abundant Seafood","LOCAL","INDUSTRY AND BUSINESS",1,3,7188,{"$nulls":5},true]
[null,"Academic Magnet High School","LOCAL","ACADEMIC INSTITUTION",1,4,5667,{"$nulls":5},true]
[null,"Academy of Natural Sciences of Drexel University","REGIONAL","ACADEMIC INSTITUTION",3,4,14368,{"$nulls":5},true]
[null,"Acadia Harvests Inc (Chris Heinig)","REGIONAL","INDUSTRY AND BUSINESS",3,3,16995,{"$nulls":5},true]
[null,"Acadia National Park","FEDERAL or NATIONAL","GOVERNMENT",4,1,11,{"$nulls":5},true]
[null,"Acadia Parish School System","LOCAL","OTHER PARTNERS",1,6,15523,{"$nulls":5},true]
[null,"Acadia University, Nova Scotia, CA","INTERNATIONAL","ACADEMIC INSTITUTION",5,4,7620,{"$nulls":5},true]
[null,"Acadian Seaplants","INTERNATIONAL","INDUSTRY AND BUSINESS",5,3,10626,{"$nulls":5},true]
[null,"Accomack County","LOCAL","GOVERNMENT",1,1,5474,{"$nulls":5},true]
[null,"Accomack County, Board of Supervisors","LOCAL","GOVERNMENT",1,1,17347,{"$nulls":5},true]
[null,"Accomack-Northampton Planning District Commission","STATE","GOVERNMENT",2,1,5500,{"$nulls":5},true]
[null,"Accord3.0","STATE","INDUSTRY AND BUSINESS",2,3,12925,{"$nulls":5},true]
[null,"ACE Basin National Estuarine Research Reserve (US DOC, NOAA, NOS, NERRS)","FEDERAL or NATIONAL","GOVERNMENT",4,1,4532,{"$nulls":5},true]
[null,"ACF First State Chefs Association","STATE","OTHER PARTNERS",2,6,7672,{"$nulls":5},true]
[null,"ACF Stakeholders Group","REGIONAL","INDUSTRY AND BUSINESS",3,3,11162,{"$nulls":5},true]
[null,"Acme Oyster House","REGIONAL","INDUSTRY AND BUSINESS",3,3,13906,{"$nulls":5},true]
[null,"ACME Sponge & Chamois Company, Inc.","LOCAL","INDUSTRY AND BUSINESS",1,3,13002,{"$nulls":5},true]
[null,"Acton Boxborough High School","LOCAL","ACADEMIC INSTITUTION",1,4,7621,{"$nulls":5},true]
[null,"Acton Wakefield Watersheds Alliance","LOCAL","NGO",1,2,9526,{"$nulls":5},true]
[null,"Adam Tyler, Commercial Fisherman","LOCAL","INDUSTRY AND BUSINESS",1,3,12656,{"$nulls":5},true]
[null,"Adaptation International","LOCAL","INDUSTRY AND BUSINESS",1,3,8392,{"$nulls":5},{"$f":"AND(  NOT(ISERROR(FIND(UPPER($B$7),UPPER($B78),1))),  OR($D$7=\"\",NOT(ISERROR(FIND(UPPER($D$7),UPPER($B78),1)))),    OR($D$8=\"\",(ISERROR(FIND(UPPER($D$8),UPPER($B78),1))))           )","v":true}]
[null,"Adelphi University","STATE","ACADEMIC INSTITUTION",2,4,3500,{"$nulls":5},true]
[null,"Adirondack Coast Visitors and Convention Bureau","LOCAL","INDUSTRY AND BUSINESS",1,3,11173,{"$nulls":5},true]
[null,"Adirondack Park Invasive Plant Program","LOCAL","NGO",1,2,14072,{"$nulls":5},true]
[null,"Adirondack Watershed Institute at Paul Smith's College","REGIONAL","ACADEMIC INSTITUTION",3,4,16134,{"$nulls":5},true]
[null,"Adirondeck Park Invasive Plant Program","STATE","GOVERNMENT",2,1,5795,{"$nulls":5},true]
[null,"Adiuvans Family Foundation","STATE","OTHER PARTNERS",2,6,17348,{"$nulls":5},true]
[null,"ADMB Foundation","FEDERAL or NATIONAL","NGO",4,2,15292,{"$nulls":5},true]
[null,"Adopt-a-Wetlands","FEDERAL or NATIONAL","NGO",4,2,12,{"$nulls":5},true]
[null,"AdvaMed","LOCAL","NGO",1,2,13,{"$nulls":5},true]
[null,"Advanced BioNutrition Corporation","INTERNATIONAL","INDUSTRY AND BUSINESS",5,3,14,{"$nulls":5},true]
[null,"Advanced Research Corporation","STATE","INDUSTRY AND BUSINESS",2,3,8715,{"$nulls":5},true]
[null,"Advanced Roofing Inc.","REGIONAL","INDUSTRY AND BUSINESS",3,3,7938,{"$nulls":5},true]
[null,"Adventure Productions, Inc., Baltimore, MD","LOCAL","OTHER PARTNERS",1,6,16569,{"$nulls":5},true]
[null,"Adventures by the Sea, Monterey, CA","REGIONAL","GOVERNMENT",3,1,3335,{"$nulls":5},true]
[null,"Advocates for the Knife River Watershed","LOCAL","NGO",1,2,13417,{"$nulls":5},true]
[null,"AE Fisheries","LOCAL","INDUSTRY AND BUSINESS",1,3,15,{"$nulls":5},true]
[null,"AECOM","FEDERAL or NATIONAL","INDUSTRY AND BUSINESS",4,3,4113,{"$nulls":5},true]
[null,"Aemetis Inc.","INTERNATIONAL","INDUSTRY AND BUSINESS",5,3,11225,{"$nulls":5},true]
[null,"Aeros Cultured Oyster Co. Inc.","Unknown","Unknown",0,0,9682,{"$nulls":5},true]
[null,"Aeros Cultured Oyster LLC","LOCAL","INDUSTRY AND BUSINESS",1,3,9335,{"$nulls":5},true]
[null,"AERS","REGIONAL","NGO",3,2,6699,{"$nulls":5},true]
[null,"AFC Sushi","INTERNATIONAL","INDUSTRY AND BUSINESS",5,3,8175,{"$nulls":5},true]
[null,"Affiliated Tribes of Northwest Indians","Tribal","GOVERNMENT",13,1,4449,{"$nulls":5},true]
[null,"AFG Corp.","INTERNATIONAL","INDUSTRY AND BUSINESS",5,3,8153,{"$nulls":5},true]
[null,"African Alliance of Rhode Island","STATE","NGO",2,2,14579,{"$nulls":5},true]
[null,"Afton Marina","LOCAL","INDUSTRY AND BUSINESS",1,3,8763,{"$nulls":5},true]
[null,"AG3 Inc.","LOCAL","INDUSTRY AND BUSINESS",1,3,7947,{"$nulls":5},true]
[null,"Agency for Toxic Substance and Disease Registry (US HHS)","FEDERAL or NATIONAL","GOVERNMENT",4,1,16,{"$nulls":5},true]
[null,"Agnew::Beck Consulting","STATE","INDUSTRY AND BUSINESS",2,3,17203,{"$nulls":5},true]
[null,"Agreement on the Conservation of Albatrosses and Petrels","INTERNATIONAL","NGO",5,2,4168,{"$nulls":5},true]
[null,"Agricultural Marketing Service (USDA)","FEDERAL or NATIONAL","GOVERNMENT",4,1,17,{"$nulls":5},true]
[null,"Agricultural Network Information Center (AgNIC)","INTERNATIONAL","OTHER PARTNERS",5,6,18,{"$nulls":5},true]
[null,"Agricultural Pest Survey Program (INHS)","STATE","ACADEMIC INSTITUTION",2,4,16094,{"$nulls":5},true]
[null,"Agricultural University of Norway","INTERNATIONAL","ACADEMIC INSTITUTION",5,4,19,{"$nulls":5},true]
[null,"Agriculture and Agri-Food Canada","INTERNATIONAL","GOVERNMENT",5,1,13752,{"$nulls":5},true]
[null,"Agriculture in the Classroom","FEDERAL or NATIONAL","OTHER PARTNERS",4,6,20,{"$nulls":5},true]
[null,"Agriculture Research Service (USDA, ARS)","FEDERAL or NATIONAL","GOVERNMENT",4,1,21,{"$nulls":5},true]
[null,"Ahead of the Storm","LOCAL","NGO",1,2,14147,{"$nulls":5},true]
[null,"AI Land Trust","LOCAL","INDUSTRY AND BUSINESS",1,3,22,{"$nulls":5},true]
[null,"Aiken High School","LOCAL","ACADEMIC INSTITUTION",1,4,8813,{"$nulls":5},true]
[null,"Ailana Surveying and Geomatics","LOCAL","INDUSTRY AND BUSINESS",1,3,15988,{"$nulls":5},true]
[null,"AIR Worldwide Corporation","INTERNATIONAL","INDUSTRY AND BUSINESS",5,3,7941,{"$nulls":5},true]
[null,"AIS Stakeholder Team/MNDNR","STATE","OTHER PARTNERS",2,6,6334,{"$nulls":5},true]
[null,"AIS-HACCP","REGIONAL","NGO",3,2,6320,{"$nulls":5},true]
[null,"Ajinomoto North America","REGIONAL","INDUSTRY AND BUSINESS",3,3,17349,{"$nulls":5},true]
[null,"Akwesasne Task Force on the Environment","LOCAL","NGO",1,2,23,{"$nulls":5},true]
[null,"Ala Kahakai National Historic Trail","LOCAL","NGO",1,2,10836,{"$nulls":5},true]
[null,"Ala Wai Watershed Partnership","LOCAL","OTHER PARTNERS",1,6,15979,{"$nulls":5},true]
[null,"Alabama A&M University","STATE","ACADEMIC INSTITUTION",2,4,16733,{"$nulls":5},true]
[null,"Alabama Agricultural Experiment Station","STATE","GOVERNMENT",2,1,24,{"$nulls":5},true]
[null,"Alabama Aquatic Nuisance Species Task Force (ANS)","STATE","GOVERNMENT",2,1,25,{"$nulls":5},true]
[null,"Alabama Association of State Floodplain Managers","STATE","GOVERNMENT",2,1,6481,{"$nulls":5},true]
[null,"Alabama Center for Estuarine Studies","STATE","GOVERNMENT",2,1,26,{"$nulls":5},true]
[null,"Alabama Clean Water Partnership","STATE","NGO",2,2,27,{"$nulls":5},true]
[null,"Alabama Coastal Conservation Association","LOCAL","NGO",1,2,9902,{"$nulls":5},true]
[null,"Alabama Coastal Foundation","STATE","NGO",2,2,28,{"$nulls":5},true]
[null,"Alabama Cooperative Extension System","STATE","GOVERNMENT",2,1,29,{"$nulls":5},true]
[null,"Alabama Department of Agriculture & Industries","STATE","GOVERNMENT",2,1,9903,{"$nulls":5},true]
[null,"Alabama Department of Conservation & Natural Resources, State Lands Division","STATE","GOVERNMENT",2,1,9904,{"$nulls":5},true]
[null,"Alabama Department of Conservation and Natural Resources, Coastal Programs (AL DNR)","STATE","GOVERNMENT",2,1,30,{"$nulls":5},true]
[null,"Alabama Department of Conservation and Natural Resources, Division of Wildlife and Fisheries (AL DNR)","STATE","GOVERNMENT",2,1,31,{"$nulls":5},true]
[null,"Alabama Department of Conservation and Natural Resources, Marine Resource Division (AL DNR)","STATE","GOVERNMENT",2,1,32,{"$nulls":5},true]
[null,"Alabama Department of Conservation and Natural Resources, State Lands Division (AL DNR)","STATE","GOVERNMENT",2,1,6482,{"$nulls":5},true]
[null,"Alabama Department of Economic and Community Affairs","STATE","GOVERNMENT",2,1,9905,{"$nulls":5},{"$f":"AND(  NOT(ISERROR(FIND(UPPER($B$7),UPPER($B142),1))),  OR($D$7=\"\",NOT(ISERROR(FIND(UPPER($D$7),UPPER($B142),1)))),    OR($D$8=\"\",(ISERROR(FIND(UPPER($D$8),UPPER($B142),1))))           )","v":true}]
[null,"Alabama Department of Education - ACCESS program","STATE","ACADEMIC INSTITUTION",2,4,9906,{"$nulls":5},true]
[null,"Alabama Department of Education (AL ED)","STATE","GOVERNMENT",2,1,33,{"$nulls":5},true]
[null,"Alabama Department of Environmental Management (AL DEM)","STATE","GOVERNMENT",2,1,34,{"$nulls":5},true]
[null,"Alabama Department of Health:Seafood Division","STATE","GOVERNMENT",2,1,6483,{"$nulls":5},true]
[null,"Alabama Department of Natural Resources (AL DNR)","STATE","GOVERNMENT",2,1,35,{"$nulls":5},true]
[null,"Alabama Department of Public Health (ADPH)","STATE","GOVERNMENT",2,1,6962,{"$nulls":5},true]
[null,"Alabama Department of Tourism","STATE","GOVERNMENT",2,1,9907,{"$nulls":5},true]
[null,"Alabama Department of Transportation (AL DOT)","STATE","GOVERNMENT",2,1,36,{"$nulls":5},true]
[null,"Alabama Fish Farming Center","STATE","INDUSTRY AND BUSINESS",2,3,6484,{"$nulls":5},true]
[null,"Alabama Fisheries Association","STATE","NGO",2,2,37,{"$nulls":5},true]
[null,"Alabama Forestry Commission","STATE","GOVERNMENT",2,1,38,{"$nulls":5},true]
[null,"Alabama Gulf Coast Area Chamber of Commerce","STATE","INDUSTRY AND BUSINESS",2,3,39,{"$nulls":5},true]
[null,"Alabama Gulf Coast Chapter of the International Code Council","REGIONAL","INDUSTRY AND BUSINESS",3,3,13916,{"$nulls":5},true]
[null,"Alabama Gulf Coast Convention and Visitor’s Bureau","STATE","NGO",2,2,40,{"$nulls":5},true]
[null,"Alabama Gulf Coast Recovery Council","STATE","NGO",2,2,12919,{"$nulls":5},true]
[null,"Alabama Gulf Coast Reef and Restoration Foundation","LOCAL","NGO",1,2,9908,{"$nulls":5},true]
[null,"Alabama Inland Shrimp Producers Association (AISPA)","STATE","INDUSTRY AND BUSINESS",2,3,6485,{"$nulls":5},true]
[null,"Alabama Kayak Adventures","LOCAL","INDUSTRY AND BUSINESS",1,3,9509,{"$nulls":5},true]
[null,"Alabama Marine Environmental Sciences Consortium","Unknown","Unknown",0,0,3501,{"$nulls":5},true]
[null,"Alabama Math Science Technology Initiative","STATE","NGO",2,2,6486,{"$nulls":5},true]
[null,"Alabama Partners Against Litter","STATE","NGO",2,2,41,{"$nulls":5},true]
[null,"Alabama Power Company","STATE","INDUSTRY AND BUSINESS",2,3,9909,{"$nulls":5},true]
[null,"Alabama Power Inc.","STATE","INDUSTRY AND BUSINESS",2,3,6487,{"$nulls":5},true]
[null,"Alabama Real Estate Commission","STATE","GOVERNMENT",2,1,13929,{"$nulls":5},true]
[null,"Alabama Scenic River Trail","LOCAL","NGO",1,2,9910,{"$nulls":5},true]
[null,"Alabama School for the Deaf and Blind","STATE","ACADEMIC INSTITUTION",2,4,9911,{"$nulls":5},true]
[null,"Alabama Science Teachers Association","STATE","NGO",2,2,6488,{"$nulls":5},true]
[null,"Alabama Seafood Association","STATE","INDUSTRY AND BUSINESS",2,3,42,{"$nulls":5},true]
[null,"Alabama Seafood Marketing Commission","LOCAL","INDUSTRY AND BUSINESS",1,3,13902,{"$nulls":5},true]
[null,"Alabama State Docks","STATE","GOVERNMENT",2,1,6489,{"$nulls":5},true]
[null,"Alabama State Port Authority","STATE","GOVERNMENT",2,1,9912,{"$nulls":5},true]
[null,"Alabama Trails Commission","STATE","GOVERNMENT",2,1,9913,{"$nulls":5},true]
[null,"Alabama Water Watch Association","STATE","NGO",2,2,43,{"$nulls":5},true]
[null,"Alabama Waterfront Access Study Committee","LOCAL","GOVERNMENT",1,1,13927,{"$nulls":5},true]
[null,"Alabama Working Waterfront Coalition","STATE","GOVERNMENT",2,1,6490,{"$nulls":5},true]
[null,"Alabama-Mississippi Clean Marina Program","STATE","GOVERNMENT",2,1,44,{"$nulls":5},true]
[null,"Alabama's Coastal Connection Scenic Byway","LOCAL","INDUSTRY AND BUSINESS",1,3,13907,{"$nulls":5},true]
[null,"Alaska Aerospace Development Corporation","STATE","NGO",2,2,45,{"$nulls":5},true]
[null,"Alaska Aqua Farms","STATE","INDUSTRY AND BUSINESS",2,3,46,{"$nulls":5},true]
[null,"Alaska Association of Harbormasters and Port Administrators","STATE","NGO",2,2,47,{"$nulls":5},true]
[null,"Alaska Bering Sea Crabbers","REGIONAL","NGO",3,2,8393,{"$nulls":5},true]
[null,"Alaska Board of Fisheries","STATE","GOVERNMENT",2,1,10996,{"$nulls":5},true]
[null,"Alaska Board of Game","STATE","GOVERNMENT",2,1,10995,{"$nulls":5},true]
[null,"Alaska Center for Climate Assessment and Policy (ACCAP)","STATE","GOVERNMENT",2,1,6921,{"$nulls":5},true]
[null,"Alaska Center for the Environment","STATE","NGO",2,2,48,{"$nulls":5},true]
[null,"Alaska Charter Association","STATE","OTHER PARTNERS",2,6,5417,{"$nulls":5},true]
[null,"Alaska Coastal Management Program Division of Governmental Coordination","STATE","GOVERNMENT",2,1,49,{"$nulls":5},true]
[null,"Alaska Commercial Fisheries Entry Commission","STATE","GOVERNMENT",2,1,50,{"$nulls":5},true]
[null,"Alaska Commercial Fishing and Agriculture Bank","STATE","GOVERNMENT",2,1,51,{"$nulls":5},true]
[null,"Alaska Community Action on Toxics","STATE","NGO",2,2,52,{"$nulls":5},true]
[null,"Alaska Conservation Foundation","STATE","NGO",2,2,53,{"$nulls":5},true]
[null,"Alaska Cooperative Extension Service","STATE","GOVERNMENT",2,1,5381,{"$nulls":5},true]
[null,"Alaska Council of Teachers of Math","STATE","NGO",2,2,8030,{"$nulls":5},true]
[null,"Alaska Crab Coalition","STATE","INDUSTRY AND BUSINESS",2,3,10987,{"$nulls":5},true]
[null,"Alaska Department of Commerce, Community and Economic Development (AK DOC)","STATE","GOVERNMENT",2,1,54,{"$nulls":5},true]
[null,"Alaska Department of Education and Early Development (AK ED)","STATE","GOVERNMENT",2,1,55,{"$nulls":5},true]
[null,"Alaska Department of Environmental Conservation (AK DEC)","STATE","GOVERNMENT",2,1,56,{"$nulls":5},true]
[null,"Alaska Department of Fish and Game (AK DFG)","STATE","GOVERNMENT",2,1,57,{"$nulls":5},true]
[null,"Alaska Department of Labor and Workforce Development","STATE","GOVERNMENT",2,1,14016,{"$nulls":5},true]
[null,"Alaska Department of Law","STATE","GOVERNMENT",2,1,11003,{"$nulls":5},true]
[null,"Alaska Department of Natural Resources (AK DNR)","STATE","GOVERNMENT",2,1,58,{"$nulls":5},true]
[null,"Alaska Department of Natural Resources Division of Oil and Gas (AK DNR DOG)","STATE","GOVERNMENT",2,1,59,{"$nulls":5},true]
[null,"Alaska Department of Transportation (AK DOT)","STATE","GOVERNMENT",2,1,60,{"$nulls":5},true]
[null,"Alaska Division of Emergency Services (AK DES)","STATE","GOVERNMENT",2,1,61,{"$nulls":5},{"$f":"AND(  NOT(ISERROR(FIND(UPPER($B$7),UPPER($B206),1))),  OR($D$7=\"\",NOT(ISERROR(FIND(UPPER($D$7),UPPER($B206),1)))),    OR($D$8=\"\",(ISERROR(FIND(UPPER($D$8),UPPER($B206),1))))           )","v":true}]
[null,"Alaska Division of Geological and Geophysical Surveys","STATE","GOVERNMENT",2,1,17187,{"$nulls":5},true]
[null,"Alaska Division of Governmental Coordination Coastal Zone Management Program (AK CZMP)","STATE","GOVERNMENT",2,1,62,{"$nulls":5},true]
[null,"Alaska Division of Homeland Security and Emergency Management (AK DHS and EM)","STATE","GOVERNMENT",2,1,63,{"$nulls":5},true]
[null,"Alaska Division of Investments","STATE","GOVERNMENT",2,1,17234,{"$nulls":5},true]
[null,"Alaska Division of Public Health","STATE","GOVERNMENT",2,1,17213,{"$nulls":5},true]
[null,"Alaska Draggers Association","STATE","GOVERNMENT",2,1,64,{"$nulls":5},true]
[null,"Alaska Energy Authority","STATE","GOVERNMENT",2,1,6920,{"$nulls":5},true]
[null,"Alaska Eskimo Whaling Commission","STATE","NGO",2,2,14017,{"$nulls":5},true]
[null,"Alaska Federation of Natives","STATE","OTHER PARTNERS",2,6,5409,{"$nulls":5},true]
[null,"Alaska Fisheries Development Foundation","STATE","NGO",2,2,65,{"$nulls":5},true]
[null,"Alaska Fisheries Revitalization Strategy","STATE","GOVERNMENT",2,1,66,{"$nulls":5},true]
[null,"Alaska Fisheries Science Center (US DOC, NOAA, NMFS)","FEDERAL or NATIONAL","GOVERNMENT",4,1,67,{"$nulls":5},true]
[null,"Alaska Fishermen’s Union","STATE","INDUSTRY AND BUSINESS",2,3,68,{"$nulls":5},true]
[null,"Alaska Fishing Industry Relief Mission","STATE","NGO",2,2,69,{"$nulls":5},true]
[null,"Alaska Forum for Environmental Responsibility","STATE","NGO",2,2,70,{"$nulls":5},true]
[null,"Alaska Forum, Inc.","STATE","NGO",2,2,8028,{"$nulls":5},true]
[null,"Alaska Geographic Alliance (AGA)","STATE","NGO",2,2,14094,{"$nulls":5},true]
[null,"Alaska Geological and Geophysical Survey (DGGS)","STATE","GOVERNMENT",2,1,14093,{"$nulls":5},true]
[null,"Alaska Groundfish Data Bank","STATE","NGO",2,2,71,{"$nulls":5},true]
[null,"Alaska Groundfish Forum","STATE","NGO",2,2,72,{"$nulls":5},true]
[null,"Alaska GulfWatch Program","REGIONAL","NGO",3,2,9632,{"$nulls":5},true]
[null,"Alaska Health and Social Services","STATE","GOVERNMENT",2,1,17223,{"$nulls":5},true]
[null,"Alaska Ice Seafoods","REGIONAL","INDUSTRY AND BUSINESS",3,3,7376,{"$nulls":5},true]
[null,"Alaska Legislative Salmon Industry Task Force","STATE","GOVERNMENT",2,1,73,{"$nulls":5},true]
[null,"Alaska Longline Fishermen's Association","STATE","INDUSTRY AND BUSINESS",2,3,74,{"$nulls":5},true]
[null,"Alaska Marine Conservation Council","STATE","NGO",2,2,75,{"$nulls":5},true]
[null,"Alaska Marine Mammal Stranding Network (US DOC, NOAA, NMFS)","FEDERAL or NATIONAL","GOVERNMENT",4,1,5380,{"$nulls":5},true]
[null,"Alaska Marine Safety Education Association","STATE","NGO",2,2,76,{"$nulls":5},true]
[null,"Alaska Miners Association","STATE","OTHER PARTNERS",2,6,5418,{"$nulls":5},true]
[null,"Alaska Native Fund","STATE","NGO",2,2,17238,{"$nulls":5},true]
[null,"Alaska Native Tribal Health Consortium","Tribal","GOVERNMENT",13,1,5382,{"$nulls":5},true]
[null,"Alaska Natural History Association","STATE","NGO",2,2,77,{"$nulls":5},true]
[null,"Alaska Natural Resource and Outdoor Education","STATE","NGO",2,2,78,{"$nulls":5},true]
[null,"Alaska Natural Resources and Outdoor Education","LOCAL","NGO",1,2,17249,{"$nulls":5},true]
[null,"Alaska Ocean Observing System (AOOS)","STATE","GOVERNMENT",2,1,79,{"$nulls":5},true]
[null,"Alaska Oceans Network","STATE","NGO",2,2,80,{"$nulls":5},true]
[null,"Alaska Oceans Program","STATE","NGO",2,2,81,{"$nulls":5},true]
[null,"Alaska Office of Boating Safety","STATE","GOVERNMENT",2,1,82,{"$nulls":5},true]
[null,"Alaska Pacific Seafoods","STATE","OTHER PARTNERS",2,6,5419,{"$nulls":5},true]
[null,"alaska pacific university","Unknown","Unknown",0,0,14091,{"$nulls":5},true]
[null,"Alaska Pacific University (APU)","STATE","ACADEMIC INSTITUTION",2,4,83,{"$nulls":5},true]
[null,"Alaska Regional Marine Research Program (US DOC, NOAA, OAR, NSGCP, RMRP)","FEDERAL or NATIONAL","GOVERNMENT",4,1,84,{"$nulls":5},true]
[null,"Alaska Regional Office (US DOC, NOAA, NMFS)","FEDERAL or NATIONAL","GOVERNMENT",4,1,85,{"$nulls":5},true]
[null,"Alaska Science and Technology Foundation","STATE","NGO",2,2,86,{"$nulls":5},true]
[null,"Alaska Science Consortium","STATE","NGO",2,2,87,{"$nulls":5},true]
[null,"Alaska Science Teachers Association","STATE","NGO",2,2,8029,{"$nulls":5},true]
[null,"Alaska Sea Farms","STATE","INDUSTRY AND BUSINESS",2,3,10997,{"$nulls":5},true]
[null,"Alaska Sea Grant","STATE","SEA GRANT PROGRAMS",2,5,3268,{"$nulls":5},true]
[null,"Alaska Sea grant Marine Advisory Program","STATE","SEA GRANT PROGRAMS",2,5,7192,{"$nulls":5},true]
[null,"Alaska Sea Otter and Steller Sea Lion Commission","STATE","GOVERNMENT",2,1,89,{"$nulls":5},true]
[null,"Alaska Seafood Cooperative","STATE","INDUSTRY AND BUSINESS",2,3,14064,{"$nulls":5},true]
[null,"Alaska Seafood Interna-tional","STATE","INDUSTRY AND BUSINESS",2,3,90,{"$nulls":5},true]
[null,"Alaska Seafood Marketing Institute","STATE","INDUSTRY AND BUSINESS",2,3,91,{"$nulls":5},true]
[null,"Alaska SeaLife Center","STATE","NGO",2,2,92,{"$nulls":5},true]
[null,"Alaska Shellfish Growers Association","STATE","NGO",2,2,93,{"$nulls":5},true]
[null,"Alaska Small Business Development Center","STATE","GOVERNMENT",2,1,94,{"$nulls":5},true]
[null,"Alaska State Legislature","STATE","GOVERNMENT",2,1,10988,{"$nulls":5},true]
[null,"Alaska State Troopers","STATE","GOVERNMENT",2,1,14018,{"$nulls":5},true]
[null,"Alaska Sustainable Salmon Fund","REGIONAL","NGO",3,2,10497,{"$nulls":5},true]
[null,"Alaska Tide Book Company","STATE","INDUSTRY AND BUSINESS",2,3,95,{"$nulls":5},true]
[null,"Alaska Troller's Association","STATE","NGO",2,2,8034,{"$nulls":5},true]
[null,"Alaska Underwater Science Foundation","STATE","NGO",2,2,96,{"$nulls":5},true]
[null,"Alaska Veterinary Pathology Services","STATE","INDUSTRY AND BUSINESS",2,3,17228,{"$nulls":5},true]
[null,"Alaska Vocational Technical Education Center","STATE","ACADEMIC INSTITUTION",2,4,97,{"$nulls":5},{"$f":"AND(  NOT(ISERROR(FIND(UPPER($B$7),UPPER($B270),1))),  OR($D$7=\"\",NOT(ISERROR(FIND(UPPER($D$7),UPPER($B270),1)))),    OR($D$8=\"\",(ISERROR(FIND(UPPER($D$8),UPPER($B270),1))))           )","v":true}]
[null,"Alaska Whitefish Trawlers Association","STATE","NGO",2,2,8031,{"$nulls":5},true]
[null,"Alaska Wildlife Alliance","STATE","NGO",2,2,98,{"$nulls":5},true]
[null,"Alaska Workforce Investment Board","STATE","GOVERNMENT",2,1,14019,{"$nulls":5},true]
[null,"Alaskan Leader Fisheries","STATE","INDUSTRY AND BUSINESS",2,3,10980,{"$nulls":5},true]
[null,"Alba Middle School","LOCAL","ACADEMIC INSTITUTION",1,4,99,{"$nulls":5},true]
[null,"Albany Seafood","LOCAL","INDUSTRY AND BUSINESS",1,3,13991,{"$nulls":5},true]
[null,"Albatross Fleet","LOCAL","INDUSTRY AND BUSINESS",1,3,15585,{"$nulls":5},true]
[null,"Albatross Task Force, BirdLife International","INTERNATIONAL","NGO",5,2,4163,{"$nulls":5},true]
[null,"Albemarle Commission","LOCAL","GOVERNMENT",1,1,14448,{"$nulls":5},true]
[null,"Albemarle Corporation","INTERNATIONAL","INDUSTRY AND BUSINESS",5,3,6145,{"$nulls":5},true]
[null,"Albemarle Resource Conservation & Development Council","LOCAL","GOVERNMENT",1,1,4982,{"$nulls":5},true]
[null,"Albemarle-Pamlico National Estuary Program (US EPA, NEP)","FEDERAL or NATIONAL","GOVERNMENT",4,1,100,{"$nulls":5},true]
[null,"Alber Seafoods","REGIONAL","INDUSTRY AND BUSINESS",3,3,8166,{"$nulls":5},true]
[null,"Albion Borough","LOCAL","GOVERNMENT",1,1,10681,{"$nulls":5},true]
[null,"Albion School District","LOCAL","ACADEMIC INSTITUTION",1,4,13946,{"$nulls":5},true]
[null,"Alchemy Restaurant","LOCAL","INDUSTRY AND BUSINESS",1,3,13258,{"$nulls":5},true]
[null,"Alcoa Intalco Works","Unknown","Unknown",0,0,13155,{"$nulls":5},true]
[null,"Alcona Community High School","LOCAL","ACADEMIC INSTITUTION",1,4,9121,{"$nulls":5},true]
[null,"Alcona County Board of Commissioners","LOCAL","GOVERNMENT",1,1,9122,{"$nulls":5},true]
[null,"Alcona County Master Gardeners","LOCAL","NGO",1,2,9123,{"$nulls":5},true]
[null,"Alcona Elementary School","LOCAL","INDUSTRY AND BUSINESS",1,3,9124,{"$nulls":5},true]
[null,"Alcona Middle School","LOCAL","ACADEMIC INSTITUTION",1,4,9125,{"$nulls":5},true]
[null,"Alcona Township","LOCAL","GOVERNMENT",1,1,9126,{"$nulls":5},true]
[null,"Alderbrook Resort and Spa","LOCAL","INDUSTRY AND BUSINESS",1,3,101,{"$nulls":5},true]
[null,"Aldo Leopold Wilderness Research Institute","FEDERAL or NATIONAL","NGO",4,2,102,{"$nulls":5},true]
[null,"Aleut Community of St. Paul Island","LOCAL","GOVERNMENT",1,1,17174,{"$nulls":5},true]
[null,"Aleut Corporation","LOCAL","NGO",1,2,103,{"$nulls":5},true]
[null,"Aleutian Pribilof Island Association","LOCAL","NGO",1,2,104,{"$nulls":5},true]
[null,"Aleutian Pribilof Island Community Development Association","LOCAL","NGO",1,2,105,{"$nulls":5},true]
[null,"Aleutian Spray Seafoods","LOCAL","INDUSTRY AND BUSINESS",1,3,4303,{"$nulls":5},true]
[null,"Aleutians and Bering Sea Islands Landscape Conservation Cooperative","STATE","NGO",2,2,14020,{"$nulls":5},true]
[null,"Aleutians East Borough School District","LOCAL","GOVERNMENT",1,1,10959,{"$nulls":5},true]
[null,"Alewife Harvesters of Maine","STATE","INDUSTRY AND BUSINESS",2,3,17258,{"$nulls":5},true]
[null,"Alex C. Walker Foundation","LOCAL","NGO",1,2,106,{"$nulls":5},true]
[null,"Alfa Gamma Seafood","REGIONAL","INDUSTRY AND BUSINESS",3,3,10758,{"$nulls":5},true]
[null,"Alford Seafood","STATE","INDUSTRY AND BUSINESS",2,3,3890,{"$nulls":5},true]
[null,"Alfred P. Sloan Foundation","FEDERAL or NATIONAL","NGO",4,2,16591,{"$nulls":5},true]
[null,"Algaverde, Inc. dba Bioalgene","FEDERAL or NATIONAL","INDUSTRY AND BUSINESS",4,3,9348,{"$nulls":5},true]
[null,"AlgaXperts","LOCAL","INDUSTRY AND BUSINESS",1,3,12418,{"$nulls":5},true]
[null,"Alger County, MI","LOCAL","GOVERNMENT",1,1,5991,{"$nulls":5},true]
[null,"Algoma City Department of Recreation","LOCAL","GOVERNMENT",1,1,107,{"$nulls":5},true]
[null,"Alianza Comunitaria y Ambiental en Acción Solidaria","LOCAL","NGO",1,2,8885,{"$nulls":5},true]
[null,"Alice Independent School District , TX","LOCAL","ACADEMIC INSTITUTION",1,4,6073,{"$nulls":5},true]
[null,"Alki Jetty Citizen Science volunteers","LOCAL","OTHER PARTNERS",1,6,11608,{"$nulls":5},true]
[null,"Alki Salmon Team","LOCAL","NGO",1,2,108,{"$nulls":5},true]
[null,"All American Oyster Company","STATE","INDUSTRY AND BUSINESS",2,3,15586,{"$nulls":5},true]
[null,"All Power Cables","Unknown","INDUSTRY AND BUSINESS",0,3,7861,{"$nulls":5},true]
[null,"All Saints Catholic School","LOCAL","ACADEMIC INSTITUTION",1,4,9127,{"$nulls":5},true]
[null,"All Seas Wholesale, Inc (ASW)","REGIONAL","NGO",3,2,3336,{"$nulls":5},true]
[null,"All Souls Interfaith Gathering","LOCAL","OTHER PARTNERS",1,6,15967,{"$nulls":5},true]
[null,"Allegany County Public Schools","STATE","ACADEMIC INSTITUTION",2,4,15872,{"$nulls":5},true]
[null,"Allegheny College","LOCAL","ACADEMIC INSTITUTION",1,4,14595,{"$nulls":5},true]
[null,"Allen Academy, Bryan, TX","LOCAL","ACADEMIC INSTITUTION",1,4,12187,{"$nulls":5},true]
[null,"Allen County","LOCAL","GOVERNMENT",1,1,10886,{"$nulls":5},true]
[null,"Allen Engineering and Science","REGIONAL","INDUSTRY AND BUSINESS",3,3,13915,{"$nulls":5},true]
[null,"Allen Landscape","Unknown","INDUSTRY AND BUSINESS",0,3,7084,{"$nulls":5},true]
[null,"Allen Marine","LOCAL","INDUSTRY AND BUSINESS",1,3,10956,{"$nulls":5},true]
[null,"Allen Shellfish LLC","REGIONAL","INDUSTRY AND BUSINESS",3,3,7377,{"$nulls":5},true]
[null,"Alley Pond Environmental Center","LOCAL","NGO",1,2,12364,{"$nulls":5},true]
[null,"Alliance for a Healthy South Sound","LOCAL","OTHER PARTNERS",1,6,13154,{"$nulls":5},true]
[null,"Alliance For A Livable Newport","LOCAL","NGO",1,2,9556,{"$nulls":5},true]
[null,"Alliance for a Living Ocean","STATE","NGO",2,2,14914,{"$nulls":5},true]
[null,"Alliance for Coastal Technology","LOCAL","ACADEMIC INSTITUTION",1,4,109,{"$nulls":5},true]
[null,"Alliance for Communities for Sustainable Fisheries","STATE","Unknown",2,0,8128,{"$nulls":5},{"$f":"AND(  NOT(ISERROR(FIND(UPPER($B$7),UPPER($B334),1))),  OR($D$7=\"\",NOT(ISERROR(FIND(UPPER($D$7),UPPER($B334),1)))),    OR($D$8=\"\",(ISERROR(FIND(UPPER($D$8),UPPER($B334),1))))           )","v":true}]
[null,"Alliance for Living Ocean","REGIONAL","NGO",3,2,13133,{"$nulls":5},true]
[null,"Alliance for New Jersey Environmental Education","STATE","NGO",2,2,9040,{"$nulls":5},true]
[null,"Alliance for Regional Collaboratives for Climate Adaptation","REGIONAL","NGO",3,2,17277,{"$nulls":5},true]
[null,"Alliance for the Chesapeake Bay","REGIONAL","NGO",3,2,110,{"$nulls":5},true]
[null,"Alliance for the Great Lakes","REGIONAL","NGO",3,2,111,{"$nulls":5},true]
[null,"Alliance for Water Efficiency","REGIONAL","NGO",3,2,8609,{"$nulls":5},true]
[null,"Allied Drive Learning Center","LOCAL","OTHER PARTNERS",1,6,8581,{"$nulls":5},true]
[null,"Al-Lou’s Fish","LOCAL","INDUSTRY AND BUSINESS",1,3,112,{"$nulls":5},true]
[null,"Allouez Marine","LOCAL","INDUSTRY AND BUSINESS",1,3,7287,{"$nulls":5},true]
[null,"AllStart Auto Electric","LOCAL","INDUSTRY AND BUSINESS",1,3,8717,{"$nulls":5},true]
[null,"Alltech Inc.","STATE","INDUSTRY AND BUSINESS",2,3,113,{"$nulls":5},true]
[null,"Allyn Community Association","LOCAL","INDUSTRY AND BUSINESS",1,3,7378,{"$nulls":5},true]
[null,"Alma Bryant High School","LOCAL","ACADEMIC INSTITUTION",1,4,114,{"$nulls":5},true]
[null,"Almost Persuaded Charters","LOCAL","INDUSTRY AND BUSINESS",1,3,13744,{"$nulls":5},true]
[null,"Alpena Area Chamber of Commerce","LOCAL","GOVERNMENT",1,1,9128,{"$nulls":5},true]
[null,"Alpena Community College","LOCAL","ACADEMIC INSTITUTION",1,4,7976,{"$nulls":5},true]
[null,"Alpena Convention and Visitors Bureau","LOCAL","GOVERNMENT",1,1,9129,{"$nulls":5},true]
[null,"Alpena County Board of Commissioners","LOCAL","GOVERNMENT",1,1,9130,{"$nulls":5},true]
[null,"Alpena High School","LOCAL","ACADEMIC INSTITUTION",1,4,9131,{"$nulls":5},true]
[null,"Alpena Shipwreck Tours","LOCAL","INDUSTRY AND BUSINESS",1,3,7977,{"$nulls":5},true]
[null,"Alpena Township","LOCAL","GOVERNMENT",1,1,9132,{"$nulls":5},true]
[null,"Alpena Wildlife Sanctuary Committee (River Center)","LOCAL","GOVERNMENT",1,1,9133,{"$nulls":5},true]
[null,"Alpena-Montmorency-Alcona ESD","LOCAL","ACADEMIC INSTITUTION",1,4,115,{"$nulls":5},true]
[null,"Alsip Nursery","LOCAL","INDUSTRY AND BUSINESS",1,3,14815,{"$nulls":5},true]
[null,"Alta Pointe Health Systems","STATE","NGO",2,2,6491,{"$nulls":5},true]
[null,"Altamaha Riverkeeper","REGIONAL","NGO",3,2,116,{"$nulls":5},true]
[null,"AltaSea at the Port of Los Angeles","LOCAL","INDUSTRY AND BUSINESS",1,3,17300,{"$nulls":5},true]
[null,"Alternatives Northwest","LOCAL","INDUSTRY AND BUSINESS",1,3,117,{"$nulls":5},true]
[null,"Altria Foundation","FEDERAL or NATIONAL","NGO",4,2,5491,{"$nulls":5},true]
[null,"Alu Like Inc.","LOCAL","NGO",1,2,13060,{"$nulls":5},true]
[null,"Alutiiq Museum","LOCAL","OTHER PARTNERS",1,6,5383,{"$nulls":5},true]
[null,"Alutiiq Pride Shellfish Hatchery","LOCAL","INDUSTRY AND BUSINESS",1,3,118,{"$nulls":5},true]
[null,"Alutiiq Tribe of Old Harbor","LOCAL","GOVERNMENT",1,1,17180,{"$nulls":5},true]
[null,"Alutiq Pride Shellfish Hatchery","REGIONAL","INDUSTRY AND BUSINESS",3,3,15070,{"$nulls":5},true]
[null,"Alvin Community College","LOCAL","ACADEMIC INSTITUTION",1,4,12188,{"$nulls":5},true]
[null,"Alward Institute for Collaborative Science","FEDERAL or NATIONAL","NGO",4,2,16791,{"$nulls":5},true]
[null,"AMA/Iosco Math and Science Center","LOCAL","NGO",1,2,12458,{"$nulls":5},true]
[null,"Amazon","INTERNATIONAL","INDUSTRY AND BUSINESS",5,3,119,{"$nulls":5},true]
[null,"AMEC plc","INTERNATIONAL","INDUSTRY AND BUSINESS",5,3,9510,{"$nulls":5},true]
[null,"American Abalone","STATE","INDUSTRY AND BUSINESS",2,3,3761,{"$nulls":5},true]
[null,"American Abalone Farm","STATE","INDUSTRY AND BUSINESS",2,3,11226,{"$nulls":5},true]
[null,"American Academy of Family Physicians","FEDERAL or NATIONAL","NGO",4,2,120,{"$nulls":5},true]
[null,"American Academy of Underwater Scientists (AAUS)","FEDERAL or NATIONAL","NGO",4,2,8479,{"$nulls":5},true]
[null,"American Association for the Advancement of Science (AAAS)","FEDERAL or NATIONAL","OTHER PARTNERS",4,6,123,{"$nulls":5},true]
[null,"American Association for the Study of Liver Diseases","FEDERAL or NATIONAL","NGO",4,2,121,{"$nulls":5},true]
[null,"American Association of Clinical Endocrinologists","FEDERAL or NATIONAL","NGO",4,2,122,{"$nulls":5},true]
[null,"American Association of Diabetes Educators","FEDERAL or NATIONAL","NGO",4,2,124,{"$nulls":5},true]
[null,"American Association of Flood Plain Managers","FEDERAL or NATIONAL","NGO",4,2,9557,{"$nulls":5},true]
[null,"American Association of Landscape Architects","STATE","NGO",2,2,10573,{"$nulls":5},true]
[null,"American Association of Port Authorities","FEDERAL or NATIONAL","OTHER PARTNERS",4,6,15498,{"$nulls":5},true]
[null,"American Association of University Women","FEDERAL or NATIONAL","OTHER PARTNERS",4,6,125,{"$nulls":5},true]
[null,"American Bar Association Section of Environment, Energy, and Resources","Unknown","Unknown",0,0,17646,{"$nulls":5},true]
[null,"American Bird Conservancy","FEDERAL or NATIONAL","NGO",4,2,126,{"$nulls":5},true]
[null,"American Boat and Yacht Council","REGIONAL","INDUSTRY AND BUSINESS",3,3,12407,{"$nulls":5},true]
[null,"American Bottoms Regional Wastewater Treatment","LOCAL","GOVERNMENT",1,1,13753,{"$nulls":5},true]
[null,"American Bureau of Shipping","FEDERAL or NATIONAL","INDUSTRY AND BUSINESS",4,3,127,{"$nulls":5},true]
[null,"American Cancer Research Center And Hospital, Denver","Unknown","Unknown",0,0,3502,{"$nulls":5},true]
[null,"American Canoe Association","Unknown","NGO",0,2,15311,{"$nulls":5},true]
[null,"American Cetacean Society","FEDERAL or NATIONAL","NGO",4,2,128,{"$nulls":5},true]
[null,"American Chestnut Foundation","REGIONAL","NGO",3,2,16568,{"$nulls":5},true]
[null,"American College of Emergency Physicians","FEDERAL or NATIONAL","ACADEMIC INSTITUTION",4,4,129,{"$nulls":5},true]
[null,"American College of Gastroenterology","FEDERAL or NATIONAL","ACADEMIC INSTITUTION",4,4,130,{"$nulls":5},true]
[null,"American Culinary Federation","FEDERAL or NATIONAL","NGO",4,2,131,{"$nulls":5},true]
[null,"American Culinary Federation","FEDERAL or NATIONAL","INDUSTRY AND BUSINESS",4,3,7293,{"$nulls":5},{"$f":"AND(  NOT(ISERROR(FIND(UPPER($B$7),UPPER($B398),1))),  OR($D$7=\"\",NOT(ISERROR(FIND(UPPER($D$7),UPPER($B398),1)))),    OR($D$8=\"\",(ISERROR(FIND(UPPER($D$8),UPPER($B398),1))))           )","v":true}]
[null,"American Engineering and Testing","FEDERAL or NATIONAL","NGO",4,2,8775,{"$nulls":5},true]
[null,"American Farm Trust","FEDERAL or NATIONAL","NGO",4,2,132,{"$nulls":5},true]
[null,"American Fisheries Association","FEDERAL or NATIONAL","NGO",4,2,133,{"$nulls":5},true]
[null,"American Fisheries Society","Unknown","Unknown",0,0,9683,{"$nulls":5},true]
[null,"American Fisheries Society (AFS)","FEDERAL or NATIONAL","NGO",4,2,134,{"$nulls":5},true]
[null,"American Gastroenterological Association","FEDERAL or NATIONAL","NGO",4,2,135,{"$nulls":5},true]
[null,"American Geophysical Union (AGU)","Unknown","Unknown",0,0,3503,{"$nulls":5},true]
[null,"American Gold Seafoods","REGIONAL","INDUSTRY AND BUSINESS",3,3,4304,{"$nulls":5},true]
[null,"American Great Lakes Ports Association and Its Members","REGIONAL","NGO",3,2,6288,{"$nulls":5},true]
[null,"American Institute of Architechts (NJ)","STATE","NGO",2,2,10570,{"$nulls":5},true]
[null,"American Institute of Architects Honolulu Chapter","FEDERAL or NATIONAL","INDUSTRY AND BUSINESS",4,3,136,{"$nulls":5},true]
[null,"American Institute of Architects, MN Chapter","STATE","INDUSTRY AND BUSINESS",2,3,6255,{"$nulls":5},true]
[null,"American Institute Of Biological Sciences","Unknown","Unknown",0,0,3504,{"$nulls":5},true]
[null,"American Littoral Society","REGIONAL","NGO",3,2,7200,{"$nulls":5},true]
[null,"American Mariculture","REGIONAL","INDUSTRY AND BUSINESS",3,3,15154,{"$nulls":5},true]
[null,"American Marine Corporation","REGIONAL","INDUSTRY AND BUSINESS",3,3,7445,{"$nulls":5},true]
[null,"American Medical Association","REGIONAL","ACADEMIC INSTITUTION",3,4,7926,{"$nulls":5},true]
[null,"American Meteorological Society (AMS)","FEDERAL or NATIONAL","NGO",4,2,137,{"$nulls":5},true]
[null,"American Museum of Natural History","FEDERAL or NATIONAL","NGO",4,2,15860,{"$nulls":5},true]
[null,"American Museum of Natural History (NY)","FEDERAL or NATIONAL","GOVERNMENT",4,1,5132,{"$nulls":5},true]
[null,"American Mussel Harvester","LOCAL","INDUSTRY AND BUSINESS",1,3,7310,{"$nulls":5},true]
[null,"American Nursery and Landscape Association","LOCAL","INDUSTRY AND BUSINESS",1,3,15537,{"$nulls":5},true]
[null,"American Nursery Landscape Association","FEDERAL or NATIONAL","NGO",4,2,139,{"$nulls":5},true]
[null,"American Nurses Association","FEDERAL or NATIONAL","NGO",4,2,140,{"$nulls":5},true]
[null,"American Planning Association","FEDERAL or NATIONAL","NGO",4,2,4536,{"$nulls":5},true]
[null,"American Planning Association","FEDERAL or NATIONAL","NGO",4,2,6123,{"$nulls":5},true]
[null,"American Planning Association- Chicago Metro Section","LOCAL","GOVERNMENT",1,1,14793,{"$nulls":5},true]
[null,"American Planning Association Hawaii Chapter","STATE","NGO",2,2,8252,{"$nulls":5},true]
[null,"American Prawn Cooperative","REGIONAL","INDUSTRY AND BUSINESS",3,3,12657,{"$nulls":5},true]
[null,"American Rainwater Catchment Systems Association","FEDERAL or NATIONAL","INDUSTRY AND BUSINESS",4,3,8288,{"$nulls":5},true]
[null,"American Red Cross","INTERNATIONAL","NGO",5,2,2303,{"$nulls":5},true]
[null,"American Rivers","FEDERAL or NATIONAL","NGO",4,2,13331,{"$nulls":5},true]
[null,"American Samoa Community College","STATE","ACADEMIC INSTITUTION",2,4,141,{"$nulls":5},true]
[null,"American Samoa Community College Agriculture, Community and Natural Resources Division","STATE","ACADEMIC INSTITUTION",2,4,16251,{"$nulls":5},true]
[null,"American Samoa Department of Commerce Community Services","LOCAL","GOVERNMENT",1,1,13381,{"$nulls":5},true]
[null,"American Samoa Department of Education (AS ED)","REGIONAL","GOVERNMENT",3,1,142,{"$nulls":5},true]
[null,"American Samoa EMS","REGIONAL","GOVERNMENT",3,1,16387,{"$nulls":5},true]
[null,"American Samoa Environmental Protection Agency","STATE","GOVERNMENT",2,1,16250,{"$nulls":5},true]
[null,"American Samoa Government Coral Reef Advisory Group","REGIONAL","GOVERNMENT",3,1,143,{"$nulls":5},true]
[null,"American Samoa Government Department of Marine and Wildlife Resources","LOCAL","GOVERNMENT",1,1,12573,{"$nulls":5},true]
[null,"American Samoa Marine Patrol","REGIONAL","GOVERNMENT",3,1,16386,{"$nulls":5},true]
[null,"American Samoa Marine Sanctuaries Dive Drill Response","REGIONAL","GOVERNMENT",3,1,16388,{"$nulls":5},true]
[null,"American Samoa Power Authority","STATE","GOVERNMENT",2,1,16252,{"$nulls":5},true]
[null,"American Samoa Resource, Conservation and Development Council","STATE","NGO",2,2,144,{"$nulls":5},true]
[null,"American School for the Deaf","FEDERAL or NATIONAL","ACADEMIC INSTITUTION",4,4,145,{"$nulls":5},true]
[null,"American Seafoods Company","FEDERAL or NATIONAL","INDUSTRY AND BUSINESS",4,3,4305,{"$nulls":5},true]
[null,"American Shore and Beach Preservation Association","REGIONAL","NGO",3,2,4029,{"$nulls":5},true]
[null,"American Shrimp Processors Association","FEDERAL or NATIONAL","INDUSTRY AND BUSINESS",4,3,9511,{"$nulls":5},true]
[null,"American Society for Microbiology","FEDERAL or NATIONAL","NGO",4,2,8964,{"$nulls":5},true]
[null,"American Society of Civil Engineers (ASCE)","FEDERAL or NATIONAL","INDUSTRY AND BUSINESS",4,3,146,{"$nulls":5},true]
[null,"American Society of Civil Engineers, Coastal Practice Team (ASCE, CPT)","FEDERAL or NATIONAL","NGO",4,2,147,{"$nulls":5},true]
[null,"American Society of Civil Engineers, Dredging Team (ASCE, DT)","FEDERAL or NATIONAL","NGO",4,2,148,{"$nulls":5},true]
[null,"American Society of Landscape Architects (ASLA)","REGIONAL","NGO",3,2,8690,{"$nulls":5},true]
[null,"American Society of Limnology and Oceanography (ASLO)","FEDERAL or NATIONAL","NGO",4,2,149,{"$nulls":5},true]
[null,"American Society of Pharmacognosy","FEDERAL or NATIONAL","NGO",4,2,150,{"$nulls":5},true]
[null,"American Soybean Association","REGIONAL","INDUSTRY AND BUSINESS",3,3,12533,{"$nulls":5},true]
[null,"American University","Unknown","Unknown",0,0,14686,{"$nulls":5},true]
[null,"American University, Washington DC","STATE","ACADEMIC INSTITUTION",2,4,9260,{"$nulls":5},true]
[null,"American Veterinary Medical Association","FEDERAL or NATIONAL","NGO",4,2,151,{"$nulls":5},true]
[null,"American Water Resources Association","FEDERAL or NATIONAL","NGO",4,2,152,{"$nulls":5},true]
[null,"American Water Works Association -- Illinois Chapter","STATE","NGO",2,2,8610,{"$nulls":5},true]
[null,"American Water Works Association-South Carolina Section","STATE","NGO",2,2,14304,{"$nulls":5},true]
[null,"American Waterways Association - West Coast Towboat Industry","FEDERAL or NATIONAL","INDUSTRY AND BUSINESS",4,3,153,{"$nulls":5},true]
[null,"American Waterways Operators","FEDERAL or NATIONAL","INDUSTRY AND BUSINESS",4,3,154,{"$nulls":5},{"$f":"AND(  NOT(ISERROR(FIND(UPPER($B$7),UPPER($B462),1))),  OR($D$7=\"\",NOT(ISERROR(FIND(UPPER($D$7),UPPER($B462),1)))),    OR($D$8=\"\",(ISERROR(FIND(UPPER($D$8),UPPER($B462),1))))           )","v":true}]
[null,"American West Steamboat Co.","REGIONAL","INDUSTRY AND BUSINESS",3,3,7446,{"$nulls":5},true]
[null,"American Wind Energy Association Offshore Wind Working Group;","Unknown","Unknown",0,0,8945,{"$nulls":5},true]
[null,"America's Wetland Foundation","Unknown","Unknown",0,0,9684,{"$nulls":5},true]
[null,"America's Wild Rivers Coast Alliance","STATE","NGO",2,2,10468,{"$nulls":5},true]
[null,"AmeriCorps","FEDERAL or NATIONAL","GOVERNMENT",4,1,5058,{"$nulls":5},true]
[null,"AmeriCorps Cape Cod","FEDERAL or NATIONAL","NGO",4,2,11521,{"$nulls":5},true]
[null,"AMI Consulting Engineers","LOCAL","INDUSTRY AND BUSINESS",1,3,155,{"$nulls":5},true]
[null,"AMI Consulting Engineers, P.A.","LOCAL","INDUSTRY AND BUSINESS",1,3,6256,{"$nulls":5},true]
[null,"Amigos de Bolsa Chica","LOCAL","NGO",1,2,17292,{"$nulls":5},true]
[null,"Amigos de Tres Palmas","LOCAL","NGO",1,2,14047,{"$nulls":5},true]
[null,"Amory Seafood","STATE","INDUSTRY AND BUSINESS",2,3,15587,{"$nulls":5},true]
[null,"AmTest Laboratories","LOCAL","INDUSTRY AND BUSINESS",1,3,156,{"$nulls":5},true]
[null,"Amundsen High School, Chicago","LOCAL","ACADEMIC INSTITUTION",1,4,5914,{"$nulls":5},true]
[null,"Anacortes School District","LOCAL","ACADEMIC INSTITUTION",1,4,10498,{"$nulls":5},true]
[null,"Anacostia Riverkeeper","LOCAL","NGO",1,2,11565,{"$nulls":5},true]
[null,"Anacostia Watershed Association","REGIONAL","NGO",3,2,157,{"$nulls":5},true]
[null,"Anahuac ISD","LOCAL","ACADEMIC INSTITUTION",1,4,12189,{"$nulls":5},true]
[null,"Analysis Group, Inc. (AG)","Unknown","INDUSTRY AND BUSINESS",0,3,6738,{"$nulls":5},true]
[null,"Analytical Instrument Systems, Inc.","REGIONAL","INDUSTRY AND BUSINESS",3,3,9349,{"$nulls":5},true]
[null,"Anchor QEA","Unknown","INDUSTRY AND BUSINESS",0,3,17297,{"$nulls":5},true]
[null,"Anchor Seafood","LOCAL","INDUSTRY AND BUSINESS",1,3,12190,{"$nulls":5},true]
[null,"Anchorage International Airport","LOCAL","INDUSTRY AND BUSINESS",1,3,158,{"$nulls":5},true]
[null,"Anchorage Park Foundation","LOCAL","NGO",1,2,17216,{"$nulls":5},true]
[null,"Anchorage School District","LOCAL","GOVERNMENT",1,1,159,{"$nulls":5},true]
[null,"Anchorage School District STEM Department and Business Partners Program","LOCAL","GOVERNMENT",1,1,17214,{"$nulls":5},true]
[null,"Anchorage Waterways Council","LOCAL","NGO",1,2,17215,{"$nulls":5},true]
[null,"Anderson Construction","LOCAL","INDUSTRY AND BUSINESS",1,3,7498,{"$nulls":5},true]
[null,"Andrew S. McGinty","STATE","ACADEMIC INSTITUTION",2,4,16835,{"$nulls":5},true]
[null,"Andrews, SC","LOCAL","GOVERNMENT",1,1,4942,{"$nulls":5},true]
[null,"Andria's Seafood","LOCAL","INDUSTRY AND BUSINESS",1,3,8173,{"$nulls":5},true]
[null,"Angies List","FEDERAL or NATIONAL","INDUSTRY AND BUSINESS",4,3,6696,{"$nulls":5},true]
[null,"Angler’s Sport Center, MD","LOCAL","INDUSTRY AND BUSINESS",1,3,11227,{"$nulls":5},true]
[null,"Angleton Independent School District","LOCAL","ACADEMIC INSTITUTION",1,4,12191,{"$nulls":5},true]
[null,"Angling Women","LOCAL","INDUSTRY AND BUSINESS",1,3,14010,{"$nulls":5},true]
[null,"Animal Allies","LOCAL","NGO",1,2,11308,{"$nulls":5},true]
[null,"Animal and Plant Health Inspection Service (APHIS)","LOCAL","ACADEMIC INSTITUTION",1,4,3309,{"$nulls":5},true]
[null,"Animal Health Centre","INTERNATIONAL","INDUSTRY AND BUSINESS",5,3,17227,{"$nulls":5},true]
[null,"Animal Island Pet Shop","LOCAL","INDUSTRY AND BUSINESS",1,3,16148,{"$nulls":5},true]
[null,"Animal Planet","INTERNATIONAL","INDUSTRY AND BUSINESS",5,3,2705,{"$nulls":5},true]
[null,"Animal Rehabilitation Keep (ARK)","LOCAL","NGO",1,2,14125,{"$nulls":5},true]
[null,"Anita Purves Nature Center","LOCAL","OTHER PARTNERS",1,6,160,{"$nulls":5},true]
[null,"Anita Purves Nature Center","LOCAL","GOVERNMENT",1,1,5915,{"$nulls":5},true]
[null,"Ann P. Stokes Landscape Architects","LOCAL","INDUSTRY AND BUSINESS",1,3,13644,{"$nulls":5},true]
[null,"Anna Marie Shrimp","LOCAL","INDUSTRY AND BUSINESS",1,3,15480,{"$nulls":5},true]
[null,"Anne Arundel Community College","STATE","ACADEMIC INSTITUTION",2,4,7514,{"$nulls":5},true]
[null,"Anne Arundel County","LOCAL","GOVERNMENT",1,1,8967,{"$nulls":5},true]
[null,"Anne Arundel County Watershed Stewards Academy","LOCAL","NGO",1,2,11228,{"$nulls":5},true]
[null,"Anne Penniman Associates","LOCAL","INDUSTRY AND BUSINESS",1,3,6797,{"$nulls":5},true]
[null,"Annenberg Foundation","Unknown","NGO",0,2,7780,{"$nulls":5},true]
[null,"Annis Water Resources Institute (GVSU)","LOCAL","ACADEMIC INSTITUTION",1,4,5982,{"$nulls":5},true]
[null,"Año Nuevo State Park and Reserve","STATE","GOVERNMENT",2,1,3466,{"$nulls":5},true]
[null,"ANOVA Food USA","INTERNATIONAL","INDUSTRY AND BUSINESS",5,3,8209,{"$nulls":5},true]
[null,"Anresco Laboratories","INTERNATIONAL","INDUSTRY AND BUSINESS",5,3,8154,{"$nulls":5},true]
[null,"Anthropology Department, University of Alaska Anchorage (UAA)","STATE","ACADEMIC INSTITUTION",2,4,10080,{"$nulls":5},true]
[null,"Antioch University New England","STATE","ACADEMIC INSTITUTION",2,4,6913,{"$nulls":5},true]
[null,"Antique Rose Emporium","STATE","INDUSTRY AND BUSINESS",2,3,6152,{"$nulls":5},true]
[null,"AOML, NOAA, Sea Grant","FEDERAL or NATIONAL","Unknown",4,0,9636,{"$nulls":5},true]
[null,"Apache Pier Campground","LOCAL","GOVERNMENT",1,1,7122,{"$nulls":5},true]
[null,"Apalachicola Bay Chamber of Commerce","LOCAL","INDUSTRY AND BUSINESS",1,3,15645,{"$nulls":5},true]
[null,"Apalachicola National Estuarine Research Reserve (NERR)","FEDERAL or NATIONAL","GOVERNMENT",4,1,6492,{"$nulls":5},true]
[null,"Apalachicola National Estuarine Research Reserve (US DOC, NOAA, NOS, NERRS)","Unknown","Unknown",0,0,16340,{"$nulls":5},true]
[null,"Apalachicola NERR","Unknown","Unknown",0,0,9637,{"$nulls":5},true]
[null,"Apalachicola Seafood Workers Association","Unknown","Unknown",0,0,9638,{"$nulls":5},true]
[null,"Apostle Islands National Lakeshore, National Park Service (US DOI, NPS)","FEDERAL or NATIONAL","GOVERNMENT",4,1,161,{"$nulls":5},{"$f":"AND(  NOT(ISERROR(FIND(UPPER($B$7),UPPER($B526),1))),  OR($D$7=\"\",NOT(ISERROR(FIND(UPPER($D$7),UPPER($B526),1)))),    OR($D$8=\"\",(ISERROR(FIND(UPPER($D$8),UPPER($B526),1))))           )","v":true}]
[null,"Apostle Islands Sport Fisherman Assn.","LOCAL","NGO",1,2,162,{"$nulls":5},true]
[null,"Apostle Islands Sport Fisherman's Association","LOCAL","OTHER PARTNERS",1,6,11469,{"$nulls":5},true]
[null,"Appalachian Forest Heritage Area (AFHA)","LOCAL","NGO",1,2,15874,{"$nulls":5},true]
[null,"Appalachian State University (AppState)","STATE","ACADEMIC INSTITUTION",2,4,163,{"$nulls":5},true]
[null,"Applied food Technologies","Unknown","INDUSTRY AND BUSINESS",0,3,6956,{"$nulls":5},true]
[null,"Applied Phytogenetics, Inc.","FEDERAL or NATIONAL","INDUSTRY AND BUSINESS",4,3,164,{"$nulls":5},true]
[null,"Applied Research Associates Bachem","FEDERAL or NATIONAL","INDUSTRY AND BUSINESS",4,3,165,{"$nulls":5},true]
[null,"Applied Research in Environmental Sciences","FEDERAL or NATIONAL","NGO",4,2,13664,{"$nulls":5},true]
[null,"Applied Science Associates","LOCAL","INDUSTRY AND BUSINESS",1,3,10493,{"$nulls":5},true]
[null,"Applied Sustainable Aquaculture","FEDERAL or NATIONAL","INDUSTRY AND BUSINESS",4,3,166,{"$nulls":5},true]
[null,"Applied Technology and Management, Inc.","FEDERAL or NATIONAL","INDUSTRY AND BUSINESS",4,3,167,{"$nulls":5},true]
[null,"Applied Technology Council","Unknown","NGO",0,2,4031,{"$nulls":5},true]
[null,"Appold Design","LOCAL","INDUSTRY AND BUSINESS",1,3,6281,{"$nulls":5},true]
[null,"Apprise Technologies","Unknown","Unknown",0,0,3505,{"$nulls":5},true]
[null,"Aqua America","LOCAL","INDUSTRY AND BUSINESS",1,3,14982,{"$nulls":5},true]
[null,"Aqua Bounty Pacific, Inc., San Diego, California","FEDERAL or NATIONAL","INDUSTRY AND BUSINESS",4,3,168,{"$nulls":5},true]
[null,"Aqua Dive Services","LOCAL","INDUSTRY AND BUSINESS",1,3,8394,{"$nulls":5},true]
[null,"Aqua Farms LLC","REGIONAL","INDUSTRY AND BUSINESS",3,3,10864,{"$nulls":5},true]
[null,"Aqua Growers","STATE","INDUSTRY AND BUSINESS",2,3,12459,{"$nulls":5},true]
[null,"Aqua Plantations","LOCAL","INDUSTRY AND BUSINESS",1,3,12658,{"$nulls":5},true]
[null,"Aqua Terra","LOCAL","INDUSTRY AND BUSINESS",1,3,12409,{"$nulls":5},true]
[null,"AquaBlok","LOCAL","INDUSTRY AND BUSINESS",1,3,6851,{"$nulls":5},true]
[null,"Aquacoustics","INTERNATIONAL","INDUSTRY AND BUSINESS",5,3,10627,{"$nulls":5},true]
[null,"Aquacultural Research Corporation (ARC)","LOCAL","INDUSTRY AND BUSINESS",1,3,11522,{"$nulls":5},true]
[null,"Aquaculture Center of the Florida Keys, Inc.","FEDERAL or NATIONAL","INDUSTRY AND BUSINESS",4,3,169,{"$nulls":5},true]
[null,"Aquaculture Demonstration Facility","FEDERAL or NATIONAL","ACADEMIC INSTITUTION",4,4,170,{"$nulls":5},true]
[null,"Aquaculture Development Committee (CA DFG)","STATE","GOVERNMENT",2,1,5191,{"$nulls":5},true]
[null,"Aquaculture Industry","FEDERAL or NATIONAL","INDUSTRY AND BUSINESS",4,3,171,{"$nulls":5},true]
[null,"Aquaculture Innovation Center","STATE","ACADEMIC INSTITUTION",2,4,16607,{"$nulls":5},true]
[null,"Aquaculture Network Information Center","REGIONAL","OTHER PARTNERS",3,6,5698,{"$nulls":5},true]
[null,"Aquaculture North America Magazine","FEDERAL or NATIONAL","INDUSTRY AND BUSINESS",4,3,15588,{"$nulls":5},true]
[null,"Aquaculture Program Office (US DOC, NOAA, NMFS)","FEDERAL or NATIONAL","GOVERNMENT",4,1,5579,{"$nulls":5},true]
[null,"Aquaculture Research Corporation","LOCAL","INDUSTRY AND BUSINESS",1,3,11470,{"$nulls":5},true]
[null,"Aquaculture Research Station (LSU)","STATE","ACADEMIC INSTITUTION",2,4,5065,{"$nulls":5},true]
[null,"Aquaculture System Technologies","Unknown","Unknown",0,0,9685,{"$nulls":5},true]
[null,"Aquaculture Systems Technologies, LLC","FEDERAL or NATIONAL","INDUSTRY AND BUSINESS",4,3,172,{"$nulls":5},true]
[null,"Aquafauna Bio-Marine, Inc. Hawthorne, Ca.","STATE","INDUSTRY AND BUSINESS",2,3,3683,{"$nulls":5},true]
[null,"Aqua-Kids LLC and Adventure Productions","LOCAL","INDUSTRY AND BUSINESS",1,3,4538,{"$nulls":5},true]
[null,"Aqualand Pets","LOCAL","INDUSTRY AND BUSINESS",1,3,16149,{"$nulls":5},true]
[null,"Aqualider Maricultura Ltda.","INTERNATIONAL","INDUSTRY AND BUSINESS",5,3,173,{"$nulls":5},true]
[null,"AquaManna, LLC","STATE","INDUSTRY AND BUSINESS",2,3,5942,{"$nulls":5},true]
[null,"Aquamar","INTERNATIONAL","INDUSTRY AND BUSINESS",5,3,8135,{"$nulls":5},true]
[null,"Aquamarine Adventures","LOCAL","INDUSTRY AND BUSINESS",1,3,17350,{"$nulls":5},true]
[null,"AquaMay","INTERNATIONAL","INDUSTRY AND BUSINESS",5,3,8985,{"$nulls":5},true]
[null,"AquaRanch Industries","REGIONAL","INDUSTRY AND BUSINESS",3,3,5908,{"$nulls":5},true]
[null,"Aquarion Water Company","FEDERAL or NATIONAL","INDUSTRY AND BUSINESS",4,3,174,{"$nulls":5},true]
[null,"Aquarium of Niagara","REGIONAL","OTHER PARTNERS",3,6,175,{"$nulls":5},true]
[null,"Aquarium of Niagara (NY)","LOCAL","INDUSTRY AND BUSINESS",1,3,15559,{"$nulls":5},true]
[null,"Aquarium of the Americas","Unknown","Unknown",0,0,9686,{"$nulls":5},true]
[null,"Aquarium of the Pacific","REGIONAL","NGO",3,2,13237,{"$nulls":5},true]
[null,"Aquarium of Veracruz, Mexico","INTERNATIONAL","NGO",5,2,9914,{"$nulls":5},true]
[null,"Aquarium Pharmaceuticals, Inc.","FEDERAL or NATIONAL","INDUSTRY AND BUSINESS",4,3,176,{"$nulls":5},true]
[null,"Aquaruis Water Gardens","REGIONAL","INDUSTRY AND BUSINESS",3,3,4539,{"$nulls":5},true]
[null,"Aquascapes","LOCAL","INDUSTRY AND BUSINESS",1,3,14817,{"$nulls":5},true]
[null,"AquaTechnics, Inc.","FEDERAL or NATIONAL","INDUSTRY AND BUSINESS",4,3,177,{"$nulls":5},true]
[null,"Aquatic Analysis and Consulting, LLC","LOCAL","INDUSTRY AND BUSINESS",1,3,14364,{"$nulls":5},true]
[null,"Aquatic Control Technology","FEDERAL or NATIONAL","INDUSTRY AND BUSINESS",4,3,178,{"$nulls":5},true]
[null,"Aquatic Ecosystem Health and Management Society","FEDERAL or NATIONAL","NGO",4,2,16142,{"$nulls":5},true]
[null,"Aquatic Ecosystems","Unknown","INDUSTRY AND BUSINESS",0,3,13926,{"$nulls":5},true]
[null,"Aquatic Farms","FEDERAL or NATIONAL","INDUSTRY AND BUSINESS",4,3,179,{"$nulls":5},true]
[null,"Aquatic Invasive Species, Mid-Atlantic Regional Panel (AIS)","REGIONAL","NGO",3,2,180,{"$nulls":5},true]
[null,"Aquatic Landscape Ecology Lab","STATE","ACADEMIC INSTITUTION",2,4,15820,{"$nulls":5},true]
[null,"Aquatic Nuisance Species Task Force (ANS)","FEDERAL or NATIONAL","GOVERNMENT",4,1,181,{"$nulls":5},true]
[null,"Aquatic Plant Management Society","INTERNATIONAL","NGO",5,2,182,{"$nulls":5},{"$f":"AND(  NOT(ISERROR(FIND(UPPER($B$7),UPPER($B590),1))),  OR($D$7=\"\",NOT(ISERROR(FIND(UPPER($D$7),UPPER($B590),1)))),    OR($D$8=\"\",(ISERROR(FIND(UPPER($D$8),UPPER($B590),1))))           )","v":true}]
[null,"Aquatic Research Consultants","LOCAL","INDUSTRY AND BUSINESS",1,3,14272,{"$nulls":5},true]
[null,"Aquatic Resources Division, Washington State Department of Natural Resources","STATE","GOVERNMENT",2,1,4504,{"$nulls":5},true]
[null,"Aquatic Science & Health Services","INTERNATIONAL","INDUSTRY AND BUSINESS",5,3,8571,{"$nulls":5},true]
[null,"Aquatic Treasures","LOCAL","INDUSTRY AND BUSINESS",1,3,16152,{"$nulls":5},true]
[null,"Aquatic World","LOCAL","INDUSTRY AND BUSINESS",1,3,14816,{"$nulls":5},true]
[null,"Aquatica Landscaping","LOCAL","INDUSTRY AND BUSINESS",1,3,11471,{"$nulls":5},true]
[null,"Aquatica Ltd","REGIONAL","INDUSTRY AND BUSINESS",3,3,4541,{"$nulls":5},true]
[null,"Aquia Bay Marina","LOCAL","INDUSTRY AND BUSINESS",1,3,13705,{"$nulls":5},true]
[null,"Aquia Harbor Marina","LOCAL","INDUSTRY AND BUSINESS",1,3,10759,{"$nulls":5},true]
[null,"Aquidneck Island Planning Commission","REGIONAL","NGO",3,2,183,{"$nulls":5},true]
[null,"Aquionics, Inc","FEDERAL or NATIONAL","INDUSTRY AND BUSINESS",4,3,184,{"$nulls":5},true]
[null,"Aragonite Products, Inc.","LOCAL","INDUSTRY AND BUSINESS",1,3,10760,{"$nulls":5},true]
[null,"Aransas","Unknown","Unknown",0,0,14308,{"$nulls":5},true]
[null,"Aransas Bird and Nature Club","REGIONAL","NGO",3,2,14124,{"$nulls":5},true]
[null,"Aransas County, TX","LOCAL","GOVERNMENT",1,1,6063,{"$nulls":5},true]
[null,"Aransas First","LOCAL","NGO",1,2,12192,{"$nulls":5},true]
[null,"Aransas National Wildlife Refuge (US DOI, FWS, NWRS)","FEDERAL or NATIONAL","GOVERNMENT",4,1,6102,{"$nulls":5},true]
[null,"Arcadia Point Seafoods","REGIONAL","INDUSTRY AND BUSINESS",3,3,185,{"$nulls":5},true]
[null,"Arcadia Point Shellfish Co","LOCAL","INDUSTRY AND BUSINESS",1,3,15064,{"$nulls":5},true]
[null,"ARCadis","LOCAL","OTHER PARTNERS",1,6,13123,{"$nulls":5},true]
[null,"Arcadis Inc.","Unknown","Unknown",0,0,9687,{"$nulls":5},true]
[null,"Arcana Greenhouse","LOCAL","INDUSTRY AND BUSINESS",1,3,7070,{"$nulls":5},true]
[null,"Arch Aluminum and Glass Company","REGIONAL","INDUSTRY AND BUSINESS",3,3,7939,{"$nulls":5},true]
[null,"Arch Cape, OR","LOCAL","OTHER PARTNERS",1,6,14501,{"$nulls":5},true]
[null,"Archer Daniels Midland","INTERNATIONAL","NGO",5,2,6019,{"$nulls":5},true]
[null,"Archie Carr National Wildlife Refuge","FEDERAL or NATIONAL","GOVERNMENT",4,1,14540,{"$nulls":5},true]
[null,"Archipelago Marine Research, Ltd.","INTERNATIONAL","INDUSTRY AND BUSINESS",5,3,4149,{"$nulls":5},true]
[null,"Architecture Advantage","LOCAL","INDUSTRY AND BUSINESS",1,3,6283,{"$nulls":5},true]
[null,"Architecture, Marine and Infrastructure Inc.","LOCAL","INDUSTRY AND BUSINESS",1,3,11472,{"$nulls":5},true]
[null,"ARCS Foundation","FEDERAL or NATIONAL","NGO",4,2,9256,{"$nulls":5},true]
[null,"Arctic Region Super-computing Center","REGIONAL","ACADEMIC INSTITUTION",3,4,186,{"$nulls":5},true]
[null,"Arctic Studies Center, Smithsonian Institution (SI)","FEDERAL or NATIONAL","GOVERNMENT",4,1,187,{"$nulls":5},true]
[null,"Arctic Yukon Kuskokwim Sustainable","REGIONAL","NGO",3,2,188,{"$nulls":5},true]
[null,"Ardis DeFreece (artist)","Unknown","OTHER PARTNERS",0,6,16464,{"$nulls":5},true]
[null,"Arenac County Board of Commissioners","LOCAL","GOVERNMENT",1,1,9134,{"$nulls":5},true]
[null,"Argone National Laboratory (DOE)","FEDERAL or NATIONAL","GOVERNMENT",4,1,8574,{"$nulls":5},true]
[null,"Arielle Oyster Co","LOCAL","INDUSTRY AND BUSINESS",1,3,17351,{"$nulls":5},true]
[null,"Arizona Game and Fish Department","STATE","GOVERNMENT",2,1,189,{"$nulls":5},true]
[null,"Arizona State University","LOCAL","ACADEMIC INSTITUTION",1,4,9587,{"$nulls":5},true]
[null,"Arizona State University (ASU)","STATE","ACADEMIC INSTITUTION",2,4,4451,{"$nulls":5},true]
[null,"Arkansas State University","STATE","ACADEMIC INSTITUTION",2,4,6493,{"$nulls":5},true]
[null,"Arliss Sturgulewski, former state senator","STATE","OTHER PARTNERS",2,6,5384,{"$nulls":5},true]
[null,"Armand Bayou Nature Center","LOCAL","NGO",1,2,6091,{"$nulls":5},true]
[null,"Armand Bayou Watershed Partnership","LOCAL","NGO",1,2,13019,{"$nulls":5},true]
[null,"Armstrong Atlantic State University (AASU)","STATE","ACADEMIC INSTITUTION",2,4,190,{"$nulls":5},true]
[null,"Armstrong-Keta, Inc.","LOCAL","INDUSTRY AND BUSINESS",1,3,9329,{"$nulls":5},true]
[null,"Arnold's Seafood","LOCAL","INDUSTRY AND BUSINESS",1,3,12193,{"$nulls":5},true]
[null,"Arrow Excavating","LOCAL","INDUSTRY AND BUSINESS",1,3,191,{"$nulls":5},true]
[null,"Arrow Septic Service","LOCAL","INDUSTRY AND BUSINESS",1,3,192,{"$nulls":5},true]
[null,"Arrowhead Builder's Association","LOCAL","NGO",1,2,6327,{"$nulls":5},true]
[null,"Arrowhead Regional Development Commission","LOCAL","GOVERNMENT",1,1,193,{"$nulls":5},true]
[null,"Arrowhead Water Quality Team","LOCAL","ACADEMIC INSTITUTION",1,4,194,{"$nulls":5},true]
[null,"Arroyo Colorado Audobon Society","LOCAL","NGO",1,2,14143,{"$nulls":5},true]
[null,"Arroyo Colorado Conservancy","LOCAL","NGO",1,2,12194,{"$nulls":5},true]
[null,"Arroyo Colorado Water Partnership","LOCAL","NGO",1,2,12195,{"$nulls":5},true]
[null,"Art of Survival","LOCAL","NGO",1,2,9042,{"$nulls":5},true]
[null,"Art Works","LOCAL","OTHER PARTNERS",1,6,16600,{"$nulls":5},true]
[null,"Artesian Aquafarms LLC","Unknown","INDUSTRY AND BUSINESS",0,3,4978,{"$nulls":5},true]
[null,"Artist Boat","LOCAL","NGO",1,2,6173,{"$nulls":5},true]
[null,"Asbury Park Beach Patrol","LOCAL","OTHER PARTNERS",1,6,9080,{"$nulls":5},true]
[null,"Asbury Park Environmental Commission","LOCAL","GOVERNMENT",1,1,7526,{"$nulls":5},true]
[null,"Asbury Park Environmental Commission","LOCAL","GOVERNMENT",1,1,7560,{"$nulls":5},true]
[null,"Asbury Park Press","LOCAL","INDUSTRY AND BUSINESS",1,3,7521,{"$nulls":5},true]
[null,"ASCE Coasts Oceans Ports and Rivers Institute","REGIONAL","ACADEMIC INSTITUTION",3,4,13131,{"$nulls":5},{"$f":"AND(  NOT(ISERROR(FIND(UPPER($B$7),UPPER($B654),1))),  OR($D$7=\"\",NOT(ISERROR(FIND(UPPER($D$7),UPPER($B654),1)))),    OR($D$8=\"\",(ISERROR(FIND(UPPER($D$8),UPPER($B654),1))))           )","v":true}]
[null,"AshBritt, Inc.","FEDERAL or NATIONAL","INDUSTRY AND BUSINESS",4,3,7123,{"$nulls":5},true]
[null,"Ashford School","LOCAL","ACADEMIC INSTITUTION",1,4,15856,{"$nulls":5},true]
[null,"Ashland City Engineer","LOCAL","GOVERNMENT",1,1,195,{"$nulls":5},true]
[null,"Ashland County","LOCAL","GOVERNMENT",1,1,196,{"$nulls":5},true]
[null,"Ashland Fishery Resources Office (US DOI, FWS)","FEDERAL or NATIONAL","GOVERNMENT",4,1,197,{"$nulls":5},true]
[null,"Ashland Office (WI DNR)","Unknown","Unknown",0,0,9869,{"$nulls":5},true]
[null,"Ashland School District","LOCAL","ACADEMIC INSTITUTION",1,4,12410,{"$nulls":5},true]
[null,"Ashley Dayer Consulting","REGIONAL","INDUSTRY AND BUSINESS",3,3,9336,{"$nulls":5},true]
[null,"Ashley Hall","LOCAL","ACADEMIC INSTITUTION",1,4,7106,{"$nulls":5},true]
[null,"Ashley Scenic River Advisory Council","LOCAL","NGO",1,2,198,{"$nulls":5},true]
[null,"Ashley-Cooper Stormwater Education Consortium","LOCAL","Unknown",1,0,4964,{"$nulls":5},true]
[null,"Ashtabula County Development Corp","STATE","INDUSTRY AND BUSINESS",2,3,3831,{"$nulls":5},true]
[null,"Ashtabula Port Authority","LOCAL","GOVERNMENT",1,1,7770,{"$nulls":5},true]
[null,"Ashtabula Remedial Action Plan (RAP)","STATE","GOVERNMENT",2,1,13263,{"$nulls":5},true]
[null,"Ashtabula River Cooperation Group II","LOCAL","NGO",1,2,7769,{"$nulls":5},true]
[null,"Ashtabula Yacht Club","LOCAL","INDUSTRY AND BUSINESS",1,3,5139,{"$nulls":5},true]
[null,"Asia Pacific Economic Group","INTERNATIONAL","NGO",5,2,199,{"$nulls":5},true]
[null,"Asian Carp Regional Coordinating Committee","REGIONAL","NGO",3,2,14809,{"$nulls":5},true]
[null,"Asilomar State Beach","STATE","OTHER PARTNERS",2,6,4543,{"$nulls":5},true]
[null,"Asociacion ANAI","INTERNATIONAL","NGO",5,2,200,{"$nulls":5},true]
[null,"Assateague State Park","STATE","GOVERNMENT",2,1,14252,{"$nulls":5},true]
[null,"Assateague State Park (MD)","STATE","GOVERNMENT",2,1,15662,{"$nulls":5},true]
[null,"Assension Parish, LA","LOCAL","GOVERNMENT",1,1,15502,{"$nulls":5},true]
[null,"Assessment and Restoration Division (US DOC, NOAA, NOS)","FEDERAL or NATIONAL","GOVERNMENT",4,1,5580,{"$nulls":5},true]
[null,"Associated Koi Clubs of America","FEDERAL or NATIONAL","NGO",4,2,5874,{"$nulls":5},true]
[null,"Associated Packaging Technologies","INTERNATIONAL","INDUSTRY AND BUSINESS",5,3,201,{"$nulls":5},true]
[null,"Associated Press","LOCAL","INDUSTRY AND BUSINESS",1,3,16305,{"$nulls":5},true]
[null,"Association County Commissioners of Georgia (ACCG)","LOCAL","GOVERNMENT",1,1,202,{"$nulls":5},true]
[null,"Association for New Jersey Environmental Educators","Unknown","NGO",0,2,4858,{"$nulls":5},true]
[null,"Association for the Protection of Hammersley, Eld and Totten Inlets","LOCAL","NGO",1,2,203,{"$nulls":5},true]
[null,"Association for the Sciences of Limnology and Oceanography","INTERNATIONAL","ACADEMIC INSTITUTION",5,4,17082,{"$nulls":5},true]
[null,"Association for Women in Science (AWIS)","FEDERAL or NATIONAL","NGO",4,2,6289,{"$nulls":5},true]
[null,"Association of Bainbridge Communities","LOCAL","NGO",1,2,4370,{"$nulls":5},true]
[null,"Association of Climate Change Officers","FEDERAL or NATIONAL","NGO",4,2,15268,{"$nulls":5},true]
[null,"Association of Fish and Wildlife Agencies","REGIONAL","NGO",3,2,10461,{"$nulls":5},true]
[null,"Association of Floodplain Managers","REGIONAL","NGO",3,2,11473,{"$nulls":5},true]
[null,"Association of Floodplain Managers of Mississippi","STATE","NGO",2,2,9915,{"$nulls":5},true]
[null,"Association of Floodplain Managers, Madison, Wis.","STATE","NGO",2,2,3684,{"$nulls":5},true]
[null,"Association of Food and Drug Officials (AFDO)","INTERNATIONAL","NGO",5,2,204,{"$nulls":5},true]
[null,"Association of Marina Industries","LOCAL","INDUSTRY AND BUSINESS",1,3,7201,{"$nulls":5},true]
[null,"Association of Marine Industries","STATE","INDUSTRY AND BUSINESS",2,3,5796,{"$nulls":5},true]
[null,"Association of Mexicans in North Carolina","STATE","NGO",2,2,5005,{"$nulls":5},true]
[null,"Association of Minnesota Counties","LOCAL","GOVERNMENT",1,1,205,{"$nulls":5},true]
[null,"Association of Monterey Bay Area Governments (AMBAG)","LOCAL","GOVERNMENT",1,1,3311,{"$nulls":5},true]
[null,"Association of National Estuary Programs (ANEP)","FEDERAL or NATIONAL","NGO",4,2,11562,{"$nulls":5},true]
[null,"Association of Natural Resource Extension Professionals","INTERNATIONAL","ACADEMIC INSTITUTION",5,4,206,{"$nulls":5},true]
[null,"Association of Natural Resources Extension Professionals, Ohio Chapter","STATE","NGO",2,2,5136,{"$nulls":5},true]
[null,"Association of Public and Land-grant Universities","FEDERAL or NATIONAL","NGO",4,2,9588,{"$nulls":5},true]
[null,"Association of State Floodplain Managers","FEDERAL or NATIONAL","NGO",4,2,16400,{"$nulls":5},true]
[null,"Association Réunionnaise de Development de l'Aquaculture (ARDA)","INTERNATIONAL","NGO",5,2,207,{"$nulls":5},true]
[null,"Associaton of Food & Drug Officials","Unknown","NGO",0,2,6973,{"$nulls":5},true]
[null,"Assumption Parish, LA","LOCAL","GOVERNMENT",1,1,5054,{"$nulls":5},true]
[null,"Assumption Regional School, Galloway","LOCAL","ACADEMIC INSTITUTION",1,4,10593,{"$nulls":5},true]
[null,"Astoria Fire Department","LOCAL","GOVERNMENT",1,1,208,{"$nulls":5},true]
[null,"Astoria School District","LOCAL","GOVERNMENT",1,1,11671,{"$nulls":5},true]
[null,"AT&T","INTERNATIONAL","INDUSTRY AND BUSINESS",5,3,6494,{"$nulls":5},true]
[null,"Atchafalaya Basin Program","Unknown","Unknown",0,0,9688,{"$nulls":5},true]
[null,"Athens Clarke County Schools","LOCAL","ACADEMIC INSTITUTION",1,4,8708,{"$nulls":5},true]
[null,"Atherton Family Foundation","STATE","NGO",2,2,15133,{"$nulls":5},true]
[null,"Atkins Global","INTERNATIONAL","INDUSTRY AND BUSINESS",5,3,12334,{"$nulls":5},true]
[null,"Atkins North America","FEDERAL or NATIONAL","INDUSTRY AND BUSINESS",4,3,12563,{"$nulls":5},true]
[null,"Atkinson Center for a Sustainable Future at Cornell University","INTERNATIONAL","ACADEMIC INSTITUTION",5,4,16393,{"$nulls":5},true]
[null,"Atlanta Community Schools","LOCAL","ACADEMIC INSTITUTION",1,4,9135,{"$nulls":5},true]
[null,"Atlanta Regional Commission","LOCAL","GOVERNMENT",1,1,209,{"$nulls":5},{"$f":"AND(  NOT(ISERROR(FIND(UPPER($B$7),UPPER($B718),1))),  OR($D$7=\"\",NOT(ISERROR(FIND(UPPER($D$7),UPPER($B718),1)))),    OR($D$8=\"\",(ISERROR(FIND(UPPER($D$8),UPPER($B718),1))))           )","v":true}]
[null,"Atlantic Beach Chamber of Commerce","LOCAL","GOVERNMENT",1,1,4983,{"$nulls":5},true]
[null,"Atlantic Beach, SC","LOCAL","GOVERNMENT",1,1,4926,{"$nulls":5},true]
[null,"Atlantic Boat and Yacht Trades School","LOCAL","ACADEMIC INSTITUTION",1,4,210,{"$nulls":5},true]
[null,"Atlantic Cape Coalition","LOCAL","NGO",1,2,15032,{"$nulls":5},true]
[null,"Atlantic Cape Fisheries","Unknown","Unknown",0,0,9991,{"$nulls":5},true]
[null,"Atlantic Capes Fisheries","Unknown","INDUSTRY AND BUSINESS",0,3,4900,{"$nulls":5},true]
[null,"Atlantic Capes Seafood","FEDERAL or NATIONAL","INDUSTRY AND BUSINESS",4,3,17352,{"$nulls":5},true]
[null,"Atlantic City Beach Patrol","LOCAL","OTHER PARTNERS",1,6,9081,{"$nulls":5},true]
[null,"Atlantic City Convention & Visitors' Authority","STATE","GOVERNMENT",2,1,10595,{"$nulls":5},true]
[null,"Atlantic Coast Conference Inter-Institutional Academic Collaborative (ACCIAC)","STATE","ACADEMIC INSTITUTION",2,4,13092,{"$nulls":5},true]
[null,"Atlantic Coastal Cooperative Statistics Program (ACCSP)","REGIONAL","GOVERNMENT",3,1,6892,{"$nulls":5},true]
[null,"Atlantic Coastal Telemetry (ACT) Network","REGIONAL","NGO",3,2,15589,{"$nulls":5},true]
[null,"Atlantic County Office of Cultural and Heritage Affairs","REGIONAL","GOVERNMENT",3,1,4825,{"$nulls":5},true]
[null,"Atlantic County Utilities Authority","LOCAL","GOVERNMENT",1,1,13096,{"$nulls":5},true]
[null,"Atlantic Enterprises, LLC","LOCAL","INDUSTRY AND BUSINESS",1,3,17353,{"$nulls":5},true]
[null,"Atlantic Estuarine Research Society","STATE","NGO",2,2,8118,{"$nulls":5},true]
[null,"Atlantic Highlands Borough","LOCAL","GOVERNMENT",1,1,14991,{"$nulls":5},true]
[null,"Atlantic Holdfast Seaweed Company","INTERNATIONAL","INDUSTRY AND BUSINESS",5,3,13844,{"$nulls":5},true]
[null,"Atlantic Intracoastal Waterway Association","INTERNATIONAL","NGO",5,2,4032,{"$nulls":5},true]
[null,"Atlantic Lobster Sustainability Foundation","INTERNATIONAL","NGO",5,2,8575,{"$nulls":5},true]
[null,"Atlantic Marine Aquaculture Center","REGIONAL","NGO",3,2,3772,{"$nulls":5},true]
[null,"Atlantic Offshore Lobstermen's Association","REGIONAL","NGO",3,2,7045,{"$nulls":5},true]
[null,"Atlantic Pacific Marine Farm","STATE","INDUSTRY AND BUSINESS",2,3,11229,{"$nulls":5},true]
[null,"Atlantic Red Crab","REGIONAL","INDUSTRY AND BUSINESS",3,3,10761,{"$nulls":5},true]
[null,"Atlantic Salmon Federaltion","STATE","GOVERNMENT",2,1,17084,{"$nulls":5},true]
[null,"Atlantic Saltwater Flyrodders","LOCAL","INDUSTRY AND BUSINESS",1,3,10945,{"$nulls":5},true]
[null,"Atlantic Seabass Inc.","INTERNATIONAL","INDUSTRY AND BUSINESS",5,3,211,{"$nulls":5},true]
[null,"Atlantic Seafood Company","STATE","INDUSTRY AND BUSINESS",2,3,3892,{"$nulls":5},true]
[null,"Atlantic States Marine Fisheries Comm","Unknown","Unknown",0,0,9639,{"$nulls":5},true]
[null,"Atlantic States Marine Fisheries Commission (ASMFC)","REGIONAL","NGO",3,2,212,{"$nulls":5},true]
[null,"Atlantic Wind Connection","REGIONAL","INDUSTRY AND BUSINESS",3,3,9350,{"$nulls":5},true]
[null,"Atlantic Yacht Basin","LOCAL","INDUSTRY AND BUSINESS",1,3,10762,{"$nulls":5},true]
[null,"Atlantis Angler Association","LOCAL","INDUSTRY AND BUSINESS",1,3,7815,{"$nulls":5},true]
[null,"Atlantis Submarines","Unknown","Unknown",0,0,8907,{"$nulls":5},true]
[null,"Atoll Marine Aquaculture","LOCAL","INDUSTRY AND BUSINESS",1,3,16289,{"$nulls":5},true]
[null,"Atomic Shellfish","STATE","INDUSTRY AND BUSINESS",2,3,213,{"$nulls":5},true]
[null,"At-Sea Processors Association","FEDERAL or NATIONAL","INDUSTRY AND BUSINESS",4,3,214,{"$nulls":5},true]
[null,"Auburn Marine and Extension Research Center","STATE","ACADEMIC INSTITUTION",2,4,9916,{"$nulls":5},true]
[null,"Auburn University","Unknown","Unknown",0,0,14696,{"$nulls":5},true]
[null,"Auburn University (AU)","STATE","ACADEMIC INSTITUTION",2,4,215,{"$nulls":5},true]
[null,"Auburn University Marine Extension & Research Center (AUMERC)","STATE","ACADEMIC INSTITUTION",2,4,6495,{"$nulls":5},true]
[null,"Auburn University Shellfish Laboratory","STATE","ACADEMIC INSTITUTION",2,4,13986,{"$nulls":5},true]
[null,"Audience Viewpoints Consulting","FEDERAL or NATIONAL","INDUSTRY AND BUSINESS",4,3,14513,{"$nulls":5},true]
[null,"Audobon Naturalist Society","REGIONAL","NGO",3,2,15875,{"$nulls":5},true]
[null,"Audubon Bird Sanctuary, Dauphin Island","LOCAL","NGO",1,2,6496,{"$nulls":5},true]
[null,"Audubon Canyon Ranch","LOCAL","NGO",1,2,3467,{"$nulls":5},true]
[null,"Audubon Connecticut","STATE","NGO",2,2,6798,{"$nulls":5},true]
[null,"Audubon Nature Institute & Aquarium of the Americas","STATE","NGO",2,2,9917,{"$nulls":5},true]
[null,"Audubon Nature Institute GULF Program","Unknown","NGO",0,2,17648,{"$nulls":5},true]
[null,"Audubon North Carolina","Unknown","NGO",0,2,4033,{"$nulls":5},true]
[null,"Audubon of Florida","Unknown","Unknown",0,0,9640,{"$nulls":5},true]
[null,"Audubon Outdoor Club","LOCAL","NGO",1,2,14126,{"$nulls":5},true]
[null,"Audubon Rhode Island","LOCAL","NGO",1,2,15939,{"$nulls":5},true]
[null,"Audubon Society","INTERNATIONAL","NGO",5,2,216,{"$nulls":5},true]
[null,"Audubon Texas","STATE","NGO",2,2,12196,{"$nulls":5},true]
[null,"Audubon Washington","STATE","NGO",2,2,7342,{"$nulls":5},true]
[null,"Audubon Zoo","Unknown","Unknown",0,0,9689,{"$nulls":5},true]
[null,"Au-Gres Simms Schools","LOCAL","ACADEMIC INSTITUTION",1,4,9136,{"$nulls":5},true]
[null,"Auke Bay Laboratory (US DOC, NOAA, NMFS)","FEDERAL or NATIONAL","GOVERNMENT",4,1,217,{"$nulls":5},true]
[null,"Aurora Energy Services, LLC","STATE","INDUSTRY AND BUSINESS",2,3,14021,{"$nulls":5},true]
[null,"Aurora Packing Company","STATE","INDUSTRY AND BUSINESS",2,3,3894,{"$nulls":5},true]
[null,"AuSable Valley Audobon Chapter","LOCAL","NGO",1,2,9137,{"$nulls":5},true]
[null,"Austin Brothers Fisheries","Unknown","INDUSTRY AND BUSINESS",0,3,7039,{"$nulls":5},true]
[null,"Austin Fish Company","STATE","INDUSTRY AND BUSINESS",2,3,3893,{"$nulls":5},{"$f":"AND(  NOT(ISERROR(FIND(UPPER($B$7),UPPER($B782),1))),  OR($D$7=\"\",NOT(ISERROR(FIND(UPPER($D$7),UPPER($B782),1)))),    OR($D$8=\"\",(ISERROR(FIND(UPPER($D$8),UPPER($B782),1))))           )","v":true}]
[null,"Austin Paey University","REGIONAL","ACADEMIC INSTITUTION",3,4,15074,{"$nulls":5},true]
[null,"Austin Public Libraries","LOCAL","GOVERNMENT",1,1,12197,{"$nulls":5},true]
[null,"Austin School of the Deaf","STATE","ACADEMIC INSTITUTION",2,4,12198,{"$nulls":5},true]
[null,"Australian Antarctic Division","INTERNATIONAL","GOVERNMENT",5,1,218,{"$nulls":5},true]
[null,"Australian Research Council","INTERNATIONAL","GOVERNMENT",5,1,15285,{"$nulls":5},true]
[null,"Autonomous Municipality of Cabo Rojo, PR","LOCAL","GOVERNMENT",1,1,14048,{"$nulls":5},true]
[null,"AUVSI Foundation","FEDERAL or NATIONAL","NGO",4,2,7949,{"$nulls":5},true]
[null,"AUVSI Foundation","INTERNATIONAL","NGO",5,2,10920,{"$nulls":5},true]
[null,"Avakian Inc.","LOCAL","INDUSTRY AND BUSINESS",1,3,15030,{"$nulls":5},true]
[null,"Avalon Park and Preserve’s Students Taking Action for Tomorrow’s Environment (STATE) program","LOCAL","NGO",1,2,12361,{"$nulls":5},true]
[null,"Avery Point campus administration, University of Connecticut (UCONN)","STATE","OTHER PARTNERS",2,6,219,{"$nulls":5},true]
[null,"Avon Lake Boat Club","STATE","INDUSTRY AND BUSINESS",2,3,13264,{"$nulls":5},true]
[null,"Avon Police Department","LOCAL","GOVERNMENT",1,1,10890,{"$nulls":5},true]
[null,"Avure Technologies, Inc.","FEDERAL or NATIONAL","INDUSTRY AND BUSINESS",4,3,220,{"$nulls":5},true]
[null,"Awaiaulu","STATE","NGO",2,2,8285,{"$nulls":5},true]
[null,"AWEA Offshore Wind Working Group","FEDERAL or NATIONAL","OTHER PARTNERS",4,6,9351,{"$nulls":5},true]
[null,"Awendaw, SC","LOCAL","GOVERNMENT",1,1,4941,{"$nulls":5},true]
[null,"Aylesworth Foundation","LOCAL","NGO",1,2,221,{"$nulls":5},true]
[null,"AZ Dept of Fish and Wildlife","STATE","GOVERNMENT",2,1,8853,{"$nulls":5},true]
[null,"AZTI Technalia","REGIONAL","GOVERNMENT",3,1,10839,{"$nulls":5},true]
[null,"Azuma Foods International, Inc.","INTERNATIONAL","INDUSTRY AND BUSINESS",5,3,8167,{"$nulls":5},true]
[null,"B. Peers","LOCAL","Unknown",1,0,14852,{"$nulls":5},true]
[null,"B.E. Feist","FEDERAL or NATIONAL","INDUSTRY AND BUSINESS",4,3,222,{"$nulls":5},true]
[null,"Babylon Town Sport Fishing Education Center","LOCAL","GOVERNMENT",1,1,223,{"$nulls":5},true]
[null,"Bachem Biosciences Inc.","STATE","INDUSTRY AND BUSINESS",2,3,3895,{"$nulls":5},true]
[null,"Back Bay Science Center","LOCAL","NGO",1,2,7985,{"$nulls":5},true]
[null,"Bad River Tribe of Lake Superior Chippewa","Tribal","GOVERNMENT",13,1,224,{"$nulls":5},true]
[null,"Badger Rock Middle School","LOCAL","ACADEMIC INSTITUTION",1,4,12411,{"$nulls":5},true]
[null,"Badgerland Resource Conservation and Development Council","STATE","GOVERNMENT",2,1,8272,{"$nulls":5},true]
[null,"Baffin Bay Volunteer Citizen Scientists","LOCAL","NGO",1,2,15400,{"$nulls":5},true]
[null,"Bagaduce Oyster Co.","INTERNATIONAL","INDUSTRY AND BUSINESS",5,3,13845,{"$nulls":5},true]
[null,"Bahrs Landing and Seafood Restaurant","Unknown","INDUSTRY AND BUSINESS",0,3,4901,{"$nulls":5},true]
[null,"Bainbridge Alliance for Puget Sound","LOCAL","NGO",1,2,7343,{"$nulls":5},true]
[null,"Bainbridge Beach Naturalists","LOCAL","OTHER PARTNERS",1,6,11609,{"$nulls":5},true]
[null,"Bainbridge High School","LOCAL","ACADEMIC INSTITUTION",1,4,4175,{"$nulls":5},true]
[null,"Bainbridge Island Land Trust","LOCAL","NGO",1,2,225,{"$nulls":5},true]
[null,"Bainbridge Island Marina","LOCAL","INDUSTRY AND BUSINESS",1,3,4306,{"$nulls":5},true]
[null,"Bainbridge Island School District","LOCAL","ACADEMIC INSTITUTION",1,4,10499,{"$nulls":5},true]
[null,"Bainbridge Parks and Recreation","LOCAL","GOVERNMENT",1,1,7344,{"$nulls":5},true]
[null,"Baird and Associates","FEDERAL or NATIONAL","INDUSTRY AND BUSINESS",4,3,226,{"$nulls":5},true]
[null,"Bait & Hook Store","Unknown","INDUSTRY AND BUSINESS",0,3,9391,{"$nulls":5},true]
[null,"Bait Association of Ontario","INTERNATIONAL","INDUSTRY AND BUSINESS",5,3,227,{"$nulls":5},true]
[null,"Baja Aquaculture","INTERNATIONAL","INDUSTRY AND BUSINESS",5,3,10763,{"$nulls":5},true]
[null,"Baja Naval","INTERNATIONAL","INDUSTRY AND BUSINESS",5,3,228,{"$nulls":5},true]
[null,"Baker Crab Company","STATE","INDUSTRY AND BUSINESS",2,3,3896,{"$nulls":5},true]
[null,"Baker Fishery, Inc.","FEDERAL or NATIONAL","INDUSTRY AND BUSINESS",4,3,229,{"$nulls":5},true]
[null,"Baker High School","LOCAL","ACADEMIC INSTITUTION",1,4,6497,{"$nulls":5},true]
[null,"Bald Head Island Chamber of Commerce","LOCAL","GOVERNMENT",1,1,4984,{"$nulls":5},true]
[null,"Bald Head Island Conservancy","LOCAL","NGO",1,2,7021,{"$nulls":5},true]
[null,"Balderson","LOCAL","INDUSTRY AND BUSINESS",1,3,17354,{"$nulls":5},true]
[null,"Baldwin and Mobile County Soil and Water Conservation Districts","LOCAL","GOVERNMENT",1,1,230,{"$nulls":5},true]
[null,"Baldwin County Board of Education","LOCAL","GOVERNMENT",1,1,6499,{"$nulls":5},true]
[null,"Baldwin County Career Tech School","LOCAL","ACADEMIC INSTITUTION",1,4,6500,{"$nulls":5},true]
[null,"Baldwin County Commission Alabama","LOCAL","GOVERNMENT",1,1,9918,{"$nulls":5},true]
[null,"Baldwin County Emergency Management","LOCAL","GOVERNMENT",1,1,6501,{"$nulls":5},true]
[null,"Baldwin County High School","LOCAL","GOVERNMENT",1,1,231,{"$nulls":5},true]
[null,"Baldwin County Mental Health Center","LOCAL","NGO",1,2,6502,{"$nulls":5},true]
[null,"Baldwin County Planning and Zoning Department","LOCAL","GOVERNMENT",1,1,232,{"$nulls":5},true]
[null,"Baldwin County School System","LOCAL","ACADEMIC INSTITUTION",1,4,6503,{"$nulls":5},true]
[null,"Baldwin County Soil and Water Conservation District","LOCAL","GOVERNMENT",1,1,9919,{"$nulls":5},true]
[null,"Baldwin County Watershed Coalition","LOCAL","NGO",1,2,6504,{"$nulls":5},true]
[null,"Baldwin County Wetlands and Watershed Protection","LOCAL","GOVERNMENT",1,1,233,{"$nulls":5},true]
[null,"Baldwin County, AL","LOCAL","GOVERNMENT",1,1,6498,{"$nulls":5},true]
[null,"Baldwin-Wallace College","STATE","ACADEMIC INSTITUTION",2,4,234,{"$nulls":5},{"$f":"AND(  NOT(ISERROR(FIND(UPPER($B$7),UPPER($B846),1))),  OR($D$7=\"\",NOT(ISERROR(FIND(UPPER($D$7),UPPER($B846),1)))),    OR($D$8=\"\",(ISERROR(FIND(UPPER($D$8),UPPER($B846),1))))           )","v":true}]
[null,"Ball Horticulture","Unknown","Unknown",0,0,9392,{"$nulls":5},true]
[null,"Ball State University (BSU)","STATE","ACADEMIC INSTITUTION",2,4,235,{"$nulls":5},true]
[null,"Ballard High School","LOCAL","ACADEMIC INSTITUTION",1,4,4176,{"$nulls":5},true]
[null,"Ballard Seafood","Unknown","INDUSTRY AND BUSINESS",0,3,7513,{"$nulls":5},true]
[null,"Baltimore City Deparment of Public Works","LOCAL","NGO",1,2,4545,{"$nulls":5},true]
[null,"Baltimore City Public Schools","STATE","ACADEMIC INSTITUTION",2,4,15878,{"$nulls":5},true]
[null,"Baltimore County","STATE","GOVERNMENT",2,1,16562,{"$nulls":5},true]
[null,"Baltimore County Department of Environmental Protection, Regulation and Management","LOCAL","OTHER PARTNERS",1,6,6457,{"$nulls":5},true]
[null,"Baltimore County Governments","STATE","GOVERNMENT",2,1,11230,{"$nulls":5},true]
[null,"Baltimore County Public Schools","STATE","ACADEMIC INSTITUTION",2,4,15877,{"$nulls":5},true]
[null,"Baltimore Department of Transportation (Balt. DOT)","LOCAL","GOVERNMENT",1,1,236,{"$nulls":5},true]
[null,"Baltimore Ecosystem Study URBAN LTER Site","LOCAL","ACADEMIC INSTITUTION",1,4,11569,{"$nulls":5},true]
[null,"Baltimore Office of Sustainability","STATE","GOVERNMENT",2,1,17494,{"$nulls":5},true]
[null,"Baltimore Polytechnic Institute high school","LOCAL","ACADEMIC INSTITUTION",1,4,15879,{"$nulls":5},true]
[null,"Baltimore Waterfront Partnership","LOCAL","OTHER PARTNERS",1,6,11231,{"$nulls":5},true]
[null,"Baltimore Watershed Partnership","STATE","NGO",2,2,5155,{"$nulls":5},true]
[null,"BAMA Seafood Products Inc.","LOCAL","INDUSTRY AND BUSINESS",1,3,7921,{"$nulls":5},true]
[null,"Bandon High School","LOCAL","ACADEMIC INSTITUTION",1,4,17327,{"$nulls":5},true]
[null,"Bandon Mariculture","REGIONAL","INDUSTRY AND BUSINESS",3,3,237,{"$nulls":5},true]
[null,"Bandon School District","LOCAL","GOVERNMENT",1,1,11678,{"$nulls":5},true]
[null,"Bangor Area Stormwater Group","REGIONAL","NGO",3,2,3773,{"$nulls":5},true]
[null,"Bangor University","STATE","ACADEMIC INSTITUTION",2,4,7044,{"$nulls":5},true]
[null,"Bangs Island Mussels","INTERNATIONAL","INDUSTRY AND BUSINESS",5,3,13846,{"$nulls":5},true]
[null,"Banquete Independent School District , TX","LOCAL","ACADEMIC INSTITUTION",1,4,6071,{"$nulls":5},true]
[null,"Baraboo Police Department (WI)","LOCAL","GOVERNMENT",1,1,7756,{"$nulls":5},true]
[null,"Barataria-Terrebonne National Estuary Program","REGIONAL","OTHER PARTNERS",3,6,4546,{"$nulls":5},true]
[null,"Barbare Brothers, Inc.","STATE","INDUSTRY AND BUSINESS",2,3,238,{"$nulls":5},true]
[null,"Barge, Waggoner, Sumner and Cannon, Inc.","STATE","INDUSTRY AND BUSINESS",2,3,6505,{"$nulls":5},true]
[null,"Barnacle Bob's","Unknown","Unknown",0,0,9393,{"$nulls":5},true]
[null,"Barnegat Bay Decoy and Baymans Museum","LOCAL","NGO",1,2,13097,{"$nulls":5},true]
[null,"Barnegat Bay Partnership","LOCAL","GOVERNMENT",1,1,4826,{"$nulls":5},true]
[null,"Barnegat Light Borough","LOCAL","GOVERNMENT",1,1,14992,{"$nulls":5},true]
[null,"Barnegat Light Historical Society Museum","LOCAL","NGO",1,2,13134,{"$nulls":5},true]
[null,"Barnes and Noble","INTERNATIONAL","INDUSTRY AND BUSINESS",5,3,239,{"$nulls":5},true]
[null,"Barnhill Fisheries, Inc.","LOCAL","INDUSTRY AND BUSINESS",1,3,16917,{"$nulls":5},true]
[null,"Barnstable County Cape Cod Cooperative Extension","STATE","OTHER PARTNERS",2,6,5699,{"$nulls":5},true]
[null,"Barnstable County Ocean Management Planning District of Critical Planning Concern (DCPC)","LOCAL","GOVERNMENT",1,1,6714,{"$nulls":5},true]
[null,"Barnstable County Shellfish Advisory Committee","LOCAL","GOVERNMENT",1,1,11523,{"$nulls":5},true]
[null,"Barnstable County, Mass.","LOCAL","GOVERNMENT",1,1,10840,{"$nulls":5},true]
[null,"Baron's Marine Ways","LOCAL","INDUSTRY AND BUSINESS",1,3,12199,{"$nulls":5},true]
[null,"Barr Engineering","LOCAL","INDUSTRY AND BUSINESS",1,3,6257,{"$nulls":5},true]
[null,"Barr Engineering Co.","LOCAL","INDUSTRY AND BUSINESS",1,3,11474,{"$nulls":5},true]
[null,"Barrier Island Eco Tours","LOCAL","INDUSTRY AND BUSINESS",1,3,7184,{"$nulls":5},true]
[null,"Barrier Island Oyster Company","LOCAL","INDUSTRY AND BUSINESS",1,3,16189,{"$nulls":5},true]
[null,"Barrierisland.net","INTERNATIONAL","INDUSTRY AND BUSINESS",5,3,240,{"$nulls":5},true]
[null,"Barrow Arctic Science Consortium","FEDERAL or NATIONAL","NGO",4,2,241,{"$nulls":5},true]
[null,"Barrow Whaling Captains’ Association","LOCAL","NGO",1,2,14015,{"$nulls":5},true]
[null,"Bartholomew County","LOCAL","GOVERNMENT",1,1,13754,{"$nulls":5},true]
[null,"Bartholomew County Parks and Recreation Board","LOCAL","GOVERNMENT",1,1,16719,{"$nulls":5},true]
[null,"Barton & Loguidice, D.P.A","STATE","INDUSTRY AND BUSINESS",2,3,16401,{"$nulls":5},true]
[null,"Bartrum’s Garden","LOCAL","INDUSTRY AND BUSINESS",1,3,13954,{"$nulls":5},true]
[null,"BASF","INTERNATIONAL","INDUSTRY AND BUSINESS",5,3,242,{"$nulls":5},true]
[null,"Basnight's Lone Cedar Cafe","LOCAL","INDUSTRY AND BUSINESS",1,3,12659,{"$nulls":5},true]
[null,"Bass Haven","LOCAL","INDUSTRY AND BUSINESS",1,3,243,{"$nulls":5},true]
[null,"Bass Pro Shops","INTERNATIONAL","INDUSTRY AND BUSINESS",5,3,244,{"$nulls":5},true]
[null,"Bassett Creek Watershed Management Comminssion","REGIONAL","GOVERNMENT",3,1,13402,{"$nulls":5},true]
[null,"Bates College","STATE","ACADEMIC INSTITUTION",2,4,245,{"$nulls":5},true]
[null,"Batiquitos Lagoon Foundation","LOCAL","NGO",1,2,7986,{"$nulls":5},true]
[null,"Baton Rouge Area Foundation","LOCAL","OTHER PARTNERS",1,6,15528,{"$nulls":5},true]
[null,"Baton Rouge Bar Association","LOCAL","OTHER PARTNERS",1,6,15476,{"$nulls":5},true]
[null,"Baton Rouge Center for Visual and Performing Arts","LOCAL","ACADEMIC INSTITUTION",1,4,17602,{"$nulls":5},true]
[null,"Baton Rouge Community College","STATE","ACADEMIC INSTITUTION",2,4,15517,{"$nulls":5},true]
[null,"Baton Rouge Earth Day Festival","Unknown","Unknown",0,0,9690,{"$nulls":5},true]
[null,"Baton Rouge Magnet High School","LOCAL","OTHER PARTNERS",1,6,15514,{"$nulls":5},{"$f":"AND(  NOT(ISERROR(FIND(UPPER($B$7),UPPER($B910),1))),  OR($D$7=\"\",NOT(ISERROR(FIND(UPPER($D$7),UPPER($B910),1)))),    OR($D$8=\"\",(ISERROR(FIND(UPPER($D$8),UPPER($B910),1))))           )","v":true}]
[null,"Baton Rouge Sail and Power Squadron","Unknown","Unknown",0,0,9691,{"$nulls":5},true]
[null,"Baton Rouge Zoo","Unknown","Unknown",0,0,9692,{"$nulls":5},true]
[null,"Battelle Memorial Institute","FEDERAL or NATIONAL","INDUSTRY AND BUSINESS",4,3,4547,{"$nulls":5},true]
[null,"Battery Park Marina","LOCAL","INDUSTRY AND BUSINESS",1,3,247,{"$nulls":5},true]
[null,"Baxter and Woodman Consultin","REGIONAL","INDUSTRY AND BUSINESS",3,3,7797,{"$nulls":5},true]
[null,"Baxter State Park","STATE","GOVERNMENT",2,1,7272,{"$nulls":5},true]
[null,"Bay and Gulf Marine Supply","LOCAL","INDUSTRY AND BUSINESS",1,3,12200,{"$nulls":5},true]
[null,"Bay Area Climate & Energy Resilience Project","REGIONAL","OTHER PARTNERS",3,6,17282,{"$nulls":5},true]
[null,"Bay Area Early Detection Network","LOCAL","GOVERNMENT",1,1,6859,{"$nulls":5},true]
[null,"Bay Area Regional Collaborative","REGIONAL","OTHER PARTNERS",3,6,17283,{"$nulls":5},true]
[null,"Bay Center Mariculture Company","REGIONAL","INDUSTRY AND BUSINESS",3,3,248,{"$nulls":5},true]
[null,"Bay City Chamber of Commerce","LOCAL","INDUSTRY AND BUSINESS",1,3,6841,{"$nulls":5},true]
[null,"Bay City Community Development Corp.","LOCAL","INDUSTRY AND BUSINESS",1,3,6842,{"$nulls":5},true]
[null,"Bay City Crab Company","STATE","INDUSTRY AND BUSINESS",2,3,3897,{"$nulls":5},true]
[null,"Bay Country Kayaking","LOCAL","INDUSTRY AND BUSINESS",1,3,8991,{"$nulls":5},true]
[null,"Bay County","LOCAL","GOVERNMENT",1,1,15456,{"$nulls":5},true]
[null,"Bay County Board of County Commissioners","LOCAL","GOVERNMENT",1,1,12951,{"$nulls":5},true]
[null,"Bay County Boat Yard","LOCAL","INDUSTRY AND BUSINESS",1,3,15461,{"$nulls":5},true]
[null,"Bay County Health Department","LOCAL","GOVERNMENT",1,1,9220,{"$nulls":5},true]
[null,"Bay County Planning and Zoning","LOCAL","GOVERNMENT",1,1,15439,{"$nulls":5},true]
[null,"Bay County Tourist Development Council","LOCAL","INDUSTRY AND BUSINESS",1,3,12953,{"$nulls":5},true]
[null,"Bay County, MI","LOCAL","GOVERNMENT",1,1,7906,{"$nulls":5},true]
[null,"Bay Education Center","FEDERAL or NATIONAL","OTHER PARTNERS",4,6,12201,{"$nulls":5},true]
[null,"Bay Fisheries","LOCAL","INDUSTRY AND BUSINESS",1,3,16248,{"$nulls":5},true]
[null,"Bay Foundation of Morro Bay","FEDERAL or NATIONAL","NGO",4,2,249,{"$nulls":5},true]
[null,"Bay Head","LOCAL","NGO",1,2,10557,{"$nulls":5},true]
[null,"Bay Journal","STATE","INDUSTRY AND BUSINESS",2,3,11232,{"$nulls":5},true]
[null,"Bay Mills Tribe","Tribal","GOVERNMENT",13,1,250,{"$nulls":5},true]
[null,"Bay Port Fish Company","LOCAL","INDUSTRY AND BUSINESS",1,3,7918,{"$nulls":5},true]
[null,"Bay Realty","LOCAL","INDUSTRY AND BUSINESS",1,3,9558,{"$nulls":5},true]
[null,"Bay Renaissance","REGIONAL","NGO",3,2,8590,{"$nulls":5},true]
[null,"Bay Shellfish Co.","LOCAL","INDUSTRY AND BUSINESS",1,3,12969,{"$nulls":5},true]
[null,"Bay View Yacht Club","LOCAL","INDUSTRY AND BUSINESS",1,3,5137,{"$nulls":5},true]
[null,"Bay Watch Oyster Seeds","LOCAL","INDUSTRY AND BUSINESS",1,3,17355,{"$nulls":5},true]
[null,"Bay Watershed Education and Training (B-WET)","FEDERAL or NATIONAL","GOVERNMENT",4,1,12479,{"$nulls":5},true]
[null,"Baydelta Maritime","REGIONAL","INDUSTRY AND BUSINESS",3,3,7447,{"$nulls":5},true]
[null,"Bayer Environmental Science","Unknown","INDUSTRY AND BUSINESS",0,3,7083,{"$nulls":5},true]
[null,"Bayfield County","LOCAL","GOVERNMENT",1,1,251,{"$nulls":5},true]
[null,"Bayfield School District","LOCAL","ACADEMIC INSTITUTION",1,4,11427,{"$nulls":5},true]
[null,"Bayfront Merchants Association","LOCAL","INDUSTRY AND BUSINESS",1,3,8724,{"$nulls":5},true]
[null,"Bay-Lake Regional Planning Commission","LOCAL","GOVERNMENT",1,1,252,{"$nulls":5},true]
[null,"Baylor College Of Medicine","Unknown","Unknown",0,0,3506,{"$nulls":5},true]
[null,"Baylor University, Glasscock Fund for Excellence in Environmental Science","STATE","ACADEMIC INSTITUTION",2,4,8337,{"$nulls":5},true]
[null,"Bayou Bend (Museum of Fine Arts, Houston)","LOCAL","NGO",1,2,6141,{"$nulls":5},true]
[null,"Bayou Interfaith Shared Community Organizing (BISCO)","LOCAL","NGO",1,2,8348,{"$nulls":5},true]
[null,"Bayou LaBatre Chamber of Commerce","LOCAL","INDUSTRY AND BUSINESS",1,3,253,{"$nulls":5},true]
[null,"Bayou Land Conservancy","LOCAL","NGO",1,2,6116,{"$nulls":5},true]
[null,"Bayou Land Res. Consv. and Development Council","Unknown","Unknown",0,0,9693,{"$nulls":5},true]
[null,"Bayou Preservation Association","LOCAL","NGO",1,2,6115,{"$nulls":5},true]
[null,"Bayou Rebirth","Unknown","Unknown",0,0,9694,{"$nulls":5},true]
[null,"Bayou Segnette Boaters Association","FEDERAL or NATIONAL","NGO",4,2,254,{"$nulls":5},true]
[null,"Bayou Texar Foundation","REGIONAL","NGO",3,2,12963,{"$nulls":5},true]
[null,"Bayport Marina","LOCAL","INDUSTRY AND BUSINESS",1,3,8768,{"$nulls":5},true]
[null,"Bayport Marina ","Unknown","Unknown",0,0,9870,{"$nulls":5},true]
[null,"BaySail","STATE","NGO",2,2,9119,{"$nulls":5},true]
[null,"Bayshore Center at Bivalve","LOCAL","NGO",1,2,13890,{"$nulls":5},true]
[null,"Bayside Academy","LOCAL","ACADEMIC INSTITUTION",1,4,6506,{"$nulls":5},true]
[null,"Bayview Park","LOCAL","NGO",1,2,13135,{"$nulls":5},true]
[null,"Baywater Shellfish Company","LOCAL","INDUSTRY AND BUSINESS",1,3,11572,{"$nulls":5},true]
[null,"Baywater Shellfish Farms","STATE","INDUSTRY AND BUSINESS",2,3,10998,{"$nulls":5},true]
[null,"Baywater, Inc.","REGIONAL","INDUSTRY AND BUSINESS",3,3,255,{"$nulls":5},true]
[null,"Bay-Watershed Education and Training Program, Office of Education (US DOC, NOAA, B-WET)","FEDERAL or NATIONAL","GOVERNMENT",4,1,4082,{"$nulls":5},true]
[null,"Beach Ecology Association for Coastal Habitat (BEACH) Ecology Coalition","LOCAL","NGO",1,2,3468,{"$nulls":5},true]
[null,"Beach Haven Borough","LOCAL","GOVERNMENT",1,1,14993,{"$nulls":5},{"$f":"AND(  NOT(ISERROR(FIND(UPPER($B$7),UPPER($B974),1))),  OR($D$7=\"\",NOT(ISERROR(FIND(UPPER($D$7),UPPER($B974),1)))),    OR($D$8=\"\",(ISERROR(FIND(UPPER($D$8),UPPER($B974),1))))           )","v":true}]
[null,"Beach Haven Historic Preservation Advisory Commission","LOCAL","NGO",1,2,13136,{"$nulls":5},true]
[null,"Beach Haven Public Library","LOCAL","NGO",1,2,13137,{"$nulls":5},true]
[null,"Beach Sweep/River Sweep Private Partners","STATE","OTHER PARTNERS",2,6,14067,{"$nulls":5},true]
[null,"Beach vacation rental companies North Carolina","LOCAL","INDUSTRY AND BUSINESS",1,3,12660,{"$nulls":5},true]
[null,"Beacon 44","LOCAL","INDUSTRY AND BUSINESS",1,3,12202,{"$nulls":5},true]
[null,"Beacon of Hope","Unknown","Unknown",0,0,9695,{"$nulls":5},true]
[null,"Beam Reach Marine Science and Sustainability School","LOCAL","ACADEMIC INSTITUTION",1,4,7425,{"$nulls":5},true]
[null,"Bear Point Marina","LOCAL","INDUSTRY AND BUSINESS",1,3,6507,{"$nulls":5},true]
[null,"Bears Bluff National Fish Hatchery (USFWS)","STATE","GOVERNMENT",2,1,13363,{"$nulls":5},true]
[null,"Beaufort Conservation District","LOCAL","GOVERNMENT",1,1,13364,{"$nulls":5},true]
[null,"Beaufort County (SC) Planning Department","LOCAL","GOVERNMENT",1,1,10216,{"$nulls":5},true]
[null,"Beaufort County Open Land Trust","LOCAL","NGO",1,2,256,{"$nulls":5},true]
[null,"Beaufort County Planning Department","LOCAL","GOVERNMENT",1,1,11150,{"$nulls":5},true]
[null,"Beaufort County School District","LOCAL","ACADEMIC INSTITUTION",1,4,14001,{"$nulls":5},true]
[null,"Beaufort County Water Quality Task Force","LOCAL","NGO",1,2,257,{"$nulls":5},true]
[null,"Beaufort County, SC","LOCAL","GOVERNMENT",1,1,4918,{"$nulls":5},true]
[null,"Beaufort High School","LOCAL","ACADEMIC INSTITUTION",1,4,8814,{"$nulls":5},true]
[null,"Beaufort Jasoer Water and Sewer Authority","LOCAL","NGO",1,2,14305,{"$nulls":5},true]
[null,"Beaufort Kayak Tours","LOCAL","INDUSTRY AND BUSINESS",1,3,15152,{"$nulls":5},true]
[null,"Beaufort Lab (US DOC, NOAA, NMFS, SEFSC)","FEDERAL or NATIONAL","GOVERNMENT",4,1,258,{"$nulls":5},true]
[null,"Beaufort Shellfish Company","LOCAL","INDUSTRY AND BUSINESS",1,3,11152,{"$nulls":5},true]
[null,"Beaufort Soil and Water Conservation District","LOCAL","GOVERNMENT",1,1,14396,{"$nulls":5},true]
[null,"Beaufort Wine and Food Festival","LOCAL","NGO",1,2,16792,{"$nulls":5},true]
[null,"Beaufort, SC","LOCAL","GOVERNMENT",1,1,4931,{"$nulls":5},true]
[null,"Beaver Park Marina","LOCAL","INDUSTRY AND BUSINESS",1,3,259,{"$nulls":5},true]
[null,"Beaver Park North","LOCAL","INDUSTRY AND BUSINESS",1,3,260,{"$nulls":5},true]
[null,"Beaver Street Fisheries","LOCAL","INDUSTRY AND BUSINESS",1,3,7925,{"$nulls":5},true]
[null,"Bechtel Power Company","FEDERAL or NATIONAL","INDUSTRY AND BUSINESS",4,3,261,{"$nulls":5},true]
[null,"Becker County Soil and Water Conservation District","REGIONAL","GOVERNMENT",3,1,8786,{"$nulls":5},true]
[null,"Bedford High School","LOCAL","ACADEMIC INSTITUTION",1,4,7622,{"$nulls":5},true]
[null,"Bedford Institute of Oceanography, Nova Scotia, CA","INTERNATIONAL","ACADEMIC INSTITUTION",5,4,7623,{"$nulls":5},true]
[null,"Beebe Hospital Department of Emergency Medicine","LOCAL","OTHER PARTNERS",1,6,5700,{"$nulls":5},true]
[null,"Beechtree Homeowners Association","LOCAL","OTHER PARTNERS",1,6,16793,{"$nulls":5},true]
[null,"Beijer International Institute of Ecological Economics, Stockholm, Sweden","INTERNATIONAL","ACADEMIC INSTITUTION",5,4,262,{"$nulls":5},true]
[null,"Belau Watershed Alliance","INTERNATIONAL","NGO",5,2,6739,{"$nulls":5},true]
[null,"Belize Department of Fisheries","INTERNATIONAL","GOVERNMENT",5,1,263,{"$nulls":5},true]
[null,"Bell Aquaculture","REGIONAL","INDUSTRY AND BUSINESS",3,3,5906,{"$nulls":5},true]
[null,"Bell Aquaculture, Albany, Ind.","STATE","INDUSTRY AND BUSINESS",2,3,3685,{"$nulls":5},true]
[null,"Bell Harbor Marina","LOCAL","INDUSTRY AND BUSINESS",1,3,4307,{"$nulls":5},true]
[null,"Bell’s Fisheries","FEDERAL or NATIONAL","INDUSTRY AND BUSINESS",4,3,264,{"$nulls":5},true]
[null,"Belle Haven Marina","LOCAL","INDUSTRY AND BUSINESS",1,3,13706,{"$nulls":5},true]
[null,"Belle Isle Aquarium","LOCAL","INDUSTRY AND BUSINESS",1,3,14840,{"$nulls":5},true]
[null,"Belle W. Baruch Institute for Marine and Coastal Science","STATE","ACADEMIC INSTITUTION",2,4,7108,{"$nulls":5},true]
[null,"Bellevue Reporter","LOCAL","INDUSTRY AND BUSINESS",1,3,4308,{"$nulls":5},true]
[null,"Bellingham Cold Storage","REGIONAL","INDUSTRY AND BUSINESS",3,3,265,{"$nulls":5},true]
[null,"Bellingham Fire Department","LOCAL","GOVERNMENT",1,1,7370,{"$nulls":5},true]
[null,"Bellingham School District","LOCAL","ACADEMIC INSTITUTION",1,4,4177,{"$nulls":5},true]
[null,"Bellingham Technical College","LOCAL","ACADEMIC INSTITUTION",1,4,13156,{"$nulls":5},true]
[null,"Bellingham Vocational Technical Institute","STATE","ACADEMIC INSTITUTION",2,4,3507,{"$nulls":5},true]
[null,"Bellingham Working Waterfront Task Force","Unknown","Unknown",0,0,13157,{"$nulls":5},true]
[null,"Bell's Reef Mariculture","STATE","INDUSTRY AND BUSINESS",2,3,14452,{"$nulls":5},true]
[null,"Belmar","LOCAL","NGO",1,2,10555,{"$nulls":5},true]
[null,"Belmar Environmental Commission","LOCAL","GOVERNMENT",1,1,4827,{"$nulls":5},true]
[null,"Belmont Bay Marina","LOCAL","INDUSTRY AND BUSINESS",1,3,13707,{"$nulls":5},true]
[null,"Belmont High School","LOCAL","ACADEMIC INSTITUTION",1,4,7624,{"$nulls":5},true]
[null,"Bemidji State University","STATE","ACADEMIC INSTITUTION",2,4,3686,{"$nulls":5},true]
[null,"Benedict Estuarine Marine Lab. - Academy Of Natural Sciences","Unknown","Unknown",0,0,3508,{"$nulls":5},true]
[null,"Benedictine Sisters of Erie","LOCAL","OTHER PARTNERS",1,6,13948,{"$nulls":5},true]
[null,"Bennett Elementary School","LOCAL","ACADEMIC INSTITUTION",1,4,7798,{"$nulls":5},true]
[null,"Bennett-Martinen Tidelands","STATE","INDUSTRY AND BUSINESS",2,3,266,{"$nulls":5},true]
[null,"Benson Lake Association","LOCAL","NGO",1,2,4371,{"$nulls":5},true]
[null,"Benton County, OR","REGIONAL","GOVERNMENT",3,1,10095,{"$nulls":5},true]
[null,"Bering Ecosystem Study, National Science Foundation (NSF)","FEDERAL or NATIONAL","GOVERNMENT",4,1,4083,{"$nulls":5},true]
[null,"Bering Sea Fisheries Research Foundation","STATE","NGO",2,2,10989,{"$nulls":5},{"$f":"AND(  NOT(ISERROR(FIND(UPPER($B$7),UPPER($B1038),1))),  OR($D$7=\"\",NOT(ISERROR(FIND(UPPER($D$7),UPPER($B1038),1)))),    OR($D$8=\"\",(ISERROR(FIND(UPPER($D$8),UPPER($B1038),1))))           )","v":true}]
[null,"Bering Sea Fishermen’s Association","STATE","NGO",2,2,267,{"$nulls":5},true]
[null,"BERK Consulting","LOCAL","INDUSTRY AND BUSINESS",1,3,8395,{"$nulls":5},true]
[null,"Berkeley California","STATE","ACADEMIC INSTITUTION",2,4,9229,{"$nulls":5},true]
[null,"Berkeley Conservation Trust","LOCAL","NGO",1,2,7101,{"$nulls":5},true]
[null,"Berkeley County Water and Sanitation Authority","LOCAL","GOVERNMENT",1,1,7131,{"$nulls":5},true]
[null,"Berkeley County, SC","LOCAL","GOVERNMENT",1,1,4921,{"$nulls":5},true]
[null,"Berkeley Electric Cooperative","FEDERAL or NATIONAL","INDUSTRY AND BUSINESS",4,3,268,{"$nulls":5},true]
[null,"Berkeley S&W District","LOCAL","GOVERNMENT",1,1,7121,{"$nulls":5},true]
[null,"Berkeley Striper Club","LOCAL","INDUSTRY AND BUSINESS",1,3,10944,{"$nulls":5},true]
[null,"Berkeley Township Schools-Gifted and Talented Program","LOCAL","ACADEMIC INSTITUTION",1,4,7525,{"$nulls":5},true]
[null,"Berkeley-Charleston-Dorchester Council of Governments","LOCAL","GOVERNMENT",1,1,269,{"$nulls":5},true]
[null,"Berkley","FEDERAL or NATIONAL","INDUSTRY AND BUSINESS",4,3,13640,{"$nulls":5},true]
[null,"Berkley Heights Township","LOCAL","GOVERNMENT",1,1,7711,{"$nulls":5},true]
[null,"Bermuda Biological Station for Research","INTERNATIONAL","ACADEMIC INSTITUTION",5,4,270,{"$nulls":5},true]
[null,"Bernie’s Conch","LOCAL","INDUSTRY AND BUSINESS",1,3,271,{"$nulls":5},true]
[null,"Berret's Restaurant","LOCAL","INDUSTRY AND BUSINESS",1,3,7202,{"$nulls":5},true]
[null,"Berry Plastics","FEDERAL or NATIONAL","INDUSTRY AND BUSINESS",4,3,9004,{"$nulls":5},true]
[null,"Besser Elementary School (Alpena Public Schools)","LOCAL","ACADEMIC INSTITUTION",1,4,9138,{"$nulls":5},true]
[null,"Besser Museum for Northeast Michigan","LOCAL","NGO",1,2,9139,{"$nulls":5},true]
[null,"Beth Admire, IDEM","LOCAL","GOVERNMENT",1,1,14776,{"$nulls":5},true]
[null,"Bethpage Campground Marina","LOCAL","INDUSTRY AND BUSINESS",1,3,13708,{"$nulls":5},true]
[null,"Betsy's Cape Shore Salts","LOCAL","INDUSTRY AND BUSINESS",1,3,9035,{"$nulls":5},true]
[null,"Better Block Hawaii","LOCAL","NGO",1,2,12926,{"$nulls":5},true]
[null,"Bevans Oyster Company","STATE","INDUSTRY AND BUSINESS",2,3,15590,{"$nulls":5},true]
[null,"Bevan's Oyster Company","FEDERAL or NATIONAL","INDUSTRY AND BUSINESS",4,3,272,{"$nulls":5},true]
[null,"Beverly Shores","LOCAL","GOVERNMENT",1,1,10887,{"$nulls":5},true]
[null,"BHP Billiton, Limited","FEDERAL or NATIONAL","INDUSTRY AND BUSINESS",4,3,273,{"$nulls":5},true]
[null,"Big Bass Bsh at Bass Pro, Portage","LOCAL","INDUSTRY AND BUSINESS",1,3,14805,{"$nulls":5},true]
[null,"Big Bay de Noc Fishery","FEDERAL or NATIONAL","INDUSTRY AND BUSINESS",4,3,274,{"$nulls":5},true]
[null,"Big Bear Shrimp and Seafood","LOCAL","INDUSTRY AND BUSINESS",1,3,12203,{"$nulls":5},true]
[null,"Big Beef Creek Field Research Station","STATE","ACADEMIC INSTITUTION",2,4,7729,{"$nulls":5},true]
[null,"Big Cove Shellfish","LOCAL","INDUSTRY AND BUSINESS",1,3,10500,{"$nulls":5},true]
[null,"Big Creek Lumber Co.","LOCAL","INDUSTRY AND BUSINESS",1,3,3469,{"$nulls":5},true]
[null,"Big Island Abalone","REGIONAL","INDUSTRY AND BUSINESS",3,3,6337,{"$nulls":5},true]
[null,"Big Oak Seafood","LOCAL","INDUSTRY AND BUSINESS",1,3,10328,{"$nulls":5},true]
[null,"Big Red's Bait and Tackle","LOCAL","INDUSTRY AND BUSINESS",1,3,16104,{"$nulls":5},true]
[null,"Big Sandy Lake Association","LOCAL","NGO",1,2,6290,{"$nulls":5},true]
[null,"Big Stone Bay Fish Company","FEDERAL or NATIONAL","INDUSTRY AND BUSINESS",4,3,275,{"$nulls":5},true]
[null,"Big Thicket Association","LOCAL","NGO",1,2,12204,{"$nulls":5},true]
[null,"Bigelow Laboratory for Ocean Sciences","STATE","OTHER PARTNERS",2,6,278,{"$nulls":5},true]
[null,"Bill Avery Bill Avery, Bill Avery's Quality Bay Clams","STATE","INDUSTRY AND BUSINESS",2,3,16302,{"$nulls":5},true]
[null,"Bill Knudson, MSU - Product Center","STATE","ACADEMIC INSTITUTION",2,4,9239,{"$nulls":5},true]
[null,"Bill Peterson (artist)","Unknown","OTHER PARTNERS",0,6,16465,{"$nulls":5},true]
[null,"Bill Russell Company","STATE","INDUSTRY AND BUSINESS",2,3,279,{"$nulls":5},true]
[null,"Billfish Foundation","Unknown","Unknown",0,0,9641,{"$nulls":5},true]
[null,"Bill's Bait Shop, DE","LOCAL","INDUSTRY AND BUSINESS",1,3,11233,{"$nulls":5},true]
[null,"Biloxi High School","Unknown","Unknown",0,0,3509,{"$nulls":5},true]
[null,"Biloxi Junior High School","LOCAL","ACADEMIC INSTITUTION",1,4,6508,{"$nulls":5},true]
[null,"Biloxi Port Commission","LOCAL","GOVERNMENT",1,1,280,{"$nulls":5},true]
[null,"Biloxi Public School District","LOCAL","ACADEMIC INSTITUTION",1,4,6509,{"$nulls":5},true]
[null,"Biltmore Estates","STATE","INDUSTRY AND BUSINESS",2,3,3898,{"$nulls":5},true]
[null,"Binational Agriculture Research & Development (BARD)","INTERNATIONAL","INDUSTRY AND BUSINESS",5,3,5369,{"$nulls":5},true]
[null,"Bingham Academy","LOCAL","ACADEMIC INSTITUTION",1,4,9140,{"$nulls":5},true]
[null,"Binghamton University","REGIONAL","ACADEMIC INSTITUTION",3,4,16794,{"$nulls":5},true]
[null,"Bio-Amazonia International","REGIONAL","OTHER PARTNERS",3,6,11646,{"$nulls":5},true]
[null,"Bioaquatics International","Unknown","Unknown",0,0,3510,{"$nulls":5},true]
[null,"Biodiversity Resarch Institute","Unknown","NGO",0,2,6967,{"$nulls":5},true]
[null,"Bioenergy Technologies Office, Energy Efficiency and Renewable Energy (US DOE)","FEDERAL or NATIONAL","GOVERNMENT",4,1,9252,{"$nulls":5},true]
[null,"BioFlorida","STATE","NGO",2,2,281,{"$nulls":5},true]
[null,"Biogeography Branch  (US DOC, NOAA, NOS, NCCOS, CCMA)","FEDERAL or NATIONAL","GOVERNMENT",4,1,5581,{"$nulls":5},true]
[null,"Biogeography Branch (US DOC, NOAA, NOS, NCCOS, CCMA)","Unknown","Unknown",0,0,14678,{"$nulls":5},true]
[null,"Biological Conservation","REGIONAL","NGO",3,2,5077,{"$nulls":5},true]
[null,"Biological Oceanography Program (NSF)","FEDERAL or NATIONAL","GOVERNMENT",4,1,5582,{"$nulls":5},true]
[null,"Biological Resources Discipline (US DOI, USGS)","FEDERAL or NATIONAL","GOVERNMENT",4,1,5583,{"$nulls":5},{"$f":"AND(  NOT(ISERROR(FIND(UPPER($B$7),UPPER($B1102),1))),  OR($D$7=\"\",NOT(ISERROR(FIND(UPPER($D$7),UPPER($B1102),1)))),    OR($D$8=\"\",(ISERROR(FIND(UPPER($D$8),UPPER($B1102),1))))           )","v":true}]
[null,"Biological Resources Division National Center (US DOI, USGS)","FEDERAL or NATIONAL","GOVERNMENT",4,1,282,{"$nulls":5},true]
[null,"Biological Resources Division, Ohio State (US DOI, USGS)","FEDERAL or NATIONAL","GOVERNMENT",4,1,283,{"$nulls":5},true]
[null,"Biological Science","FEDERAL or NATIONAL","ACADEMIC INSTITUTION",4,4,284,{"$nulls":5},true]
[null,"Biology Department, Dalhousie University, Halifax, Nova Scotia","INTERNATIONAL","ACADEMIC INSTITUTION",5,4,4123,{"$nulls":5},true]
[null,"Biomedix","REGIONAL","INDUSTRY AND BUSINESS",3,3,8159,{"$nulls":5},true]
[null,"Biopix","INTERNATIONAL","INDUSTRY AND BUSINESS",5,3,14814,{"$nulls":5},true]
[null,"Biospherics P/L – Australia","INTERNATIONAL","INDUSTRY AND BUSINESS",5,3,5078,{"$nulls":5},true]
[null,"Biotechnology Industry Organization","INTERNATIONAL","INDUSTRY AND BUSINESS",5,3,286,{"$nulls":5},true]
[null,"Biotechnology Institute, University of Minnesota","STATE","ACADEMIC INSTITUTION",2,4,10040,{"$nulls":5},true]
[null,"Birch Aquarium at Scripps under NGO","INTERNATIONAL","SEA GRANT PROGRAMS",5,5,4551,{"$nulls":5},true]
[null,"Birch Bay State Park, Washington State Parks and Recreation Commission","STATE","GOVERNMENT",2,1,4505,{"$nulls":5},true]
[null,"Birch Bay Water and Sewer District","LOCAL","GOVERNMENT",1,1,4234,{"$nulls":5},true]
[null,"Birches Elementary School","LOCAL","ACADEMIC INSTITUTION",1,4,7547,{"$nulls":5},true]
[null,"Birchline Planning LLC","LOCAL","INDUSTRY AND BUSINESS",1,3,14738,{"$nulls":5},true]
[null,"bird conservation organizations","Unknown","NGO",0,2,287,{"$nulls":5},true]
[null,"Bird Studies Canada","INTERNATIONAL","NGO",5,2,3687,{"$nulls":5},true]
[null,"BirdLife International","INTERNATIONAL","NGO",5,2,4164,{"$nulls":5},true]
[null,"Birds and Beasts Pet Shop","LOCAL","INDUSTRY AND BUSINESS",1,3,16144,{"$nulls":5},true]
[null,"Biscayne Community Foundation","LOCAL","NGO",1,2,12958,{"$nulls":5},true]
[null,"Biscayne National Park","LOCAL","GOVERNMENT",1,1,12957,{"$nulls":5},true]
[null,"Bishop Museum","STATE","INDUSTRY AND BUSINESS",2,3,15976,{"$nulls":5},true]
[null,"Bishop Noll Institute","LOCAL","ACADEMIC INSTITUTION",1,4,13755,{"$nulls":5},true]
[null,"Bistro By-The-Sea","LOCAL","INDUSTRY AND BUSINESS",1,3,288,{"$nulls":5},true]
[null,"Bit & Grain","LOCAL","INDUSTRY AND BUSINESS",1,3,16795,{"$nulls":5},true]
[null,"BJ Seafood Farm","REGIONAL","INDUSTRY AND BUSINESS",3,3,289,{"$nulls":5},true]
[null,"Black Bear Conservation Committee","STATE","NGO",2,2,15516,{"$nulls":5},true]
[null,"Black Elementary Schools","LOCAL","ACADEMIC INSTITUTION",1,4,7799,{"$nulls":5},true]
[null,"Black Laser Learning","STATE","INDUSTRY AND BUSINESS",2,3,5701,{"$nulls":5},true]
[null,"Black SCUBA Divers","LOCAL","NGO",1,2,13000,{"$nulls":5},true]
[null,"Blackbeard Oyster Company","STATE","INDUSTRY AND BUSINESS",2,3,15149,{"$nulls":5},true]
[null,"Blackbeard's Seafood Company","LOCAL","INDUSTRY AND BUSINESS",1,3,13990,{"$nulls":5},true]
[null,"Blackboard Oyster Company","STATE","INDUSTRY AND BUSINESS",2,3,14399,{"$nulls":5},true]
[null,"Blackburn Brothers Seafood Company","STATE","INDUSTRY AND BUSINESS",2,3,3899,{"$nulls":5},true]
[null,"Blackburn Middle School","LOCAL","ACADEMIC INSTITUTION",1,4,6510,{"$nulls":5},true]
[null,"Blackstone River Coalition","REGIONAL","NGO",3,2,7015,{"$nulls":5},true]
[null,"Blackwater River Watershed Foundation","LOCAL","NGO",1,2,7934,{"$nulls":5},true]
[null,"Blackwood Farms","LOCAL","INDUSTRY AND BUSINESS",1,3,8982,{"$nulls":5},true]
[null,"Blaine Marina","LOCAL","INDUSTRY AND BUSINESS",1,3,4309,{"$nulls":5},true]
[null,"Blau Oyster Company","REGIONAL","INDUSTRY AND BUSINESS",3,3,290,{"$nulls":5},true]
[null,"Blind Canyon Aquaranch, Inc.","LOCAL","INDUSTRY AND BUSINESS",1,3,6824,{"$nulls":5},true]
[null,"B-Line Construction","STATE","INDUSTRY AND BUSINESS",2,3,291,{"$nulls":5},true]
[null,"Block Island High School","LOCAL","ACADEMIC INSTITUTION",1,4,7865,{"$nulls":5},true]
[null,"Block Island Nursery & Landscape Association","LOCAL","INDUSTRY AND BUSINESS",1,3,9559,{"$nulls":5},true]
[null,"Block Island Residents Association","LOCAL","NGO",1,2,9560,{"$nulls":5},true]
[null,"Block Island Tourism Council","LOCAL","INDUSTRY AND BUSINESS",1,3,15942,{"$nulls":5},true]
[null,"Blog Together/Science Online","Unknown","NGO",0,2,4034,{"$nulls":5},true]
[null,"Bloomberg Philanthropies","INTERNATIONAL","NGO",5,2,14475,{"$nulls":5},true]
[null,"Blount Fine Foods","LOCAL","INDUSTRY AND BUSINESS",1,3,7311,{"$nulls":5},true]
[null,"Blue Bear Productions","FEDERAL or NATIONAL","INDUSTRY AND BUSINESS",4,3,292,{"$nulls":5},true]
[null,"Blue Cross Blue Shield","INTERNATIONAL","INDUSTRY AND BUSINESS",5,3,8050,{"$nulls":5},true]
[null,"Blue Fins, MD","LOCAL","INDUSTRY AND BUSINESS",1,3,11234,{"$nulls":5},true]
[null,"Blue Flag","INTERNATIONAL","NGO",5,2,15582,{"$nulls":5},true]
[null,"Blue Flag International","INTERNATIONAL","NGO",5,2,15591,{"$nulls":5},true]
[null,"Blue Green Golf Development","FEDERAL or NATIONAL","NGO",4,2,293,{"$nulls":5},true]
[null,"Blue Heron Condominiums","LOCAL","INDUSTRY AND BUSINESS",1,3,7379,{"$nulls":5},true]
[null,"Blue Hill Bay Mussels","LOCAL","INDUSTRY AND BUSINESS",1,3,8546,{"$nulls":5},true]
[null,"Blue Hill Hydraulics Incorporated","LOCAL","INDUSTRY AND BUSINESS",1,3,9261,{"$nulls":5},true]
[null,"Blue Iris Fish Farm","REGIONAL","INDUSTRY AND BUSINESS",3,3,10712,{"$nulls":5},true]
[null,"Blue Island Chamber of Commerce","LOCAL","GOVERNMENT",1,1,8612,{"$nulls":5},true]
[null,"Blue Island Park District","LOCAL","GOVERNMENT",1,1,8613,{"$nulls":5},true]
[null,"Blue Marline Atlantic International","Unknown","INDUSTRY AND BUSINESS",0,3,6955,{"$nulls":5},true]
[null,"Blue Moon Fund","INTERNATIONAL","NGO",5,2,13696,{"$nulls":5},true]
[null,"Blue Ocean Farms","STATE","INDUSTRY AND BUSINESS",2,3,3900,{"$nulls":5},true]
[null,"Blue Ocean Institute","INTERNATIONAL","NGO",5,2,294,{"$nulls":5},{"$f":"AND(  NOT(ISERROR(FIND(UPPER($B$7),UPPER($B1166),1))),  OR($D$7=\"\",NOT(ISERROR(FIND(UPPER($D$7),UPPER($B1166),1)))),    OR($D$8=\"\",(ISERROR(FIND(UPPER($D$8),UPPER($B1166),1))))           )","v":true}]
[null,"Blue Ocean Society","INTERNATIONAL","NGO",5,2,295,{"$nulls":5},true]
[null,"Blue Ridge Aquaculture","FEDERAL or NATIONAL","INDUSTRY AND BUSINESS",4,3,296,{"$nulls":5},true]
[null,"Blue Spruce Biologic Supply","Unknown","INDUSTRY AND BUSINESS",0,3,7092,{"$nulls":5},true]
[null,"Blue Star Foods","INTERNATIONAL","INDUSTRY AND BUSINESS",5,3,8218,{"$nulls":5},true]
[null,"Blue Starr Oyster Co","LOCAL","OTHER PARTNERS",1,6,5420,{"$nulls":5},true]
[null,"Blue Talon Bistro","FEDERAL or NATIONAL","INDUSTRY AND BUSINESS",4,3,297,{"$nulls":5},true]
[null,"Blue Urchin Consulting","STATE","INDUSTRY AND BUSINESS",2,3,4114,{"$nulls":5},true]
[null,"Blue Urchin/Wesley Shaw","Unknown","INDUSTRY AND BUSINESS",0,3,17647,{"$nulls":5},true]
[null,"Blue Water Baltimore","LOCAL","NGO",1,2,15876,{"$nulls":5},true]
[null,"Blue Water Concepts, Inc.","LOCAL","INDUSTRY AND BUSINESS",1,3,14553,{"$nulls":5},true]
[null,"Blue Water Condominiums","FEDERAL or NATIONAL","INDUSTRY AND BUSINESS",4,3,298,{"$nulls":5},true]
[null,"Blue Water Science","FEDERAL or NATIONAL","INDUSTRY AND BUSINESS",4,3,299,{"$nulls":5},true]
[null,"Blue Water Sportfishing Association","LOCAL","NGO",1,2,7907,{"$nulls":5},true]
[null,"Blue, Land, Water Interface","FEDERAL or NATIONAL","INDUSTRY AND BUSINESS",4,3,300,{"$nulls":5},true]
[null,"Bluebonnet Swamp Nature Center","Unknown","Unknown",0,0,9696,{"$nulls":5},true]
[null,"Bluefin Robotics Corporation","INTERNATIONAL","INDUSTRY AND BUSINESS",5,3,7625,{"$nulls":5},true]
[null,"Bluegill Restaurant","LOCAL","INDUSTRY AND BUSINESS",1,3,13894,{"$nulls":5},true]
[null,"Bluewater Wind","REGIONAL","INDUSTRY AND BUSINESS",3,3,5702,{"$nulls":5},true]
[null,"Blue-water Yachts Sales","LOCAL","INDUSTRY AND BUSINESS",1,3,5478,{"$nulls":5},true]
[null,"Blueway Adventures","LOCAL","INDUSTRY AND BUSINESS",1,3,15142,{"$nulls":5},true]
[null,"Bluff City Tackle","LOCAL","INDUSTRY AND BUSINESS",1,3,16102,{"$nulls":5},true]
[null,"Bluff Hill Cove Oysters","LOCAL","INDUSTRY AND BUSINESS",1,3,15951,{"$nulls":5},true]
[null,"Bluffton, SC","LOCAL","GOVERNMENT",1,1,4930,{"$nulls":5},true]
[null,"BluWrap Company","INTERNATIONAL","INDUSTRY AND BUSINESS",5,3,13971,{"$nulls":5},true]
[null,"BMT Syntek Technologies","INTERNATIONAL","INDUSTRY AND BUSINESS",5,3,7626,{"$nulls":5},true]
[null,"BMT Syntek Technologies","INTERNATIONAL","INDUSTRY AND BUSINESS",5,3,6867,{"$nulls":5},true]
[null,"BMW Manufacturing Corp.","FEDERAL or NATIONAL","INDUSTRY AND BUSINESS",4,3,301,{"$nulls":5},true]
[null,"Board Of Cooperative Educational Services of Nassau County (Nassau BOCES)","LOCAL","ACADEMIC INSTITUTION",1,4,302,{"$nulls":5},true]
[null,"Board of the Friends of Shepard State Park","FEDERAL or NATIONAL","NGO",4,2,303,{"$nulls":5},true]
[null,"Boat Camp","STATE","NGO",2,2,3799,{"$nulls":5},true]
[null,"Boat Street Marina","LOCAL","INDUSTRY AND BUSINESS",1,3,4310,{"$nulls":5},true]
[null,"Boat U.S.","FEDERAL or NATIONAL","NGO",4,2,304,{"$nulls":5},true]
[null,"Boating Association of Ohio","STATE","INDUSTRY AND BUSINESS",2,3,13265,{"$nulls":5},true]
[null,"Boating Education and Rescue","LOCAL","NGO",1,2,16597,{"$nulls":5},true]
[null,"Boating Industries Association of Upstate New York","STATE","INDUSTRY AND BUSINESS",2,3,12375,{"$nulls":5},true]
[null,"Boating Industry Association of upstate New York","LOCAL","NGO",1,2,305,{"$nulls":5},true]
[null,"Boating Trades Association of Texas","STATE","NGO",2,2,12205,{"$nulls":5},true]
[null,"BoatUS Foundation","INTERNATIONAL","NGO",5,2,7480,{"$nulls":5},true]
[null,"Bodega Marine Laboratory, University of California, Davis (UCD BML)","STATE","ACADEMIC INSTITUTION",2,4,306,{"$nulls":5},true]
[null,"Bodie Island Oysters","STATE","INDUSTRY AND BUSINESS",2,3,14457,{"$nulls":5},true]
[null,"Bodin Fisheries","FEDERAL or NATIONAL","INDUSTRY AND BUSINESS",4,3,307,{"$nulls":5},true]
[null,"Boh Bros. Construction","Unknown","Unknown",0,0,9697,{"$nulls":5},true]
[null,"Bolsa Chica Reserve","LOCAL","GOVERNMENT",1,1,308,{"$nulls":5},true]
[null,"Bon Secour Fisheries Inc.","FEDERAL or NATIONAL","INDUSTRY AND BUSINESS",4,3,309,{"$nulls":5},true]
[null,"Bon Secour National Wildlife Refuge (US DOI, FWS, NWRS)","FEDERAL or NATIONAL","GOVERNMENT",4,1,310,{"$nulls":5},true]
[null,"Bonefish Grill","LOCAL","INDUSTRY AND BUSINESS",1,3,7924,{"$nulls":5},true]
[null,"Bonneville Power Administration (BPA)","FEDERAL or NATIONAL","GOVERNMENT",4,1,10096,{"$nulls":5},true]
[null,"Booker T. Washington Middle School","LOCAL","ACADEMIC INSTITUTION",1,4,5483,{"$nulls":5},true]
[null,"Boondocks Grill and Bait","LOCAL","INDUSTRY AND BUSINESS",1,3,16116,{"$nulls":5},true]
[null,"Boone County Solid Waste Management District","LOCAL","GOVERNMENT",1,1,13883,{"$nulls":5},true]
[null,"Boone Seafood","Unknown","INDUSTRY AND BUSINESS",0,3,6990,{"$nulls":5},true]
[null,"Booth's Bait","Unknown","INDUSTRY AND BUSINESS",0,3,9394,{"$nulls":5},true]
[null,"Boreal Natives","LOCAL","INDUSTRY AND BUSINESS",1,3,6284,{"$nulls":5},true]
[null,"Borlaug Higher Education for Agricultural Research and Development (BHEARD) Program","INTERNATIONAL","ACADEMIC INSTITUTION",5,4,13837,{"$nulls":5},true]
[null,"Bornstein Seafoods","FEDERAL or NATIONAL","INDUSTRY AND BUSINESS",4,3,311,{"$nulls":5},true]
[null,"Borough of Atlantic City","LOCAL","GOVERNMENT",1,1,15018,{"$nulls":5},true]
[null,"Borough of Avon","LOCAL","GOVERNMENT",1,1,15327,{"$nulls":5},true]
[null,"Borough of Belmar","LOCAL","GOVERNMENT",1,1,4829,{"$nulls":5},true]
[null,"Borough of Brick Township","LOCAL","GOVERNMENT",1,1,7563,{"$nulls":5},true]
[null,"Borough of Cape May","LOCAL","GOVERNMENT",1,1,13100,{"$nulls":5},true]
[null,"Borough of Fair Haven","LOCAL","GOVERNMENT",1,1,15014,{"$nulls":5},true]
[null,"Borough of Lavalette","LOCAL","GOVERNMENT",1,1,7562,{"$nulls":5},true]
[null,"Borough of Manasquan","LOCAL","GOVERNMENT",1,1,15329,{"$nulls":5},true]
[null,"Borough of Ocean City","LOCAL","GOVERNMENT",1,1,7561,{"$nulls":5},{"$f":"AND(  NOT(ISERROR(FIND(UPPER($B$7),UPPER($B1230),1))),  OR($D$7=\"\",NOT(ISERROR(FIND(UPPER($D$7),UPPER($B1230),1)))),    OR($D$8=\"\",(ISERROR(FIND(UPPER($D$8),UPPER($B1230),1))))           )","v":true}]
[null,"Borough of Oceanport","LOCAL","GOVERNMENT",1,1,15326,{"$nulls":5},true]
[null,"Borough of Pleasantville","LOCAL","GOVERNMENT",1,1,15324,{"$nulls":5},true]
[null,"Borough of Rumson","LOCAL","GOVERNMENT",1,1,16596,{"$nulls":5},true]
[null,"Borough of Spring Lake","LOCAL","GOVERNMENT",1,1,15023,{"$nulls":5},true]
[null,"Borough of Tuckerton","LOCAL","GOVERNMENT",1,1,15015,{"$nulls":5},true]
[null,"Borough of Westwood","STATE","GOVERNMENT",2,1,10534,{"$nulls":5},true]
[null,"Borough of Wildwood","LOCAL","GOVERNMENT",1,1,15017,{"$nulls":5},true]
[null,"Bosarge Boats, Inc.","LOCAL","INDUSTRY AND BUSINESS",1,3,6511,{"$nulls":5},true]
[null,"Boston College (BC)","Unknown","Unknown",0,0,3511,{"$nulls":5},true]
[null,"Boston Green Academy High School","LOCAL","ACADEMIC INSTITUTION",1,4,8361,{"$nulls":5},true]
[null,"Boston Harbor Island Alliance","LOCAL","NGO",1,2,6413,{"$nulls":5},true]
[null,"Boston Harbor Islands (US DOI, NPS)","FEDERAL or NATIONAL","GOVERNMENT",4,1,6400,{"$nulls":5},true]
[null,"Boston Harbor Islands Coalition","LOCAL","NGO",1,2,6412,{"$nulls":5},true]
[null,"Boston University","Unknown","Unknown",0,0,14703,{"$nulls":5},true]
[null,"Boston University (BU)","STATE","ACADEMIC INSTITUTION",2,4,3512,{"$nulls":5},true]
[null,"Boston University Center for Conservation Biology and Ecology","LOCAL","ACADEMIC INSTITUTION",1,4,7662,{"$nulls":5},true]
[null,"Boston University Center or Information and Systems Engineering","LOCAL","ACADEMIC INSTITUTION",1,4,7663,{"$nulls":5},true]
[null,"Botanical Designs with Barbara","LOCAL","INDUSTRY AND BUSINESS",1,3,8787,{"$nulls":5},true]
[null,"Botany Bay volunteers","LOCAL","NGO",1,2,13349,{"$nulls":5},true]
[null,"Bouctouche Bay Industries","INTERNATIONAL","INDUSTRY AND BUSINESS",5,3,16191,{"$nulls":5},true]
[null,"Bourbonnais Police Department","LOCAL","GOVERNMENT",1,1,10899,{"$nulls":5},true]
[null,"Bowdoin College","STATE","ACADEMIC INSTITUTION",2,4,6896,{"$nulls":5},true]
[null,"Bowers Seafood Processing Plan","LOCAL","INDUSTRY AND BUSINESS",1,3,12206,{"$nulls":5},true]
[null,"Bowers Shrimp Company","LOCAL","INDUSTRY AND BUSINESS",1,3,13020,{"$nulls":5},true]
[null,"Bowie State University","STATE","ACADEMIC INSTITUTION",2,4,17493,{"$nulls":5},true]
[null,"Bowling Green State University","STATE","ACADEMIC INSTITUTION",2,4,10053,{"$nulls":5},true]
[null,"Bowling Green State University (BGSU)","STATE","ACADEMIC INSTITUTION",2,4,313,{"$nulls":5},true]
[null,"BowUS DOIn College Coastal Studies Center,,,,,","STATE","ACADEMIC INSTITUTION",2,4,312,{"$nulls":5},true]
[null,"Boy Scout Troop 95","LOCAL","OTHER PARTNERS",1,6,7673,{"$nulls":5},true]
[null,"Boy Scouts of America","Unknown","Unknown",0,0,9992,{"$nulls":5},true]
[null,"Boy Scouts of America (BSA)","FEDERAL or NATIONAL","NGO",4,2,314,{"$nulls":5},true]
[null,"Boyer Towing Co.","REGIONAL","INDUSTRY AND BUSINESS",3,3,7448,{"$nulls":5},true]
[null,"Boynton & Boynton","LOCAL","INDUSTRY AND BUSINESS",1,3,7854,{"$nulls":5},true]
[null,"Boys and Girls Club of Bainbridge Island","LOCAL","NGO",1,2,8396,{"$nulls":5},true]
[null,"Boys and Girls Club of SW Oregon","LOCAL","NGO",1,2,14228,{"$nulls":5},true]
[null,"Boys and Girls Club of Vineland","LOCAL","NGO",1,2,14912,{"$nulls":5},true]
[null,"BP Amoco","INTERNATIONAL","INDUSTRY AND BUSINESS",5,3,13756,{"$nulls":5},true]
[null,"BP Cooper River Plant","FEDERAL or NATIONAL","INDUSTRY AND BUSINESS",4,3,315,{"$nulls":5},true]
[null,"BP Gulf of Mexico Research Initiative (BP GRI)","INTERNATIONAL","INDUSTRY AND BUSINESS",5,3,6370,{"$nulls":5},true]
[null,"Bradford Bay Farms / Mid-Atlantic AquaTech, LLC","REGIONAL","INDUSTRY AND BUSINESS",3,3,16999,{"$nulls":5},true]
[null,"Bradley Beach Environmental Commission","LOCAL","GOVERNMENT",1,1,4828,{"$nulls":5},true]
[null,"Bradner Consulting Group, Inc.","LOCAL","INDUSTRY AND BUSINESS",1,3,8284,{"$nulls":5},true]
[null,"Brady's Oyster Co.","LOCAL","INDUSTRY AND BUSINESS",1,3,13158,{"$nulls":5},true]
[null,"Brainerd Area Chamber of Commerce","LOCAL","INDUSTRY AND BUSINESS",1,3,316,{"$nulls":5},true]
[null,"Braise Milwaukee","LOCAL","INDUSTRY AND BUSINESS",1,3,11475,{"$nulls":5},true]
[null,"Brandeis University, Waltham, Massachusetts","STATE","ACADEMIC INSTITUTION",2,4,3513,{"$nulls":5},true]
[null,"Brandywine Valley Association","LOCAL","OTHER PARTNERS",1,6,7883,{"$nulls":5},true]
[null,"Brandywine Valley Association","REGIONAL","NGO",3,2,6375,{"$nulls":5},true]
[null,"Brantley County","LOCAL","GOVERNMENT",1,1,317,{"$nulls":5},true]
[null,"Bravo Medical Magnet High School","LOCAL","ACADEMIC INSTITUTION",1,4,17087,{"$nulls":5},true]
[null,"Brazilian Ministry of Fisheries and Aquaculture","INTERNATIONAL","GOVERNMENT",5,1,16476,{"$nulls":5},true]
[null,"Brazilian Ministry of the Environment","INTERNATIONAL","GOVERNMENT",5,1,16478,{"$nulls":5},true]
[null,"Brazoria County 4-H Adult Leader and Parents Association","LOCAL","NGO",1,2,12207,{"$nulls":5},true]
[null,"Brazoria County Commissioner's Court","LOCAL","GOVERNMENT",1,1,12208,{"$nulls":5},true]
[null,"Brazoria County Emergency Management","LOCAL","GOVERNMENT",1,1,12209,{"$nulls":5},true]
[null,"Brazoria County Historical Museum","LOCAL","GOVERNMENT",1,1,12210,{"$nulls":5},true]
[null,"Brazoria County Library System","LOCAL","GOVERNMENT",1,1,12211,{"$nulls":5},true]
[null,"Brazoria County Master Gardener Association","STATE","ACADEMIC INSTITUTION",2,4,15376,{"$nulls":5},true]
[null,"Brazoria County Parks Department","LOCAL","GOVERNMENT",1,1,12212,{"$nulls":5},true]
[null,"Brazoria County, TX","LOCAL","GOVERNMENT",1,1,13843,{"$nulls":5},true]
[null,"Brazoria National Wildlife Refuge","FEDERAL or NATIONAL","GOVERNMENT",4,1,12213,{"$nulls":5},true]
[null,"Brazos Christian School, Bryan, TX","LOCAL","ACADEMIC INSTITUTION",1,4,12214,{"$nulls":5},true]
[null,"Brazos Valley Children's Museum","LOCAL","NGO",1,2,12215,{"$nulls":5},true]
[null,"Brazos Valley Council of Governments","LOCAL","NGO",1,2,15396,{"$nulls":5},{"$f":"AND(  NOT(ISERROR(FIND(UPPER($B$7),UPPER($B1294),1))),  OR($D$7=\"\",NOT(ISERROR(FIND(UPPER($D$7),UPPER($B1294),1)))),    OR($D$8=\"\",(ISERROR(FIND(UPPER($D$8),UPPER($B1294),1))))           )","v":true}]
[null,"Brazos Valley Museum of Natural History","LOCAL","GOVERNMENT",1,1,12216,{"$nulls":5},true]
[null,"Brazosport College","LOCAL","ACADEMIC INSTITUTION",1,4,15867,{"$nulls":5},true]
[null,"Brazosport Community College","LOCAL","ACADEMIC INSTITUTION",1,4,12217,{"$nulls":5},true]
[null,"Breakaway Adventures","Unknown","INDUSTRY AND BUSINESS",0,3,17208,{"$nulls":5},true]
[null,"BRECs Baton Rouge Zoo","LOCAL","OTHER PARTNERS",1,6,17607,{"$nulls":5},true]
[null,"BRECs Bluebonnet Swamp Nature Center","LOCAL","OTHER PARTNERS",1,6,17614,{"$nulls":5},true]
[null,"BRECs Conservation Department","LOCAL","OTHER PARTNERS",1,6,17608,{"$nulls":5},true]
[null,"Bremen Police Department","LOCAL","GOVERNMENT",1,1,8614,{"$nulls":5},true]
[null,"Bremerton Marina","LOCAL","INDUSTRY AND BUSINESS",1,3,4311,{"$nulls":5},true]
[null,"Bremerton Parks and Recreation, City of Bremerton","LOCAL","GOVERNMENT",1,1,8397,{"$nulls":5},true]
[null,"Brenner Marine, Toledo","FEDERAL or NATIONAL","INDUSTRY AND BUSINESS",4,3,319,{"$nulls":5},true]
[null,"Brenner Oyster Company","REGIONAL","INDUSTRY AND BUSINESS",3,3,320,{"$nulls":5},true]
[null,"Brevard County","LOCAL","GOVERNMENT",1,1,12935,{"$nulls":5},true]
[null,"Brevard Zoo","LOCAL","NGO",1,2,12936,{"$nulls":5},true]
[null,"Brewer's Cove Haven Marina","LOCAL","INDUSTRY AND BUSINESS",1,3,14580,{"$nulls":5},true]
[null,"Brewer's Greenwich Bay Marina","LOCAL","INDUSTRY AND BUSINESS",1,3,14581,{"$nulls":5},true]
[null,"Brick Municipal Utilities Authority","LOCAL","GOVERNMENT",1,1,7870,{"$nulls":5},true]
[null,"Bridge Marinas","LOCAL","INDUSTRY AND BUSINESS",1,3,17356,{"$nulls":5},true]
[null,"Bridgeport and Port Jefferson Steamboat Co.","FEDERAL or NATIONAL","INDUSTRY AND BUSINESS",4,3,321,{"$nulls":5},true]
[null,"Bridgeport Regional Vocational Aquaculture School","FEDERAL or NATIONAL","ACADEMIC INSTITUTION",4,4,322,{"$nulls":5},true]
[null,"Bridgeton Public Schools","LOCAL","ACADEMIC INSTITUTION",1,4,7536,{"$nulls":5},true]
[null,"Bridgewater Plaza Marina","LOCAL","INDUSTRY AND BUSINESS",1,3,7203,{"$nulls":5},true]
[null,"Brielle Township Environmental Commission","LOCAL","GOVERNMENT",1,1,7543,{"$nulls":5},true]
[null,"Brigantine Township","LOCAL","GOVERNMENT",1,1,15019,{"$nulls":5},true]
[null,"Brigham and Women's Hospital","FEDERAL or NATIONAL","ACADEMIC INSTITUTION",4,4,323,{"$nulls":5},true]
[null,"Brightwater Seafood Company","STATE","INDUSTRY AND BUSINESS",2,3,3901,{"$nulls":5},true]
[null,"Brimm Medical Arts High School","LOCAL","ACADEMIC INSTITUTION",1,4,9052,{"$nulls":5},true]
[null,"Bristol Bay Borough","STATE","GOVERNMENT",2,1,5385,{"$nulls":5},true]
[null,"Bristol Bay Economic Development Corporation","LOCAL","INDUSTRY AND BUSINESS",1,3,324,{"$nulls":5},true]
[null,"Bristol Bay Marine Mammal Council","REGIONAL","NGO",3,2,8044,{"$nulls":5},true]
[null,"Bristol Bay Native Association","LOCAL","NGO",1,2,325,{"$nulls":5},true]
[null,"Bristol Bay Regional Seafood Development Association","LOCAL","OTHER PARTNERS",1,6,5421,{"$nulls":5},true]
[null,"Bristol Bay Science and Research Institute","LOCAL","NGO",1,2,326,{"$nulls":5},true]
[null,"Bristol Community College","STATE","ACADEMIC INSTITUTION",2,4,6811,{"$nulls":5},true]
[null,"Bristol Harbor Commission","LOCAL","GOVERNMENT",1,1,13016,{"$nulls":5},true]
[null,"Bristol High School","LOCAL","ACADEMIC INSTITUTION",1,4,6812,{"$nulls":5},true]
[null,"British Columbia Association of Salmon Farmers, Canada","INTERNATIONAL","INDUSTRY AND BUSINESS",5,3,327,{"$nulls":5},true]
[null,"British Columbia Centre for Disease Control, Canada","INTERNATIONAL","GOVERNMENT",5,1,328,{"$nulls":5},true]
[null,"British Columbia Cetacean Sightings Network, Vancouver Aquarium","INTERNATIONAL","NGO",5,2,7424,{"$nulls":5},true]
[null,"British Columbia Ministry of Environment, Canada","INTERNATIONAL","GOVERNMENT",5,1,4134,{"$nulls":5},true]
[null,"British Columbia Ministry of Fisheries, Canada","INTERNATIONAL","GOVERNMENT",5,1,329,{"$nulls":5},true]
[null,"British Columbia Shellfish Growers Association, Canada","INTERNATIONAL","INDUSTRY AND BUSINESS",5,3,330,{"$nulls":5},true]
[null,"British Oceanographic Data Centre","INTERNATIONAL","GOVERNMENT",5,1,11415,{"$nulls":5},true]
[null,"British Petroleum (BP)","INTERNATIONAL","INDUSTRY AND BUSINESS",5,3,5025,{"$nulls":5},true]
[null,"British School of Boston","LOCAL","ACADEMIC INSTITUTION",1,4,7627,{"$nulls":5},true]
[null,"Broader Impacts, LLC","Unknown","Unknown",0,0,10067,{"$nulls":5},true]
[null,"Broadkill Tributary Action Team","LOCAL","OTHER PARTNERS",1,6,5703,{"$nulls":5},true]
[null,"Broadwater Seafood","LOCAL","INDUSTRY AND BUSINESS",1,3,17357,{"$nulls":5},true]
[null,"Brockman Apprentice Foundation","REGIONAL","INDUSTRY AND BUSINESS",3,3,14006,{"$nulls":5},true]
[null,"Bronx River Watershed Initiative","STATE","GOVERNMENT",2,1,10624,{"$nulls":5},true]
[null,"Brook Street Family Literacy Center","LOCAL","ACADEMIC INSTITUTION",1,4,5253,{"$nulls":5},true]
[null,"Brookdale Community College","STATE","ACADEMIC INSTITUTION",2,4,4871,{"$nulls":5},true]
[null,"Brookfield Zoo","LOCAL","INDUSTRY AND BUSINESS",1,3,5911,{"$nulls":5},true]
[null,"Brookhaven National Laboratory","FEDERAL or NATIONAL","GOVERNMENT",4,1,331,{"$nulls":5},true]
[null,"Brookhaven Science Associates","FEDERAL or NATIONAL","INDUSTRY AND BUSINESS",4,3,332,{"$nulls":5},true]
[null,"Brookings Fishery Committee","FEDERAL or NATIONAL","NGO",4,2,333,{"$nulls":5},true]
[null,"Brookings-Harbor School District","LOCAL","ACADEMIC INSTITUTION",1,4,14234,{"$nulls":5},true]
[null,"Brookline High School","LOCAL","ACADEMIC INSTITUTION",1,4,7628,{"$nulls":5},true]
[null,"Brooklyn Bridge Park Conservancy","LOCAL","NGO",1,2,13231,{"$nulls":5},true]
[null,"Brooklyn College","LOCAL","ACADEMIC INSTITUTION",1,4,7812,{"$nulls":5},true]
[null,"Brooklyn Marine STEM Education Alliance","LOCAL","OTHER PARTNERS",1,6,16395,{"$nulls":5},true]
[null,"Broward County","LOCAL","GOVERNMENT",1,1,12993,{"$nulls":5},true]
[null,"Brown and Caldwell","INTERNATIONAL","INDUSTRY AND BUSINESS",5,3,6740,{"$nulls":5},true]
[null,"Brown County Land and Water Conservation Department","LOCAL","GOVERNMENT",1,1,3688,{"$nulls":5},{"$f":"AND(  NOT(ISERROR(FIND(UPPER($B$7),UPPER($B1358),1))),  OR($D$7=\"\",NOT(ISERROR(FIND(UPPER($D$7),UPPER($B1358),1)))),    OR($D$8=\"\",(ISERROR(FIND(UPPER($D$8),UPPER($B1358),1))))           )","v":true}]
[null,"Brown County Port Authority","REGIONAL","GOVERNMENT",3,1,10084,{"$nulls":5},true]
[null,"Brown County Sheriff's Office","LOCAL","GOVERNMENT",1,1,10892,{"$nulls":5},true]
[null,"Brown County Solid Waste Management District","LOCAL","GOVERNMENT",1,1,10891,{"$nulls":5},true]
[null,"Brown County, Wis.","LOCAL","GOVERNMENT",1,1,3689,{"$nulls":5},true]
[null,"Brown University (BROWN)","STATE","ACADEMIC INSTITUTION",2,4,334,{"$nulls":5},true]
[null,"Brownstown Township, MI","LOCAL","GOVERNMENT",1,1,7905,{"$nulls":5},true]
[null,"Brownsville Public Utilities District","LOCAL","GOVERNMENT",1,1,12218,{"$nulls":5},true]
[null,"Brownsville/Port Isabel Shrimpers Association","LOCAL","INDUSTRY AND BUSINESS",1,3,6055,{"$nulls":5},true]
[null,"Bruce Koike (artist)","Unknown","OTHER PARTNERS",0,6,16466,{"$nulls":5},true]
[null,"Brunswick Catch","LOCAL","Unknown",1,0,3981,{"$nulls":5},true]
[null,"Brunswick County Chamber of Commerce","LOCAL","GOVERNMENT",1,1,4985,{"$nulls":5},true]
[null,"Brunswick County Planning and Community","LOCAL","GOVERNMENT",1,1,7022,{"$nulls":5},true]
[null,"Brunswick County, N.C.","STATE","Unknown",2,0,3982,{"$nulls":5},true]
[null,"Brunswick Library","LOCAL","OTHER PARTNERS",1,6,8683,{"$nulls":5},true]
[null,"Brunswick-Glynn County Development Authority","LOCAL","NGO",1,2,10318,{"$nulls":5},true]
[null,"Brunswick-Glynn County Joint Water and Sewer Commission","LOCAL","NGO",1,2,10317,{"$nulls":5},true]
[null,"Brunswick-Glynn County Library","LOCAL","NGO",1,2,10351,{"$nulls":5},true]
[null,"Brusco Tug and Barge","REGIONAL","INDUSTRY AND BUSINESS",3,3,7449,{"$nulls":5},true]
[null,"Bryan County","LOCAL","GOVERNMENT",1,1,335,{"$nulls":5},true]
[null,"Bryan Independent School District, TX","LOCAL","ACADEMIC INSTITUTION",1,4,6167,{"$nulls":5},true]
[null,"Bryn Athyn College","STATE","ACADEMIC INSTITUTION",2,4,336,{"$nulls":5},true]
[null,"Bryn Mawr College","STATE","ACADEMIC INSTITUTION",2,4,9262,{"$nulls":5},true]
[null,"Bucci Landscaping","LOCAL","INDUSTRY AND BUSINESS",1,3,13152,{"$nulls":5},true]
[null,"Buckhead Beef","Unknown","INDUSTRY AND BUSINESS",0,3,6948,{"$nulls":5},true]
[null,"Buckley's","LOCAL","INDUSTRY AND BUSINESS",1,3,14818,{"$nulls":5},true]
[null,"Bucknell University","STATE","ACADEMIC INSTITUTION",2,4,16641,{"$nulls":5},true]
[null,"Budeheim","INTERNATIONAL","INDUSTRY AND BUSINESS",5,3,8207,{"$nulls":5},true]
[null,"Budget Formulation and Analisys Division (US DOC, NOAA, OAR)","FEDERAL or NATIONAL","GOVERNMENT",4,1,5585,{"$nulls":5},true]
[null,"BUENA VISTA AUDUBON SOCIETY","LOCAL","NGO",1,2,9579,{"$nulls":5},true]
[null,"Buffalo Audubon’s Beaver Meadow Nature Center","STATE","NGO",2,2,14879,{"$nulls":5},true]
[null,"Buffalo Bayou Partnership-Houston","LOCAL","NGO",1,2,12219,{"$nulls":5},true]
[null,"Buffalo District (DoD, Army, USACE)","FEDERAL or NATIONAL","GOVERNMENT",4,1,337,{"$nulls":5},true]
[null,"Buffalo Museum of Science","LOCAL","NGO",1,2,7827,{"$nulls":5},true]
[null,"Buffalo Museum of Science (NY)","LOCAL","INDUSTRY AND BUSINESS",1,3,15560,{"$nulls":5},true]
[null,"Buffalo Niagara Riverkeepers","REGIONAL","NGO",3,2,5797,{"$nulls":5},true]
[null,"Buffalo State College","Unknown","Unknown",0,0,3514,{"$nulls":5},true]
[null,"Buffalo Urban Outdoor Education Foundation","LOCAL","NGO",1,2,7828,{"$nulls":5},true]
[null,"Buffalo Zoo","LOCAL","INDUSTRY AND BUSINESS",1,3,15558,{"$nulls":5},true]
[null,"Bugwood.org","STATE","ACADEMIC INSTITUTION",2,4,14812,{"$nulls":5},true]
[null,"Building Industry Association","FEDERAL or NATIONAL","INDUSTRY AND BUSINESS",4,3,338,{"$nulls":5},true]
[null,"Bulan's Boatyard","LOCAL","INDUSTRY AND BUSINESS",1,3,339,{"$nulls":5},true]
[null,"Bull’s Bay Seafood","FEDERAL or NATIONAL","INDUSTRY AND BUSINESS",4,3,340,{"$nulls":5},true]
[null,"Bulls Bay Chamber of Commerce","LOCAL","GOVERNMENT",1,1,16667,{"$nulls":5},true]
[null,"Bumble Bee Seafood","INTERNATIONAL","INDUSTRY AND BUSINESS",5,3,16954,{"$nulls":5},true]
[null,"Bumble Bee Seafoods","INTERNATIONAL","INDUSTRY AND BUSINESS",5,3,14291,{"$nulls":5},true]
[null,"Bumble Fish Sushi","INTERNATIONAL","INDUSTRY AND BUSINESS",5,3,8181,{"$nulls":5},true]
[null,"Bumblebee Foods LLC","INTERNATIONAL","INDUSTRY AND BUSINESS",5,3,341,{"$nulls":5},true]
[null,"Bunnelle Foundation","LOCAL","NGO",1,2,8824,{"$nulls":5},true]
[null,"Burbank Trawls and Sportnets","LOCAL","INDUSTRY AND BUSINESS",1,3,10333,{"$nulls":5},true]
[null,"Bureau of Indian Affairs (US DOI, BIA)","FEDERAL or NATIONAL","GOVERNMENT",4,1,342,{"$nulls":5},true]
[null,"Bureau of Land Management (US DOI, BLM)","FEDERAL or NATIONAL","GOVERNMENT",4,1,343,{"$nulls":5},true]
[null,"Bureau of Land Management, Yaquina Head Outstanding Natural Area (BLM)","FEDERAL or NATIONAL","GOVERNMENT",4,1,7847,{"$nulls":5},true]
[null,"Bureau of Ocean Energy Management","FEDERAL or NATIONAL","GOVERNMENT",4,1,10217,{"$nulls":5},true]
[null,"Bureau of Policy, Planning, and Learning (STATE, USAID, OST, PPL)","FEDERAL or NATIONAL","GOVERNMENT",4,1,5867,{"$nulls":5},true]
[null,"Bureau of Reclaimation, Central Valley, CA","STATE","GOVERNMENT",2,1,8104,{"$nulls":5},true]
[null,"Bureau of Safety and Environmental Enforcement (US DOI, BSEE)","FEDERAL or NATIONAL","GOVERNMENT",4,1,9297,{"$nulls":5},true]
[null,"Burgess and Niple","REGIONAL","INDUSTRY AND BUSINESS",3,3,13645,{"$nulls":5},true]
[null,"Burlington Board of Health","LOCAL","GOVERNMENT",1,1,5254,{"$nulls":5},true]
[null,"Burlington City Department of Public Works","LOCAL","GOVERNMENT",1,1,5255,{"$nulls":5},true]
[null,"Burlington Community Sailing Center","LOCAL","NGO",1,2,5256,{"$nulls":5},true]
[null,"Burlington County College","STATE","ACADEMIC INSTITUTION",2,4,4872,{"$nulls":5},true]
[null,"Burlington Department of Parks and Recreation","LOCAL","GOVERNMENT",1,1,5257,{"$nulls":5},true]
[null,"Burnell Trawlers","LOCAL","INDUSTRY AND BUSINESS",1,3,6080,{"$nulls":5},true]
[null,"Burnstein Shur Attorneys","LOCAL","INDUSTRY AND BUSINESS",1,3,5250,{"$nulls":5},{"$f":"AND(  NOT(ISERROR(FIND(UPPER($B$7),UPPER($B1422),1))),  OR($D$7=\"\",NOT(ISERROR(FIND(UPPER($D$7),UPPER($B1422),1)))),    OR($D$8=\"\",(ISERROR(FIND(UPPER($D$8),UPPER($B1422),1))))           )","v":true}]
[null,"Burton 4-H","LOCAL","GOVERNMENT",1,1,8705,{"$nulls":5},true]
[null,"Bushkill Stream Conservancy","LOCAL","NGO",1,2,9263,{"$nulls":5},true]
[null,"Bushkill Township","LOCAL","GOVERNMENT",1,1,15880,{"$nulls":5},true]
[null,"Business Alliance for a Sound Economy","Unknown","INDUSTRY AND BUSINESS",0,3,7023,{"$nulls":5},true]
[null,"Business Oregon","STATE","GOVERNMENT",2,1,10475,{"$nulls":5},true]
[null,"Butch's Bulldozing","LOCAL","INDUSTRY AND BUSINESS",1,3,345,{"$nulls":5},true]
[null,"Butler University","STATE","ACADEMIC INSTITUTION",2,4,6933,{"$nulls":5},true]
[null,"Buzzards Bay Coalition","LOCAL","NGO",1,2,6414,{"$nulls":5},true]
[null,"Buzzards Bay Estuary Program","LOCAL","GOVERNMENT",1,1,10841,{"$nulls":5},true]
[null,"Byram Township","LOCAL","GOVERNMENT",1,1,7702,{"$nulls":5},true]
[null,"C. E. Lindsay Oyster Farm","STATE","INDUSTRY AND BUSINESS",2,3,346,{"$nulls":5},true]
[null,"c.dots Development","FEDERAL or NATIONAL","INDUSTRY AND BUSINESS",4,3,12572,{"$nulls":5},true]
[null,"C.H. Fenstermaker Inc.","Unknown","Unknown",0,0,9698,{"$nulls":5},true]
[null,"CA Dept. of Fish and Wildlife","Unknown","Unknown",0,0,15226,{"$nulls":5},true]
[null,"CA Dept. of Toxicology","STATE","GOVERNMENT",2,1,10723,{"$nulls":5},true]
[null,"CA Resources Legacy Fund Foundation","REGIONAL","NGO",3,2,10699,{"$nulls":5},true]
[null,"CA Sea Grant Extension","Unknown","Unknown",0,0,11100,{"$nulls":5},true]
[null,"Cabela's Master Walleye Circuit","REGIONAL","INDUSTRY AND BUSINESS",3,3,6274,{"$nulls":5},true]
[null,"Cabela's Masters Walleye Circuit","REGIONAL","INDUSTRY AND BUSINESS",3,3,7618,{"$nulls":5},true]
[null,"Cabin Life Magazine","REGIONAL","INDUSTRY AND BUSINESS",3,3,6258,{"$nulls":5},true]
[null,"Caborrojeños Pro-Salud y Ambiente, Inc","LOCAL","NGO",1,2,14013,{"$nulls":5},true]
[null,"Cabrillo Marine Aquarium","LOCAL","OTHER PARTNERS",1,6,348,{"$nulls":5},true]
[null,"Cacapon Institute Potomac Highlands Watershed School","LOCAL","ACADEMIC INSTITUTION",1,4,14596,{"$nulls":5},true]
[null,"Cachuma Lake Marina (CM)","STATE","GOVERNMENT",2,1,3337,{"$nulls":5},true]
[null,"Cachuma Lake Recreation Area, County of Santa Barbara","LOCAL","GOVERNMENT",1,1,16411,{"$nulls":5},true]
[null,"Caernarvon Interagency Advisory Committee","Unknown","Unknown",0,0,9699,{"$nulls":5},true]
[null,"Café Lachine, Manteo, NC","LOCAL","INDUSTRY AND BUSINESS",1,3,14488,{"$nulls":5},true]
[null,"Cafiescencia","LOCAL","NGO",1,2,15584,{"$nulls":5},true]
[null,"Caito Fisheries (CF)","REGIONAL","NGO",3,2,3338,{"$nulls":5},true]
[null,"Cajun Shrimp","Unknown","INDUSTRY AND BUSINESS",0,3,6942,{"$nulls":5},true]
[null,"Cal Bio Marine","Unknown","Unknown",0,0,3515,{"$nulls":5},true]
[null,"Cal Coast","STATE","NGO",2,2,10014,{"$nulls":5},true]
[null,"Calapooia Watershed Council","REGIONAL","GOVERNMENT",3,1,5875,{"$nulls":5},true]
[null,"Calcasieu Parish Planning Department","LOCAL","GOVERNMENT",1,1,349,{"$nulls":5},true]
[null,"Calcasieu Parish School Board","LOCAL","ACADEMIC INSTITUTION",1,4,350,{"$nulls":5},true]
[null,"Calcasieu Parish Sheriff's Office","Unknown","Unknown",0,0,9700,{"$nulls":5},true]
[null,"Calcasieu Parish, LA","LOCAL","Unknown",1,0,4554,{"$nulls":5},true]
[null,"Calendar Islands Lobster Company","LOCAL","INDUSTRY AND BUSINESS",1,3,5252,{"$nulls":5},true]
[null,"CalFed Bay-Delta Authority","REGIONAL","INDUSTRY AND BUSINESS",3,3,351,{"$nulls":5},true]
[null,"Calhoun County Independent School District , TX","LOCAL","ACADEMIC INSTITUTION",1,4,6069,{"$nulls":5},true]
[null,"Calhoun County Library System","LOCAL","GOVERNMENT",1,1,14145,{"$nulls":5},true]
[null,"Calhoun County Museum","LOCAL","GOVERNMENT",1,1,6095,{"$nulls":5},true]
[null,"Calhoun County Recycling","LOCAL","GOVERNMENT",1,1,6168,{"$nulls":5},true]
[null,"Calhoun County, TX","LOCAL","GOVERNMENT",1,1,6060,{"$nulls":5},true]
[null,"California Abalone Association (CAA)","REGIONAL","NGO",3,2,3339,{"$nulls":5},true]
[null,"California Academy of Sciences","STATE","ACADEMIC INSTITUTION",2,4,6877,{"$nulls":5},true]
[null,"California Academy of Sciences Steinhart Aquarium","LOCAL","INDUSTRY AND BUSINESS",1,3,10097,{"$nulls":5},true]
[null,"California and Nevada Applications Program (CNAP)","INTERNATIONAL","INDUSTRY AND BUSINESS",5,3,3312,{"$nulls":5},true]
[null,"California Aquaculture Association","STATE","NGO",2,2,352,{"$nulls":5},true]
[null,"California Artificial Reef Enhancement Program","REGIONAL","NGO",3,2,17301,{"$nulls":5},true]
[null,"California Association of Harbor Masters and Port Captains","STATE","INDUSTRY AND BUSINESS",2,3,353,{"$nulls":5},true]
[null,"California Association of Port Authorities","STATE","INDUSTRY AND BUSINESS",2,3,354,{"$nulls":5},true]
[null,"California Association of Resource Conservation Districts","STATE","GOVERNMENT",2,1,6788,{"$nulls":5},true]
[null,"California Coastal Acidification Network","STATE","OTHER PARTNERS",2,6,10747,{"$nulls":5},true]
[null,"California Coastal Coalition","STATE","NGO",2,2,355,{"$nulls":5},true]
[null,"California Coastal Commission (CA RESOURCES, CCC)","STATE","GOVERNMENT",2,1,356,{"$nulls":5},true]
[null,"California Coastal Conservancy","STATE","NGO",2,2,357,{"$nulls":5},true]
[null,"California Coastal Invasive Species Center (AIS)","STATE","GOVERNMENT",2,1,358,{"$nulls":5},true]
[null,"California Collaborative Fisheries Research Organization (CFR)","REGIONAL","NGO",3,2,3313,{"$nulls":5},true]
[null,"California Cooperative Oceanic Fisheries Investigation (CalCOFI)","STATE","NGO",2,2,359,{"$nulls":5},true]
[null,"California Council on Science and Technology","STATE","GOVERNMENT",2,1,17586,{"$nulls":5},true]
[null,"California Current Acidification Network (C-CAN)","REGIONAL","ACADEMIC INSTITUTION",3,4,10098,{"$nulls":5},true]
[null,"California Department of Boating and Waterways (CA RESOURCES, CA DBW)","STATE","GOVERNMENT",2,1,360,{"$nulls":5},true]
[null,"California Department of Conservation (CA RESOURCES, CA CONSERVATION)","STATE","GOVERNMENT",2,1,361,{"$nulls":5},{"$f":"AND(  NOT(ISERROR(FIND(UPPER($B$7),UPPER($B1486),1))),  OR($D$7=\"\",NOT(ISERROR(FIND(UPPER($D$7),UPPER($B1486),1)))),    OR($D$8=\"\",(ISERROR(FIND(UPPER($D$8),UPPER($B1486),1))))           )","v":true}]
[null,"California Department of Education (CA ED)","STATE","GOVERNMENT",2,1,362,{"$nulls":5},true]
[null,"California Department of Energy (CA DOE)","STATE","GOVERNMENT",2,1,363,{"$nulls":5},true]
[null,"California Department of Fish and Game (CA RESOURCES, CA DFG)","STATE","GOVERNMENT",2,1,364,{"$nulls":5},true]
[null,"California Department of Fish and Wildlife","STATE","GOVERNMENT",2,1,14215,{"$nulls":5},true]
[null,"California Department of Fish and Wildlife (CA RESOURCES, CA DFG)","STATE","GOVERNMENT",2,1,8299,{"$nulls":5},true]
[null,"California Department of Food and Agriculture (CA CDFA)","STATE","GOVERNMENT",2,1,365,{"$nulls":5},true]
[null,"California Department of Health Services (CA CDHS)","STATE","GOVERNMENT",2,1,366,{"$nulls":5},true]
[null,"California Department of Health Services, Food and Drug Branch (CA CDHS)","STATE","GOVERNMENT",2,1,367,{"$nulls":5},true]
[null,"California Department of Industrial Relations, Division of Apprenticeship Standards","STATE","GOVERNMENT",2,1,16423,{"$nulls":5},true]
[null,"California Department of Parks and Recreation (CA RESOURCES, CA DPR)","STATE","GOVERNMENT",2,1,368,{"$nulls":5},true]
[null,"California Department of Pesticide Regulation (CA CDPR)","STATE","GOVERNMENT",2,1,369,{"$nulls":5},true]
[null,"California Department of Public Health (CDPH)","STATE","NGO",2,2,3314,{"$nulls":5},true]
[null,"California Department of Resources Recycling and Recovery (CalRecycle)","STATE","GOVERNMENT",2,1,8398,{"$nulls":5},true]
[null,"California Department of Transportation (CDT)","REGIONAL","NGO",3,2,3315,{"$nulls":5},true]
[null,"California Department of Water Resources (CA RESOURCES, CA DWR)","STATE","GOVERNMENT",2,1,370,{"$nulls":5},true]
[null,"California Departmentt of Fish and Game, Iron Gate Hatchery","REGIONAL","GOVERNMENT",3,1,6338,{"$nulls":5},true]
[null,"California Energy Commission Public Interest Research Program (PIER)","REGIONAL","NGO",3,2,3316,{"$nulls":5},true]
[null,"California Environmental Protection Agency (CA CalEPA)","STATE","GOVERNMENT",2,1,371,{"$nulls":5},true]
[null,"California Environmental Quality Initiative","STATE","NGO",2,2,3470,{"$nulls":5},true]
[null,"California Fish and Game Commission (CA FGC)","STATE","NGO",2,2,3317,{"$nulls":5},true]
[null,"California Fisheries and Seafood Institute","STATE","NGO",2,2,372,{"$nulls":5},true]
[null,"California Fisheries Coalition","STATE","INDUSTRY AND BUSINESS",2,3,7956,{"$nulls":5},true]
[null,"California Governor’s Office of Planning and Research","STATE","GOVERNMENT",2,1,13392,{"$nulls":5},true]
[null,"California High School","LOCAL","SEA GRANT PROGRAMS",1,5,4555,{"$nulls":5},true]
[null,"California Institute Of Technology (Cal TECH)","STATE","ACADEMIC INSTITUTION",2,4,3516,{"$nulls":5},true]
[null,"California King Tides Project","REGIONAL","OTHER PARTNERS",3,6,13628,{"$nulls":5},true]
[null,"California Lobster & Trap Fishermen’s Association (CLTFA)","STATE","NGO",2,2,3340,{"$nulls":5},true]
[null,"California Longline Association","STATE","NGO",2,2,7987,{"$nulls":5},true]
[null,"California Natural Resources Agency","STATE","GOVERNMENT",2,1,4506,{"$nulls":5},true]
[null,"California Naturalists","STATE","NGO",2,2,17489,{"$nulls":5},true]
[null,"California Nevada Applications Program (CNAP) at the Scripps Institution","REGIONAL","OTHER PARTNERS",3,6,8844,{"$nulls":5},true]
[null,"California Ocean Protection Council (COPC)","STATE","NGO",2,2,3318,{"$nulls":5},true]
[null,"California Ocean Resources Enhancement & Hatchery Program","STATE","GOVERNMENT",2,1,3471,{"$nulls":5},true]
[null,"California Ocean Science Trust","STATE","GOVERNMENT",2,1,373,{"$nulls":5},true]
[null,"California Office of Oil Spill Prevention and Response (CA RESOURCES)","STATE","GOVERNMENT",2,1,374,{"$nulls":5},true]
[null,"California Office of the Governor","STATE","GOVERNMENT",2,1,4507,{"$nulls":5},true]
[null,"California Polytechnic State University","Unknown","Unknown",0,0,14110,{"$nulls":5},true]
[null,"California Polytechnic State University, San Luis Obispo (Cal Poly)","STATE","ACADEMIC INSTITUTION",2,4,375,{"$nulls":5},true]
[null,"California Polytechnic State University, Swanton Pacific Ranch (Cal Poly)","STATE","ACADEMIC INSTITUTION",2,4,3472,{"$nulls":5},true]
[null,"California Program for Regional Enhanced Monitoring for Phycotoxins","STATE","GOVERNMENT",2,1,6711,{"$nulls":5},true]
[null,"California Regional Water Quality Board","STATE","GOVERNMENT",2,1,376,{"$nulls":5},true]
[null,"California Resources Agency","STATE","GOVERNMENT",2,1,377,{"$nulls":5},true]
[null,"California Salmon Council","STATE","NGO",2,2,378,{"$nulls":5},true]
[null,"California Science Center","STATE","NGO",2,2,379,{"$nulls":5},true]
[null,"California Science Teachers Association","STATE","NGO",2,2,7988,{"$nulls":5},true]
[null,"California Sea Grant","STATE","SEA GRANT PROGRAMS",2,5,3270,{"$nulls":5},true]
[null,"California Sea Grant Extension Program","STATE","SEA GRANT PROGRAMS",2,5,3830,{"$nulls":5},true]
[null,"California Sea Urchin Commission","STATE","NGO",2,2,381,{"$nulls":5},true]
[null,"California Shore and Beach Preservation Association","STATE","NGO",2,2,382,{"$nulls":5},true]
[null,"California State Assembly","STATE","GOVERNMENT",2,1,383,{"$nulls":5},true]
[null,"California State Lands Commission","STATE","GOVERNMENT",2,1,384,{"$nulls":5},true]
[null,"California State Lands Commission (CA RESOURCES)","STATE","GOVERNMENT",2,1,385,{"$nulls":5},true]
[null,"California State Parks","STATE","GOVERNMENT",2,1,386,{"$nulls":5},true]
[null,"California State Polytechnic University, Pomona (CSU)","STATE","ACADEMIC INSTITUTION",2,4,7899,{"$nulls":5},true]
[null,"California State Senate","STATE","GOVERNMENT",2,1,387,{"$nulls":5},true]
[null,"California State University (CSU)","STATE","ACADEMIC INSTITUTION",2,4,388,{"$nulls":5},true]
[null,"California State University Chancellor’s Office","REGIONAL","ACADEMIC INSTITUTION",3,4,10745,{"$nulls":5},true]
[null,"California State University Maritime Academy (CSU)","STATE","ACADEMIC INSTITUTION",2,4,389,{"$nulls":5},true]
[null,"California State University, Channel Islands (CSU)","STATE","ACADEMIC INSTITUTION",2,4,3473,{"$nulls":5},true]
[null,"California State University, Dominguez Hills (CSUDH)","STATE","ACADEMIC INSTITUTION",2,4,6736,{"$nulls":5},true]
[null,"California State University, East Bay (CSUEB)","STATE","ACADEMIC INSTITUTION",2,4,5079,{"$nulls":5},true]
[null,"California State University, Fresno (CSUFresno)","STATE","ACADEMIC INSTITUTION",2,4,390,{"$nulls":5},true]
[null,"California State University, Fullerton (CSUF)","STATE","ACADEMIC INSTITUTION",2,4,391,{"$nulls":5},true]
[null,"California State University, Long Beach (CSULB)","STATE","ACADEMIC INSTITUTION",2,4,392,{"$nulls":5},{"$f":"AND(  NOT(ISERROR(FIND(UPPER($B$7),UPPER($B1550),1))),  OR($D$7=\"\",NOT(ISERROR(FIND(UPPER($D$7),UPPER($B1550),1)))),    OR($D$8=\"\",(ISERROR(FIND(UPPER($D$8),UPPER($B1550),1))))           )","v":true}]
[null,"California State University, Los Angeles (CSULA)","STATE","ACADEMIC INSTITUTION",2,4,395,{"$nulls":5},true]
[null,"California State University, Monterey Bay (CSUMB)","STATE","ACADEMIC INSTITUTION",2,4,396,{"$nulls":5},true]
[null,"California State University, Northridge (CSUN)","STATE","ACADEMIC INSTITUTION",2,4,5080,{"$nulls":5},true]
[null,"California State University, Sacramento (CSU)","STATE","ACADEMIC INSTITUTION",2,4,5081,{"$nulls":5},true]
[null,"California State University, San Bernardino (CSU)","STATE","ACADEMIC INSTITUTION",2,4,7900,{"$nulls":5},true]
[null,"California State University, San Marcos (CSU)","STATE","ACADEMIC INSTITUTION",2,4,6710,{"$nulls":5},true]
[null,"California State University, Stanislaus (CSU)","STATE","ACADEMIC INSTITUTION",2,4,5082,{"$nulls":5},true]
[null,"California State Water Resources Control Board","STATE","GOVERNMENT",2,1,399,{"$nulls":5},true]
[null,"California State Water Resources Control Board (CA RESOURCES, WRCB)","STATE","GOVERNMENT",2,1,400,{"$nulls":5},true]
[null,"California State Waterboards","STATE","GOVERNMENT",2,1,10701,{"$nulls":5},true]
[null,"California Superintendent of Education","STATE","GOVERNMENT",2,1,401,{"$nulls":5},true]
[null,"California Surf Lifesaving Association","STATE","NGO",2,2,8249,{"$nulls":5},true]
[null,"California University","STATE","ACADEMIC INSTITUTION",2,4,6735,{"$nulls":5},true]
[null,"California Water and Land Use Partnership (CA WALUP)","STATE","OTHER PARTNERS",2,6,7989,{"$nulls":5},true]
[null,"California Water Resources Control Board","STATE","GOVERNMENT",2,1,402,{"$nulls":5},true]
[null,"California Waterfowl Association (CWA)","STATE","NGO",2,2,3341,{"$nulls":5},true]
[null,"California Wetfish Producers Association (CWPA)","STATE","NGO",2,2,3342,{"$nulls":5},true]
[null,"California Yacht Marina","REGIONAL","INDUSTRY AND BUSINESS",3,3,7990,{"$nulls":5},true]
[null,"Caligari Center for Environmental Science","Unknown","Unknown",0,0,9701,{"$nulls":5},true]
[null,"Calista Corporation","FEDERAL or NATIONAL","INDUSTRY AND BUSINESS",4,3,403,{"$nulls":5},true]
[null,"Calleguas Municipal Water District","LOCAL","GOVERNMENT",1,1,16412,{"$nulls":5},true]
[null,"Calm Cove Oyster Company","LOCAL","INDUSTRY AND BUSINESS",1,3,13159,{"$nulls":5},true]
[null,"CalTrout","STATE","NGO",2,2,13250,{"$nulls":5},true]
[null,"Calumet College","LOCAL","ACADEMIC INSTITUTION",1,4,5530,{"$nulls":5},true]
[null,"Calumet County","LOCAL","GOVERNMENT",1,1,16012,{"$nulls":5},true]
[null,"Calumet Department of Biological Science","LOCAL","ACADEMIC INSTITUTION",1,4,14789,{"$nulls":5},true]
[null,"Calumet Stewardship Initiative","LOCAL","NGO",1,2,5523,{"$nulls":5},true]
[null,"Calvert County Public Schools","LOCAL","ACADEMIC INSTITUTION",1,4,6923,{"$nulls":5},true]
[null,"Calvert County, Department of Community Planning and Building","STATE","GOVERNMENT",2,1,15881,{"$nulls":5},true]
[null,"Calvert County, MD","LOCAL","GOVERNMENT",1,1,8245,{"$nulls":5},true]
[null,"Calvert Giving Fund","Unknown","OTHER PARTNERS",0,6,5704,{"$nulls":5},true]
[null,"Calvert Marine Museum","LOCAL","NGO",1,2,11235,{"$nulls":5},true]
[null,"Calypso Charters","LOCAL","INDUSTRY AND BUSINESS",1,3,7917,{"$nulls":5},true]
[null,"Cama Beach Foundation","LOCAL","NGO",1,2,7433,{"$nulls":5},true]
[null,"Camber Corporation","INTERNATIONAL","INDUSTRY AND BUSINESS",5,3,15370,{"$nulls":5},true]
[null,"Cambria Fishing Club","LOCAL","INDUSTRY AND BUSINESS",1,3,8130,{"$nulls":5},true]
[null,"Cambridge Environmental Technologies","LOCAL","INDUSTRY AND BUSINESS",1,3,9312,{"$nulls":5},true]
[null,"Cambridge Public Library","LOCAL","OTHER PARTNERS",1,6,11428,{"$nulls":5},true]
[null,"Cambridge Public School Department","LOCAL","ACADEMIC INSTITUTION",1,4,8362,{"$nulls":5},true]
[null,"Cambridge Rindge and Latin","LOCAL","ACADEMIC INSTITUTION",1,4,7629,{"$nulls":5},true]
[null,"Cambridge Science Festival","LOCAL","NGO",1,2,6430,{"$nulls":5},true]
[null,"Cambridge Springs School District","LOCAL","ACADEMIC INSTITUTION",1,4,14597,{"$nulls":5},true]
[null,"Camden Code Enforcement","LOCAL","GOVERNMENT",1,1,8551,{"$nulls":5},true]
[null,"Camden County","LOCAL","GOVERNMENT",1,1,404,{"$nulls":5},true]
[null,"Camden County 4-H","LOCAL","GOVERNMENT",1,1,8702,{"$nulls":5},true]
[null,"Camden County Board of Freeholders","LOCAL","GOVERNMENT",1,1,7555,{"$nulls":5},true]
[null,"Camden County High School","LOCAL","ACADEMIC INSTITUTION",1,4,10218,{"$nulls":5},true]
[null,"Camden County Municipal Utilities Authority","LOCAL","GOVERNMENT",1,1,7554,{"$nulls":5},true]
[null,"Camden County Schools","LOCAL","GOVERNMENT",1,1,4986,{"$nulls":5},true]
[null,"Camden County Technical Schools","LOCAL","ACADEMIC INSTITUTION",1,4,9043,{"$nulls":5},true]
[null,"Camden Development Department","LOCAL","GOVERNMENT",1,1,8550,{"$nulls":5},true]
[null,"Camden Harbormaster","LOCAL","GOVERNMENT",1,1,8554,{"$nulls":5},true]
[null,"Camden Public Works","LOCAL","GOVERNMENT",1,1,8552,{"$nulls":5},true]
[null,"Camden SMART Initiative","REGIONAL","GOVERNMENT",3,1,7559,{"$nulls":5},true]
[null,"Camden Wastewater Treatment","LOCAL","GOVERNMENT",1,1,8553,{"$nulls":5},true]
[null,"Camel's Hump Middle School","LOCAL","ACADEMIC INSTITUTION",1,4,5258,{"$nulls":5},true]
[null,"Cameo Gift Boutique","LOCAL","INDUSTRY AND BUSINESS",1,3,7380,{"$nulls":5},true]
[null,"Cameron County Department of Health and Human Services","LOCAL","GOVERNMENT",1,1,13021,{"$nulls":5},true]
[null,"Cameron County, TX","LOCAL","GOVERNMENT",1,1,6062,{"$nulls":5},true]
[null,"Cameron Parish Police Jury","LOCAL","GOVERNMENT",1,1,17592,{"$nulls":5},true]
[null,"Cameron Parish Port, Harbor and Terminal District","LOCAL","OTHER PARTNERS",1,6,17591,{"$nulls":5},true]
[null,"Cameron Parish School Board","LOCAL","ACADEMIC INSTITUTION",1,4,405,{"$nulls":5},true]
[null,"Cameron Parish, LA","LOCAL","GOVERNMENT",1,1,5053,{"$nulls":5},true]
[null,"Camp Berachah","LOCAL","NGO",1,2,406,{"$nulls":5},{"$f":"AND(  NOT(ISERROR(FIND(UPPER($B$7),UPPER($B1614),1))),  OR($D$7=\"\",NOT(ISERROR(FIND(UPPER($D$7),UPPER($B1614),1)))),    OR($D$8=\"\",(ISERROR(FIND(UPPER($D$8),UPPER($B1614),1))))           )","v":true}]
[null,"Camp Discovery","STATE","NGO",2,2,16196,{"$nulls":5},true]
[null,"Camp Lejeune,U.S. Marine Corps","STATE","GOVERNMENT",2,1,3857,{"$nulls":5},true]
[null,"Camp Meeker Recreation and Park District","LOCAL","GOVERNMENT",1,1,15115,{"$nulls":5},true]
[null,"Camp Salmen, St. Tammany Parish, Louisiana","LOCAL","GOVERNMENT",1,1,17599,{"$nulls":5},true]
[null,"Camp SEA Lab","LOCAL","ACADEMIC INSTITUTION",1,4,5083,{"$nulls":5},true]
[null,"Campbell Foundation","REGIONAL","OTHER PARTNERS",3,6,10472,{"$nulls":5},true]
[null,"Campbell Foundation (CF)","STATE","Unknown",2,0,3343,{"$nulls":5},true]
[null,"Campbell Towing","REGIONAL","INDUSTRY AND BUSINESS",3,3,7450,{"$nulls":5},true]
[null,"Can Tho Agricultural and Animal Products (IMEX Company)","INTERNATIONAL","INDUSTRY AND BUSINESS",5,3,407,{"$nulls":5},true]
[null,"Canada Center for Inland Waters","INTERNATIONAL","GOVERNMENT",5,1,408,{"$nulls":5},true]
[null,"Canadian Consulate","INTERNATIONAL","GOVERNMENT",5,1,5798,{"$nulls":5},true]
[null,"Canadian Food Inspection Agency","INTERNATIONAL","GOVERNMENT",5,1,410,{"$nulls":5},true]
[null,"Canadian Green Marine Program","INTERNATIONAL","NGO",5,2,6291,{"$nulls":5},true]
[null,"Canadian Partnership Initiative","INTERNATIONAL","NGO",5,2,11304,{"$nulls":5},true]
[null,"Canadian Ship Owners Association","INTERNATIONAL","OTHER PARTNERS",5,6,6328,{"$nulls":5},true]
[null,"Canadian St. Lawrence Seaway Management Corporation","INTERNATIONAL","INDUSTRY AND BUSINESS",5,3,6259,{"$nulls":5},true]
[null,"Candlewood Lake Authority","REGIONAL","NGO",3,2,7968,{"$nulls":5},true]
[null,"Canfisco","INTERNATIONAL","INDUSTRY AND BUSINESS",5,3,8211,{"$nulls":5},true]
[null,"Cannon Fish","REGIONAL","INDUSTRY AND BUSINESS",3,3,8191,{"$nulls":5},true]
[null,"Canon River Watershed Partnership","REGIONAL","NGO",3,2,7289,{"$nulls":5},true]
[null,"Cantho University, Vietnam","INTERNATIONAL","ACADEMIC INSTITUTION",5,4,5119,{"$nulls":5},true]
[null,"Canton High School","LOCAL","ACADEMIC INSTITUTION",1,4,8615,{"$nulls":5},true]
[null,"Canton Police Department","LOCAL","GOVERNMENT",1,1,8616,{"$nulls":5},true]
[null,"Cap Sante Marina","LOCAL","INDUSTRY AND BUSINESS",1,3,4312,{"$nulls":5},true]
[null,"Capable Construction Company","LOCAL","INDUSTRY AND BUSINESS",1,3,411,{"$nulls":5},true]
[null,"Cape Ann Fresh Catch","LOCAL","INDUSTRY AND BUSINESS",1,3,6415,{"$nulls":5},true]
[null,"Cape Charles Marina","LOCAL","INDUSTRY AND BUSINESS",1,3,9020,{"$nulls":5},true]
[null,"Cape Charles Yacht Center","LOCAL","INDUSTRY AND BUSINESS",1,3,10764,{"$nulls":5},true]
[null,"Cape Cod (US DOI, NPS)","FEDERAL or NATIONAL","GOVERNMENT",4,1,6401,{"$nulls":5},true]
[null,"Cape Cod Commission","LOCAL","GOVERNMENT",1,1,6713,{"$nulls":5},true]
[null,"Cape Cod Commission, Cape Cod Cooperative Extension","Unknown","Unknown",0,0,11023,{"$nulls":5},true]
[null,"Cape Cod Conservation District","LOCAL","GOVERNMENT",1,1,11524,{"$nulls":5},true]
[null,"Cape Cod Cooperative Extension","Unknown","Unknown",0,0,10016,{"$nulls":5},true]
[null,"Cape Cod Cooperative Extension, Waquoit Bay National Estuarine Research Reserve","Unknown","Unknown",0,0,10017,{"$nulls":5},true]
[null,"Cape Cod Fishermen's Alliance","LOCAL","INDUSTRY AND BUSINESS",1,3,11525,{"$nulls":5},true]
[null,"Cape Cod National Seashore","FEDERAL or NATIONAL","GOVERNMENT",4,1,9300,{"$nulls":5},true]
[null,"Cape Cod Oyster Company","REGIONAL","INDUSTRY AND BUSINESS",3,3,13689,{"$nulls":5},true]
[null,"Cape Fear Public Utility Authority","LOCAL","GOVERNMENT",1,1,16796,{"$nulls":5},true]
[null,"Cape Flattery Fishermen's Co-op","LOCAL","INDUSTRY AND BUSINESS",1,3,15291,{"$nulls":5},true]
[null,"Cape Gazette newspaper","LOCAL","INDUSTRY AND BUSINESS",1,3,5705,{"$nulls":5},true]
[null,"Cape Hatteras Anglers Club Invitational Surf Fishing Tournament","LOCAL","NGO",1,2,11560,{"$nulls":5},true]
[null,"Cape Hatteras National Seashore, National Park Service (US DOI, NPS)","FEDERAL or NATIONAL","GOVERNMENT",4,1,412,{"$nulls":5},true]
[null,"Cape Hatteras Oyster Company","STATE","INDUSTRY AND BUSINESS",2,3,14454,{"$nulls":5},true]
[null,"Cape Hatteras Secondary School","LOCAL","ACADEMIC INSTITUTION",1,4,10219,{"$nulls":5},true]
[null,"Cape Henlopen Band Boosters","LOCAL","OTHER PARTNERS",1,6,7674,{"$nulls":5},true]
[null,"Cape Henlopen Fishing Center, DE","LOCAL","INDUSTRY AND BUSINESS",1,3,11236,{"$nulls":5},true]
[null,"Cape Henlopen High School","LOCAL","ACADEMIC INSTITUTION",1,4,5706,{"$nulls":5},true]
[null,"Cape Lookout National Seashore, NPS","STATE","GOVERNMENT",2,1,3858,{"$nulls":5},true]
[null,"Cape May Bird Observatory","STATE","NGO",2,2,16605,{"$nulls":5},true]
[null,"Cape May County","LOCAL","GOVERNMENT",1,1,413,{"$nulls":5},true]
[null,"Cape May County 4-H Program","LOCAL","GOVERNMENT",1,1,4830,{"$nulls":5},true]
[null,"Cape May County Cooperative Extension (Rutgers University)","STATE","ACADEMIC INSTITUTION",2,4,10583,{"$nulls":5},true]
[null,"Cape May County Department of Tourism","STATE","GOVERNMENT",2,1,10594,{"$nulls":5},true]
[null,"Cape May County School District","REGIONAL","ACADEMIC INSTITUTION",3,4,9546,{"$nulls":5},true]
[null,"Cape May Library","LOCAL","ACADEMIC INSTITUTION",1,4,15036,{"$nulls":5},true]
[null,"Cape May Oyster Company","STATE","INDUSTRY AND BUSINESS",2,3,10576,{"$nulls":5},true]
[null,"Cape May Plant Materials Center (USDA)","FEDERAL or NATIONAL","GOVERNMENT",4,1,4857,{"$nulls":5},true]
[null,"Cape May Salts","STATE","INDUSTRY AND BUSINESS",2,3,10574,{"$nulls":5},true]
[null,"Cape May-Lewes Ferry","REGIONAL","INDUSTRY AND BUSINESS",3,3,5707,{"$nulls":5},true]
[null,"Cape Neddick River Association City of Saco","LOCAL","GOVERNMENT",1,1,7280,{"$nulls":5},true]
[null,"Cape Oyster Company","LOCAL","INDUSTRY AND BUSINESS",1,3,8998,{"$nulls":5},true]
[null,"Cape Seafood","STATE","INDUSTRY AND BUSINESS",2,3,17259,{"$nulls":5},true]
[null,"Cape Shore Oyster Company","STATE","INDUSTRY AND BUSINESS",2,3,10575,{"$nulls":5},true]
[null,"Capital City and Lake Murray Country Tourism Region","STATE","GOVERNMENT",2,1,16672,{"$nulls":5},{"$f":"AND(  NOT(ISERROR(FIND(UPPER($B$7),UPPER($B1678),1))),  OR($D$7=\"\",NOT(ISERROR(FIND(UPPER($D$7),UPPER($B1678),1)))),    OR($D$8=\"\",(ISERROR(FIND(UPPER($D$8),UPPER($B1678),1))))           )","v":true}]
[null,"Capital-Mohawk Partnership for Regional Invasive Species Management","STATE","GOVERNMENT",2,1,5799,{"$nulls":5},true]
[null,"Capitol Green Roofs","LOCAL","INDUSTRY AND BUSINESS",1,3,15882,{"$nulls":5},true]
[null,"Capitol Land Trust","FEDERAL or NATIONAL","NGO",4,2,414,{"$nulls":5},true]
[null,"Capitol Region Watershed District","LOCAL","GOVERNMENT",1,1,17074,{"$nulls":5},true]
[null,"Capricorn Fisheries Monitoring","INTERNATIONAL","INDUSTRY AND BUSINESS",5,3,4150,{"$nulls":5},true]
[null,"Capt. Hook’s Sportfishing (CHS)","REGIONAL","GOVERNMENT",3,1,3344,{"$nulls":5},true]
[null,"Captain David Chauvin","LOCAL","INDUSTRY AND BUSINESS",1,3,13660,{"$nulls":5},true]
[null,"Captain Howell Boone","LOCAL","INDUSTRY AND BUSINESS",1,3,13661,{"$nulls":5},true]
[null,"Captain Lance Nacio","LOCAL","INDUSTRY AND BUSINESS",1,3,13662,{"$nulls":5},true]
[null,"Captain Les Ghent","LOCAL","INDUSTRY AND BUSINESS",1,3,13709,{"$nulls":5},true]
[null,"Captain Neill's Seafood","LOCAL","INDUSTRY AND BUSINESS",1,3,14462,{"$nulls":5},true]
[null,"Captain Pete’s Oysters","Unknown","Unknown",0,0,9702,{"$nulls":5},true]
[null,"Captain Ricky Brown","LOCAL","INDUSTRY AND BUSINESS",1,3,13663,{"$nulls":5},true]
[null,"Captain Robby Midgett","LOCAL","INDUSTRY AND BUSINESS",1,3,12661,{"$nulls":5},true]
[null,"Captain Tom's Seafood","LOCAL","INDUSTRY AND BUSINESS",1,3,12220,{"$nulls":5},true]
[null,"Captree Boatmen's Association","LOCAL","INDUSTRY AND BUSINESS",1,3,14885,{"$nulls":5},true]
[null,"Captree Clam Company","LOCAL","INDUSTRY AND BUSINESS",1,3,5800,{"$nulls":5},true]
[null,"Carbon Solutions New England (CSNE)","REGIONAL","ACADEMIC INSTITUTION",3,4,8040,{"$nulls":5},true]
[null,"Cardinal Environmental Inc.","LOCAL","INDUSTRY AND BUSINESS",1,3,11476,{"$nulls":5},true]
[null,"CARE Committee","FEDERAL or NATIONAL","NGO",4,2,7888,{"$nulls":5},true]
[null,"Care Point, Inc.","LOCAL","INDUSTRY AND BUSINESS",1,3,7180,{"$nulls":5},true]
[null,"CareerSource Brevard","LOCAL","INDUSTRY AND BUSINESS",1,3,16923,{"$nulls":5},true]
[null,"Caribbean Fisheries Management Council","INTERNATIONAL","NGO",5,2,12945,{"$nulls":5},true]
[null,"Caribbean Fishery Management Council (CFMC)","REGIONAL","NGO",3,2,7747,{"$nulls":5},true]
[null,"Caribbean Integrated Coastal and Ocean Observing System (CarICOOS)","REGIONAL","OTHER PARTNERS",3,6,14051,{"$nulls":5},true]
[null,"Caribbean Marine Research Center","REGIONAL","OTHER PARTNERS",3,6,415,{"$nulls":5},true]
[null,"Caribbean Regional Association (CaRA)","REGIONAL","NGO",3,2,7974,{"$nulls":5},true]
[null,"Caribbean Regional Fisheries Mechanism","Unknown","Unknown",0,0,9642,{"$nulls":5},true]
[null,"Caribbean Science Foundation","INTERNATIONAL","NGO",5,2,8874,{"$nulls":5},true]
[null,"Cario Middle School","LOCAL","ACADEMIC INSTITUTION",1,4,5672,{"$nulls":5},true]
[null,"Carl Vison Institute of Government (UGA)","STATE","ACADEMIC INSTITUTION",2,4,6938,{"$nulls":5},true]
[null,"Carlsbad Aquafarm","STATE","INDUSTRY AND BUSINESS",2,3,3829,{"$nulls":5},true]
[null,"Carlson Media","FEDERAL or NATIONAL","INDUSTRY AND BUSINESS",4,3,416,{"$nulls":5},true]
[null,"Carlton College","STATE","ACADEMIC INSTITUTION",2,4,15109,{"$nulls":5},true]
[null,"Carlton County Soil and Water Conservation District","REGIONAL","GOVERNMENT",3,1,13408,{"$nulls":5},true]
[null,"Carlton County, Minnesota","LOCAL","GOVERNMENT",1,1,9589,{"$nulls":5},true]
[null,"Carnegie Institution for Science","FEDERAL or NATIONAL","NGO",4,2,9468,{"$nulls":5},true]
[null,"Carnegie Mellon University","REGIONAL","ACADEMIC INSTITUTION",3,4,12819,{"$nulls":5},true]
[null,"Carnegie Museum of Natural History","LOCAL","OTHER PARTNERS",1,6,14598,{"$nulls":5},true]
[null,"Carolina AquaGyn (Craig Sullivan)","STATE","INDUSTRY AND BUSINESS",2,3,16984,{"$nulls":5},true]
[null,"Carolina Beach Chamber of Commerce","LOCAL","GOVERNMENT",1,1,4987,{"$nulls":5},true]
[null,"Carolina Beach, NC","LOCAL","GOVERNMENT",1,1,7693,{"$nulls":5},true]
[null,"Carolina Biological","FEDERAL or NATIONAL","INDUSTRY AND BUSINESS",4,3,6026,{"$nulls":5},true]
[null,"Carolina Boat Yard","LOCAL","INDUSTRY AND BUSINESS",1,3,7177,{"$nulls":5},true]
[null,"Carolina Classics Catfish, Inc.","LOCAL","INDUSTRY AND BUSINESS",1,3,12662,{"$nulls":5},true]
[null,"Carolina Clear","STATE","ACADEMIC INSTITUTION",2,4,4962,{"$nulls":5},true]
[null,"Carolina Feeds","REGIONAL","INDUSTRY AND BUSINESS",3,3,10220,{"$nulls":5},true]
[null,"Carolina Fisheries","FEDERAL or NATIONAL","INDUSTRY AND BUSINESS",4,3,417,{"$nulls":5},true]
[null,"Carolina Flounder","STATE","INDUSTRY AND BUSINESS",2,3,3902,{"$nulls":5},true]
[null,"Carolina Grande Resort","LOCAL","INDUSTRY AND BUSINESS",1,3,7168,{"$nulls":5},true]
[null,"Carolina Lady Anglers","LOCAL","NGO",1,2,7161,{"$nulls":5},true]
[null,"Carolina Mariculture","LOCAL","NGO",1,2,15235,{"$nulls":5},true]
[null,"Carolina Mariculture Co.","LOCAL","INDUSTRY AND BUSINESS",1,3,12663,{"$nulls":5},true]
[null,"Carolina Seafood Ventures","STATE","INDUSTRY AND BUSINESS",2,3,3903,{"$nulls":5},true]
[null,"Carolinas Beach Vitex Task Force","REGIONAL","NGO",3,2,418,{"$nulls":5},true]
[null,"Carolinas Coastal Ocean Observing and Prediction System (Caro-COOPS)","REGIONAL","GOVERNMENT",3,1,419,{"$nulls":5},true]
[null,"Carolina's Integrated Sciences and Assessment Center","STATE","SEA GRANT PROGRAMS",2,5,4556,{"$nulls":5},true]
[null,"Carolina's Integrated Sciences and Assessment Center","REGIONAL","ACADEMIC INSTITUTION",3,4,7193,{"$nulls":5},true]
[null,"Caroline County Commissioners","LOCAL","GOVERNMENT",1,1,420,{"$nulls":5},true]
[null,"Caroline County Municipalities","LOCAL","GOVERNMENT",1,1,421,{"$nulls":5},true]
[null,"Caroline County Watershed Implementation Team","LOCAL","GOVERNMENT",1,1,8109,{"$nulls":5},true]
[null,"Carrabelle Area Chamber of Commerce","LOCAL","NGO",1,2,15649,{"$nulls":5},true]
[null,"Carrabelle Cares","LOCAL","NGO",1,2,15648,{"$nulls":5},true]
[null,"Carrabelle Economic Development Council","LOCAL","GOVERNMENT",1,1,15650,{"$nulls":5},{"$f":"AND(  NOT(ISERROR(FIND(UPPER($B$7),UPPER($B1742),1))),  OR($D$7=\"\",NOT(ISERROR(FIND(UPPER($D$7),UPPER($B1742),1)))),    OR($D$8=\"\",(ISERROR(FIND(UPPER($D$8),UPPER($B1742),1))))           )","v":true}]
[null,"Carrabelle Waterfront Partnership","LOCAL","NGO",1,2,15651,{"$nulls":5},true]
[null,"Carroll College","STATE","ACADEMIC INSTITUTION",2,4,422,{"$nulls":5},true]
[null,"Carroll County Public Schools","LOCAL","GOVERNMENT",1,1,14558,{"$nulls":5},true]
[null,"Carroll County, MD","LOCAL","GOVERNMENT",1,1,8242,{"$nulls":5},true]
[null,"Carteret Catch, Morehead City","STATE","NGO",2,2,423,{"$nulls":5},true]
[null,"Carteret Community College","STATE","ACADEMIC INSTITUTION",2,4,424,{"$nulls":5},true]
[null,"Carteret Community College Aquaculture Program","STATE","ACADEMIC INSTITUTION",2,4,16985,{"$nulls":5},true]
[null,"Carteret County Beach Commission","LOCAL","GOVERNMENT",1,1,4988,{"$nulls":5},true]
[null,"Carteret County Chamber of Commerce","LOCAL","NGO",1,2,425,{"$nulls":5},true]
[null,"Carteret County Chapter of the American Culinary Federation","LOCAL","NGO",1,2,426,{"$nulls":5},true]
[null,"Carteret County Cooperative Extension","LOCAL","ACADEMIC INSTITUTION",1,4,12664,{"$nulls":5},true]
[null,"Carteret County Economic Development Council","LOCAL","GOVERNMENT",1,1,427,{"$nulls":5},true]
[null,"Carteret County Fishermen's Association","LOCAL","GOVERNMENT",1,1,428,{"$nulls":5},true]
[null,"Carteret County Shore Protection Office","LOCAL","GOVERNMENT",1,1,429,{"$nulls":5},true]
[null,"Carteret County, N.C.","LOCAL","Unknown",1,0,3983,{"$nulls":5},true]
[null,"Carter's Cove Marina","LOCAL","INDUSTRY AND BUSINESS",1,3,9014,{"$nulls":5},true]
[null,"CARTHE- CONSORTIUM FOR ADVANCED RESEARCH ON TRANSPORT OF HYDROCARBON IN THE ENVIRONMENT","Unknown","ACADEMIC INSTITUTION",0,4,17596,{"$nulls":5},true]
[null,"Carver High School","LOCAL","ACADEMIC INSTITUTION",1,4,6512,{"$nulls":5},true]
[null,"Carver Water Management Organization","REGIONAL","GOVERNMENT",3,1,13399,{"$nulls":5},true]
[null,"Cary Institute","REGIONAL","ACADEMIC INSTITUTION",3,4,14915,{"$nulls":5},true]
[null,"Cary Institute of Ecosystem Studies","LOCAL","SEA GRANT PROGRAMS",1,5,4557,{"$nulls":5},true]
[null,"Casa Paoli","Unknown","NGO",0,2,8888,{"$nulls":5},true]
[null,"Casa Paoli","Unknown","NGO",0,2,8890,{"$nulls":5},true]
[null,"Cascade Land Conservancy","LOCAL","NGO",1,2,4372,{"$nulls":5},true]
[null,"Cascadia Geosciences (CG)","STATE","GOVERNMENT",2,1,3346,{"$nulls":5},true]
[null,"Cascadia Law Group","LOCAL","INDUSTRY AND BUSINESS",1,3,8399,{"$nulls":5},true]
[null,"Cascadia Research Collective","REGIONAL","NGO",3,2,7381,{"$nulls":5},true]
[null,"Casco Bay Estuary Project","LOCAL","NGO",1,2,430,{"$nulls":5},true]
[null,"Casco Bay National Estuary Program","REGIONAL","GOVERNMENT",3,1,10842,{"$nulls":5},true]
[null,"Case Cove LLC","LOCAL","INDUSTRY AND BUSINESS",1,3,13160,{"$nulls":5},true]
[null,"Case Western Reserve University (CASE)","STATE","ACADEMIC INSTITUTION",2,4,431,{"$nulls":5},true]
[null,"Casey’s Seafood","FEDERAL or NATIONAL","INDUSTRY AND BUSINESS",4,3,432,{"$nulls":5},true]
[null,"Casey's Garden Shop","LOCAL","INDUSTRY AND BUSINESS",1,3,14819,{"$nulls":5},true]
[null,"Cassidy Fish Farm","Unknown","INDUSTRY AND BUSINESS",0,3,7078,{"$nulls":5},true]
[null,"Castaway Bay","LOCAL","INDUSTRY AND BUSINESS",1,3,433,{"$nulls":5},true]
[null,"Castaway Bay Marina","STATE","INDUSTRY AND BUSINESS",2,3,13327,{"$nulls":5},true]
[null,"Casterline Seafood","LOCAL","INDUSTRY AND BUSINESS",1,3,12221,{"$nulls":5},true]
[null,"Casting for Recovery","LOCAL","NGO",1,2,8520,{"$nulls":5},true]
[null,"Castle Hayne Fisheries","STATE","INDUSTRY AND BUSINESS",2,3,3904,{"$nulls":5},true]
[null,"Castle Rock High School","LOCAL","ACADEMIC INSTITUTION",1,4,4178,{"$nulls":5},true]
[null,"Castle Rock School District","LOCAL","ACADEMIC INSTITUTION",1,4,4179,{"$nulls":5},true]
[null,"Castleton Elementary School","LOCAL","ACADEMIC INSTITUTION",1,4,5259,{"$nulls":5},true]
[null,"Castleton State College of Vermont","STATE","ACADEMIC INSTITUTION",2,4,6876,{"$nulls":5},true]
[null,"Caswell Beach","LOCAL","GOVERNMENT",1,1,13970,{"$nulls":5},true]
[null,"Catalina Island Chamber of Commerce","LOCAL","INDUSTRY AND BUSINESS",1,3,7991,{"$nulls":5},true]
[null,"Catalina Offshore Products","REGIONAL","INDUSTRY AND BUSINESS",3,3,15116,{"$nulls":5},true]
[null,"Catalina Sea Ranch","REGIONAL","INDUSTRY AND BUSINESS",3,3,15071,{"$nulls":5},true]
[null,"Catalonia Abalone","STATE","INDUSTRY AND BUSINESS",2,3,3905,{"$nulls":5},true]
[null,"Catawba Island Club","LOCAL","INDUSTRY AND BUSINESS",1,3,5142,{"$nulls":5},true]
[null,"Catch Modern Seafood Cuisine (Keith Rhodes)","LOCAL","INDUSTRY AND BUSINESS",1,3,16810,{"$nulls":5},true]
[null,"Category X Coastal Consulting","LOCAL","INDUSTRY AND BUSINESS",1,3,6513,{"$nulls":5},true]
[null,"Catherine Kolnaski Magnet School, Groton CT","LOCAL","ACADEMIC INSTITUTION",1,4,16903,{"$nulls":5},true]
[null,"Catholic Charities of the Diocese of Biloxi","LOCAL","NGO",1,2,13892,{"$nulls":5},true]
[null,"Catholic Community Services, Catholic Housing Services of Western Washington, Yesler Terrace Youth Tutoring Program","LOCAL","NGO",1,2,4373,{"$nulls":5},true]
[null,"Catholic Diocese","LOCAL","OTHER PARTNERS",1,6,13947,{"$nulls":5},true]
[null,"Catholic Social and Community Services, Inc.","Unknown","NGO",0,2,13891,{"$nulls":5},true]
[null,"Catskill Regional Invasive Species Partnership","REGIONAL","OTHER PARTNERS",3,6,5801,{"$nulls":5},true]
[null,"Cavalier Yacht Club","LOCAL","INDUSTRY AND BUSINESS",1,3,7204,{"$nulls":5},true]
[null,"Caw Caw Interpretative Center","LOCAL","OTHER PARTNERS",1,6,434,{"$nulls":5},true]
[null,"Cayuga community college","LOCAL","ACADEMIC INSTITUTION",1,4,5802,{"$nulls":5},true]
[null,"Cayuga county","LOCAL","GOVERNMENT",1,1,5803,{"$nulls":5},true]
[null,"Cayuga County Soil and Water Conservation District","LOCAL","GOVERNMENT",1,1,14963,{"$nulls":5},true]
[null,"Cayuga Lake Watershed Network","LOCAL","Unknown",1,0,14976,{"$nulls":5},true]
[null,"CBS Chicago","LOCAL","INDUSTRY AND BUSINESS",1,3,13757,{"$nulls":5},{"$f":"AND(  NOT(ISERROR(FIND(UPPER($B$7),UPPER($B1806),1))),  OR($D$7=\"\",NOT(ISERROR(FIND(UPPER($D$7),UPPER($B1806),1)))),    OR($D$8=\"\",(ISERROR(FIND(UPPER($D$8),UPPER($B1806),1))))           )","v":true}]
[null,"CDC Consulting","STATE","INDUSTRY AND BUSINESS",2,3,10580,{"$nulls":5},true]
[null,"Cecil County Governments","LOCAL","GOVERNMENT",1,1,11237,{"$nulls":5},true]
[null,"Cecil County Watershed Stewards Academy","LOCAL","NGO",1,2,15883,{"$nulls":5},true]
[null,"Cedar Key Aquaculture Association","Unknown","Unknown",0,0,9643,{"$nulls":5},true]
[null,"Cedar Key Aquaculture Farms","Unknown","Unknown",0,0,15220,{"$nulls":5},true]
[null,"Cedar Key Seafarms","Unknown","Unknown",0,0,15219,{"$nulls":5},true]
[null,"Cedar Point Amusement Park","LOCAL","INDUSTRY AND BUSINESS",1,3,435,{"$nulls":5},true]
[null,"Cedar Point Marina","LOCAL","INDUSTRY AND BUSINESS",1,3,436,{"$nulls":5},true]
[null,"Cedar Point Oyster Company","LOCAL","INDUSTRY AND BUSINESS",1,3,8266,{"$nulls":5},true]
[null,"Cedar River Anadromous Fish Committee","LOCAL","NGO",1,2,4374,{"$nulls":5},true]
[null,"Census for Marine Life (CoML)","INTERNATIONAL","NGO",5,2,437,{"$nulls":5},true]
[null,"Center and Quarterdeck","STATE","Unknown",2,0,3690,{"$nulls":5},true]
[null,"Center for a Sustainable Future","STATE","NGO",2,2,5370,{"$nulls":5},true]
[null,"Center for Advancement of Informal Science Education","FEDERAL or NATIONAL","NGO",4,2,14512,{"$nulls":5},true]
[null,"Center for Alaskan Coastal Studies","REGIONAL","NGO",3,2,438,{"$nulls":5},true]
[null,"Center for Coastal and Ocean Mapping, Joint Hydrographic Center (US DOC, NOAA, NOS, CCOM-JHC)","FEDERAL or NATIONAL","GOVERNMENT",4,1,3769,{"$nulls":5},true]
[null,"Center for Coastal Environmental Health and Biomolecular Research (US DOC, NOAA, NOS, NCCOS)","FEDERAL or NATIONAL","GOVERNMENT",4,1,5677,{"$nulls":5},true]
[null,"Center for Coastal Environmental Sensing Networks (CESN-UMassBoston)","LOCAL","ACADEMIC INSTITUTION",1,4,7630,{"$nulls":5},true]
[null,"Center for Coastal Resources Management","STATE","ACADEMIC INSTITUTION",2,4,17358,{"$nulls":5},true]
[null,"Center for Community and Family Development","LOCAL","NGO",1,2,9920,{"$nulls":5},true]
[null,"Center for Disease Control and Prevention (CDC)","FEDERAL or NATIONAL","GOVERNMENT",4,1,4558,{"$nulls":5},true]
[null,"Center for Ecological Research","LOCAL","NGO",1,2,5243,{"$nulls":5},true]
[null,"Center for Ecosystem Management and Restoration","LOCAL","NGO",1,2,15117,{"$nulls":5},true]
[null,"Center for Environment, Fisheries, and Aquaculture Science","INTERNATIONAL","GOVERNMENT",5,1,16797,{"$nulls":5},true]
[null,"Center for Family and Community Development","STATE","NGO",2,2,9921,{"$nulls":5},true]
[null,"Center for Farm Financial Management, UMN","STATE","INDUSTRY AND BUSINESS",2,3,6983,{"$nulls":5},true]
[null,"Center for Global Change and Arctic System Research","STATE","ACADEMIC INSTITUTION",2,4,14022,{"$nulls":5},true]
[null,"Center for Great Lakes Environmental Education","REGIONAL","ACADEMIC INSTITUTION",3,4,439,{"$nulls":5},true]
[null,"Center for Great Lakes Literacy","REGIONAL","NGO",3,2,10923,{"$nulls":5},true]
[null,"Center for Great Lakes Literacy","REGIONAL","NGO",3,2,10919,{"$nulls":5},true]
[null,"Center for Great Lakes Literacy","REGIONAL","ACADEMIC INSTITUTION",3,4,8785,{"$nulls":5},true]
[null,"Center for Hazards Analysis Res. & Technology","Unknown","Unknown",0,0,9703,{"$nulls":5},true]
[null,"Center for Heritage Resources Study","FEDERAL or NATIONAL","OTHER PARTNERS",4,6,440,{"$nulls":5},true]
[null,"Center for Houston's Future","LOCAL","NGO",1,2,6106,{"$nulls":5},true]
[null,"Center for Human and Earth Restoration","LOCAL","NGO",1,2,16798,{"$nulls":5},true]
[null,"Center for Independent Experts (US DOC, NOAA, NMFS)","FEDERAL or NATIONAL","GOVERNMENT",4,1,7973,{"$nulls":5},true]
[null,"Center for Inland Bays","REGIONAL","NGO",3,2,9058,{"$nulls":5},true]
[null,"Center for Innovative Technology ","STATE","GOVERNMENT",2,1,7892,{"$nulls":5},true]
[null,"Center for Integrative Environmental Research (CIER)","REGIONAL","ACADEMIC INSTITUTION",3,4,8112,{"$nulls":5},true]
[null,"Center for Invasive Species, UGA","STATE","ACADEMIC INSTITUTION",2,4,10464,{"$nulls":5},true]
[null,"Center for Island Sustainability (CIS)","LOCAL","OTHER PARTNERS",1,6,6742,{"$nulls":5},true]
[null,"Center for Marine Conservation","FEDERAL or NATIONAL","NGO",4,2,441,{"$nulls":5},true]
[null,"Center for Marine Sciences and Technology, North Carolina State University (NCSU)","STATE","ACADEMIC INSTITUTION",2,4,4972,{"$nulls":5},true]
[null,"Center for Marine Social Sciences","REGIONAL","NGO",3,2,5084,{"$nulls":5},true]
[null,"Center for Natural Hazards Research, East Carolina University (ECU)","STATE","ACADEMIC INSTITUTION",2,4,4968,{"$nulls":5},true]
[null,"Center for Neighborhood Technology","LOCAL","NGO",1,2,7786,{"$nulls":5},true]
[null,"Center for Ocean Solutions (COS)","STATE","NGO",2,2,3347,{"$nulls":5},true]
[null,"Center for Operational Oceanographic Products and Services (US DOC, NOAA, NOS, CO-OPS)","FEDERAL or NATIONAL","GOVERNMENT",4,1,5586,{"$nulls":5},true]
[null,"Center for Planning Excellence","Unknown","OTHER PARTNERS",0,6,15477,{"$nulls":5},true]
[null,"Center for Science and Mathematics Education, Case Western Reserve University","STATE","ACADEMIC INSTITUTION",2,4,13267,{"$nulls":5},true]
[null,"Center for Scientific research, Lyons, France","INTERNATIONAL","ACADEMIC INSTITUTION",5,4,8103,{"$nulls":5},true]
[null,"Center for Sponsored Coastal Ocean Research - Coastal Ocean Program (US DOC, NOAA, NOS, NCCOS)","FEDERAL or NATIONAL","GOVERNMENT",4,1,5639,{"$nulls":5},true]
[null,"Center for Sustainable Coast, Georgia","REGIONAL","NGO",3,2,10301,{"$nulls":5},true]
[null,"Center for Sustainable Tourism, East Carolina University (ECU)","STATE","ACADEMIC INSTITUTION",2,4,4969,{"$nulls":5},true]
[null,"Center for Systems Integration and Systainability","STATE","ACADEMIC INSTITUTION",2,4,15821,{"$nulls":5},true]
[null,"Center for Technology - Essex","LOCAL","ACADEMIC INSTITUTION",1,4,5260,{"$nulls":5},true]
[null,"Center for the Inland Bays","STATE","GOVERNMENT",2,1,5708,{"$nulls":5},true]
[null,"Center for Transformative Action","LOCAL","Unknown",1,0,14973,{"$nulls":5},true]
[null,"Center for Tropical and Subtropical Aquaculture","REGIONAL","NGO",3,2,442,{"$nulls":5},true]
[null,"Center for Urban and Environmental Education (CUERE)","LOCAL","INDUSTRY AND BUSINESS",1,3,4561,{"$nulls":5},true]
[null,"Center for Urban Waters","Unknown","NGO",0,2,10752,{"$nulls":5},true]
[null,"Center for Watershed Excellence (US EPA)","FEDERAL or NATIONAL","GOVERNMENT",4,1,7933,{"$nulls":5},true]
[null,"Center for Watershed Excellence, Clemson University","STATE","ACADEMIC INSTITUTION",2,4,13365,{"$nulls":5},true]
[null,"Center for Watershed Protection","FEDERAL or NATIONAL","OTHER PARTNERS",4,6,443,{"$nulls":5},{"$f":"AND(  NOT(ISERROR(FIND(UPPER($B$7),UPPER($B1870),1))),  OR($D$7=\"\",NOT(ISERROR(FIND(UPPER($D$7),UPPER($B1870),1)))),    OR($D$8=\"\",(ISERROR(FIND(UPPER($D$8),UPPER($B1870),1))))           )","v":true}]
[null,"Center for Wetland Protection","REGIONAL","NGO",3,2,11238,{"$nulls":5},true]
[null,"Center for Whale Research","LOCAL","NGO",1,2,4375,{"$nulls":5},true]
[null,"Center for Wooden Boats","LOCAL","INDUSTRY AND BUSINESS",1,3,15067,{"$nulls":5},true]
[null,"Center of Excellence for Great Lakes and Human Health (US DOC, NOAA, OAR, GLERL, CEGLHH)","FEDERAL or NATIONAL","GOVERNMENT",4,1,444,{"$nulls":5},true]
[null,"Center of Excellence for Marine Manufacturing and Technology","STATE","OTHER PARTNERS",2,6,15092,{"$nulls":5},true]
[null,"Center of Marine & Wetland Studies (Coastal Carolina University)","STATE","ACADEMIC INSTITUTION",2,4,14405,{"$nulls":5},true]
[null,"Centeral Michigan University","STATE","ACADEMIC INSTITUTION",2,4,9395,{"$nulls":5},true]
[null,"Centers for Ocean Sciences Education Excellence (COSEE)","REGIONAL","ACADEMIC INSTITUTION",3,4,445,{"$nulls":5},true]
[null,"Centers for Ocean Sciences Education Excellence, California (COSEE)","REGIONAL","ACADEMIC INSTITUTION",3,4,6822,{"$nulls":5},true]
[null,"Centers for Ocean Sciences Education Excellence, Central Gulf of Mexico (COSEE)","REGIONAL","GOVERNMENT",3,1,6514,{"$nulls":5},true]
[null,"Centers for Ocean Sciences Education Excellence, Great Lakes (COSEE)","REGIONAL","GOVERNMENT",3,1,4563,{"$nulls":5},true]
[null,"Centers for Ocean Sciences Education Excellence, Networked Ocean World (COSEE-NOW)","INTERNATIONAL","GOVERNMENT",5,1,6823,{"$nulls":5},true]
[null,"Centers for Ocean Sciences Education Excellence, Ocean Learning Communities (COSEE)","REGIONAL","ACADEMIC INSTITUTION",3,4,4432,{"$nulls":5},true]
[null,"Centers for Ocean Sciences Education Excellence, Pacific Partnerships (COSEE-PP)","REGIONAL","ACADEMIC INSTITUTION",3,4,7358,{"$nulls":5},true]
[null,"Centers for Ocean Sciences Education Excellence, Southeast (COSEE)","REGIONAL","GOVERNMENT",3,1,4053,{"$nulls":5},true]
[null,"Centers for Ocean Sciences Education Excellence, West (COSEE)","REGIONAL","ACADEMIC INSTITUTION",3,4,4433,{"$nulls":5},true]
[null,"Centers for Ocean Sciences Education Excellence-Great Lakes","REGIONAL","GOVERNMENT",3,1,11477,{"$nulls":5},true]
[null,"Centerville Cares, Manitowoc, Wis.","LOCAL","NGO",1,2,3691,{"$nulls":5},true]
[null,"Central American University","INTERNATIONAL","ACADEMIC INSTITUTION",5,4,446,{"$nulls":5},true]
[null,"Central and Northern California Ocean Observing System (CeNCOOS)","REGIONAL","GOVERNMENT",3,1,3328,{"$nulls":5},true]
[null,"Central Basin Charterboat Association (CBCBA)","STATE","INDUSTRY AND BUSINESS",2,3,13266,{"$nulls":5},true]
[null,"Central Bering Sea Fishermen’s Association","LOCAL","NGO",1,2,447,{"$nulls":5},true]
[null,"Central Bering Sea Fishermen's Association","LOCAL","INDUSTRY AND BUSINESS",1,3,17175,{"$nulls":5},true]
[null,"Central Coast Fisheries Conservation Coalition (CCFCC)","STATE","NGO",2,2,8131,{"$nulls":5},true]
[null,"Central Coast Long-term Environmental Assessment Network (CCLEAN)","REGIONAL","NGO",3,2,3766,{"$nulls":5},true]
[null,"Central Coast Sportfishing","LOCAL","INDUSTRY AND BUSINESS",1,3,5085,{"$nulls":5},true]
[null,"Central Coast Women for Fisheries (CCWF)","STATE","NGO",2,2,3348,{"$nulls":5},true]
[null,"Central Council: Tlingit and Haida Indian Tribes of Alaska","Tribal","GOVERNMENT",13,1,448,{"$nulls":5},true]
[null,"Central Curry School District","LOCAL","ACADEMIC INSTITUTION",1,4,14236,{"$nulls":5},true]
[null,"Central Elementary School","LOCAL","ACADEMIC INSTITUTION",1,4,15137,{"$nulls":5},true]
[null,"Central Kitsap School District","LOCAL","ACADEMIC INSTITUTION",1,4,4180,{"$nulls":5},true]
[null,"Central Lake Superior Watershed Partnership","LOCAL","GOVERNMENT",1,1,449,{"$nulls":5},true]
[null,"Central Lincoln People's Utility District","LOCAL","GOVERNMENT",1,1,10099,{"$nulls":5},true]
[null,"Central Lincoln PUD","LOCAL","OTHER PARTNERS",1,6,10474,{"$nulls":5},true]
[null,"Central Michigan University","Unknown","Unknown",0,0,15685,{"$nulls":5},true]
[null,"Central Michigan University (CMICH)","STATE","ACADEMIC INSTITUTION",2,4,450,{"$nulls":5},true]
[null,"Central NY Regional Planning and Development Board","LOCAL","GOVERNMENT",1,1,8490,{"$nulls":5},true]
[null,"Central Oregon Coast NOW","LOCAL","NGO",1,2,10100,{"$nulls":5},true]
[null,"Central States Water Environment Association-Wisconsin Section","STATE","NGO",2,2,12406,{"$nulls":5},true]
[null,"Central Tech High School","LOCAL","ACADEMIC INSTITUTION",1,4,13958,{"$nulls":5},true]
[null,"Central UP Net Pen Aquaculture Project","STATE","GOVERNMENT",2,1,15234,{"$nulls":5},true]
[null,"Central Utah Water Conservancy District","STATE","GOVERNMENT",2,1,5804,{"$nulls":5},true]
[null,"Central Vermont Academy","LOCAL","ACADEMIC INSTITUTION",1,4,5261,{"$nulls":5},true]
[null,"Central Vermont Catholic School","LOCAL","ACADEMIC INSTITUTION",1,4,5262,{"$nulls":5},true]
[null,"Central Vermont Regional Planning Commission","LOCAL","NGO",1,2,5263,{"$nulls":5},true]
[null,"Central Washington University","STATE","ACADEMIC INSTITUTION",2,4,10101,{"$nulls":5},true]
[null,"Central, LA","LOCAL","GOVERNMENT",1,1,15500,{"$nulls":5},true]
[null,"Centre for Aquatic Biotechnology Regulatory Research (CABRR), Centre for Aquaculture and Environmental Research, Fisheries and Oceans Canada (DFO)","INTERNATIONAL","GOVERNMENT",5,1,4135,{"$nulls":5},true]
[null,"Centre for Environment, Fisheries and Aquaculture Science, Department for Environment, Food and Rural Affairs, United Kingdom","INTERNATIONAL","GOVERNMENT",5,1,4136,{"$nulls":5},true]
[null,"Centre national de la recherche scientifique (CNRS), Lyon, France","INTERNATIONAL","GOVERNMENT",5,1,8066,{"$nulls":5},true]
[null,"Centro de Investigacion Cientifica y de Educacion Superior de Ensenada (CICESE)","INTERNATIONAL","SEA GRANT PROGRAMS",5,5,4566,{"$nulls":5},true]
[null,"Centro Hispano","LOCAL","NGO",1,2,9590,{"$nulls":5},true]
[null,"Centro Nacional Patagonico (CENPAT), Argentina","INTERNATIONAL","GOVERNMENT",5,1,4137,{"$nulls":5},true]
[null,"Certi-Fresh","STATE","INDUSTRY AND BUSINESS",2,3,8196,{"$nulls":5},true]
[null,"Cetacean Cruises","LOCAL","INDUSTRY AND BUSINESS",1,3,9512,{"$nulls":5},true]
[null,"Cetacean Logic Foundation, Inc.","Unknown","NGO",0,2,12994,{"$nulls":5},true]
[null,"Cetacean Marine","LOCAL","INDUSTRY AND BUSINESS",1,3,17490,{"$nulls":5},true]
[null,"CH2M Construction","LOCAL","INDUSTRY AND BUSINESS",1,3,16306,{"$nulls":5},true]
[null,"CH2M Hill","INTERNATIONAL","INDUSTRY AND BUSINESS",5,3,13665,{"$nulls":5},true]
[null,"Chadwick Creek Oysters","STATE","INDUSTRY AND BUSINESS",2,3,14459,{"$nulls":5},true]
[null,"Chadwick Seafood","LOCAL","INDUSTRY AND BUSINESS",1,3,16980,{"$nulls":5},true]
[null,"Chagrin River Salmon Association","STATE","INDUSTRY AND BUSINESS",2,3,13268,{"$nulls":5},true]
[null,"Chagrin River Watershed Partners, Inc","LOCAL","NGO",1,2,17045,{"$nulls":5},true]
[null,"Chain O' Lakes Sports","LOCAL","INDUSTRY AND BUSINESS",1,3,16131,{"$nulls":5},{"$f":"AND(  NOT(ISERROR(FIND(UPPER($B$7),UPPER($B1934),1))),  OR($D$7=\"\",NOT(ISERROR(FIND(UPPER($D$7),UPPER($B1934),1)))),    OR($D$8=\"\",(ISERROR(FIND(UPPER($D$8),UPPER($B1934),1))))           )","v":true}]
[null,"Chain O' Lakes State Park","LOCAL","GOVERNMENT",1,1,14806,{"$nulls":5},true]
[null,"Chain of Lakes Lake Association","LOCAL","NGO",1,2,5520,{"$nulls":5},true]
[null,"Challenger Learning Center of Northwest Indiana","LOCAL","ACADEMIC INSTITUTION",1,4,13758,{"$nulls":5},true]
[null,"Chalmette, LA","LOCAL","GOVERNMENT",1,1,15488,{"$nulls":5},true]
[null,"Chambers County","LOCAL","GOVERNMENT",1,1,12222,{"$nulls":5},true]
[null,"Chambers County Economic Development Department","LOCAL","GOVERNMENT",1,1,12223,{"$nulls":5},true]
[null,"Chammyz","INTERNATIONAL","INDUSTRY AND BUSINESS",5,3,6048,{"$nulls":5},true]
[null,"Champaign County Forest Preserve","LOCAL","GOVERNMENT",1,1,5916,{"$nulls":5},true]
[null,"Champaign County Sheriff's Office","LOCAL","GOVERNMENT",1,1,10897,{"$nulls":5},true]
[null,"Champaign Park District","LOCAL","GOVERNMENT",1,1,5917,{"$nulls":5},true]
[null,"Champaign Police Department","LOCAL","GOVERNMENT",1,1,10900,{"$nulls":5},true]
[null,"Champaign Public Library","LOCAL","GOVERNMENT",1,1,5909,{"$nulls":5},true]
[null,"Champaign Public Schools","LOCAL","GOVERNMENT",1,1,5910,{"$nulls":5},true]
[null,"Champaign-Urbana Public Health District","LOCAL","GOVERNMENT",1,1,10894,{"$nulls":5},true]
[null,"Champlain Basin Education Initiative","STATE","OTHER PARTNERS",2,6,8319,{"$nulls":5},true]
[null,"Champlain College","LOCAL","ACADEMIC INSTITUTION",1,4,5264,{"$nulls":5},true]
[null,"Champlain Valley Union High School","LOCAL","ACADEMIC INSTITUTION",1,4,5265,{"$nulls":5},true]
[null,"Change Anacostia Watershed Association to Anacostia Watershed Society","LOCAL","NGO",1,2,15873,{"$nulls":5},true]
[null,"Channel 40 NBC","STATE","NGO",2,2,10949,{"$nulls":5},true]
[null,"Channel Islands Dive Club (CIDC)","STATE","GOVERNMENT",2,1,3349,{"$nulls":5},true]
[null,"Channel Islands Harbor (CIH)","STATE","GOVERNMENT",2,1,3350,{"$nulls":5},true]
[null,"Channel Islands Live Project (CILP)","STATE","GOVERNMENT",2,1,3351,{"$nulls":5},true]
[null,"Channel Islands National Marine Sanctuary (US DOC, NOAA, NOS, ONMS)","FEDERAL or NATIONAL","GOVERNMENT",4,1,451,{"$nulls":5},true]
[null,"Channel Islands National Park, National Park Service (US DOI, NPS)","FEDERAL or NATIONAL","GOVERNMENT",4,1,4084,{"$nulls":5},true]
[null,"Channel Park Marina","LOCAL","INDUSTRY AND BUSINESS",1,3,452,{"$nulls":5},true]
[null,"Chapman University","STATE","ACADEMIC INSTITUTION",2,4,5179,{"$nulls":5},true]
[null,"Chariho Area Career and Technical Center","LOCAL","ACADEMIC INSTITUTION",1,4,14582,{"$nulls":5},true]
[null,"Charitable Donations","Unknown","Unknown",0,0,12426,{"$nulls":5},true]
[null,"Charity Island Dinner Cruise","LOCAL","INDUSTRY AND BUSINESS",1,3,7913,{"$nulls":5},true]
[null,"Charles River Conservancy","LOCAL","NGO",1,2,6416,{"$nulls":5},true]
[null,"Charles River Laboratories","REGIONAL","INDUSTRY AND BUSINESS",3,3,13353,{"$nulls":5},true]
[null,"Charles River Swimming Club","LOCAL","NGO",1,2,7631,{"$nulls":5},true]
[null,"Charles River Watershed Association","LOCAL","NGO",1,2,6417,{"$nulls":5},true]
[null,"Charles Towne Landing State Historic Site","STATE","GOVERNMENT",2,1,13344,{"$nulls":5},true]
[null,"Charleston Chamber of Commerce","LOCAL","OTHER PARTNERS",1,6,11650,{"$nulls":5},true]
[null,"Charleston City Marina and Boatyard","LOCAL","GOVERNMENT",1,1,13338,{"$nulls":5},true]
[null,"Charleston County Emergency Management Department","LOCAL","GOVERNMENT",1,1,13997,{"$nulls":5},true]
[null,"Charleston County Parks and Recreation Commission","LOCAL","GOVERNMENT",1,1,453,{"$nulls":5},true]
[null,"Charleston County Project Impact","LOCAL","GOVERNMENT",1,1,4963,{"$nulls":5},true]
[null,"Charleston County School District","LOCAL","GOVERNMENT",1,1,7120,{"$nulls":5},true]
[null,"Charleston County Soil and Water Conservation District","LOCAL","GOVERNMENT",1,1,7125,{"$nulls":5},true]
[null,"Charleston County, SC","LOCAL","GOVERNMENT",1,1,4917,{"$nulls":5},true]
[null,"Charleston Development Academy","LOCAL","ACADEMIC INSTITUTION",1,4,16194,{"$nulls":5},true]
[null,"Charleston Homeownership Center","LOCAL","NGO",1,2,454,{"$nulls":5},true]
[null,"Charleston Marina, OR","LOCAL","INDUSTRY AND BUSINESS",1,3,10102,{"$nulls":5},true]
[null,"Charleston Metro Chamber of Commerce","LOCAL","INDUSTRY AND BUSINESS",1,3,455,{"$nulls":5},true]
[null,"Charleston Oyster and Shrimp Company","LOCAL","INDUSTRY AND BUSINESS",1,3,11153,{"$nulls":5},true]
[null,"Charleston Oyster Company","LOCAL","INDUSTRY AND BUSINESS",1,3,13354,{"$nulls":5},true]
[null,"Charleston Police Department","LOCAL","GOVERNMENT",1,1,10901,{"$nulls":5},true]
[null,"Charleston Resilience Network","LOCAL","OTHER PARTNERS",1,6,16959,{"$nulls":5},true]
[null,"Charleston Sail and Power Squadron","LOCAL","OTHER PARTNERS",1,6,13341,{"$nulls":5},true]
[null,"Charleston School for the Arts","LOCAL","ACADEMIC INSTITUTION",1,4,5666,{"$nulls":5},true]
[null,"Charleston School of Law","LOCAL","ACADEMIC INSTITUTION",1,4,7136,{"$nulls":5},true]
[null,"Charleston SCUBA","LOCAL","INDUSTRY AND BUSINESS",1,3,7103,{"$nulls":5},true]
[null,"Charleston Trident Association of Realtors","LOCAL","NGO",1,2,13362,{"$nulls":5},true]
[null,"Charleston Water System","LOCAL","INDUSTRY AND BUSINESS",1,3,4950,{"$nulls":5},true]
[null,"Charleston Waterkeeper","LOCAL","NGO",1,2,4955,{"$nulls":5},true]
[null,"Charleston, SC","LOCAL","GOVERNMENT",1,1,4916,{"$nulls":5},true]
[null,"Charlevoix, MI","LOCAL","OTHER PARTNERS",1,6,12460,{"$nulls":5},true]
[null,"Charlier Associates, Inc.","FEDERAL or NATIONAL","INDUSTRY AND BUSINESS",4,3,456,{"$nulls":5},true]
[null,"Charlie's Aquarium","LOCAL","INDUSTRY AND BUSINESS",1,3,14820,{"$nulls":5},true]
[null,"Charlotte County","LOCAL","GOVERNMENT",1,1,12974,{"$nulls":5},true]
[null,"Charlotte Harbor National Estuary Program","STATE","GOVERNMENT",2,1,11239,{"$nulls":5},true]
[null,"Charlottesville Area Community Foundation","REGIONAL","OTHER PARTNERS",3,6,17359,{"$nulls":5},{"$f":"AND(  NOT(ISERROR(FIND(UPPER($B$7),UPPER($B1998),1))),  OR($D$7=\"\",NOT(ISERROR(FIND(UPPER($D$7),UPPER($B1998),1)))),    OR($D$8=\"\",(ISERROR(FIND(UPPER($D$8),UPPER($B1998),1))))           )","v":true}]
[null,"Charm City SCUBA (Dive assistance)","LOCAL","INDUSTRY AND BUSINESS",1,3,11240,{"$nulls":5},true]
[null,"Charybdis Group","FEDERAL or NATIONAL","INDUSTRY AND BUSINESS",4,3,13832,{"$nulls":5},true]
[null,"Chatham County Cooperative Extension and Master Gardeners","LOCAL","NGO",1,2,10313,{"$nulls":5},true]
[null,"Cheaspeake Storm Water Network","REGIONAL","NGO",3,2,6706,{"$nulls":5},true]
[null,"Chef John Maxwell","LOCAL","INDUSTRY AND BUSINESS",1,3,459,{"$nulls":5},true]
[null,"Chelsea Farms","LOCAL","INDUSTRY AND BUSINESS",1,3,461,{"$nulls":5},true]
[null,"Chesapeake Bay Commission","REGIONAL","INDUSTRY AND BUSINESS",3,3,4570,{"$nulls":5},true]
[null,"Chesapeake Bay Governor’s School","STATE","ACADEMIC INSTITUTION",2,4,466,{"$nulls":5},true]
[null,"Chesapeake Bay Oyster Company","LOCAL","INDUSTRY AND BUSINESS",1,3,8972,{"$nulls":5},true]
[null,"Chesapeake Climate Action Network","REGIONAL","NGO",3,2,13666,{"$nulls":5},true]
[null,"Chesapeake Fish Company (CFC)","REGIONAL","GOVERNMENT",3,1,3353,{"$nulls":5},true]
[null,"Chessie Seafood","LOCAL","INDUSTRY AND BUSINESS",1,3,7302,{"$nulls":5},{"$f":"AND(  NOT(ISERROR(FIND(UPPER($B$7),UPPER($B2062),1))),  OR($D$7=\"\",NOT(ISERROR(FIND(UPPER($D$7),UPPER($B2062),1)))),    OR($D$8=\"\",(ISERROR(FIND(UPPER($D$8),UPPER($B2062),1))))           )","v":true}]
[null,"Chesterfield Heights Civic League","LOCAL","NGO",1,2,13646,{"$nulls":5},true]
[null,"Chevron Refineries","INTERNATIONAL","INDUSTRY AND BUSINESS",5,3,473,{"$nulls":5},true]
[null,"Chicago High School for Agricultureal Sciences","Unknown","Unknown",0,0,9680,{"$nulls":5},true]
[null,"Chicago Metropolitan Water Reclamation District of Greater Chicago","LOCAL","GOVERNMENT",1,1,10368,{"$nulls":5},true]
[null,"Chicago Wilderness","LOCAL","NGO",1,2,481,{"$nulls":5},true]
[null,"Chico Mendes Institute for Biodiversity Conservation","INTERNATIONAL","NGO",5,2,16479,{"$nulls":5},true]
[null,"Child Development Lab McPhaul Center","LOCAL","NGO",1,2,10352,{"$nulls":5},true]
[null,"Chinese Academy of Sciences","INTERNATIONAL","GOVERNMENT",5,1,483,{"$nulls":5},true]
[null,"Choice Oysters LLC","LOCAL","INDUSTRY AND BUSINESS",1,3,8265,{"$nulls":5},true]
[null,"Christie Printing Company","LOCAL","INDUSTRY AND BUSINESS",1,3,486,{"$nulls":5},true]
[null,"Chugach Heritage Foundation","REGIONAL","NGO",3,2,5386,{"$nulls":5},true]
[null,"Chums of Terrell Cove","LOCAL","OTHER PARTNERS",1,6,14065,{"$nulls":5},true]
[null,"Citizens Environmental Coalition-Houston","LOCAL","NGO",1,2,12224,{"$nulls":5},true]
[null,"Citizens of Kitsap County","LOCAL","NGO",1,2,488,{"$nulls":5},true]
[null,"City and County of Honolulu, Environmental Services","LOCAL","GOVERNMENT",1,1,494,{"$nulls":5},true]
[null,"City of Anacortes, WA","LOCAL","GOVERNMENT",1,1,8400,{"$nulls":5},true]
[null,"City of Angleton Recreation Center","LOCAL","GOVERNMENT",1,1,12226,{"$nulls":5},true]
[null,"City of Au Train, MI","STATE","INDUSTRY AND BUSINESS",2,3,3962,{"$nulls":5},true]
[null,"City of Bay St. Louis, MS","LOCAL","GOVERNMENT",1,1,6518,{"$nulls":5},true]
[null,"City of Biloxi, MS","LOCAL","GOVERNMENT",1,1,499,{"$nulls":5},true]
[null,"City of Bridgeport, CT","LOCAL","GOVERNMENT",1,1,5122,{"$nulls":5},true]
[null,"City of Camden","LOCAL","GOVERNMENT",1,1,7703,{"$nulls":5},true]
[null,"City of Cannon Beach, Oregon","LOCAL","GOVERNMENT",1,1,14546,{"$nulls":5},true]
[null,"City of Charleston Department of Public Service","LOCAL","GOVERNMENT",1,1,14306,{"$nulls":5},true]
[null,"City of Chicago, IL","LOCAL","GOVERNMENT",1,1,502,{"$nulls":5},true]
[null,"City of Cleveland, Ohio","LOCAL","GOVERNMENT",1,1,11433,{"$nulls":5},true]
[null,"City of Cornucopia, Wis.","LOCAL","GOVERNMENT",1,1,11434,{"$nulls":5},true]
[null,"City of Cottage Grove, OR","LOCAL","GOVERNMENT",1,1,10105,{"$nulls":5},true]
[null,"City of Daphne, AL","LOCAL","GOVERNMENT",1,1,6520,{"$nulls":5},true]
[null,"City of Des Moines Marina","LOCAL","INDUSTRY AND BUSINESS",1,3,4347,{"$nulls":5},true]
[null,"City of Dickinson, TX","LOCAL","GOVERNMENT",1,1,6160,{"$nulls":5},true]
[null,"City of Duluth, MN School District","LOCAL","GOVERNMENT",1,1,511,{"$nulls":5},true]
[null,"City of East Providence, RI","LOCAL","GOVERNMENT",1,1,514,{"$nulls":5},true]
[null,"City of Evanston","LOCAL","GOVERNMENT",1,1,14790,{"$nulls":5},true]
[null,"City of Forest Lake","LOCAL","GOVERNMENT",1,1,15110,{"$nulls":5},true]
[null,"City of Ft. Lauderdale","LOCAL","GOVERNMENT",1,1,16951,{"$nulls":5},true]
[null,"City of Gary, IN, Department of Environment","LOCAL","GOVERNMENT",1,1,9399,{"$nulls":5},true]
[null,"City of Grand Marais, Parks and Recreation","LOCAL","GOVERNMENT",1,1,8773,{"$nulls":5},true]
[null,"City of Gulfport","LOCAL","GOVERNMENT",1,1,12938,{"$nulls":5},true]
[null,"City of Hermosa Beach","LOCAL","GOVERNMENT",1,1,7992,{"$nulls":5},true]
[null,"City of Holland, Mich.","LOCAL","GOVERNMENT",1,1,11436,{"$nulls":5},true]
[null,"City of Jacksonville, NC","LOCAL","GOVERNMENT",1,1,12669,{"$nulls":5},true]
[null,"City of Laguna Beach, CA","LOCAL","GOVERNMENT",1,1,523,{"$nulls":5},true]
[null,"City of Lake Stevens, WA","LOCAL","GOVERNMENT",1,1,10503,{"$nulls":5},true]
[null,"City of Long Beach, CA","LOCAL","GOVERNMENT",1,1,13630,{"$nulls":5},true]
[null,"City of Los Angeles Office of Sustainability","LOCAL","GOVERNMENT",1,1,10730,{"$nulls":5},true]
[null,"City of Malibu, CA","LOCAL","GOVERNMENT",1,1,529,{"$nulls":5},true]
[null,"City of Marina del Rey, CA","LOCAL","GOVERNMENT",1,1,6719,{"$nulls":5},true]
[null,"City of Medina, Ohio","LOCAL","GOVERNMENT",1,1,15281,{"$nulls":5},true]
[null,"City of Mobile, Mayor's Office","LOCAL","GOVERNMENT",1,1,6528,{"$nulls":5},true]
[null,"City of New Baltimore","LOCAL","GOVERNMENT",1,1,15312,{"$nulls":5},true]
[null,"City of New Bedford","LOCAL","GOVERNMENT",1,1,8872,{"$nulls":5},true]
[null,"City of Newport Beach, CA","LOCAL","GOVERNMENT",1,1,533,{"$nulls":5},true]
[null,"City of Orange Beach, AL","LOCAL","GOVERNMENT",1,1,536,{"$nulls":5},true]
[null,"City of Oregon, Ohio","LOCAL","GOVERNMENT",1,1,15282,{"$nulls":5},true]
[null,"City of Palacios","LOCAL","GOVERNMENT",1,1,13025,{"$nulls":5},true]
[null,"City of Poplarville, MS","LOCAL","GOVERNMENT",1,1,6533,{"$nulls":5},true]
[null,"City of Poquoson, VA","LOCAL","GOVERNMENT",1,1,5482,{"$nulls":5},true]
[null,"City of Portsmouth, NH","LOCAL","GOVERNMENT",1,1,3792,{"$nulls":5},true]
[null,"City of Providence","LOCAL","GOVERNMENT",1,1,12392,{"$nulls":5},true]
[null,"City of Providence, RI","LOCAL","GOVERNMENT",1,1,542,{"$nulls":5},true]
[null,"City of Rock Hill","STATE","GOVERNMENT",2,1,16195,{"$nulls":5},true]
[null,"City of Rockport, TX","LOCAL","GOVERNMENT",1,1,6126,{"$nulls":5},true]
[null,"City of Saginaw, Mich.","LOCAL","GOVERNMENT",1,1,11444,{"$nulls":5},true]
[null,"City of Savannah","LOCAL","GOVERNMENT",1,1,10343,{"$nulls":5},true]
[null,"City of Shaktoolik","LOCAL","GOVERNMENT",1,1,8255,{"$nulls":5},true]
[null,"City of Shore Acres, TX","LOCAL","GOVERNMENT",1,1,6148,{"$nulls":5},true]
[null,"City of Spanish Fort, AL","LOCAL","GOVERNMENT",1,1,6536,{"$nulls":5},true]
[null,"City of Superior, MN Waste Water Treatment Plant","LOCAL","GOVERNMENT",1,1,6233,{"$nulls":5},true]
[null,"City of Tangent, OR","LOCAL","GOVERNMENT",1,1,10115,{"$nulls":5},true]
[null,"City of Toms River","LOCAL","GOVERNMENT",1,1,15038,{"$nulls":5},true]
[null,"City of Ventura","LOCAL","GOVERNMENT",1,1,15118,{"$nulls":5},true]
[null,"City of Warrenton, OR","LOCAL","GOVERNMENT",1,1,14504,{"$nulls":5},true]
[null,"City of Wheeler-Citizens & Managers","STATE","GOVERNMENT",2,1,6339,{"$nulls":5},true]
[null,"City of Worcester, MA","LOCAL","GOVERNMENT",1,1,7017,{"$nulls":5},true]
[null,"City, Water, Light, and Power","LOCAL","NGO",1,2,14984,{"$nulls":5},true]
[null,"Clallam County Board of County Commissioners","LOCAL","GOVERNMENT",1,1,4244,{"$nulls":5},true]
[null,"Clam Acres","LOCAL","INDUSTRY AND BUSINESS",1,3,557,{"$nulls":5},true]
[null,"ClarkNexsen","FEDERAL or NATIONAL","INDUSTRY AND BUSINESS",4,3,15594,{"$nulls":5},true]
[null,"Clausen Oysters","Unknown","INDUSTRY AND BUSINESS",0,3,11653,{"$nulls":5},true]
[null,"Clean Beaches Council","FEDERAL or NATIONAL","NGO",4,2,563,{"$nulls":5},true]
[null,"Clean Water Kitsap","LOCAL","NGO",1,2,13164,{"$nulls":5},true]
[null,"Clear Lake City Water Authority","LOCAL","GOVERNMENT",1,1,6120,{"$nulls":5},true]
[null,"Clemson University","STATE","ACADEMIC INSTITUTION",2,4,567,{"$nulls":5},true]
[null,"Cleveland State University (CSUOhio)","STATE","ACADEMIC INSTITUTION",2,4,569,{"$nulls":5},true]
[null,"Climate Central","Unknown","NGO",0,2,13013,{"$nulls":5},true]
[null,"Climate Observation Division (US DOC, NOAA, OAR)","FEDERAL or NATIONAL","GOVERNMENT",4,1,5640,{"$nulls":5},true]
[null,"Clinton Bait and Tackle","LOCAL","INDUSTRY AND BUSINESS",1,3,16117,{"$nulls":5},true]
[null,"CMU Institute for Great Lakes Research","STATE","ACADEMIC INSTITUTION",2,4,10924,{"$nulls":5},true]
[null,"Coast Electric Power Association","STATE","INDUSTRY AND BUSINESS",2,3,6541,{"$nulls":5},true]
[null,"Coastal Advisory Council (GA DNR, CAC)","STATE","GOVERNMENT",2,1,574,{"$nulls":5},true]
[null,"Coastal and Estuarine Research Federation","Unknown","Unknown",0,0,6939,{"$nulls":5},true]
[null,"Coastal Carolina Climate Program","STATE","GOVERNMENT",2,1,3860,{"$nulls":5},true]
[null,"Coastal Communities (TBD)","Unknown","Unknown",0,0,9993,{"$nulls":5},true]
[null,"coastal counties of Florida","Unknown","Unknown",0,0,9644,{"$nulls":5},true]
[null,"Coastal Ecosystem Institute of Northern California","LOCAL","NGO",1,2,5087,{"$nulls":5},true]
[null,"Coastal Georgia Regional Development Center","REGIONAL","NGO",3,2,582,{"$nulls":5},true]
[null,"Coastal Management Branch (US EPA)","FEDERAL or NATIONAL","GOVERNMENT",4,1,5590,{"$nulls":5},true]
[null,"Coastal Ocean Analytics","LOCAL","INDUSTRY AND BUSINESS",1,3,9337,{"$nulls":5},true]
[null,"Coastal Prairie Partnership","REGIONAL","NGO",3,2,6112,{"$nulls":5},true]
[null,"Coastal States Organization","REGIONAL","NGO",3,2,11479,{"$nulls":5},true]
[null,"Coastal States Organization (CSO)","FEDERAL or NATIONAL","NGO",4,2,590,{"$nulls":5},true]
[null,"Coastal Watershed Institute","LOCAL","NGO",1,2,8407,{"$nulls":5},true]
[null,"Cobscook Bay Resource Center","REGIONAL","NGO",3,2,594,{"$nulls":5},true]
[null,"Coca-Cola Bottling Company of Mobile","INTERNATIONAL","INDUSTRY AND BUSINESS",5,3,595,{"$nulls":5},true]
[null,"Cold Spring Fish and Supply Company","LOCAL","INDUSTRY AND BUSINESS",1,3,7522,{"$nulls":5},true]
[null,"College of Exploration","LOCAL","INDUSTRY AND BUSINESS",1,3,6261,{"$nulls":5},true]
[null,"College of Micronesia","REGIONAL","ACADEMIC INSTITUTION",3,4,12576,{"$nulls":5},true]
[null,"College of William and Mary","STATE","ACADEMIC INSTITUTION",2,4,5493,{"$nulls":5},true]
[null,"College of William and Mary, Public Policy School","STATE","ACADEMIC INSTITUTION",2,4,17469,{"$nulls":5},true]
[null,"College of William and Mary, School of Education","STATE","ACADEMIC INSTITUTION",2,4,10772,{"$nulls":5},true]
[null,"Collins Oyster Co.","Unknown","Unknown",0,0,9711,{"$nulls":5},true]
[null,"Columbia Association","LOCAL","NGO",1,2,9304,{"$nulls":5},{"$f":"AND(  NOT(ISERROR(FIND(UPPER($B$7),UPPER($B2830),1))),  OR($D$7=\"\",NOT(ISERROR(FIND(UPPER($D$7),UPPER($B2830),1)))),    OR($D$8=\"\",(ISERROR(FIND(UPPER($D$8),UPPER($B2830),1))))           )","v":true}]
[null,"Columbia County","LOCAL","GOVERNMENT",1,1,603,{"$nulls":5},true]
[null,"Columbia River Tribes","Tribal","GOVERNMENT",13,1,6340,{"$nulls":5},true]
[null,"Comisión Nacional de Areas Naturales Protegidas, México (CONAMP)","INTERNATIONAL","GOVERNMENT",5,1,14129,{"$nulls":5},true]
[null,"Commercial Fisheries News","FEDERAL or NATIONAL","INDUSTRY AND BUSINESS",4,3,611,{"$nulls":5},true]
[null,"Committee on the Environment","INTERNATIONAL","OTHER PARTNERS",5,6,613,{"$nulls":5},true]
[null,"Common Ground Initiative","Unknown","Unknown",0,0,9712,{"$nulls":5},true]
[null,"Communities for a Better Environment (CBE)","LOCAL","NGO",1,2,13631,{"$nulls":5},true]
[null,"Community Fisheries Network","FEDERAL or NATIONAL","NGO",4,2,16803,{"$nulls":5},true]
[null,"Community Futures","LOCAL","INDUSTRY AND BUSINESS",1,3,13749,{"$nulls":5},true]
[null,"Compass Cove Oceanfront Myrtle Beach Resort","LOCAL","INDUSTRY AND BUSINESS",1,3,15138,{"$nulls":5},true]
[null,"Condor Cruises","LOCAL","INDUSTRY AND BUSINESS",1,3,7996,{"$nulls":5},true]
[null,"Confederated Tribes of the Umatilla Indian Reservation","Tribal","GOVERNMENT",13,1,620,{"$nulls":5},true]
[null,"Connecticut Association of Land Surveyors","REGIONAL","GOVERNMENT",3,1,8935,{"$nulls":5},true]
[null,"Connecticut College","STATE","ACADEMIC INSTITUTION",2,4,624,{"$nulls":5},true]
[null,"Connecticut Department of Environmental Protection—Inland Fisheries Program (CT DEP)","STATE","GOVERNMENT",2,1,629,{"$nulls":5},true]
[null,"Connecticut Department of Transportation","STATE","GOVERNMENT",2,1,5896,{"$nulls":5},true]
[null,"Connecticut Institute for Resilience and Climate Adaptation","STATE","ACADEMIC INSTITUTION",2,4,13874,{"$nulls":5},true]
[null,"Connecticut school districts and teachers","STATE","ACADEMIC INSTITUTION",2,4,642,{"$nulls":5},true]
[null,"Conoco Phillips Earth Energy Partners Program","FEDERAL or NATIONAL","INDUSTRY AND BUSINESS",4,3,5424,{"$nulls":5},true]
[null,"Conservation International Fund","INTERNATIONAL","NGO",5,2,13934,{"$nulls":5},true]
[null,"Consolate of Canada","INTERNATIONAL","GOVERNMENT",5,1,7322,{"$nulls":5},true]
[null,"Consumers Energy","STATE","INDUSTRY AND BUSINESS",2,3,6005,{"$nulls":5},true]
[null,"Converteam Naval Systems","Unknown","INDUSTRY AND BUSINESS",0,3,6868,{"$nulls":5},true]
[null,"Cook County, MN Soil and Water Conservation District","LOCAL","GOVERNMENT",1,1,6234,{"$nulls":5},true]
[null,"Cooke Aquaculture","LOCAL","INDUSTRY AND BUSINESS",1,3,6886,{"$nulls":5},true]
[null,"Cooperative Educational Service Area 6","LOCAL","ACADEMIC INSTITUTION",1,4,9592,{"$nulls":5},true]
[null,"Cooperative Institute of Limnology and Ecosystems Research","REGIONAL","ACADEMIC INSTITUTION",3,4,5987,{"$nulls":5},true]
[null,"Cooperative Way","STATE","INDUSTRY AND BUSINESS",2,3,10579,{"$nulls":5},true]
[null,"Coos County","LOCAL","GOVERNMENT",1,1,660,{"$nulls":5},{"$f":"AND(  NOT(ISERROR(FIND(UPPER($B$7),UPPER($B3022),1))),  OR($D$7=\"\",NOT(ISERROR(FIND(UPPER($D$7),UPPER($B3022),1)))),    OR($D$8=\"\",(ISERROR(FIND(UPPER($D$8),UPPER($B3022),1))))           )","v":true}]
[null,"Coral Reef Alliance (CORAL)","INTERNATIONAL","NGO",5,2,12381,{"$nulls":5},true]
[null,"Coral Reef Watch (US DOC, NOAA, NESDIS)","FEDERAL or NATIONAL","GOVERNMENT",4,1,5594,{"$nulls":5},true]
[null,"Cordova High School","LOCAL","ACADEMIC INSTITUTION",1,4,666,{"$nulls":5},true]
[null,"Corinthian Yacht Club","LOCAL","INDUSTRY AND BUSINESS",1,3,10674,{"$nulls":5},true]
[null,"Cornell University Yang-Tan Institute","STATE","ACADEMIC INSTITUTION",2,4,14884,{"$nulls":5},true]
[null,"Corpus Christi Chamber of Commerce/Harvey Weil Foundation","LOCAL","INDUSTRY AND BUSINESS",1,3,7606,{"$nulls":5},true]
[null,"Corsica River Yacht Club","LOCAL","INDUSTRY AND BUSINESS",1,3,15884,{"$nulls":5},true]
[null,"Council For National Cooperation In Aquatics","Unknown","Unknown",0,0,3523,{"$nulls":5},true]
[null,"Council on Environmental Quality, White House National Security Council","FEDERAL or NATIONAL","GOVERNMENT",4,1,13029,{"$nulls":5},{"$f":"AND(  NOT(ISERROR(FIND(UPPER($B$7),UPPER($B3086),1))),  OR($D$7=\"\",NOT(ISERROR(FIND(UPPER($D$7),UPPER($B3086),1)))),    OR($D$8=\"\",(ISERROR(FIND(UPPER($D$8),UPPER($B3086),1))))           )","v":true}]
[null,"Counterpart International","INTERNATIONAL","NGO",5,2,11164,{"$nulls":5},true]
[null,"County of Del Norte, CA","STATE","GOVERNMENT",2,1,3320,{"$nulls":5},true]
[null,"Covenant Presbyterian Church School","LOCAL","ACADEMIC INSTITUTION",1,4,12239,{"$nulls":5},true]
[null,"Coym, Rehmet, & Gutierrez Engineering LP","LOCAL","INDUSTRY AND BUSINESS",1,3,15379,{"$nulls":5},true]
[null,"Cranbrook Institse of Science","REGIONAL","NGO",3,2,9116,{"$nulls":5},true]
[null,"Creative Caretaking","LOCAL","INDUSTRY AND BUSINESS",1,3,683,{"$nulls":5},true]
[null,"CRECEMOS","LOCAL","NGO",1,2,8884,{"$nulls":5},true]
[null,"Crowley Marine","LOCAL","OTHER PARTNERS",1,6,689,{"$nulls":5},true]
[null,"Crystal Coast Fisheries","LOCAL","INDUSTRY AND BUSINESS",1,3,691,{"$nulls":5},true]
[null,"Crystal Cove Alliance","LOCAL","NGO",1,2,10704,{"$nulls":5},true]
[null,"Cumberland County Improvement Authority","LOCAL","GOVERNMENT",1,1,7531,{"$nulls":5},true]
[null,"Currituck County Cooperative Extension","LOCAL","ACADEMIC INSTITUTION",1,4,10222,{"$nulls":5},true]
[null,"Customs and Border Protection (US DHS)","FEDERAL or NATIONAL","GOVERNMENT",4,1,13082,{"$nulls":5},true]
[null,"D and E Septic Service Inc.","LOCAL","INDUSTRY AND BUSINESS",1,3,697,{"$nulls":5},true]
[null,"Dalhousie University","INTERNATIONAL","ACADEMIC INSTITUTION",5,4,3818,{"$nulls":5},true]
[null,"Danbury Independent School District","LOCAL","ACADEMIC INSTITUTION",1,4,12240,{"$nulls":5},true]
[null,"Dantec","INTERNATIONAL","INDUSTRY AND BUSINESS",5,3,8216,{"$nulls":5},true]
[null,"Dare County InterFaith Agency","LOCAL","NGO",1,2,7691,{"$nulls":5},true]
[null,"Dare Marina","LOCAL","INDUSTRY AND BUSINESS",1,3,7209,{"$nulls":5},true]
[null,"Dartmouth College","STATE","ACADEMIC INSTITUTION",2,4,704,{"$nulls":5},true]
[null,"Dauphin Island Sea Lab","FEDERAL or NATIONAL","ACADEMIC INSTITUTION",4,4,708,{"$nulls":5},true]
[null,"David L. Knight","LOCAL","INDUSTRY AND BUSINESS",1,3,11011,{"$nulls":5},true]
[null,"DD Denotta Seafood Company","LOCAL","INDUSTRY AND BUSINESS",1,3,7383,{"$nulls":5},true]
[null,"Debordieu Community Association, SC","LOCAL","OTHER PARTNERS",1,6,4600,{"$nulls":5},true]
[null,"Deep Sea Fishermen’s Union","FEDERAL or NATIONAL","NGO",4,2,711,{"$nulls":5},true]
[null,"DeGraff Nature Center","LOCAL","NGO",1,2,712,{"$nulls":5},true]
[null,"Delaware Bay and River Cooperative Inc.","REGIONAL","INDUSTRY AND BUSINESS",3,3,7675,{"$nulls":5},true]
[null,"Delaware Department of Education","STATE","GOVERNMENT",2,1,9355,{"$nulls":5},true]
[null,"Delaware Department of Transportation","STATE","GOVERNMENT",2,1,5728,{"$nulls":5},{"$f":"AND(  NOT(ISERROR(FIND(UPPER($B$7),UPPER($B3278),1))),  OR($D$7=\"\",NOT(ISERROR(FIND(UPPER($D$7),UPPER($B3278),1)))),    OR($D$8=\"\",(ISERROR(FIND(UPPER($D$8),UPPER($B3278),1))))           )","v":true}]
[null,"Delaware Forest Service","STATE","GOVERNMENT",2,1,5732,{"$nulls":5},true]
[null,"Delaware Nature Society","STATE","OTHER PARTNERS",2,6,5737,{"$nulls":5},true]
[null,"Delaware Science Coalition","STATE","OTHER PARTNERS",2,6,9358,{"$nulls":5},true]
[null,"Delaware State Parks (DNREC)","STATE","GOVERNMENT",2,1,723,{"$nulls":5},true]
[null,"Delaware Valley Regional Planning Commission","LOCAL","GOVERNMENT",1,1,14605,{"$nulls":5},true]
[null,"Delmarva Low Impact Tourism Experiences (DLITE)","REGIONAL","OTHER PARTNERS",3,6,5743,{"$nulls":5},true]
[null,"Deltaville Business Initiative","LOCAL","INDUSTRY AND BUSINESS",1,3,10775,{"$nulls":5},true]
[null,"Department of Agricultural and Biological Engineering, Purdue University","STATE","ACADEMIC INSTITUTION",2,4,9388,{"$nulls":5},true]
[null,"Department of Energy (US DOE)","Unknown","Unknown",0,0,11052,{"$nulls":5},true]
[null,"Department of Homeland Security","FEDERAL or NATIONAL","GOVERNMENT",4,1,17588,{"$nulls":5},true]
[null,"Dept of Natural Resources Chesapeake and Coastal Services","STATE","GOVERNMENT",2,1,14562,{"$nulls":5},true]
[null,"Dept. of Biology/Large Lakes Observatory, Univ. of Minnesota Duluth","Unknown","Unknown",0,0,15688,{"$nulls":5},true]
[null,"Destination Erie","LOCAL","NGO",1,2,10682,{"$nulls":5},true]
[null,"Detroit Riverfront Conservancy","LOCAL","NGO",1,2,733,{"$nulls":5},true]
[null,"Diablo Canyon Power Plant","LOCAL","INDUSTRY AND BUSINESS",1,3,13253,{"$nulls":5},true]
[null,"Diane Banta National Park Service","LOCAL","GOVERNMENT",1,1,14753,{"$nulls":5},true]
[null,"Dillingham Planning Commission","LOCAL","GOVERNMENT",1,1,738,{"$nulls":5},true]
[null,"Discovery Kayak","LOCAL","INDUSTRY AND BUSINESS",1,3,7359,{"$nulls":5},true]
[null,"Dispersion Research on Oil: Physics and Plankton Studies (DROPPS)","REGIONAL","ACADEMIC INSTITUTION",3,4,12241,{"$nulls":5},true]
[null,"Distraction Fishing Charters","LOCAL","INDUSTRY AND BUSINESS",1,3,6555,{"$nulls":5},true]
[null,"Division of Mitigation Services, NC Department of Environmental Quality","STATE","GOVERNMENT",2,1,14443,{"$nulls":5},true]
[null,"Division of Ocean Sciences (NSF)","FEDERAL or NATIONAL","GOVERNMENT",4,1,5641,{"$nulls":5},true]
[null,"Division of Water Resources, Watershed Assessment Branch  (DE DNREC )","STATE","GOVERNMENT",2,1,5723,{"$nulls":5},true]
[null,"Dockside Charters","LOCAL","INDUSTRY AND BUSINESS",1,3,14226,{"$nulls":5},true]
[null,"Dockside Fish Market","LOCAL","INDUSTRY AND BUSINESS",1,3,7297,{"$nulls":5},true]
[null,"Dominion Nuclear Millstone Environmental Laboratory","FEDERAL or NATIONAL","INDUSTRY AND BUSINESS",4,3,743,{"$nulls":5},true]
[null,"Door County Maritime Museum","LOCAL","NGO",1,2,745,{"$nulls":5},true]
[null,"Door County, WI","LOCAL","GOVERNMENT",1,1,3704,{"$nulls":5},true]
[null,"Douglas Island Pink and Chum Inc.","LOCAL","NGO",1,2,748,{"$nulls":5},true]
[null,"Downeast Institute for Applied Marine Research and Education","LOCAL","NGO",1,2,9338,{"$nulls":5},true]
[null,"Downeast Salmon Federation","LOCAL","NGO",1,2,8533,{"$nulls":5},true]
[null,"Draco Marine Aquaculture","LOCAL","NGO",1,2,4605,{"$nulls":5},true]
[null,"Drift Creek Camp","LOCAL","Unknown",1,0,14229,{"$nulls":5},true]
[null,"DTE Energy","FEDERAL or NATIONAL","INDUSTRY AND BUSINESS",4,3,752,{"$nulls":5},true]
[null,"Duke University Nicholas Institute for Environmental Policy Solutions","STATE","ACADEMIC INSTITUTION",2,4,16991,{"$nulls":5},true]
[null,"Duluth Boat Club","LOCAL","NGO",1,2,6294,{"$nulls":5},true]
[null,"Duluth Port Authority","LOCAL","INDUSTRY AND BUSINESS",1,3,757,{"$nulls":5},true]
[null,"Dunes Properties®","FEDERAL or NATIONAL","OTHER PARTNERS",4,6,758,{"$nulls":5},true]
[null,"Dunlap Towing","REGIONAL","INDUSTRY AND BUSINESS",3,3,7453,{"$nulls":5},true]
[null,"E & K Shellfish","STATE","INDUSTRY AND BUSINESS",2,3,10630,{"$nulls":5},true]
[null,"Earth Science Information Partners (ESIP)","Unknown","OTHER PARTNERS",0,6,16589,{"$nulls":5},true]
[null,"EarthEcho International","INTERNATIONAL","NGO",5,2,14437,{"$nulls":5},true]
[null,"East Beach Blondes","REGIONAL","INDUSTRY AND BUSINESS",3,3,12398,{"$nulls":5},true]
[null,"East Central Florida Regional Planning Council","REGIONAL","GOVERNMENT",3,1,12985,{"$nulls":5},true]
[null,"East Coast Molluscan Health Advisory Panel","REGIONAL","OTHER PARTNERS",3,6,16193,{"$nulls":5},true]
[null,"Eastern Carolina University","STATE","ACADEMIC INSTITUTION",2,4,15760,{"$nulls":5},true]
[null,"Eastern Lake Ontario Dunes Coalition","LOCAL","NGO",1,2,14890,{"$nulls":5},true]
[null,"Eastern Shore Community College","STATE","ACADEMIC INSTITUTION",2,4,10777,{"$nulls":5},true]
[null,"Eastman's Fresh Catch","STATE","INDUSTRY AND BUSINESS",2,3,3812,{"$nulls":5},true]
[null,"Eatontown Environmental Commission","LOCAL","GOVERNMENT",1,1,9069,{"$nulls":5},true]
[null,"Ecole des Mines de Paris, Centre de Geostatistic","INTERNATIONAL","GOVERNMENT",5,1,771,{"$nulls":5},true]
[null,"Ecological and Health Processes Branch - Nutrients Team (US EPA, S&T)","FEDERAL or NATIONAL","GOVERNMENT",4,1,5599,{"$nulls":5},true]
[null,"EcoMicrobials, LLS","FEDERAL or NATIONAL","INDUSTRY AND BUSINESS",4,3,774,{"$nulls":5},true]
[null,"EcoSphere Associates","STATE","INDUSTRY AND BUSINESS",2,3,13276,{"$nulls":5},true]
[null,"Ecotrust","INTERNATIONAL","NGO",5,2,776,{"$nulls":5},true]
[null,"ECU Coastal Maritime Council","STATE","OTHER PARTNERS",2,6,15320,{"$nulls":5},true]
[null,"EdibleWOW Magazine","STATE","INDUSTRY AND BUSINESS",2,3,12463,{"$nulls":5},true]
[null,"Edisto Beach, SC","LOCAL","GOVERNMENT",1,1,4938,{"$nulls":5},true]
[null,"Education for Environment and Sustainability, Office of the Superintendent of Public Instruction, State of Washington","STATE","GOVERNMENT",2,1,4508,{"$nulls":5},true]
[null,"Education Northwest","REGIONAL","INDUSTRY AND BUSINESS",3,3,10122,{"$nulls":5},true]
[null,"Edwards Seafood","LOCAL","INDUSTRY AND BUSINESS",1,3,7212,{"$nulls":5},true]
[null,"Eightmile River Wild & Scenic Watershed","LOCAL","NGO",1,2,5131,{"$nulls":5},true]
[null,"Elizabeth City State University","STATE","ACADEMIC INSTITUTION",2,4,3840,{"$nulls":5},true]
[null,"Elkhorn Slough Foundation (ESF)","STATE","GOVERNMENT",2,1,3363,{"$nulls":5},true]
[null,"Emerald Coast Environmental Consulting","LOCAL","INDUSTRY AND BUSINESS",1,3,12995,{"$nulls":5},true]
[null,"Emerald Coast Wildlife Refuge (ECWR)","REGIONAL","NGO",3,2,6366,{"$nulls":5},true]
[null,"Enchanted Springs","Unknown","INDUSTRY AND BUSINESS",0,3,6957,{"$nulls":5},true]
[null,"Engineered Plastics, Inc.","STATE","INDUSTRY AND BUSINESS",2,3,6377,{"$nulls":5},true]
[null,"Engineering Enterprise, Inc","REGIONAL","INDUSTRY AND BUSINESS",3,3,7795,{"$nulls":5},true]
[null,"Environment Erie","LOCAL","NGO",1,2,7002,{"$nulls":5},true]
[null,"Environmental Defense Fund (EDF)","INTERNATIONAL","NGO",5,2,795,{"$nulls":5},true]
[null,"Environmental Educators Association of Alabama","STATE","NGO",2,2,9931,{"$nulls":5},true]
[null,"Environmental Protection Agency","Unknown","Unknown",0,0,9722,{"$nulls":5},true]
[null,"Environmental Studies Center, Mobile County Public School System","LOCAL","ACADEMIC INSTITUTION",1,4,6564,{"$nulls":5},true]
[null,"EPA Ecological and Health Processes Branch - Nutrients Team (EPA, EHPB)","Unknown","Unknown",0,0,14672,{"$nulls":5},true]
[null,"Ephraim, Village of","LOCAL","GOVERNMENT",1,1,8274,{"$nulls":5},true]
[null,"Erie County","LOCAL","GOVERNMENT",1,1,13949,{"$nulls":5},true]
[null,"Erie County Department of Health","LOCAL","GOVERNMENT",1,1,7007,{"$nulls":5},true]
[null,"Erie Insurance Company","REGIONAL","ACADEMIC INSTITUTION",3,4,805,{"$nulls":5},true]
[null,"Ernest Nishizaki, President of Kyo-ya Hotels and Resorts","INTERNATIONAL","INDUSTRY AND BUSINESS",5,3,8310,{"$nulls":5},true]
[null,"Escanaba Electric Plant","FEDERAL or NATIONAL","INDUSTRY AND BUSINESS",4,3,815,{"$nulls":5},true]
[null,"Essex Region Conservation Authority","REGIONAL","INDUSTRY AND BUSINESS",3,3,9244,{"$nulls":5},true]
[null,"Eugenides Foundation Planetarium","INTERNATIONAL","NGO",5,2,7637,{"$nulls":5},true]
[null,"Evanston Park District","LOCAL","GOVERNMENT",1,1,16141,{"$nulls":5},true]
[null,"Everingham Bros Bait Company","LOCAL","INDUSTRY AND BUSINESS",1,3,7999,{"$nulls":5},true]
[null,"Excel Academic League","LOCAL","ACADEMIC INSTITUTION",1,4,4182,{"$nulls":5},true]
[null,"Experimental Program to Stimulate Competitive Research (EPSCoR)","Unknown","Unknown",0,0,8913,{"$nulls":5},true]
[null,"Exxon Mobil","Unknown","Unknown",0,0,9723,{"$nulls":5},true]
[null,"F/V AK8739L","STATE","INDUSTRY AND BUSINESS",2,3,10961,{"$nulls":5},true]
[null,"F/V Grammy","STATE","INDUSTRY AND BUSINESS",2,3,10963,{"$nulls":5},true]
[null,"F/V Marshall Tito","LOCAL","INDUSTRY AND BUSINESS",1,3,4321,{"$nulls":5},true]
[null,"F/V Right Whale","STATE","INDUSTRY AND BUSINESS",2,3,10968,{"$nulls":5},true]
[null,"FA Hughes Construction","LOCAL","INDUSTRY AND BUSINESS",1,3,823,{"$nulls":5},true]
[null,"Fairfield University","STATE","ACADEMIC INSTITUTION",2,4,826,{"$nulls":5},true]
[null,"Fairview School District","LOCAL","ACADEMIC INSTITUTION",1,4,10697,{"$nulls":5},true]
[null,"Farm Bureau Mississippi","STATE","NGO",2,2,9933,{"$nulls":5},true]
[null,"Farm Service Agency, USDA","FEDERAL or NATIONAL","GOVERNMENT",4,1,12814,{"$nulls":5},true]
[null,"Faust Corporation","LOCAL","INDUSTRY AND BUSINESS",1,3,15298,{"$nulls":5},true]
[null,"Federación de Pescadores de Puerto Rico y Defensores Del Mar, Inc. (FEPDEMAR)","STATE","Unknown",2,0,8882,{"$nulls":5},true]
[null,"Federal Emergency Managmement Agency, Region X (US DHS, FEMA)","REGIONAL","GOVERNMENT",3,1,15073,{"$nulls":5},true]
[null,"Federal University of Amazonas","INTERNATIONAL","ACADEMIC INSTITUTION",5,4,16477,{"$nulls":5},true]
[null,"Federation of Independent Seafood Harvesters (FISH)","REGIONAL","ACADEMIC INSTITUTION",3,4,3365,{"$nulls":5},true]
[null,"FermiLab","FEDERAL or NATIONAL","NGO",4,2,837,{"$nulls":5},true]
[null,"Field Museum, Chicago","LOCAL","NGO",1,2,839,{"$nulls":5},true]
[null,"Fire Department, Isle of Palms SC","LOCAL","GOVERNMENT",1,1,14486,{"$nulls":5},true]
[null,"First State Marine Wind","REGIONAL","INDUSTRY AND BUSINESS",3,3,10734,{"$nulls":5},true]
[null,"Fish Planet","LOCAL","INDUSTRY AND BUSINESS",1,3,16147,{"$nulls":5},true]
[null,"Fisheries and Oceans Canada (DFO)","INTERNATIONAL","GOVERNMENT",5,1,409,{"$nulls":5},true]
[null,"Fisheries Leadership & Sustainability Forum","FEDERAL or NATIONAL","NGO",4,2,7638,{"$nulls":5},true]
[null,"Fishermen Advisory Committee for Tillamook (FACT)","LOCAL","INDUSTRY AND BUSINESS",1,3,8719,{"$nulls":5},true]
[null,"Fishermen's Energy","LOCAL","INDUSTRY AND BUSINESS",1,3,7306,{"$nulls":5},true]
[null,"Fishing Bay Marina","LOCAL","INDUSTRY AND BUSINESS",1,3,17370,{"$nulls":5},true]
[null,"Fishing Partnership","REGIONAL","NGO",3,2,10846,{"$nulls":5},true]
[null,"FishWise","LOCAL","NGO",1,2,6774,{"$nulls":5},true]
[null,"Fleets Island Oyster","LOCAL","INDUSTRY AND BUSINESS",1,3,17371,{"$nulls":5},true]
[null,"Flood Mitigation Hampton Roads","REGIONAL","INDUSTRY AND BUSINESS",3,3,13648,{"$nulls":5},true]
[null,"Florida Climate Institute","STATE","NGO",2,2,11163,{"$nulls":5},true]
[null,"Florida Department Of Natural Resources (FL DNR)","Unknown","Unknown",0,0,3534,{"$nulls":5},true]
[null,"Florida Fish and Wildlife Conservation Commission","Unknown","Unknown",0,0,9651,{"$nulls":5},true]
[null,"Florida Keys Commercial Fisherman’s Association","LOCAL","INDUSTRY AND BUSINESS",1,3,12980,{"$nulls":5},true]
[null,"Florida Ocean Alliance","STATE","NGO",2,2,861,{"$nulls":5},true]
[null,"Florida Ocean and Coastal Resources Council","STATE","NGO",2,2,862,{"$nulls":5},true]
[null,"Florida State College","Unknown","Unknown",0,0,15669,{"$nulls":5},{"$f":"AND(  NOT(ISERROR(FIND(UPPER($B$7),UPPER($B4110),1))),  OR($D$7=\"\",NOT(ISERROR(FIND(UPPER($D$7),UPPER($B4110),1)))),    OR($D$8=\"\",(ISERROR(FIND(UPPER($D$8),UPPER($B4110),1))))           )","v":true}]
[null,"FlowCam Inc.","INTERNATIONAL","INDUSTRY AND BUSINESS",5,3,15957,{"$nulls":5},true]
[null,"Flower Garden Banks National Marine Sanctuary (US DOC, NOAA, NOS, ONMS)","FEDERAL or NATIONAL","GOVERNMENT",4,1,6050,{"$nulls":5},true]
[null,"Fond du Lac Band Natural Resources Department","LOCAL","OTHER PARTNERS",1,6,867,{"$nulls":5},true]
[null,"Fond du Lac Tribal and Community College","Tribal","GOVERNMENT",13,1,868,{"$nulls":5},true]
[null,"Food Lion, LLC","STATE","INDUSTRY AND BUSINESS",2,3,3914,{"$nulls":5},true]
[null,"Forest City Residential Management","STATE","INDUSTRY AND BUSINESS",2,3,7954,{"$nulls":5},true]
[null,"Forestville, Town of","LOCAL","GOVERNMENT",1,1,8278,{"$nulls":5},true]
[null,"Forrestdale School","STATE","ACADEMIC INSTITUTION",2,4,4876,{"$nulls":5},true]
[null,"Fort Morgan Marina","LOCAL","INDUSTRY AND BUSINESS",1,3,872,{"$nulls":5},true]
[null,"Foshay Learing Center","LOCAL","ACADEMIC INSTITUTION",1,4,17085,{"$nulls":5},true]
[null,"Foundation for Food and Agriculture Research","REGIONAL","NGO",3,2,16790,{"$nulls":5},true]
[null,"Fox Brothers Charters, Port Washington","STATE","INDUSTRY AND BUSINESS",2,3,10374,{"$nulls":5},true]
[null,"Francis Marion University","STATE","ACADEMIC INSTITUTION",2,4,14008,{"$nulls":5},true]
[null,"Franklin County Emergency Management, FCEM","LOCAL","NGO",1,2,15652,{"$nulls":5},true]
[null,"Fraser Basin Council, British Columbia","INTERNATIONAL","GOVERNMENT",5,1,4138,{"$nulls":5},true]
[null,"Freeland & Associates","LOCAL","INDUSTRY AND BUSINESS",1,3,7735,{"$nulls":5},true]
[null,"French Research Institute for Exploitation of the Sea (IFREMER)","INTERNATIONAL","GOVERNMENT",5,1,880,{"$nulls":5},true]
[null,"Freshwater Farms of Ohio","REGIONAL","INDUSTRY AND BUSINESS",3,3,5907,{"$nulls":5},true]
[null,"Friends of Bayou Chico","LOCAL","NGO",1,2,12964,{"$nulls":5},{"$f":"AND(  NOT(ISERROR(FIND(UPPER($B$7),UPPER($B4238),1))),  OR($D$7=\"\",NOT(ISERROR(FIND(UPPER($D$7),UPPER($B4238),1)))),    OR($D$8=\"\",(ISERROR(FIND(UPPER($D$8),UPPER($B4238),1))))           )","v":true}]
[null,"Friends of Coastal South Carolina","STATE","NGO",2,2,13366,{"$nulls":5},true]
[null,"Friends of Hunting Island","LOCAL","NGO",1,2,884,{"$nulls":5},true]
[null,"Friends of Northern Lake Champlain","LOCAL","NGO",1,2,14069,{"$nulls":5},true]
[null,"Friends of the Bay","LOCAL","NGO",1,2,8516,{"$nulls":5},true]
[null,"Friends of the Edisto","LOCAL","NGO",1,2,887,{"$nulls":5},true]
[null,"Friends of the Manitowoc River Watershed","LOCAL","NGO",1,2,10376,{"$nulls":5},true]
[null,"Friends of the Rouge","REGIONAL","NGO",3,2,9115,{"$nulls":5},true]
[null,"Friends School, Mullica Hill","LOCAL","ACADEMIC INSTITUTION",1,4,10592,{"$nulls":5},true]
[null,"Frost Miami Museum of Science","LOCAL","NGO",1,2,12955,{"$nulls":5},true]
[null,"Full Circle Seafood Company","STATE","INDUSTRY AND BUSINESS",2,3,3916,{"$nulls":5},true]
[null,"Futurewise","STATE","NGO",2,2,10510,{"$nulls":5},true]
[null,"FV Lost Airmen","LOCAL","INDUSTRY AND BUSINESS",1,3,10634,{"$nulls":5},true]
[null,"Gail Tweed","LOCAL","OTHER PARTNERS",1,6,15332,{"$nulls":5},true]
[null,"Galveston Bay Foundation","LOCAL","NGO",1,2,6094,{"$nulls":5},true]
[null,"Galveston Island Nature Tourism Council","LOCAL","NGO",1,2,12250,{"$nulls":5},true]
[null,"Gannon University","STATE","ACADEMIC INSTITUTION",2,4,896,{"$nulls":5},true]
[null,"Garfield High School","LOCAL","ACADEMIC INSTITUTION",1,4,4184,{"$nulls":5},true]
[null,"Gary Sanitary District","LOCAL","GOVERNMENT",1,1,5511,{"$nulls":5},true]
[null,"Gault Seafood","LOCAL","INDUSTRY AND BUSINESS",1,3,7189,{"$nulls":5},true]
[null,"General McLane School District","LOCAL","ACADEMIC INSTITUTION",1,4,14609,{"$nulls":5},true]
[null,"Genessee Valley Land Trust","LOCAL","NGO",1,2,903,{"$nulls":5},true]
[null,"Geneva State Park Marina","LOCAL","INDUSTRY AND BUSINESS",1,3,5141,{"$nulls":5},true]
[null,"Geophysical Fluid Dynamics Laboratory (NOAA, GFDL)","FEDERAL or NATIONAL","GOVERNMENT",4,1,13076,{"$nulls":5},true]
[null,"George Brown Oyster Company","LOCAL","INDUSTRY AND BUSINESS",1,3,5813,{"$nulls":5},true]
[null,"George Perkins Marsh institute","LOCAL","ACADEMIC INSTITUTION",1,4,5814,{"$nulls":5},true]
[null,"Georgetown, SC","LOCAL","GOVERNMENT",1,1,4928,{"$nulls":5},true]
[null,"Georgia Academy of Family Physicians","STATE","NGO",2,2,906,{"$nulls":5},true]
[null,"Georgia College and State University (GCSU)","STATE","ACADEMIC INSTITUTION",2,4,909,{"$nulls":5},true]
[null,"Georgia Department of Community Affairs (GA DCA)","STATE","GOVERNMENT",2,1,910,{"$nulls":5},true]
[null,"Georgia Department of Natural Resources, Coastal Resources Division (GA DNR, CRD)","STATE","GOVERNMENT",2,1,912,{"$nulls":5},true]
[null,"Georgia Institute of Technology","STATE","ACADEMIC INSTITUTION",2,4,918,{"$nulls":5},true]
[null,"Georgia Restaurant Association","STATE","INDUSTRY AND BUSINESS",2,3,6976,{"$nulls":5},true]
[null,"Georgia Soil and Water Commission","STATE","NGO",2,2,10321,{"$nulls":5},true]
[null,"Georgia State University (GSU)","STATE","ACADEMIC INSTITUTION",2,4,928,{"$nulls":5},true]
[null,"Gerace Research Center","STATE","ACADEMIC INSTITUTION",2,4,7027,{"$nulls":5},true]
[null,"Giddings Boat Works","Unknown","INDUSTRY AND BUSINESS",0,3,11652,{"$nulls":5},true]
[null,"Girard School District","LOCAL","ACADEMIC INSTITUTION",1,4,14610,{"$nulls":5},true]
[null,"Girl Scouts of Western Washington","LOCAL","NGO",1,2,7386,{"$nulls":5},true]
[null,"Glacier Park Boat Company","LOCAL","INDUSTRY AND BUSINESS",1,3,8791,{"$nulls":5},true]
[null,"Global Aquaculture Alliance (GAA)","STATE","SEA GRANT PROGRAMS",2,5,3368,{"$nulls":5},true]
[null,"Global Ocean Ecosystems Dynamics – Northeast Pacific Program","FEDERAL or NATIONAL","NGO",4,2,936,{"$nulls":5},true]
[null,"Gloucester County","LOCAL","GOVERNMENT",1,1,7207,{"$nulls":5},true]
[null,"Glynn County Beekeepers Committee/Farm Bureau","LOCAL","NGO",1,2,8691,{"$nulls":5},true]
[null,"Glynn Middle School","LOCAL","ACADEMIC INSTITUTION",1,4,6972,{"$nulls":5},true]
[null,"Gold Sands Resource Conservation and Development Council Inc","LOCAL","NGO",1,2,16015,{"$nulls":5},true]
[null,"Golden Meadows Plant Materials Center","LOCAL","GOVERNMENT",1,1,7813,{"$nulls":5},true]
[null,"Google","INTERNATIONAL","INDUSTRY AND BUSINESS",5,3,10848,{"$nulls":5},true]
[null,"Got Gonads","STATE","ACADEMIC INSTITUTION",2,4,13062,{"$nulls":5},true]
[null,"Governors State University","LOCAL","ACADEMIC INSTITUTION",1,4,5531,{"$nulls":5},true]
[null,"Grafton High School","LOCAL","ACADEMIC INSTITUTION",1,4,7223,{"$nulls":5},true]
[null,"Grand Portage National Monument","LOCAL","GOVERNMENT",1,1,15541,{"$nulls":5},true]
[null,"Grand Traverse Bay Sail and Power Squadron","LOCAL","NGO",1,2,15310,{"$nulls":5},true]
[null,"Granite State Whale Watch","STATE","INDUSTRY AND BUSINESS",2,3,3814,{"$nulls":5},true]
[null,"Grass Roots, Inc.","FEDERAL or NATIONAL","INDUSTRY AND BUSINESS",4,3,951,{"$nulls":5},true]
[null,"Grays Harbor County Fair","LOCAL","OTHER PARTNERS",1,6,4326,{"$nulls":5},true]
[null,"Great Bay Coalition","LOCAL","OTHER PARTNERS",1,6,15660,{"$nulls":5},true]
[null,"Great Lakes AIS Education Stewardship Network","REGIONAL","NGO",3,2,6322,{"$nulls":5},true]
[null,"Great Lakes Beach and Pier Safety Task Force","LOCAL","NGO",1,2,7920,{"$nulls":5},true]
[null,"Great Lakes Cruising Coalition","REGIONAL","INDUSTRY AND BUSINESS",3,3,6264,{"$nulls":5},true]
[null,"Great Lakes Entrepreneurs Quest","STATE","NGO",2,2,9237,{"$nulls":5},true]
[null,"Great Lakes Indian Fish and Wildlife Commission (GLIFWC)","REGIONAL","GOVERNMENT",3,1,971,{"$nulls":5},true]
[null,"Great Lakes Integrated Sciences + Assessments Center","REGIONAL","GOVERNMENT",3,1,14889,{"$nulls":5},true]
[null,"Great Lakes Panel on Aquatic Nuisance Species (ANS)","REGIONAL","GOVERNMENT",3,1,975,{"$nulls":5},true]
[null,"Great Lakes Regional Water Program","REGIONAL","NGO",3,2,5135,{"$nulls":5},true]
[null,"Great Lakes Search and Rescue Project","REGIONAL","NGO",3,2,14788,{"$nulls":5},true]
[null,"Great Lakes Shipping News","LOCAL","INDUSTRY AND BUSINESS",1,3,6266,{"$nulls":5},true]
[null,"Great Lakes Water Safety Consortium","REGIONAL","NGO",3,2,16723,{"$nulls":5},true]
[null,"Great Lakes Worm Watch","REGIONAL","GOVERNMENT",3,1,8797,{"$nulls":5},true]
[null,"Greater Miami Visitors & Convention Bureau","LOCAL","INDUSTRY AND BUSINESS",1,3,12959,{"$nulls":5},true]
[null,"Green Acres Bait Shop","LOCAL","INDUSTRY AND BUSINESS",1,3,16119,{"$nulls":5},true]
[null,"Green Bay Aquarium Society","LOCAL","OTHER PARTNERS",1,6,16017,{"$nulls":5},true]
[null,"Green Girl Land Development Solutions LLC","STATE","INDUSTRY AND BUSINESS",2,3,10127,{"$nulls":5},true]
[null,"Greene Prairie Shrimp Aquafarm","LOCAL","INDUSTRY AND BUSINESS",1,3,6572,{"$nulls":5},true]
[null,"Greener New Jersey","STATE","NGO",2,2,10544,{"$nulls":5},true]
[null,"Grenada Fisheries Division","INTERNATIONAL","GOVERNMENT",5,1,995,{"$nulls":5},true]
[null,"Groton Bioindustries Development Company","Unknown","Unknown",0,0,3537,{"$nulls":5},true]
[null,"Group 70 Foundation","FEDERAL or NATIONAL","INDUSTRY AND BUSINESS",4,3,997,{"$nulls":5},true]
[null,"Guadalupe Delta Wildlife Management Area, TPWD","STATE","GOVERNMENT",2,1,6172,{"$nulls":5},true]
[null,"Guam Environmental Protection Agency (GEPA)","STATE","GOVERNMENT",2,1,6747,{"$nulls":5},true]
[null,"Guam Fisherman's Cooperative Association (GFCA)","LOCAL","NGO",1,2,6748,{"$nulls":5},true]
[null,"Gulf & South Atlantic Fisheries Foundation","Unknown","INDUSTRY AND BUSINESS",0,3,6981,{"$nulls":5},true]
[null,"Gulf Breeze Lab (US EPA)","FEDERAL or NATIONAL","GOVERNMENT",4,1,1003,{"$nulls":5},true]
[null,"Gulf Coast Exploreum Science Center","LOCAL","NGO",1,2,6574,{"$nulls":5},true]
[null,"Gulf Coast Resource Conservation and Development Council (RC&D)","LOCAL","NGO",1,2,6575,{"$nulls":5},true]
[null,"Gulf Coast Wildlife Rescue","REGIONAL","NGO",3,2,12259,{"$nulls":5},true]
[null,"Gulf of Alaska Monitoring Program","REGIONAL","NGO",3,2,1006,{"$nulls":5},true]
[null,"Gulf of Maine Research Institute (GMRI)","STATE","ACADEMIC INSTITUTION",2,4,3776,{"$nulls":5},true]
[null,"Gulf of Mexico Climate Community of Practice (CoP)","REGIONAL","OTHER PARTNERS",3,6,9518,{"$nulls":5},true]
[null,"Gulf of Mexico Program","Unknown","Unknown",0,0,9737,{"$nulls":5},true]
[null,"Gulf of Mexico Research Initiative Information & Data Cooperative (GRIIDC)","REGIONAL","ACADEMIC INSTITUTION",3,4,12262,{"$nulls":5},true]
[null,"Gulf Shellfish Institute","REGIONAL","NGO",3,2,15813,{"$nulls":5},true]
[null,"Gullah/Geechee Cultural Heritage Corridor","FEDERAL or NATIONAL","GOVERNMENT",4,1,7117,{"$nulls":5},true]
[null,"Guy Carpenter, Inc.","INTERNATIONAL","INDUSTRY AND BUSINESS",5,3,14264,{"$nulls":5},true]
[null,"GZA GeoEnvironmental, Inc.","LOCAL","INDUSTRY AND BUSINESS",1,3,12543,{"$nulls":5},true]
[null,"H.S. Concessions, Inc.","Unknown","INDUSTRY AND BUSINESS",0,3,4905,{"$nulls":5},true]
[null,"Habitat Conservation Division (US DOC, NOAA, NMFS, PIFSC)","FEDERAL or NATIONAL","GOVERNMENT",4,1,1028,{"$nulls":5},true]
[null,"Hafmynd ehf, Reykjavik, Iceland","INTERNATIONAL","INDUSTRY AND BUSINESS",5,3,5754,{"$nulls":5},true]
[null,"Hakai Network","INTERNATIONAL","ACADEMIC INSTITUTION",5,4,15069,{"$nulls":5},true]
[null,"Hallmark Fisheries","FEDERAL or NATIONAL","INDUSTRY AND BUSINESS",4,3,1030,{"$nulls":5},true]
[null,"Hamilton Township Zoning Board","LOCAL","GOVERNMENT",1,1,9054,{"$nulls":5},true]
[null,"Hammond Bay Area Anglers Association","LOCAL","NGO",1,2,9162,{"$nulls":5},true]
[null,"Hampton Roads Center for Civic Engineering","REGIONAL","NGO",3,2,13673,{"$nulls":5},true]
[null,"Hancock County, ME Emergency Management Team","LOCAL","GOVERNMENT",1,1,6908,{"$nulls":5},true]
[null,"Hanover Fisheries","STATE","INDUSTRY AND BUSINESS",2,3,3921,{"$nulls":5},true]
[null,"Harbor Lights Oyster Company","Unknown","Unknown",0,0,14980,{"$nulls":5},true]
[null,"Harbor Watch","LOCAL","NGO",1,2,10621,{"$nulls":5},true]
[null,"Harbour Authority Association of British Columbia","INTERNATIONAL","INDUSTRY AND BUSINESS",5,3,7477,{"$nulls":5},true]
[null,"Harmon Brook Farm","FEDERAL or NATIONAL","INDUSTRY AND BUSINESS",4,3,8240,{"$nulls":5},true]
[null,"Harrington Beach State Park, Belgium","STATE","GOVERNMENT",2,1,1043,{"$nulls":5},true]
[null,"Harris Galveston Subsidence District","LOCAL","GOVERNMENT",1,1,6134,{"$nulls":5},true]
[null,"Hartley Nature Center","LOCAL","NGO",1,2,1047,{"$nulls":5},true]
[null,"Harvest Fresh Seafoods","Unknown","Unknown",0,0,3540,{"$nulls":5},true]
[null,"Hatteras Village Civic Association","LOCAL","NGO",1,2,12688,{"$nulls":5},true]
[null,"Hauula Neighborhood Board","LOCAL","OTHER PARTNERS",1,6,1050,{"$nulls":5},{"$f":"AND(  NOT(ISERROR(FIND(UPPER($B$7),UPPER($B5006),1))),  OR($D$7=\"\",NOT(ISERROR(FIND(UPPER($D$7),UPPER($B5006),1)))),    OR($D$8=\"\",(ISERROR(FIND(UPPER($D$8),UPPER($B5006),1))))           )","v":true}]
[null,"Hawaii Aquaculture Development Program","STATE","GOVERNMENT",2,1,1053,{"$nulls":5},true]
[null,"Hawaii Commission on Water Resource Management","STATE","GOVERNMENT",2,1,8290,{"$nulls":5},true]
[null,"Hawaii County Council","LOCAL","GOVERNMENT",1,1,1059,{"$nulls":5},true]
[null,"Hawaii County Planning Department","LOCAL","GOVERNMENT",1,1,1064,{"$nulls":5},true]
[null,"Hawaii Department of Hawaiian Homes Land","STATE","GOVERNMENT",2,1,16295,{"$nulls":5},true]
[null,"Hawaii Environmental Planning Office (HI DOH)","STATE","GOVERNMENT",2,1,1074,{"$nulls":5},true]
[null,"Hawaii Land Division (HI DLNR)","STATE","GOVERNMENT",2,1,1078,{"$nulls":5},true]
[null,"Hawaii Office of Planning","STATE","GOVERNMENT",2,1,1082,{"$nulls":5},true]
[null,"Hawaii Shore and Beach Preservation Association (HSBPA)","STATE","NGO",2,2,12921,{"$nulls":5},true]
[null,"Hawaii State Civil Defense","STATE","GOVERNMENT",2,1,7984,{"$nulls":5},true]
[null,"Hawaiian Electric Industries","STATE","INDUSTRY AND BUSINESS",2,3,1088,{"$nulls":5},true]
[null,"Haystack Rock Awareness Program","LOCAL","NGO",1,2,11607,{"$nulls":5},true]
[null,"Hazen & Sawyer Environmental Engineers and Scientist","STATE","INDUSTRY AND BUSINESS",2,3,12996,{"$nulls":5},true]
[null,"Healthy Earth Sarasota, Inc.","REGIONAL","INDUSTRY AND BUSINESS",3,3,15771,{"$nulls":5},true]
[null,"Heidelberg College","STATE","ACADEMIC INSTITUTION",2,4,1095,{"$nulls":5},true]
[null,"Helping Endangered Animals Ripley Turtles (HEART)","STATE","NGO",2,2,6051,{"$nulls":5},true]
[null,"Henkel's Hook and Arrow","LOCAL","INDUSTRY AND BUSINESS",1,3,16098,{"$nulls":5},true]
[null,"Henry's Sports and Bait Shop","LOCAL","INDUSTRY AND BUSINESS",1,3,14750,{"$nulls":5},true]
[null,"Hereticus LLC","LOCAL","INDUSTRY AND BUSINESS",1,3,10787,{"$nulls":5},{"$f":"AND(  NOT(ISERROR(FIND(UPPER($B$7),UPPER($B5134),1))),  OR($D$7=\"\",NOT(ISERROR(FIND(UPPER($D$7),UPPER($B5134),1)))),    OR($D$8=\"\",(ISERROR(FIND(UPPER($D$8),UPPER($B5134),1))))           )","v":true}]
[null,"Hewlett-Packard","INTERNATIONAL","INDUSTRY AND BUSINESS",5,3,1103,{"$nulls":5},true]
[null,"Highland Lure and Bait Company","LOCAL","INDUSTRY AND BUSINESS",1,3,16099,{"$nulls":5},true]
[null,"Highline Community College","LOCAL","ACADEMIC INSTITUTION",1,4,4186,{"$nulls":5},true]
[null,"Hilltop Montessori","LOCAL","ACADEMIC INSTITUTION",1,4,5291,{"$nulls":5},true]
[null,"Hilton Head Sportfishing Club","LOCAL","OTHER PARTNERS",1,6,1108,{"$nulls":5},true]
[null,"HJR Reefscaping","LOCAL","INDUSTRY AND BUSINESS",1,3,15694,{"$nulls":5},true]
[null,"Hoffer's Tropic Life Pets","LOCAL","INDUSTRY AND BUSINESS",1,3,11483,{"$nulls":5},true]
[null,"Hog Island Oyster Company","LOCAL","INDUSTRY AND BUSINESS",1,3,1112,{"$nulls":5},true]
[null,"Holiday Harbor Marina, Huron","LOCAL","INDUSTRY AND BUSINESS",1,3,1114,{"$nulls":5},true]
[null,"Holly Heights School","LOCAL","ACADEMIC INSTITUTION",1,4,14909,{"$nulls":5},true]
[null,"Homewaters, IslandWood","LOCAL","NGO",1,2,4383,{"$nulls":5},true]
[null,"Honomu Aquatics","LOCAL","INDUSTRY AND BUSINESS",1,3,1119,{"$nulls":5},true]
[null,"Hood Canal Environmental Council","LOCAL","NGO",1,2,1122,{"$nulls":5},true]
[null,"Hood Sport 'n Dive","LOCAL","INDUSTRY AND BUSINESS",1,3,1126,{"$nulls":5},true]
[null,"Hoover Elementary School, West Allis, Wis.","LOCAL","ACADEMIC INSTITUTION",1,4,11422,{"$nulls":5},true]
[null,"Hopewell Township","LOCAL","GOVERNMENT",1,1,7708,{"$nulls":5},true]
[null,"Horry County","LOCAL","GOVERNMENT",1,1,4626,{"$nulls":5},true]
[null,"Hospital Perea, Mayaguez, PR","LOCAL","OTHER PARTNERS",1,6,1132,{"$nulls":5},true]
[null,"Houston Parks and Recreation Department","LOCAL","GOVERNMENT",1,1,6136,{"$nulls":5},true]
[null,"HT Harvey & Associates (HTHA)","STATE","GOVERNMENT",2,1,3373,{"$nulls":5},true]
[null,"Hubbell, Roth & Clark, Inc.","LOCAL","INDUSTRY AND BUSINESS",1,3,9475,{"$nulls":5},true]
[null,"Hudson River National Estuarine Research Reserve System","REGIONAL","NGO",3,2,9091,{"$nulls":5},true]
[null,"Huffville Elementary School","LOCAL","ACADEMIC INSTITUTION",1,4,9048,{"$nulls":5},true]
[null,"Humboldt Area Saltwater Anglers","LOCAL","INDUSTRY AND BUSINESS",1,3,5096,{"$nulls":5},true]
[null,"Humboldt County Public Works","LOCAL","GOVERNMENT",1,1,6789,{"$nulls":5},true]
[null,"Humboldt State University (HSU)","STATE","ACADEMIC INSTITUTION",2,4,1146,{"$nulls":5},true]
[null,"Hunter Farms","LOCAL","INDUSTRY AND BUSINESS",1,3,7393,{"$nulls":5},true]
[null,"Hutton Junior Fisheries Biology Program","LOCAL","ACADEMIC INSTITUTION",1,4,13105,{"$nulls":5},true]
[null,"Hyatt Regency Waikiki","INTERNATIONAL","INDUSTRY AND BUSINESS",5,3,8302,{"$nulls":5},true]
[null,"Hyde County, NC, Soil and Water Conservation District","LOCAL","GOVERNMENT",1,1,14456,{"$nulls":5},true]
[null,"ICF International","INTERNATIONAL","INDUSTRY AND BUSINESS",5,3,10675,{"$nulls":5},true]
[null,"Icrest JCP","INTERNATIONAL","INDUSTRY AND BUSINESS",5,3,8177,{"$nulls":5},true]
[null,"Ike’s Specialty Salads","STATE","INDUSTRY AND BUSINESS",2,3,3924,{"$nulls":5},true]
[null,"Illinois Bass Federation","Unknown","NGO",0,2,7095,{"$nulls":5},true]
[null,"Illinois Coastal Management Program","STATE","GOVERNMENT",2,1,9417,{"$nulls":5},true]
[null,"Illinois Department of Natural Resources (IL DNR)","STATE","GOVERNMENT",2,1,1160,{"$nulls":5},true]
[null,"Illinois Geographic Alliance","STATE","ACADEMIC INSTITUTION",2,4,7805,{"$nulls":5},true]
[null,"Illinois Lake Management Association","STATE","NGO",2,2,1162,{"$nulls":5},true]
[null,"Illinois State Geological Survey (IL SGS)","STATE","GOVERNMENT",2,1,1164,{"$nulls":5},true]
[null,"Illinois State Police District 17 (MCPs)","LOCAL","GOVERNMENT",1,1,5934,{"$nulls":5},true]
[null,"Illinois Valley Community Hospital","LOCAL","INDUSTRY AND BUSINESS",1,3,7759,{"$nulls":5},true]
[null,"In a Half Shell, Maine Aquaculture Association, Maine Aquaculture Innovation Center, Damariscotta River Cruises","Unknown","Unknown",0,0,15815,{"$nulls":5},true]
[null,"Indian and Northern Affairs Canada","INTERNATIONAL","GOVERNMENT",5,1,4140,{"$nulls":5},true]
[null,"Indian River Lagoon National Estuary Program","Unknown","GOVERNMENT",0,1,12983,{"$nulls":5},true]
[null,"Indiana Coastal Zone Management Program","STATE","GOVERNMENT",2,1,5945,{"$nulls":5},true]
[null,"Indiana Dunes Learning Center","LOCAL","NGO",1,2,13784,{"$nulls":5},true]
[null,"Indiana Historical Society – Lake County","LOCAL","NGO",1,2,5513,{"$nulls":5},{"$f":"AND(  NOT(ISERROR(FIND(UPPER($B$7),UPPER($B5454),1))),  OR($D$7=\"\",NOT(ISERROR(FIND(UPPER($D$7),UPPER($B5454),1)))),    OR($D$8=\"\",(ISERROR(FIND(UPPER($D$8),UPPER($B5454),1))))           )","v":true}]
[null,"Indiana Land Use Consortium","STATE","NGO",2,2,1175,{"$nulls":5},true]
[null,"Indiana Water Resources Research Center (Wabash)","STATE","GOVERNMENT",2,1,15539,{"$nulls":5},true]
[null,"Industrial Economics, Inc.","FEDERAL or NATIONAL","INDUSTRY AND BUSINESS",4,3,1179,{"$nulls":5},true]
[null,"Initiative to Protect Jekyll Island","REGIONAL","NGO",3,2,8688,{"$nulls":5},true]
[null,"Inland Seafood","Unknown","INDUSTRY AND BUSINESS",0,3,6953,{"$nulls":5},true]
[null,"Inlet Seafood Packing House","LOCAL","INDUSTRY AND BUSINESS",1,3,7818,{"$nulls":5},true]
[null,"Institut Superieur Agricole de Beauvais","INTERNATIONAL","ACADEMIC INSTITUTION",5,4,1187,{"$nulls":5},true]
[null,"Institute for Coastal Science & Policy, East Carolina University (ECU)","STATE","ACADEMIC INSTITUTION",2,4,3839,{"$nulls":5},true]
[null,"Institute for Sustainable Communities","INTERNATIONAL","NGO",5,2,8421,{"$nulls":5},true]
[null,"Institute of Electrical and Electronics Engineers","LOCAL","ACADEMIC INSTITUTION",1,4,13106,{"$nulls":5},true]
[null,"Institute of Oceanology, Chinese Academic of Sciences","INTERNATIONAL","ACADEMIC INSTITUTION",5,4,11252,{"$nulls":5},true]
[null,"Insurance Institute of Business and Home Safety","FEDERAL or NATIONAL","NGO",4,2,15945,{"$nulls":5},true]
[null,"Integrated Ocean Observing System Program (US DOC, NOAA, NOS, IOOS)","FEDERAL or NATIONAL","GOVERNMENT",4,1,6478,{"$nulls":5},true]
[null,"Interior Distance Education of Alaska","STATE","NGO",2,2,1199,{"$nulls":5},true]
[null,"International Association of Aquaculture Economics and Management","INTERNATIONAL","NGO",5,2,1202,{"$nulls":5},true]
[null,"International Association of Plumbing and Mechanical Officials","FEDERAL or NATIONAL","INDUSTRY AND BUSINESS",4,3,8287,{"$nulls":5},true]
[null,"International Coastal Atlas Network","INTERNATIONAL","NGO",5,2,3715,{"$nulls":5},true]
[null,"International Game Fish Association","INTERNATIONAL","NGO",5,2,1212,{"$nulls":5},true]
[null,"International Light Tackle Tournament Association","INTERNATIONAL","OTHER PARTNERS",5,6,11253,{"$nulls":5},true]
[null,"International Resources Group","INTERNATIONAL","NGO",5,2,5017,{"$nulls":5},true]
[null,"International WorkBoat Show","INTERNATIONAL","INDUSTRY AND BUSINESS",5,3,1217,{"$nulls":5},true]
[null,"Intrinsic LifeSciences","INTERNATIONAL","INDUSTRY AND BUSINESS",5,3,1220,{"$nulls":5},true]
[null,"Iolani School","STATE","ACADEMIC INSTITUTION",2,4,15977,{"$nulls":5},true]
[null,"Iowa Department of Transportation","STATE","GOVERNMENT",2,1,11417,{"$nulls":5},true]
[null,"ISF Trading, Inc.","STATE","INDUSTRY AND BUSINESS",2,3,6852,{"$nulls":5},true]
[null,"Island County Marine Resources Committee, Northwest Straits Commission","LOCAL","OTHER PARTNERS",1,6,4418,{"$nulls":5},true]
[null,"Island Research and Education Initiative","REGIONAL","NGO",3,2,12577,{"$nulls":5},true]
[null,"IslandWood","LOCAL","NGO",1,2,4385,{"$nulls":5},true]
[null,"IU Health Bloomington Hospital Pharmacy","LOCAL","GOVERNMENT",1,1,16167,{"$nulls":5},true]
[null,"J&B Island Oysters","LOCAL","INDUSTRY AND BUSINESS",1,3,13988,{"$nulls":5},true]
[null,"Jackson County Port Authority","LOCAL","GOVERNMENT",1,1,15496,{"$nulls":5},true]
[null,"Jackson County Recycling District","LOCAL","GOVERNMENT",1,1,16161,{"$nulls":5},true]
[null,"Jacob and Terese Hershey Foundation","LOCAL","NGO",1,2,6127,{"$nulls":5},true]
[null,"James Island Elementary School","LOCAL","ACADEMIC INSTITUTION",1,4,13332,{"$nulls":5},true]
[null,"James Island High School","LOCAL","ACADEMIC INSTITUTION",1,4,5676,{"$nulls":5},true]
[null,"Jamestown Yacht Basin","LOCAL","INDUSTRY AND BUSINESS",1,3,7229,{"$nulls":5},true]
[null,"Japan Tuna Fisheries Cooperative Association","INTERNATIONAL","INDUSTRY AND BUSINESS",5,3,4159,{"$nulls":5},true]
[null,"JASON of South East Texas","LOCAL","NGO",1,2,12268,{"$nulls":5},true]
[null,"Jeannette’s Pier, NC","LOCAL","INDUSTRY AND BUSINESS",1,3,11254,{"$nulls":5},true]
[null,"Jefferson County Public Utility District #1","LOCAL","GOVERNMENT",1,1,4251,{"$nulls":5},true]
[null,"Jefferson Education Center","LOCAL","NGO",1,2,4386,{"$nulls":5},true]
[null,"Jefferson Patterson Park","LOCAL","GOVERNMENT",1,1,8114,{"$nulls":5},true]
[null,"Jekyll Island Authority","LOCAL","NGO",1,2,1246,{"$nulls":5},true]
[null,"Jekyll Island Driftwood Nature Center and 4-H Facility","LOCAL","NGO",1,2,1247,{"$nulls":5},true]
[null,"Jerry's Seafood","FEDERAL or NATIONAL","INDUSTRY AND BUSINESS",4,3,1251,{"$nulls":5},true]
[null,"Jet Propulsion Laboratory (NASA)","FEDERAL or NATIONAL","GOVERNMENT",4,1,6467,{"$nulls":5},true]
[null,"JHT, Inc.","FEDERAL or NATIONAL","INDUSTRY AND BUSINESS",4,3,11108,{"$nulls":5},true]
[null,"Johm Davis, IDNR","LOCAL","GOVERNMENT",1,1,14778,{"$nulls":5},true]
[null,"John G. Shedd Aquarium","LOCAL","OTHER PARTNERS",1,6,1259,{"$nulls":5},true]
[null,"Johns Hopkins University (JHU), Department of Geography and Environmental Engineering","STATE","ACADEMIC INSTITUTION",2,4,10082,{"$nulls":5},true]
[null,"Joint Base Charleston","FEDERAL or NATIONAL","GOVERNMENT",4,1,7113,{"$nulls":5},true]
[null,"Joint Subcommittee on Effluents (US EPA, USDA)","FEDERAL or NATIONAL","GOVERNMENT",4,1,1264,{"$nulls":5},true]
[null,"Joycraft Marine Safety Equipment","Unknown2","INDUSTRY AND BUSINESS",6,3,1267,{"$nulls":5},true]
[null,"Just Add Water Bait","LOCAL","INDUSTRY AND BUSINESS",1,3,16112,{"$nulls":5},true]
[null,"Kachemak Bay Gear Shed","LOCAL","OTHER PARTNERS",1,6,5434,{"$nulls":5},true]
[null,"Kahuna Sportfishing","LOCAL","INDUSTRY AND BUSINESS",1,3,16474,{"$nulls":5},true]
[null,"Kailua Chamber of Commerce","LOCAL","INDUSTRY AND BUSINESS",1,3,1275,{"$nulls":5},true]
[null,"Kalihi Valley Instructional Bicycle Exchange","LOCAL","NGO",1,2,13390,{"$nulls":5},true]
[null,"Kaneohe Bay Regional Counsel","LOCAL","OTHER PARTNERS",1,6,15134,{"$nulls":5},true]
[null,"Kansas Department of Natural Resources","STATE","GOVERNMENT",2,1,14810,{"$nulls":5},true]
[null,"Karnes City Independent School District , TX","LOCAL","ACADEMIC INSTITUTION",1,4,6070,{"$nulls":5},true]
[null,"Kauai Civil Defense Agency","FEDERAL or NATIONAL","GOVERNMENT",4,1,12920,{"$nulls":5},true]
[null,"Kauai County Office of the Mayor","LOCAL","GOVERNMENT",1,1,1286,{"$nulls":5},true]
[null,"KCB Oyster Holdings LLC","LOCAL","INDUSTRY AND BUSINESS",1,3,17381,{"$nulls":5},true]
[null,"Keep Brazos Beautiful","LOCAL","NGO",1,2,15395,{"$nulls":5},true]
[null,"Keep Dickinson Beautiful","LOCAL","GOVERNMENT",1,1,6161,{"$nulls":5},true]
[null,"Keiki O ka Aina","Unknown2","NGO",6,2,1292,{"$nulls":5},true]
[null,"Kelleys Island water treatment plant","LOCAL","GOVERNMENT",1,1,17050,{"$nulls":5},true]
[null,"Kenai Peninsula Borough","LOCAL","GOVERNMENT",1,1,10991,{"$nulls":5},true]
[null,"Kendall County Solid Waste District","LOCAL","GOVERNMENT",1,1,5933,{"$nulls":5},true]
[null,"Kenosha Public Museum","LOCAL","NGO",1,2,1301,{"$nulls":5},true]
[null,"Kentucky Smoked Fish","STATE","INDUSTRY AND BUSINESS",2,3,8222,{"$nulls":5},true]
[null,"Keyser Brothers","LOCAL","INDUSTRY AND BUSINESS",1,3,9007,{"$nulls":5},true]
[null,"KFMY Radio, Raymond, WA","LOCAL","INDUSTRY AND BUSINESS",1,3,4387,{"$nulls":5},true]
[null,"Killer Whale Tales","LOCAL","NGO",1,2,4388,{"$nulls":5},true]
[null,"King and Prince Seafood Corporation","Unknown2","INDUSTRY AND BUSINESS",6,3,1307,{"$nulls":5},true]
[null,"Kinghorn Insurance Services","Unknown2","INDUSTRY AND BUSINESS",6,3,1309,{"$nulls":5},true]
[null,"King's Seafood","REGIONAL","INDUSTRY AND BUSINESS",3,3,8178,{"$nulls":5},true]
[null,"Kingzett Professional Services, Ltd., Canada","INTERNATIONAL","INDUSTRY AND BUSINESS",5,3,1310,{"$nulls":5},true]
[null,"Kitsap Conservation District","LOCAL","GOVERNMENT",1,1,4256,{"$nulls":5},true]
[null,"Kitsap Fairgrounds","LOCAL","INDUSTRY AND BUSINESS",1,3,7733,{"$nulls":5},true]
[null,"Kitsap Poggie Club","LOCAL","NGO",1,2,8424,{"$nulls":5},true]
[null,"Kitty Hawk Fire Department","LOCAL","GOVERNMENT",1,1,1314,{"$nulls":5},true]
[null,"Knutson Towing","REGIONAL","INDUSTRY AND BUSINESS",3,3,7457,{"$nulls":5},true]
[null,"Kodiak ComFish Alaska","Unknown2","INDUSTRY AND BUSINESS",6,3,1318,{"$nulls":5},true]
[null,"Kodiak Public Library","LOCAL","GOVERNMENT",1,1,14029,{"$nulls":5},true]
[null,"Kona Soil and Water Conservation District Advisory Group","LOCAL","NGO",1,2,1324,{"$nulls":5},true]
[null,"Kona Underwater Photography Society","LOCAL","OTHER PARTNERS",1,6,1325,{"$nulls":5},true]
[null,"KSWW Radio, Aberdeen","LOCAL","INDUSTRY AND BUSINESS",1,3,4652,{"$nulls":5},true]
[null,"Kudrna & Associates","STATE","INDUSTRY AND BUSINESS",2,3,5944,{"$nulls":5},true]
[null,"Kuester Management Group","LOCAL","INDUSTRY AND BUSINESS",1,3,16202,{"$nulls":5},true]
[null,"Kwajalein Atoll Joint Utilities Resources Inc.","REGIONAL","INDUSTRY AND BUSINESS",3,3,11723,{"$nulls":5},true]
[null,"L.D. Amory & Company","LOCAL","INDUSTRY AND BUSINESS",1,3,5461,{"$nulls":5},true]
[null,"La Concha Hotel","LOCAL","INDUSTRY AND BUSINESS",1,3,14044,{"$nulls":5},true]
[null,"LA Dept. of Economic Development","Unknown","Unknown",0,0,9757,{"$nulls":5},true]
[null,"La Porte Waste Water Treatment Facility","LOCAL","GOVERNMENT",1,1,8627,{"$nulls":5},true]
[null,"Lac du Flambeau Band of Lake Superior Chippewa Indians","STATE","GOVERNMENT",2,1,11418,{"$nulls":5},true]
[null,"Lafayette Parish, LA","LOCAL","GOVERNMENT",1,1,5049,{"$nulls":5},true]
[null,"Laguna Atascosa National Wildlife Refuge (US DOI, FWS, NWRS)","FEDERAL or NATIONAL","GOVERNMENT",4,1,6103,{"$nulls":5},true]
[null,"Lake Borgne levee District","Unknown","Unknown",0,0,9765,{"$nulls":5},true]
[null,"Lake Central School Corporation","LOCAL","ACADEMIC INSTITUTION",1,4,13788,{"$nulls":5},true]
[null,"Lake Champlain Research Institute (LCRI) at the State University of New York (SUNY) Plattsburgh","STATE","ACADEMIC INSTITUTION",2,4,5336,{"$nulls":5},true]
[null,"Lake County Development Council (LCDC)","LOCAL","GOVERNMENT",1,1,17065,{"$nulls":5},true]
[null,"Lake County Soil and Water Conservation Districts","LOCAL","GOVERNMENT",1,1,14987,{"$nulls":5},true]
[null,"Lake Erie Arboretum at Frontier Park","LOCAL","INDUSTRY AND BUSINESS",1,3,6390,{"$nulls":5},true]
[null,"Lake Erie College of Osteopathic Medicing (LECOM)","STATE","ACADEMIC INSTITUTION",2,4,7005,{"$nulls":5},true]
[null,"Lake Erie Islands Nature and Wildlife Center","LOCAL","NGO",1,2,17054,{"$nulls":5},true]
[null,"Lake Erie Walleye Magazine and www.walleye.com","STATE","INDUSTRY AND BUSINESS",2,3,13288,{"$nulls":5},true]
[null,"Lake Hortonia Home Owners Association","LOCAL","Unknown",1,0,7067,{"$nulls":5},true]
[null,"Lake Mattamuskeet National Wildlife Refuge","FEDERAL or NATIONAL","GOVERNMENT",4,1,14482,{"$nulls":5},true]
[null,"Lake Michigan Water Trail Chicago(Openlands)","REGIONAL","NGO",3,2,14752,{"$nulls":5},true]
[null,"Lake Pontchartrain Basin Maritime Mueseum","REGIONAL","NGO",3,2,14286,{"$nulls":5},true]
[null,"Lake St. Clair Metropark","REGIONAL","GOVERNMENT",3,1,9477,{"$nulls":5},true]
[null,"Lake Superior Binational Program","INTERNATIONAL","GOVERNMENT",5,1,1362,{"$nulls":5},{"$f":"AND(  NOT(ISERROR(FIND(UPPER($B$7),UPPER($B6222),1))),  OR($D$7=\"\",NOT(ISERROR(FIND(UPPER($D$7),UPPER($B6222),1)))),    OR($D$8=\"\",(ISERROR(FIND(UPPER($D$8),UPPER($B6222),1))))           )","v":true}]
[null,"Lake Superior Maritime Visitors Center","LOCAL","OTHER PARTNERS",1,6,5965,{"$nulls":5},true]
[null,"Lake Superior State University, Fish and Wildlife Club (LSSU)","STATE","NGO",2,2,1368,{"$nulls":5},true]
[null,"Lakefront Brewery","LOCAL","INDUSTRY AND BUSINESS",1,3,9608,{"$nulls":5},true]
[null,"Lakeshore Natural Resource Partnership","LOCAL","NGO",1,2,12413,{"$nulls":5},true]
[null,"Lamoille Union High School","LOCAL","ACADEMIC INSTITUTION",1,4,5299,{"$nulls":5},true]
[null,"Lancaster-Northumberland County","LOCAL","GOVERNMENT",1,1,7231,{"$nulls":5},true]
[null,"Lane County, OR","LOCAL","GOVERNMENT",1,1,7595,{"$nulls":5},true]
[null,"Lantos Technologies","LOCAL","INDUSTRY AND BUSINESS",1,3,7640,{"$nulls":5},true]
[null,"Laportilleria Distributors","STATE","INDUSTRY AND BUSINESS",2,3,3931,{"$nulls":5},true]
[null,"Large Lakes Observatory (UMN)","Unknown","Unknown",0,0,9878,{"$nulls":5},true]
[null,"Laurel Redevelopment Corporation","LOCAL","OTHER PARTNERS",1,6,9360,{"$nulls":5},true]
[null,"Lavallette Beach Patrol","LOCAL","OTHER PARTNERS",1,6,9076,{"$nulls":5},true]
[null,"Lawrence Park Township","LOCAL","GOVERNMENT",1,1,1377,{"$nulls":5},true]
[null,"Leadership South Carolina","STATE","ACADEMIC INSTITUTION",2,4,1379,{"$nulls":5},true]
[null,"Lebanon","LOCAL","GOVERNMENT",1,1,16722,{"$nulls":5},true]
[null,"Lebanon High School","LOCAL","ACADEMIC INSTITUTION",1,4,16581,{"$nulls":5},true]
[null,"Legislative Commission on L.I. Water Resources","LOCAL","GOVERNMENT",1,1,1383,{"$nulls":5},true]
[null,"Legislative Commission on Minnesota Resources","STATE","GOVERNMENT",2,1,1384,{"$nulls":5},true]
[null,"Les Cheneaux Sportsman's Club","LOCAL","NGO",1,2,9174,{"$nulls":5},true]
[null,"Lewis and Clark Community College","LOCAL","ACADEMIC INSTITUTION",1,4,13792,{"$nulls":5},true]
[null,"Lewis and Clark National Historical Park","FEDERAL or NATIONAL","GOVERNMENT",4,1,7589,{"$nulls":5},true]
[null,"Liberty Science Center","Unknown","NGO",0,2,4861,{"$nulls":5},true]
[null,"Lighthouse Marine","LOCAL","INDUSTRY AND BUSINESS",1,3,5824,{"$nulls":5},true]
[null,"Lighthouse Oyster Company","LOCAL","INDUSTRY AND BUSINESS",1,3,17383,{"$nulls":5},true]
[null,"Lincoln County Interpretive Association","LOCAL","Unknown",1,0,14230,{"$nulls":5},true]
[null,"Lindenwold Boro","LOCAL","GOVERNMENT",1,1,7710,{"$nulls":5},true]
[null,"Lindy's Kitchen","Unknown","INDUSTRY AND BUSINESS",0,3,6943,{"$nulls":5},true]
[null,"Little Creek Marina","LOCAL","INDUSTRY AND BUSINESS",1,3,9022,{"$nulls":5},true]
[null,"Little Skookum Shellfish Growers","FEDERAL or NATIONAL","INDUSTRY AND BUSINESS",4,3,1397,{"$nulls":5},true]
[null,"Littoral Acoustic Demonstration Center","REGIONAL","OTHER PARTNERS",3,6,16003,{"$nulls":5},true]
[null,"llinois Association of Drainage Districts","STATE","INDUSTRY AND BUSINESS",2,3,14983,{"$nulls":5},true]
[null,"Local fishery organizations","LOCAL","OTHER PARTNERS",1,6,12469,{"$nulls":5},true]
[null,"Locals Seafood","STATE","INDUSTRY AND BUSINESS",2,3,3933,{"$nulls":5},true]
[null,"Lombardo and Associates","REGIONAL","INDUSTRY AND BUSINESS",3,3,8368,{"$nulls":5},true]
[null,"Long Beach Aquarium of the Pacific","LOCAL","OTHER PARTNERS",1,6,1405,{"$nulls":5},true]
[null,"Long Branch Beach Patrol","LOCAL","OTHER PARTNERS",1,6,9088,{"$nulls":5},true]
[null,"Long Island Invasive Species Management Area","STATE","GOVERNMENT",2,1,5828,{"$nulls":5},true]
[null,"Long Island Regional Planning Board","REGIONAL","GOVERNMENT",3,1,5830,{"$nulls":5},true]
[null,"Long Tom Watershed Council","LOCAL","OTHER PARTNERS",1,6,1410,{"$nulls":5},true]
[null,"Longwood University","STATE","ACADEMIC INSTITUTION",2,4,13739,{"$nulls":5},true]
[null,"Los Angeles County Museum of Natural History","LOCAL","GOVERNMENT",1,1,1413,{"$nulls":5},true]
[null,"Los Angeles County, Lawndale School District","LOCAL","ACADEMIC INSTITUTION",1,4,1419,{"$nulls":5},true]
[null,"Los Angeles County, Redondo Beach School District","Unknown","Unknown",0,0,10015,{"$nulls":5},true]
[null,"Los Angeles Harbor Commission","LOCAL","GOVERNMENT",1,1,7779,{"$nulls":5},true]
[null,"LOTT Clean Water Alliance","LOCAL","NGO",1,2,8676,{"$nulls":5},true]
[null,"Louisiana Board of Regents","STATE","ACADEMIC INSTITUTION",2,4,5026,{"$nulls":5},true]
[null,"Louisiana Department of Education (LA ED)","STATE","GOVERNMENT",2,1,1431,{"$nulls":5},{"$f":"AND(  NOT(ISERROR(FIND(UPPER($B$7),UPPER($B6542),1))),  OR($D$7=\"\",NOT(ISERROR(FIND(UPPER($D$7),UPPER($B6542),1)))),    OR($D$8=\"\",(ISERROR(FIND(UPPER($D$8),UPPER($B6542),1))))           )","v":true}]
[null,"Louisiana Department of Health and Hospitals","STATE","GOVERNMENT",2,1,8341,{"$nulls":5},true]
[null,"Louisiana Farm Bureau","Unknown","Unknown",0,0,9775,{"$nulls":5},true]
[null,"Louisiana National Guard","Unknown","Unknown",0,0,9776,{"$nulls":5},true]
[null,"Louisiana Office of the Secretary of State","STATE","GOVERNMENT",2,1,1441,{"$nulls":5},true]
[null,"Louisiana Science Teachers Association","Unknown","Unknown",0,0,9778,{"$nulls":5},true]
[null,"Louisiana Service and Leadership","STATE","OTHER PARTNERS",2,6,15527,{"$nulls":5},true]
[null,"Louisiana State Museum","Unknown","Unknown",0,0,9782,{"$nulls":5},true]
[null,"Louisiana Universities Marine Consortium","STATE","ACADEMIC INSTITUTION",2,4,1451,{"$nulls":5},true]
[null,"Louisiana University Marine Consortium","STATE","Unknown",2,0,9947,{"$nulls":5},true]
[null,"Lowcountry Cruises","LOCAL","INDUSTRY AND BUSINESS",1,3,4952,{"$nulls":5},true]
[null,"Lowcountry STEM Cooperative","LOCAL","ACADEMIC INSTITUTION",1,4,8826,{"$nulls":5},true]
[null,"Lower Delaware/Maryland Building Officials Association","REGIONAL","OTHER PARTNERS",3,6,5758,{"$nulls":5},true]
[null,"Lower Kuskokwim School District","LOCAL","ACADEMIC INSTITUTION",1,4,1462,{"$nulls":5},true]
[null,"Loyola University Chicago (LUC)","STATE","ACADEMIC INSTITUTION",2,4,1464,{"$nulls":5},true]
[null,"Loyola University New Orleans (LOYNO)","STATE","ACADEMIC INSTITUTION",2,4,1465,{"$nulls":5},true]
[null,"LSU Department of Geology and Geophysics","STATE","ACADEMIC INSTITUTION",2,4,17615,{"$nulls":5},true]
[null,"LSU Geology Club","STATE","ACADEMIC INSTITUTION",2,4,15531,{"$nulls":5},true]
[null,"LSU Lab School","LOCAL","OTHER PARTNERS",1,6,15515,{"$nulls":5},true]
[null,"LSU, Department of Oceanography and Coastal Sciences","STATE","ACADEMIC INSTITUTION",2,4,15520,{"$nulls":5},true]
[null,"Lucy Buffett's LuLu's","REGIONAL","INDUSTRY AND BUSINESS",3,3,16324,{"$nulls":5},true]
[null,"Lummi Indian Business Council","FEDERAL or NATIONAL","INDUSTRY AND BUSINESS",4,3,1468,{"$nulls":5},true]
[null,"Lyden Shellfish LLC","STATE","INDUSTRY AND BUSINESS",2,3,1469,{"$nulls":5},true]
[null,"MacDill Air Force Base","REGIONAL","GOVERNMENT",3,1,12918,{"$nulls":5},true]
[null,"Macomb County Commission","LOCAL","GOVERNMENT",1,1,9227,{"$nulls":5},true]
[null,"Macon County Environmental Management Department","LOCAL","GOVERNMENT",1,1,13881,{"$nulls":5},true]
[null,"Madison JASON Schools and Partners","Unknown2","OTHER PARTNERS",6,6,1475,{"$nulls":5},true]
[null,"Madison Public Library","LOCAL","GOVERNMENT",1,1,10568,{"$nulls":5},true]
[null,"Magnolia Greens Country Club","LOCAL","INDUSTRY AND BUSINESS",1,3,7030,{"$nulls":5},true]
[null,"Maine Association of Sea Kayak Guides and Instructors","STATE","NGO",2,2,1482,{"$nulls":5},true]
[null,"Maine Center for Coastal Fisheries","STATE","NGO",2,2,17260,{"$nulls":5},true]
[null,"Maine Community Foundation","LOCAL","OTHER PARTNERS",1,6,5202,{"$nulls":5},true]
[null,"Maine Department of Health (ME DOH)","STATE","GOVERNMENT",2,1,1491,{"$nulls":5},true]
[null,"Maine Department of Revenue Services","STATE","GOVERNMENT",2,1,5249,{"$nulls":5},true]
[null,"Maine Health Laboratory","LOCAL","OTHER PARTNERS",1,6,5218,{"$nulls":5},true]
[null,"Maine Lakes Resource Center","LOCAL","NGO",1,2,17269,{"$nulls":5},true]
[null,"Maine Marine Composites","STATE","INDUSTRY AND BUSINESS",2,3,17384,{"$nulls":5},true]
[null,"Maine Seaweed Festival","REGIONAL","NGO",3,2,13857,{"$nulls":5},true]
[null,"Maine Technology Institute","STATE","ACADEMIC INSTITUTION",2,4,15657,{"$nulls":5},true]
[null,"Malama Loko Ea Foundation","LOCAL","NGO",1,2,15809,{"$nulls":5},true]
[null,"Manhasset Bay Protection Committee","LOCAL","GOVERNMENT",1,1,8515,{"$nulls":5},true]
[null,"Manistee, MI","LOCAL","OTHER PARTNERS",1,6,12472,{"$nulls":5},true]
[null,"Mano al Hermano","LOCAL","NGO",1,2,12696,{"$nulls":5},true]
[null,"Manufacture Alaska Extension Partnership","STATE","INDUSTRY AND BUSINESS",2,3,17179,{"$nulls":5},true]
[null,"Marel Seattle, Inc.","FEDERAL or NATIONAL","INDUSTRY AND BUSINESS",4,3,9001,{"$nulls":5},true]
[null,"Marina Del Ray Anglers","LOCAL","NGO",1,2,15127,{"$nulls":5},true]
[null,"MARINe (Multi-Agency Rocky Intertidal Network)","REGIONAL","GOVERNMENT",3,1,11605,{"$nulls":5},true]
[null,"Marine Aquatics Aquarium Center","LOCAL","INDUSTRY AND BUSINESS",1,3,14835,{"$nulls":5},true]
[null,"Marine Conservation Research Institute","REGIONAL","NGO",3,2,10741,{"$nulls":5},true]
[null,"Marine Ecosystems & Management (MEAM)","FEDERAL or NATIONAL","OTHER PARTNERS",4,6,9563,{"$nulls":5},true]
[null,"Marine Genomics Consortium","INTERNATIONAL","OTHER PARTNERS",5,6,1522,{"$nulls":5},true]
[null,"Marine Mammal Commission","FEDERAL or NATIONAL","GOVERNMENT",4,1,5606,{"$nulls":5},true]
[null,"Marine Protected Areas (US DOC, NOAA, NOS, MPA)","FEDERAL or NATIONAL","GOVERNMENT",4,1,1525,{"$nulls":5},true]
[null,"Marine Retailers Association of America","FEDERAL or NATIONAL","NGO",4,2,15605,{"$nulls":5},true]
[null,"Marine Science Institute—Redwood City (MSI)","FEDERAL or NATIONAL","GOVERNMENT",4,1,3387,{"$nulls":5},true]
[null,"Marine Terminals of S.C.","STATE","INDUSTRY AND BUSINESS",2,3,1529,{"$nulls":5},true]
[null,"Marinetics Inc.","LOCAL","INDUSTRY AND BUSINESS",1,3,9309,{"$nulls":5},true]
[null,"Mario's Landing","LOCAL","INDUSTRY AND BUSINESS",1,3,1534,{"$nulls":5},true]
[null,"Maritime Works (Industry Advisory Committee)","STATE","NGO",2,2,14031,{"$nulls":5},true]
[null,"Marlboro College","STATE","ACADEMIC INSTITUTION",2,4,5304,{"$nulls":5},true]
[null,"Marsh Area Regional Coalition","REGIONAL","NGO",3,2,13293,{"$nulls":5},true]
[null,"Marstel-Day, LLC","LOCAL","INDUSTRY AND BUSINESS",1,3,6596,{"$nulls":5},true]
[null,"Martin Ecosystems, Inc.","STATE","INDUSTRY AND BUSINESS",2,3,8356,{"$nulls":5},true]
[null,"Maryland Aquaculture Plant Nursery Industry","STATE","INDUSTRY AND BUSINESS",2,3,4660,{"$nulls":5},true]
[null,"Maryland Department of Health (MD DoH)","STATE","GOVERNMENT",2,1,5147,{"$nulls":5},true]
[null,"Maryland Department of Labor and Licensing","STATE","GOVERNMENT",2,1,6459,{"$nulls":5},true]
[null,"Maryland Historic Trust","STATE","GOVERNMENT",2,1,11579,{"$nulls":5},true]
[null,"Maryland Waterman’s Association","STATE","INDUSTRY AND BUSINESS",2,3,1548,{"$nulls":5},true]
[null,"Mason Area Fair","LOCAL","NGO",1,2,7400,{"$nulls":5},true]
[null,"Mason County Historic Preservation Board","LOCAL","NGO",1,2,1552,{"$nulls":5},true]
[null,"Mason County Safety Co-op","LOCAL","NGO",1,2,1554,{"$nulls":5},true]
[null,"Mason County School District","LOCAL","GOVERNMENT",1,1,7731,{"$nulls":5},true]
[null,"Massachusetts Bay Community College","FEDERAL or NATIONAL","SEA GRANT PROGRAMS",4,5,4663,{"$nulls":5},true]
[null,"Massachusetts Division of Marine Fisheries","STATE","GOVERNMENT",2,1,6408,{"$nulls":5},true]
[null,"Massachusetts Division of Marine Fisheries (MA DMF)","STATE","GOVERNMENT",2,1,1558,{"$nulls":5},true]
[null,"Massachusetts Institute of Technology, Museum (MIT)","LOCAL","ACADEMIC INSTITUTION",1,4,6434,{"$nulls":5},true]
[null,"Massachusetts Marine Educators","REGIONAL","NGO",3,2,6420,{"$nulls":5},true]
[null,"Massachusetts Sea Grant","STATE","SEA GRANT PROGRAMS",2,5,3281,{"$nulls":5},true]
[null,"Matagorda County Convention and Visitors Bureau","LOCAL","INDUSTRY AND BUSINESS",1,3,6178,{"$nulls":5},true]
[null,"Mathew Gregg and Scott Lenox, Forty-north Oysters","STATE","INDUSTRY AND BUSINESS",2,3,16300,{"$nulls":5},true]
[null,"MathScience Innovation Center","LOCAL","GOVERNMENT",1,1,17387,{"$nulls":5},true]
[null,"Mattie Kelly Environmental Institution","LOCAL","ACADEMIC INSTITUTION",1,4,6598,{"$nulls":5},true]
[null,"Maui County Civil Defense Agency","LOCAL","GOVERNMENT",1,1,12580,{"$nulls":5},true]
[null,"Maui Electric","LOCAL","INDUSTRY AND BUSINESS",1,3,8292,{"$nulls":5},true]
[null,"Maui Nui Marine Resource Council","LOCAL","NGO",1,2,8306,{"$nulls":5},true]
[null,"May River Oyster Company","LOCAL","INDUSTRY AND BUSINESS",1,3,15151,{"$nulls":5},true]
[null,"McClennanville, SC","LOCAL","GOVERNMENT",1,1,4664,{"$nulls":5},true]
[null,"McGill University, Montreal, Quebec","INTERNATIONAL","ACADEMIC INSTITUTION",5,4,1577,{"$nulls":5},true]
[null,"McIntosh County","LOCAL","GOVERNMENT",1,1,1578,{"$nulls":5},true]
[null,"Mcneese State University","STATE","ACADEMIC INSTITUTION",2,4,3561,{"$nulls":5},true]
[null,"Meadowlands Environment Center","STATE","NGO",2,2,7523,{"$nulls":5},true]
[null,"MegaPesca Lda., Portugal (MP)","Unknown2","SEA GRANT PROGRAMS",6,5,3457,{"$nulls":5},true]
[null,"Memorial School","LOCAL","ACADEMIC INSTITUTION",1,4,14907,{"$nulls":5},true]
[null,"Menominee Indian Tribe of Wisconsin","Tribal","GOVERNMENT",13,1,3724,{"$nulls":5},true]
[null,"Mercury Science, Inc.","Unknown","INDUSTRY AND BUSINESS",0,3,17181,{"$nulls":5},true]
[null,"Messick Point Marina","LOCAL","INDUSTRY AND BUSINESS",1,3,13719,{"$nulls":5},{"$f":"AND(  NOT(ISERROR(FIND(UPPER($B$7),UPPER($B7182),1))),  OR($D$7=\"\",NOT(ISERROR(FIND(UPPER($D$7),UPPER($B7182),1)))),    OR($D$8=\"\",(ISERROR(FIND(UPPER($D$8),UPPER($B7182),1))))           )","v":true}]
[null,"Metropolis Strategies","REGIONAL","INDUSTRY AND BUSINESS",3,3,9425,{"$nulls":5},true]
[null,"Metropolitan Planning Council","LOCAL","NGO",1,2,7787,{"$nulls":5},true]
[null,"Mettawee Community School","LOCAL","ACADEMIC INSTITUTION",1,4,5305,{"$nulls":5},true]
[null,"Miami Corporation, Sweetlake Land and Oil, Other private landowners","LOCAL","INDUSTRY AND BUSINESS",1,3,17593,{"$nulls":5},true]
[null,"Michaux Conservancy","LOCAL","NGO",1,2,4956,{"$nulls":5},true]
[null,"Michigan Association of Planning","STATE","NGO",2,2,7910,{"$nulls":5},true]
[null,"Michigan Clean Marina Program","STATE","NGO",2,2,8432,{"$nulls":5},true]
[null,"Michigan Department of Community Health","STATE","GOVERNMENT",2,1,5988,{"$nulls":5},true]
[null,"Michigan Department of Natural Resources","STATE","GOVERNMENT",2,1,9486,{"$nulls":5},true]
[null,"Michigan Department of Natural Resources Fisheries Division","STATE","GOVERNMENT",2,1,9176,{"$nulls":5},true]
[null,"Michigan Department of Transportation (MDOT)","STATE","GOVERNMENT",2,1,6879,{"$nulls":5},true]
[null,"Michigan FFA Association","STATE","NGO",2,2,7979,{"$nulls":5},true]
[null,"Michigan Native Plant Producers Association","STATE","NGO",2,2,15548,{"$nulls":5},true]
[null,"Michigan Office of the Attorney General","STATE","GOVERNMENT",2,1,1614,{"$nulls":5},true]
[null,"Michigan Soybean","REGIONAL","INDUSTRY AND BUSINESS",3,3,15811,{"$nulls":5},true]
[null,"Michigan State University Land Policy Institute","STATE","ACADEMIC INSTITUTION",2,4,10930,{"$nulls":5},true]
[null,"Michigan State University, Greening Michigan Institute","STATE","ACADEMIC INSTITUTION",2,4,9494,{"$nulls":5},true]
[null,"Michigan Technological University (MTU)","STATE","ACADEMIC INSTITUTION",2,4,1622,{"$nulls":5},true]
[null,"Mid-Atlantic Center for the Arts","Unknown","NGO",0,2,4863,{"$nulls":5},true]
[null,"Mid-Atlantic Coastal Ocean Observing Regional Association (MACOORA)","REGIONAL","NGO",3,2,1624,{"$nulls":5},true]
[null,"Mid-Atlantic Regional Sea Grant Extension Programs","REGIONAL","SEA GRANT PROGRAMS",3,5,17389,{"$nulls":5},true]
[null,"Middle Country School District","LOCAL","ACADEMIC INSTITUTION",1,4,5835,{"$nulls":5},true]
[null,"Middle Peninsula Chesapeake Bay Public Access Authority","STATE","GOVERNMENT",2,1,5227,{"$nulls":5},true]
[null,"Midwest Cichlid Association","Unknown","NGO",0,2,7086,{"$nulls":5},true]
[null,"Midwest Invasive Species Council","REGIONAL","GOVERNMENT",3,1,16239,{"$nulls":5},true]
[null,"Midwest Marina Association","REGIONAL","INDUSTRY AND BUSINESS",3,3,6013,{"$nulls":5},true]
[null,"Milford, CT  Laboratory (US DOC, NOAA, NMFS)","FEDERAL or NATIONAL","GOVERNMENT",4,1,1632,{"$nulls":5},true]
[null,"miller place school district","LOCAL","ACADEMIC INSTITUTION",1,4,5836,{"$nulls":5},true]
[null,"Milton Community Foundation","LOCAL","OTHER PARTNERS",1,6,5760,{"$nulls":5},true]
[null,"Milwaukee Health Department","LOCAL","GOVERNMENT",1,1,14741,{"$nulls":5},true]
[null,"Milwaukee Water Council","REGIONAL","INDUSTRY AND BUSINESS",3,3,10378,{"$nulls":5},true]
[null,"Ministry of Fisheries – Aquaculture Development Directorate, Kenya","INTERNATIONAL","GOVERNMENT",5,1,5034,{"$nulls":5},true]
[null,"Minnehaha Creek Watershed District","LOCAL","GOVERNMENT",1,1,6240,{"$nulls":5},true]
[null,"Minnesota Climate Adaptation Partnership","STATE","GOVERNMENT",2,1,14903,{"$nulls":5},true]
[null,"Minnesota Crop Improvement Association","STATE","INDUSTRY AND BUSINESS",2,3,1648,{"$nulls":5},true]
[null,"Minnesota Department of Transportation (MN DOT)","STATE","GOVERNMENT",2,1,1653,{"$nulls":5},true]
[null,"Minnesota Forest Resources Council","STATE","NGO",2,2,1657,{"$nulls":5},true]
[null,"Minnesota Lake Superior Coastal Program","REGIONAL","NGO",3,2,1662,{"$nulls":5},{"$f":"AND(  NOT(ISERROR(FIND(UPPER($B$7),UPPER($B7438),1))),  OR($D$7=\"\",NOT(ISERROR(FIND(UPPER($D$7),UPPER($B7438),1)))),    OR($D$8=\"\",(ISERROR(FIND(UPPER($D$8),UPPER($B7438),1))))           )","v":true}]
[null,"Minnesota Nursery and Landscape Assn.","STATE","INDUSTRY AND BUSINESS",2,3,1666,{"$nulls":5},true]
[null,"Minnesota Sea Grant","STATE","SEA GRANT PROGRAMS",2,5,3283,{"$nulls":5},true]
[null,"Minnesota Water Garden Society","STATE","NGO",2,2,1673,{"$nulls":5},true]
[null,"Miss Croix Yacht Harbor","LOCAL","INDUSTRY AND BUSINESS",1,3,8770,{"$nulls":5},true]
[null,"Mississippi Coast Audubon Society","STATE","NGO",2,2,1676,{"$nulls":5},true]
[null,"Mississippi Department of Marine Resources, Fisheries (MS DMR)","STATE","GOVERNMENT",2,1,1682,{"$nulls":5},true]
[null,"Mississippi Gulf Fishing Banks, Inc.","STATE","NGO",2,2,1686,{"$nulls":5},true]
[null,"Mississippi Office of Secretary of State","STATE","GOVERNMENT",2,1,1689,{"$nulls":5},true]
[null,"Mississippi Science Teachers Association","STATE","NGO",2,2,9956,{"$nulls":5},true]
[null,"Mississippi State University Coastal Research and Extension Center","STATE","ACADEMIC INSTITUTION",2,4,6604,{"$nulls":5},true]
[null,"Mistyvale Crawfish Farm","FEDERAL or NATIONAL","INDUSTRY AND BUSINESS",4,3,1696,{"$nulls":5},true]
[null,"MIT Communication Production Services","LOCAL","ACADEMIC INSTITUTION",1,4,8372,{"$nulls":5},true]
[null,"MIT-WHOI Joint Program","Unknown","Unknown",0,0,14700,{"$nulls":5},true]
[null,"MN Land & Resource Management","STATE","GOVERNMENT",2,1,16096,{"$nulls":5},true]
[null,"Mobile Area Water and Sewer System","LOCAL","GOVERNMENT",1,1,1699,{"$nulls":5},true]
[null,"Mobile Bay Audubon Society","Unknown","Unknown",0,0,6605,{"$nulls":5},true]
[null,"Mobile County Bee Keepers Association","LOCAL","NGO",1,2,9960,{"$nulls":5},true]
[null,"Mobile County Public School System","LOCAL","ACADEMIC INSTITUTION",1,4,1704,{"$nulls":5},true]
[null,"Mobjack Bay Marina","LOCAL","INDUSTRY AND BUSINESS",1,3,13720,{"$nulls":5},{"$f":"AND(  NOT(ISERROR(FIND(UPPER($B$7),UPPER($B7566),1))),  OR($D$7=\"\",NOT(ISERROR(FIND(UPPER($D$7),UPPER($B7566),1)))),    OR($D$8=\"\",(ISERROR(FIND(UPPER($D$8),UPPER($B7566),1))))           )","v":true}]
[null,"Mockhorn Seafood","STATE","INDUSTRY AND BUSINESS",2,3,17391,{"$nulls":5},true]
[null,"Molii fish pond","LOCAL","OTHER PARTNERS",1,6,13378,{"$nulls":5},true]
[null,"Monmouth Beach Girl Scouts","LOCAL","NGO",1,2,15002,{"$nulls":5},true]
[null,"Monmouth County Parks Beach Patrol","LOCAL","OTHER PARTNERS",1,6,9083,{"$nulls":5},true]
[null,"Monmouth County Sherrif's Office","STATE","GOVERNMENT",2,1,16595,{"$nulls":5},true]
[null,"Monroeville Marina Inc.","LOCAL","INDUSTRY AND BUSINESS",1,3,1713,{"$nulls":5},true]
[null,"Montana Department of Agriculture","REGIONAL","GOVERNMENT",3,1,7971,{"$nulls":5},true]
[null,"Monterey Bay National Marine Sanctuary (US DOC, NOAA, NOS, ONMS)","FEDERAL or NATIONAL","GOVERNMENT",4,1,1719,{"$nulls":5},true]
[null,"Monterey Peninsula College","STATE","ACADEMIC INSTITUTION",2,4,10469,{"$nulls":5},true]
[null,"Montessori School of Mt. Pleasant","LOCAL","ACADEMIC INSTITUTION",1,4,7142,{"$nulls":5},{"$f":"AND(  NOT(ISERROR(FIND(UPPER($B$7),UPPER($B7630),1))),  OR($D$7=\"\",NOT(ISERROR(FIND(UPPER($D$7),UPPER($B7630),1)))),    OR($D$8=\"\",(ISERROR(FIND(UPPER($D$8),UPPER($B7630),1))))           )","v":true}]
[null,"Mook Sea Farm","STATE","INDUSTRY AND BUSINESS",2,3,17265,{"$nulls":5},true]
[null,"Morgan State University","STATE","ACADEMIC INSTITUTION",2,4,1724,{"$nulls":5},true]
[null,"Morgan State University SCUBA Club","STATE","ACADEMIC INSTITUTION",2,4,11578,{"$nulls":5},true]
[null,"Morshovi Bay Fish Company","STATE","INDUSTRY AND BUSINESS",2,3,10972,{"$nulls":5},true]
[null,"Mossyrock High School","LOCAL","ACADEMIC INSTITUTION",1,4,4197,{"$nulls":5},true]
[null,"Motivatit Seafood Inc.","Unknown","Unknown",0,0,9799,{"$nulls":5},true]
[null,"Mount Union College","STATE","ACADEMIC INSTITUTION",2,4,1730,{"$nulls":5},true]
[null,"MSU Dept. of Ag. Economics","Unknown","Unknown",0,0,9800,{"$nulls":5},true]
[null,"MSU Extension","STATE","ACADEMIC INSTITUTION",2,4,9226,{"$nulls":5},true]
[null,"Munster Schools","LOCAL","GOVERNMENT",1,1,5937,{"$nulls":5},true]
[null,"Murrells Inlet Fishing Clubs","FEDERAL or NATIONAL","OTHER PARTNERS",4,6,1732,{"$nulls":5},true]
[null,"Museum of Life, Rio de Janeiro","INTERNATIONAL","NGO",5,2,14514,{"$nulls":5},true]
[null,"Muskegon Lake Watershed Partnership","LOCAL","NGO",1,2,7764,{"$nulls":5},true]
[null,"Myrtle Beach Intermediate School","LOCAL","ACADEMIC INSTITUTION",1,4,7133,{"$nulls":5},true]
[null,"N.C. Beach Buggy Association Annual Red Drum Tournament","LOCAL","NGO",1,2,11561,{"$nulls":5},true]
[null,"Nab the Aquatic Invaders","REGIONAL","NGO",3,2,6321,{"$nulls":5},true]
[null,"Nandua Oyster Co.","LOCAL","INDUSTRY AND BUSINESS",1,3,17392,{"$nulls":5},true]
[null,"Narrows Marina","LOCAL","INDUSTRY AND BUSINESS",1,3,4335,{"$nulls":5},true]
[null,"NASCO","FEDERAL or NATIONAL","INDUSTRY AND BUSINESS",4,3,6027,{"$nulls":5},true]
[null,"Natchitoches National Fish Hatchery (US FWS)","STATE","GOVERNMENT",2,1,8360,{"$nulls":5},true]
[null,"National Aquaculture Association","FEDERAL or NATIONAL","NGO",4,2,5661,{"$nulls":5},true]
[null,"National Association For Equal Opportunity In Higher","Unknown","Unknown",0,0,3572,{"$nulls":5},true]
[null,"National Association of County Agriculture Agents","FEDERAL or NATIONAL","GOVERNMENT",4,1,6179,{"$nulls":5},true]
[null,"National BASS Federation","FEDERAL or NATIONAL","NGO",4,2,5128,{"$nulls":5},true]
[null,"National Center for Cool and Cold Water Aquaculture (USDA, ARS)","FEDERAL or NATIONAL","GOVERNMENT",4,1,1751,{"$nulls":5},true]
[null,"National Centers for Coastal Ocean Science (US DOC, NOAA, NOS, NCCOS)","FEDERAL or NATIONAL","GOVERNMENT",4,1,3869,{"$nulls":5},true]
[null,"National Climatic Data Center (US DOC, NOAA, NESDIS, NCDC)","FEDERAL or NATIONAL","GOVERNMENT",4,1,3870,{"$nulls":5},true]
[null,"National Disaster Preparedness Training Center (FEMA)","FEDERAL or NATIONAL","GOVERNMENT",4,1,10953,{"$nulls":5},true]
[null,"National Federation of Regional Associations for Coastal Ocean Observing (NFRA)","FEDERAL or NATIONAL","GOVERNMENT",4,1,1755,{"$nulls":5},true]
[null,"National Fish and Wildlife Foundation (NFWF)","FEDERAL or NATIONAL","NGO",4,2,1757,{"$nulls":5},true]
[null,"National Food Institute, Denmark (NFI)","Unknown2","SEA GRANT PROGRAMS",6,5,3458,{"$nulls":5},true]
[null,"National Institute of Environmental Health Sciences, National Institutes of Health, US Department of Health and Human Services (US HHS)","FEDERAL or NATIONAL","GOVERNMENT",4,1,5891,{"$nulls":5},true]
[null,"National Institute of Standards and Technology (US DOC, NIST)","FEDERAL or NATIONAL","GOVERNMENT",4,1,7098,{"$nulls":5},true]
[null,"National Marine Fisheries Service U.S. delegation to tuna Regional Fishery Management Organizations","FEDERAL or NATIONAL","GOVERNMENT",4,1,7429,{"$nulls":5},true]
[null,"National Marine Fisheries Service, Milford  (US DOC, NOAA, NMFS)","FEDERAL or NATIONAL","GOVERNMENT",4,1,3874,{"$nulls":5},true]
[null,"National Marine Mammal Foundation","REGIONAL","NGO",3,2,7438,{"$nulls":5},true]
[null,"National Network for Educational Renewal","FEDERAL or NATIONAL","NGO",4,2,9038,{"$nulls":5},true]
[null,"National Ocean Partnership Program (NOPP)","FEDERAL or NATIONAL","GOVERNMENT",4,1,5184,{"$nulls":5},true]
[null,"National Oceanographic Data Center (US DOC, NOAA, NESDIS, NODC)","FEDERAL or NATIONAL","GOVERNMENT",4,1,5643,{"$nulls":5},true]
[null,"National Park Service Alaska Public Lands Information Center","FEDERAL or NATIONAL","GOVERNMENT",4,1,17219,{"$nulls":5},true]
[null,"National Parks Conservation Association","FEDERAL or NATIONAL","NGO",4,2,11300,{"$nulls":5},true]
[null,"National Scenic Byway Program","FEDERAL or NATIONAL","GOVERNMENT",4,1,12371,{"$nulls":5},true]
[null,"National Science Foundation (NSF) Research Experience for Undergraduates (REU)","FEDERAL or NATIONAL","GOVERNMENT",4,1,9965,{"$nulls":5},true]
[null,"National Sea Grant Association","FEDERAL or NATIONAL","SEA GRANT PROGRAMS",4,5,9966,{"$nulls":5},true]
[null,"National Seafood HACCP Alliance","FEDERAL or NATIONAL","NGO",4,2,2443,{"$nulls":5},true]
[null,"National States Geographic Information Council","REGIONAL","NGO",3,2,11491,{"$nulls":5},true]
[null,"National University of Singapore","INTERNATIONAL","ACADEMIC INSTITUTION",5,4,6829,{"$nulls":5},true]
[null,"National Weather Service Brownsville/Rio Grande Valley Station","LOCAL","GOVERNMENT",1,1,15865,{"$nulls":5},true]
[null,"National Weather Service, Newport, NC (US DOC, NOAA, NWS)","FEDERAL or NATIONAL","GOVERNMENT",4,1,3884,{"$nulls":5},true]
[null,"National Wetlands Research Center (USGS)","FEDERAL or NATIONAL","GOVERNMENT",4,1,7104,{"$nulls":5},true]
[null,"National Wildlife Research Centre, Environment Canada","Unknown","Unknown",0,0,10019,{"$nulls":5},true]
[null,"Native Resources Developer Inc.","LOCAL","NGO",1,2,1798,{"$nulls":5},true]
[null,"Native Scape","LOCAL","INDUSTRY AND BUSINESS",1,3,1799,{"$nulls":5},true]
[null,"Natural Capital Project (NCP)","STATE","GOVERNMENT",2,1,3390,{"$nulls":5},true]
[null,"Natural Resources Defense Council","INTERNATIONAL","NGO",5,2,13389,{"$nulls":5},true]
[null,"Natural Resources Research Institute","Unknown","Unknown",0,0,9887,{"$nulls":5},true]
[null,"Nature Safe Natural and Organic Fertilizers","LOCAL","INDUSTRY AND BUSINESS",1,3,8644,{"$nulls":5},true]
[null,"Naval Facilities Engineering Command JEBLCFS","FEDERAL or NATIONAL","GOVERNMENT",4,1,13678,{"$nulls":5},true]
[null,"Naval Station Everett Marina (US DOD, NAVY)","FEDERAL or NATIONAL","GOVERNMENT",4,1,4336,{"$nulls":5},true]
[null,"NBC Television","Unknown2","INDUSTRY AND BUSINESS",6,3,1802,{"$nulls":5},true]
[null,"Neah-Kah-Nie School District","LOCAL","GOVERNMENT",1,1,11673,{"$nulls":5},true]
[null,"Near Space Corporation","FEDERAL or NATIONAL","INDUSTRY AND BUSINESS",4,3,10139,{"$nulls":5},true]
[null,"Neighborhood Art House","LOCAL","ACADEMIC INSTITUTION",1,4,10698,{"$nulls":5},true]
[null,"Nelson Lagoon Tribal Council","Tribal","GOVERNMENT",13,1,9332,{"$nulls":5},true]
[null,"Neptune Nimrods Dive Club","LOCAL","NGO",1,2,1806,{"$nulls":5},true]
[null,"Network for Earthquake Engineering Simulation (NEES)","FEDERAL or NATIONAL","OTHER PARTNERS",4,6,10470,{"$nulls":5},true]
[null,"Nevada Department of Health (NV DOH)","STATE","GOVERNMENT",2,1,1809,{"$nulls":5},true]
[null,"New Castle Conservation District","STATE","GOVERNMENT",2,1,5763,{"$nulls":5},true]
[null,"New England Lobster Shell Disease Initiative","REGIONAL","NGO",3,2,6805,{"$nulls":5},true]
[null,"New England Ocean Sciences Education Collaborative (NEOSEC)","STATE","NGO",2,2,3803,{"$nulls":5},true]
[null,"New Hampshire Coastal Risks and Hazards Commission","STATE","GOVERNMENT",2,1,12538,{"$nulls":5},true]
[null,"New Hampshire Department of Fish and Game (NH DFG)","STATE","GOVERNMENT",2,1,1821,{"$nulls":5},true]
[null,"New Hampshire Homeland Security and Emergency Management (NH HSEM)","LOCAL","GOVERNMENT",1,1,3789,{"$nulls":5},true]
[null,"New Hampshire Rivers Council","STATE","NGO",2,2,9531,{"$nulls":5},true]
[null,"New Hampshire Sea Grant","STATE","SEA GRANT PROGRAMS",2,5,3285,{"$nulls":5},true]
[null,"New Hanover County Schools","LOCAL","ACADEMIC INSTITUTION",1,4,1832,{"$nulls":5},true]
[null,"New Jersey Artists (Various)","STATE","OTHER PARTNERS",2,6,10538,{"$nulls":5},true]
[null,"New Jersey Chapter of the American Society of Landscape Architects","STATE","NGO",2,2,9072,{"$nulls":5},true]
[null,"New Jersey Department of Education","STATE","GOVERNMENT",2,1,13111,{"$nulls":5},true]
[null,"New Jersey Department of Marine Fisheries (NJ DMF)","STATE","GOVERNMENT",2,1,1836,{"$nulls":5},true]
[null,"New Jersey Invasive Species Strike Team","STATE","GOVERNMENT",2,1,7097,{"$nulls":5},true]
[null,"New Jersey Office of Science (NJ DEP, NJ DSRT)","STATE","GOVERNMENT",2,1,1838,{"$nulls":5},true]
[null,"New Jersey Resources","LOCAL","INDUSTRY AND BUSINESS",1,3,1839,{"$nulls":5},true]
[null,"New Jersey Water Resources Research Institute","STATE","ACADEMIC INSTITUTION",2,4,9071,{"$nulls":5},true]
[null,"New Orleans City Park","LOCAL","GOVERNMENT",1,1,5057,{"$nulls":5},true]
[null,"New York BASS Federation (NY)","STATE","NGO",2,2,5316,{"$nulls":5},true]
[null,"New York City Mayor’s Office of Emergency Management","LOCAL","GOVERNMENT",1,1,1846,{"$nulls":5},true]
[null,"New York District (US DOI, USGS)","FEDERAL or NATIONAL","GOVERNMENT",4,1,1847,{"$nulls":5},true]
[null,"New York Shipping Association, Inc.","Unknown","INDUSTRY AND BUSINESS",0,3,4913,{"$nulls":5},true]
[null,"New York State Department of State","STATE","GOVERNMENT",2,1,1857,{"$nulls":5},true]
[null,"New York State Department of State Office of Communities and Waterfronts","LOCAL","GOVERNMENT",1,1,7831,{"$nulls":5},true]
[null,"New York State Invasive Species Advisory Committee","STATE","GOVERNMENT",2,1,5843,{"$nulls":5},true]
[null,"New Zealand Department of Conservation","INTERNATIONAL","GOVERNMENT",5,1,1862,{"$nulls":5},true]
[null,"New Zealand Freshwater Initiative","INTERNATIONAL","GOVERNMENT",5,1,3764,{"$nulls":5},true]
[null,"Newark Public School District","LOCAL","ACADEMIC INSTITUTION",1,4,7524,{"$nulls":5},true]
[null,"Newport Shipyard","LOCAL","INDUSTRY AND BUSINESS",1,3,13017,{"$nulls":5},true]
[null,"Newport State Park, Ellison Bay","STATE","GOVERNMENT",2,1,1867,{"$nulls":5},true]
[null,"NICHES Land Trust","LOCAL","NGO",1,2,1872,{"$nulls":5},true]
[null,"Nine Mile Creek Watershed District","REGIONAL","GOVERNMENT",3,1,13401,{"$nulls":5},true]
[null,"Ninilchik Natives Association","LOCAL","NGO",1,2,5398,{"$nulls":5},true]
[null,"NJ Marine Educators Association","Unknown","Unknown",0,0,9999,{"$nulls":5},true]
[null,"NJ School Districts (many)","Unknown","Unknown",0,0,10000,{"$nulls":5},true]
[null,"NJSGC's member institutions","Unknown","Unknown",0,0,10003,{"$nulls":5},true]
[null,"NOAA Climate and Societal Interactions Program (US DOC, NOAA)","FEDERAL or NATIONAL","GOVERNMENT",4,1,7062,{"$nulls":5},true]
[null,"NOAA CoastWatch Great Lakes Regional Node","FEDERAL or NATIONAL","GOVERNMENT",4,1,10934,{"$nulls":5},true]
[null,"NOAA Corps, Office of Marine and Aviation Operations, (US DOC, NOAA, OMAO)","FEDERAL or NATIONAL","GOVERNMENT",4,1,4096,{"$nulls":5},true]
[null,"NOAA Fisheries Highly Migratory Species Division (DOC, NOAA, NMFS, HMS)","Unknown","Unknown",0,0,14669,{"$nulls":5},true]
[null,"NOAA Fisheries, CA Dept Fish and Wildlife, The Nature Conservancy","Unknown","Unknown",0,0,15806,{"$nulls":5},true]
[null,"NOAA Human Use Impacts Technical Working Group","FEDERAL or NATIONAL","GOVERNMENT",4,1,9971,{"$nulls":5},true]
[null,"NOAA Montrose Settlement Restoration Program","REGIONAL","GOVERNMENT",3,1,13625,{"$nulls":5},true]
[null,"NOAA Northeast Fisheries Center","FEDERAL or NATIONAL","Unknown",4,0,9670,{"$nulls":5},true]
[null,"NOAA Ocean Survey","FEDERAL or NATIONAL","Unknown",4,0,9810,{"$nulls":5},true]
[null,"NOAA Office of Legislative Affairs (DOC, NOAA, OLIA)","Unknown","Unknown",0,0,14647,{"$nulls":5},{"$f":"AND(  NOT(ISERROR(FIND(UPPER($B$7),UPPER($B8398),1))),  OR($D$7=\"\",NOT(ISERROR(FIND(UPPER($D$7),UPPER($B8398),1)))),    OR($D$8=\"\",(ISERROR(FIND(UPPER($D$8),UPPER($B8398),1))))           )","v":true}]
[null,"NOAA Regional Teams in the Gulf of Mexico (GOM) and South Atlantic (SA)","FEDERAL or NATIONAL","Unknown",4,0,9671,{"$nulls":5},true]
[null,"NOAA Research Office of Ocean Exploration and Research (DOC, NOAA, OAR, OER)","Unknown","Unknown",0,0,14662,{"$nulls":5},true]
[null,"NOAA Socioeconomic Division","FEDERAL or NATIONAL","Unknown",4,0,9812,{"$nulls":5},true]
[null,"NOAA West","FEDERAL or NATIONAL","GOVERNMENT",4,1,7474,{"$nulls":5},true]
[null,"NOAA/NMFS/James J. Howard Marine Sciences Laboratory","FEDERAL or NATIONAL","Unknown",4,0,10006,{"$nulls":5},true]
[null,"Noisette Company","LOCAL","INDUSTRY AND BUSINESS",1,3,1880,{"$nulls":5},true]
[null,"Norfolk State University, Norfolk","STATE","ACADEMIC INSTITUTION",2,4,3584,{"$nulls":5},true]
[null,"North - South Sandy Pond Association","LOCAL","OTHER PARTNERS",1,6,8499,{"$nulls":5},true]
[null,"North and South Rivers Watershed Association","REGIONAL","NGO",3,2,10859,{"$nulls":5},true]
[null,"North Bend Chamber of Commerce","LOCAL","OTHER PARTNERS",1,6,11651,{"$nulls":5},true]
[null,"North Carolina Aquarium at Pine Knoll Shores","STATE","OTHER PARTNERS",2,6,1888,{"$nulls":5},true]
[null,"North Carolina Big Sweep","STATE","NGO",2,2,4042,{"$nulls":5},true]
[null,"North Carolina Center for the Advancement of Teaching","STATE","INDUSTRY AND BUSINESS",2,3,3996,{"$nulls":5},true]
[null,"North Carolina Coastal Federation","STATE","NGO",2,2,1892,{"$nulls":5},true]
[null,"North Carolina Department of Agriculture","STATE","GOVERNMENT",2,1,16990,{"$nulls":5},true]
[null,"North Carolina Department of Environment and Natural Resources, North Carolina Coastal Habitat Protection Plan (NC DENR)","STATE","GOVERNMENT",2,1,4997,{"$nulls":5},true]
[null,"North Carolina Department of Marine Fisheries","STATE","GOVERNMENT",2,1,10307,{"$nulls":5},true]
[null,"North Carolina Division of Parks and Recreation ((NC DENR, DPR)","STATE","GOVERNMENT",2,1,1901,{"$nulls":5},true]
[null,"North Carolina General Assembly","STATE","INDUSTRY AND BUSINESS",2,3,4005,{"$nulls":5},true]
[null,"North Carolina Local Food Advisory Council","STATE","GOVERNMENT",2,1,12710,{"$nulls":5},true]
[null,"North Carolina National Estuarine Research Reserve","STATE","GOVERNMENT",2,1,10202,{"$nulls":5},true]
[null,"North Carolina Paddle Trails Association","STATE","NGO",2,2,4044,{"$nulls":5},true]
[null,"North Carolina Seafood Festival","STATE","NGO",2,2,4046,{"$nulls":5},true]
[null,"North Carolina State Center for Marine Science & Technology","STATE","ACADEMIC INSTITUTION",2,4,3841,{"$nulls":5},true]
[null,"North Carolina State University CALS Ronald Hodson Emeritus","STATE","ACADEMIC INSTITUTION",2,4,16989,{"$nulls":5},true]
[null,"North Carolina State University Department of Biology","STATE","ACADEMIC INSTITUTION",2,4,16819,{"$nulls":5},true]
[null,"North Carolina Watermen Foundation","STATE","NGO",2,2,12715,{"$nulls":5},true]
[null,"North Carolina Watermen United","STATE","INDUSTRY AND BUSINESS",2,3,3943,{"$nulls":5},true]
[null,"North Coast Fishing Alliance","LOCAL","NGO",1,2,5102,{"$nulls":5},{"$f":"AND(  NOT(ISERROR(FIND(UPPER($B$7),UPPER($B8590),1))),  OR($D$7=\"\",NOT(ISERROR(FIND(UPPER($D$7),UPPER($B8590),1)))),    OR($D$8=\"\",(ISERROR(FIND(UPPER($D$8),UPPER($B8590),1))))           )","v":true}]
[null,"North Fork Captains Association","LOCAL","INDUSTRY AND BUSINESS",1,3,14886,{"$nulls":5},true]
[null,"North Fork Crow River Watershed District","LOCAL","GOVERNMENT",1,1,8806,{"$nulls":5},true]
[null,"North Kingstown Land Conservancy","LOCAL","NGO",1,2,9567,{"$nulls":5},true]
[null,"North Myrtle Beach Economic Development Committee","LOCAL","GOVERNMENT",1,1,11154,{"$nulls":5},true]
[null,"North Olympic Peninsula Resource Conservation and Development Council","LOCAL","NGO",1,2,13181,{"$nulls":5},true]
[null,"North Pacific Research Board","FEDERAL or NATIONAL","NGO",4,2,1932,{"$nulls":5},true]
[null,"North Shore Management Board","REGIONAL","GOVERNMENT",3,1,6245,{"$nulls":5},true]
[null,"North Slope Borough Department of Wildlife Management","LOCAL","GOVERNMENT",1,1,17195,{"$nulls":5},true]
[null,"Northeast Americans with Disabilities Act Center","REGIONAL","ACADEMIC INSTITUTION",3,4,10189,{"$nulls":5},{"$f":"AND(  NOT(ISERROR(FIND(UPPER($B$7),UPPER($B8654),1))),  OR($D$7=\"\",NOT(ISERROR(FIND(UPPER($D$7),UPPER($B8654),1)))),    OR($D$8=\"\",(ISERROR(FIND(UPPER($D$8),UPPER($B8654),1))))           )","v":true}]
[null,"Northeast Coastal Acidification Network (NECAN)","REGIONAL","GOVERNMENT",3,1,14585,{"$nulls":5},true]
[null,"Northeast Fishery Center (US DOI, FWS)","FEDERAL or NATIONAL","GOVERNMENT",4,1,1941,{"$nulls":5},true]
[null,"Northeast Massachusetts Aquaculture Center (NEMAC)","STATE","INDUSTRY AND BUSINESS",2,3,11533,{"$nulls":5},true]
[null,"Northeast Regional Aquaculture Center (NRAC)","REGIONAL","GOVERNMENT",3,1,5533,{"$nulls":5},true]
[null,"Northeast Regional Planning Body","REGIONAL","GOVERNMENT",3,1,8936,{"$nulls":5},true]
[null,"Northeast Sustainable Agriculture Research & Education","REGIONAL","GOVERNMENT",3,1,16997,{"$nulls":5},true]
[null,"Northeast Wisconsin Stormwater Consortium","REGIONAL","NGO",3,2,3730,{"$nulls":5},true]
[null,"Northeastern University","STATE","ACADEMIC INSTITUTION",2,4,3585,{"$nulls":5},true]
[null,"Northern Guam Soil and Water Conservation District (NGSWCD)","Unknown","Unknown",0,0,8915,{"$nulls":5},true]
[null,"Northern Illinois University (NIU)","STATE","ACADEMIC INSTITUTION",2,4,1954,{"$nulls":5},true]
[null,"Northern Neck Master Naturalists","LOCAL","NGO",1,2,15610,{"$nulls":5},true]
[null,"Northern Wilds publication","REGIONAL","INDUSTRY AND BUSINESS",3,3,1957,{"$nulls":5},true]
[null,"Northland Red Cross","REGIONAL","NGO",3,2,6303,{"$nulls":5},true]
[null,"Northumbria University","INTERNATIONAL","ACADEMIC INSTITUTION",5,4,15287,{"$nulls":5},true]
[null,"Northwest Association of Networked Ocean Observing Systems (NANOOS)","REGIONAL","OTHER PARTNERS",3,6,1962,{"$nulls":5},true]
[null,"Northwest Fisheries Science Center, Mukilteo Research Station (DOC, NOAA, NMFS)","FEDERAL or NATIONAL","GOVERNMENT",4,1,13184,{"$nulls":5},true]
[null,"Northwest Indiana Paddling Association","LOCAL","NGO",1,2,5524,{"$nulls":5},true]
[null,"Northwest Michigan College","STATE","ACADEMIC INSTITUTION",2,4,1968,{"$nulls":5},true]
[null,"Northwest Regional Office (US DOC, NOAA, NMFS, NWRO)","FEDERAL or NATIONAL","GOVERNMENT",4,1,5895,{"$nulls":5},true]
[null,"Northwest Tri-County Intermediate Unit #5 (IU5)","REGIONAL","ACADEMIC INSTITUTION",3,4,10671,{"$nulls":5},true]
[null,"Northwestern Fisheries Manchester Research Center","REGIONAL","NGO",3,2,1976,{"$nulls":5},true]
[null,"Northwestern University","STATE","ACADEMIC INSTITUTION",2,4,1979,{"$nulls":5},true]
[null,"not set or included in list [City of Santa Barbara]","Unknown","Unknown",0,0,14336,{"$nulls":5},true]
[null,"not set or included in list [U.S. Geological Survey]","Unknown","Unknown",0,0,14350,{"$nulls":5},true]
[null,"NRG Company","REGIONAL","INDUSTRY AND BUSINESS",3,3,5766,{"$nulls":5},true]
[null,"Nuka Research and Planning Group, LLC","STATE","INDUSTRY AND BUSINESS",2,3,5411,{"$nulls":5},true]
[null,"NY/NJ Baykeeper","LOCAL","NGO",1,2,8101,{"$nulls":5},true]
[null,"Oahu Metropolitan Planning Organization (OMPO)","STATE","GOVERNMENT",2,1,12568,{"$nulls":5},true]
[null,"Oak Park-River Forest High School","LOCAL","GOVERNMENT",1,1,5938,{"$nulls":5},{"$f":"AND(  NOT(ISERROR(FIND(UPPER($B$7),UPPER($B8846),1))),  OR($D$7=\"\",NOT(ISERROR(FIND(UPPER($D$7),UPPER($B8846),1)))),    OR($D$8=\"\",(ISERROR(FIND(UPPER($D$8),UPPER($B8846),1))))           )","v":true}]
[null,"Occidental College, Vantuna Research Group","STATE","ACADEMIC INSTITUTION",2,4,1985,{"$nulls":5},true]
[null,"Ocean Biogeographic Information System","INTERNATIONAL","NGO",5,2,7656,{"$nulls":5},true]
[null,"Ocean Carbon and Biogeochemistry Project (OCB)","INTERNATIONAL","OTHER PARTNERS",5,6,10517,{"$nulls":5},true]
[null,"Ocean County CRS Users Group","LOCAL","OTHER PARTNERS",1,6,15006,{"$nulls":5},true]
[null,"Ocean County Master Gardeners","LOCAL","NGO",1,2,13114,{"$nulls":5},true]
[null,"Ocean Gate","LOCAL","GOVERNMENT",1,1,10558,{"$nulls":5},true]
[null,"Ocean Institute","FEDERAL or NATIONAL","NGO",4,2,7778,{"$nulls":5},true]
[null,"Ocean Optics","INTERNATIONAL","INDUSTRY AND BUSINESS",5,3,6044,{"$nulls":5},true]
[null,"Ocean Research Interactive Observatory Networks (ORION)","FEDERAL or NATIONAL","NGO",4,2,1991,{"$nulls":5},true]
[null,"Ocean Technology Foundation","FEDERAL or NATIONAL","NGO",4,2,1992,{"$nulls":5},true]
[null,"Ocean Tester LLC","Unknown","INDUSTRY AND BUSINESS",0,3,17182,{"$nulls":5},true]
[null,"Oceanic Institute","INTERNATIONAL","NGO",5,2,1995,{"$nulls":5},true]
[null,"Oceanville Seafood","LOCAL","INDUSTRY AND BUSINESS",1,3,8547,{"$nulls":5},true]
[null,"Ocracoke Foundation","STATE","NGO",2,2,5007,{"$nulls":5},true]
[null,"Oddessy Shellfish Limited","INTERNATIONAL","INDUSTRY AND BUSINESS",5,3,7409,{"$nulls":5},true]
[null,"Office of Coast Survey (US DOC, NOAA, NOS, OCS)","FEDERAL or NATIONAL","GOVERNMENT",4,1,1999,{"$nulls":5},true]
[null,"Office of Coastal Management (US DOC, NOAA, NOS, OCM)","FEDERAL or NATIONAL","GOVERNMENT",4,1,11053,{"$nulls":5},true]
[null,"Office of Homeland Security and Env. Preparedness","Unknown","Unknown",0,0,9817,{"$nulls":5},true]
[null,"Office of Laboratories and Cooperative Institutes and NOAA Science Advisory Board (US DOC, NOAA)","Unknown","Unknown",0,0,11050,{"$nulls":5},true]
[null,"Office of Law Enforcement (US DOC, NOAA)","FEDERAL or NATIONAL","GOVERNMENT",4,1,5617,{"$nulls":5},true]
[null,"Office of Polar Programs (NSF)","FEDERAL or NATIONAL","GOVERNMENT",4,1,5621,{"$nulls":5},true]
[null,"Office of Policy and Program Analysis (US DHS, FEMA, OPPA)","FEDERAL or NATIONAL","GOVERNMENT",4,1,5625,{"$nulls":5},true]
[null,"Office of Protected Species Alaska Region (US DOC, NOAA, NMFS)","FEDERAL or NATIONAL","GOVERNMENT",4,1,2009,{"$nulls":5},true]
[null,"Office Of Science and Technology (US DOC, NOAA, NWS)","FEDERAL or NATIONAL","GOVERNMENT",4,1,7699,{"$nulls":5},true]
[null,"Office of the Assistant Administrator (US DOC, NOAA, NESDIS)","FEDERAL or NATIONAL","GOVERNMENT",4,1,11118,{"$nulls":5},true]
[null,"Office of the President, University of Michigan","REGIONAL","ACADEMIC INSTITUTION",3,4,9098,{"$nulls":5},true]
[null,"Office of Weather and Air Quality (US DOC, NOAA, OAR, OWAQ)","Unknown","GOVERNMENT",0,1,6197,{"$nulls":5},true]
[null,"Oglsybe Police Dept. (MCP) --IL","LOCAL","GOVERNMENT",1,1,5928,{"$nulls":5},true]
[null,"Ohio Aquaculture Association","STATE","INDUSTRY AND BUSINESS",2,3,13300,{"$nulls":5},true]
[null,"Ohio Chapter of the American Fisheries Society (AFS)","STATE","NGO",2,2,2018,{"$nulls":5},true]
[null,"Ohio Department of Natural Resources (OH DNR)","STATE","GOVERNMENT",2,1,2022,{"$nulls":5},true]
[null,"Ohio Division of Watercraft (OH DNR)","STATE","GOVERNMENT",2,1,2026,{"$nulls":5},true]
[null,"Ohio Lake Management Society (OLMS)","STATE","NGO",2,2,13304,{"$nulls":5},true]
[null,"Ohio State University Extension","STATE","ACADEMIC INSTITUTION",2,4,15550,{"$nulls":5},true]
[null,"Ohio University","STATE","ACADEMIC INSTITUTION",2,4,2034,{"$nulls":5},true]
[null,"Oishii Shushi","Unknown","INDUSTRY AND BUSINESS",0,3,6945,{"$nulls":5},true]
[null,"Ol' Joe's Bait and Tackle","LOCAL","INDUSTRY AND BUSINESS",1,3,16121,{"$nulls":5},true]
[null,"Old Point Comfort Marina","LOCAL","INDUSTRY AND BUSINESS",1,3,7236,{"$nulls":5},true]
[null,"Old Woman Creek  (US DOC, NOAA, NOS, NERRS)","FEDERAL or NATIONAL","GOVERNMENT",4,1,2040,{"$nulls":5},true]
[null,"Olin College of Engineering","STATE","ACADEMIC INSTITUTION",2,4,13830,{"$nulls":5},true]
[null,"Olympic Educational Service District 114","LOCAL","ACADEMIC INSTITUTION",1,4,4271,{"$nulls":5},true]
[null,"On the Rise Bakery","LOCAL","INDUSTRY AND BUSINESS",1,3,5319,{"$nulls":5},true]
[null,"One North Carolina Fund","STATE","GOVERNMENT",2,1,13090,{"$nulls":5},true]
[null,"Onondaga Audubon Society","LOCAL","NGO",1,2,8486,{"$nulls":5},true]
[null,"Ontario Native Americans","LOCAL","OTHER PARTNERS",1,6,2050,{"$nulls":5},true]
[null,"Orange Beach Fishing Association","LOCAL","INDUSTRY AND BUSINESS",1,3,9523,{"$nulls":5},true]
[null,"Orange County Department of Public Works","LOCAL","GOVERNMENT",1,1,2052,{"$nulls":5},true]
[null,"Orca Book and Sound","LOCAL","INDUSTRY AND BUSINESS",1,3,2056,{"$nulls":5},true]
[null,"Oregon Albacore Commission","STATE","GOVERNMENT",2,1,2057,{"$nulls":5},true]
[null,"Oregon Coastal Zone Management Association (OR CZMA)","STATE","NGO",2,2,2061,{"$nulls":5},true]
[null,"Oregon Department of Administrative Services","STATE","GOVERNMENT",2,1,10145,{"$nulls":5},true]
[null,"Oregon Department of Environmental Quality (OR DEQ)","STATE","GOVERNMENT",2,1,2066,{"$nulls":5},true]
[null,"Oregon Economic Development Alliance","STATE","OTHER PARTNERS",2,6,8668,{"$nulls":5},true]
[null,"Oregon Health Science University (OHSU)","STATE","ACADEMIC INSTITUTION",2,4,2073,{"$nulls":5},true]
[null,"Oregon Institute Of Marine Biology, University Of Oregon","STATE","ACADEMIC INSTITUTION",2,4,2074,{"$nulls":5},true]
[null,"Oregon Office of Emergency Management (OR OEM)","STATE","GOVERNMENT",2,1,7597,{"$nulls":5},true]
[null,"Oregon Seed Council","STATE","GOVERNMENT",2,1,5885,{"$nulls":5},true]
[null,"Oregon State University","STATE","ACADEMIC INSTITUTION",2,4,11044,{"$nulls":5},true]
[null,"Oregon State University (OSU) College of Pharmacy","STATE","ACADEMIC INSTITUTION",2,4,17339,{"$nulls":5},true]
[null,"Oregon State University, Applied Economics (OSU)","STATE","ACADEMIC INSTITUTION",2,4,14221,{"$nulls":5},true]
[null,"Oregon State University, Biological & Ecological Engineering","STATE","ACADEMIC INSTITUTION",2,4,14243,{"$nulls":5},true]
[null,"Oregon State University, College of Science","STATE","ACADEMIC INSTITUTION",2,4,8713,{"$nulls":5},true]
[null,"Oregon State University, Nuclear Engineering and Radiation Health Physics Department (OSU)","STATE","ACADEMIC INSTITUTION",2,4,9552,{"$nulls":5},true]
[null,"Oregon State University, Office of Precollege Programs","STATE","ACADEMIC INSTITUTION",2,4,10151,{"$nulls":5},true]
[null,"Oregon Watershed Enhancement Board","STATE","NGO",2,2,2087,{"$nulls":5},true]
[null,"Organizational Learning Tools Inc.","LOCAL","INDUSTRY AND BUSINESS",1,3,2088,{"$nulls":5},true]
[null,"Organized Seafood Association of Alabama","STATE","INDUSTRY AND BUSINESS",2,3,2089,{"$nulls":5},true]
[null,"Orwell Village School","LOCAL","ACADEMIC INSTITUTION",1,4,5321,{"$nulls":5},true]
[null,"Oshkosh Public Museum","LOCAL","GOVERNMENT",1,1,3731,{"$nulls":5},true]
[null,"Osprey Marina","LOCAL","INDUSTRY AND BUSINESS",1,3,5695,{"$nulls":5},true]
[null,"Oswego County Planning Department","LOCAL","GOVERNMENT",1,1,8502,{"$nulls":5},true]
[null,"Ottawa County Department of Health","LOCAL","GOVERNMENT",1,1,5518,{"$nulls":5},true]
[null,"Ottawa National Wildlife Refuge","FEDERAL or NATIONAL","GOVERNMENT",4,1,15275,{"$nulls":5},true]
[null,"Our Foods","LOCAL","OTHER PARTNERS",1,6,17088,{"$nulls":5},true]
[null,"Outer Banks Catch","Unknown","ACADEMIC INSTITUTION",0,4,4023,{"$nulls":5},true]
[null,"Outer Banks History Center","LOCAL","GOVERNMENT",1,1,2098,{"$nulls":5},true]
[null,"Outpost Natural Foods","LOCAL","INDUSTRY AND BUSINESS",1,3,9616,{"$nulls":5},true]
[null,"Owasco Lake Watershed Management Council","LOCAL","Unknown",1,0,14962,{"$nulls":5},true]
[null,"Oyster Restoration Workgroup","FEDERAL or NATIONAL","NGO",4,2,9301,{"$nulls":5},true]
[null,"OysterSouth","REGIONAL","NGO",3,2,15267,{"$nulls":5},true]
[null,"PA DCNR","Unknown","Unknown",0,0,11080,{"$nulls":5},true]
[null,"Pacific Climate Information System (PaCIS)","FEDERAL or NATIONAL","GOVERNMENT",4,1,5015,{"$nulls":5},true]
[null,"Pacific Coast Federation of Fishermen’s Associations, Inc. (PCFCA)","STATE","NGO",2,2,3398,{"$nulls":5},true]
[null,"Pacific County Economic Development Council","LOCAL","GOVERNMENT",1,1,2107,{"$nulls":5},true]
[null,"Pacific Education Institute","STATE","NGO",2,2,4526,{"$nulls":5},true]
[null,"Pacific Fisheries Coalition","REGIONAL","NGO",3,2,2110,{"$nulls":5},true]
[null,"Pacific HACCP Advisory Panel","REGIONAL","INDUSTRY AND BUSINESS",3,3,2115,{"$nulls":5},true]
[null,"Pacific Islands Fisheries Science Center","LOCAL","GOVERNMENT",1,1,10207,{"$nulls":5},true]
[null,"Pacific Lutheran University","Unknown","ACADEMIC INSTITUTION",0,4,11606,{"$nulls":5},true]
[null,"Pacific Northwest National Laboratory, Marine Sciences Laboratory (US DOE)","FEDERAL or NATIONAL","GOVERNMENT",4,1,246,{"$nulls":5},true]
[null,"Pacific Ocean Producers","REGIONAL","INDUSTRY AND BUSINESS",3,3,2121,{"$nulls":5},true]
[null,"Pacific Rim Shellfish Sanitation Association","REGIONAL","INDUSTRY AND BUSINESS",3,3,4444,{"$nulls":5},true]
[null,"Pacific Seafoods","INTERNATIONAL","INDUSTRY AND BUSINESS",5,3,15087,{"$nulls":5},true]
[null,"Pacific States Marine Fisheries Commission","REGIONAL","GOVERNMENT",3,1,16457,{"$nulls":5},true]
[null,"Pacific Whiting Conservation Cooperative","REGIONAL","NGO",3,2,4445,{"$nulls":5},true]
[null,"Pafco","INTERNATIONAL","INDUSTRY AND BUSINESS",5,3,8145,{"$nulls":5},true]
[null,"PaleoJoe","STATE","INDUSTRY AND BUSINESS",2,3,9190,{"$nulls":5},true]
[null,"Pamlico Tar River Foundation","Unknown","NGO",0,2,4047,{"$nulls":5},true]
[null,"Pana Bait Company","LOCAL","INDUSTRY AND BUSINESS",1,3,16105,{"$nulls":5},true]
[null,"Para Los Niños de Highline","LOCAL","NGO",1,2,4396,{"$nulls":5},true]
[null,"Parker School","LOCAL","ACADEMIC INSTITUTION",1,4,16260,{"$nulls":5},true]
[null,"Parsons Brickerhoff Consultants","FEDERAL or NATIONAL","INDUSTRY AND BUSINESS",4,3,11570,{"$nulls":5},true]
[null,"Partner1  (TEST)","Unknown2","OTHER PARTNERS",6,6,2141,{"$nulls":5},true]
[null,"Partnerships and Communications Division (US DOC, NOAA, NMFS, SF)","FEDERAL or NATIONAL","GOVERNMENT",4,1,5648,{"$nulls":5},true]
[null,"Pascagoula High School","LOCAL","ACADEMIC INSTITUTION",1,4,2145,{"$nulls":5},true]
[null,"Paul G. Allen Family Foundation","Unknown","NGO",0,2,14280,{"$nulls":5},true]
[null,"Pawley's Island, SC","LOCAL","GOVERNMENT",1,1,4943,{"$nulls":5},true]
[null,"Pax World Management LLC","FEDERAL or NATIONAL","INDUSTRY AND BUSINESS",4,3,14945,{"$nulls":5},true]
[null,"PEC Premiere","Unknown","Unknown",0,0,6631,{"$nulls":5},true]
[null,"Pelican Lake Property Owners Association","LOCAL","NGO",1,2,6246,{"$nulls":5},true]
[null,"Pender County Chamber of Commerce","LOCAL","GOVERNMENT",1,1,5003,{"$nulls":5},true]
[null,"Penn State Dickinson School of Law","STATE","ACADEMIC INSTITUTION",2,4,13074,{"$nulls":5},true]
[null,"Pennsylvania Coastal Resources Management Program (CRM)","STATE","GOVERNMENT",2,1,6376,{"$nulls":5},{"$f":"AND(  NOT(ISERROR(FIND(UPPER($B$7),UPPER($B9614),1))),  OR($D$7=\"\",NOT(ISERROR(FIND(UPPER($D$7),UPPER($B9614),1)))),    OR($D$8=\"\",(ISERROR(FIND(UPPER($D$8),UPPER($B9614),1))))           )","v":true}]
[null,"Pennsylvania Department of Health (PA DOH)","STATE","OTHER PARTNERS",2,6,2161,{"$nulls":5},true]
[null,"Pennsylvania Green Economy Task Force","LOCAL","GOVERNMENT",1,1,10687,{"$nulls":5},true]
[null,"Pennsylvania Newspapers in Education","LOCAL","INDUSTRY AND BUSINESS",1,3,15556,{"$nulls":5},true]
[null,"Pennsylvania State University","STATE","ACADEMIC INSTITUTION",2,4,11070,{"$nulls":5},true]
[null,"Penobscot Marine Museum","REGIONAL","INDUSTRY AND BUSINESS",3,3,8239,{"$nulls":5},true]
[null,"Pepperdine University","STATE","ACADEMIC INSTITUTION",2,4,2173,{"$nulls":5},true]
[null,"Perry’s International Peace Memorial (US DOI, NPS)","FEDERAL or NATIONAL","GOVERNMENT",4,1,2174,{"$nulls":5},true]
[null,"Petersburg City School District","LOCAL","GOVERNMENT",1,1,17243,{"$nulls":5},true]
[null,"Petroleum Environmental Network (China)","INTERNATIONAL","INDUSTRY AND BUSINESS",5,3,2181,{"$nulls":5},true]
[null,"Pew Fellow Program in Marine Conservation, Pew Charitable Trust","INTERNATIONAL","NGO",5,2,2182,{"$nulls":5},true]
[null,"Philadelphia University","STATE","ACADEMIC INSTITUTION",2,4,2184,{"$nulls":5},true]
[null,"Phillips & Associates","Unknown","Unknown",0,0,8899,{"$nulls":5},true]
[null,"Phillips Wharf Environmental Center","LOCAL","INDUSTRY AND BUSINESS",1,3,8120,{"$nulls":5},true]
[null,"Pierce County Health Department","LOCAL","GOVERNMENT",1,1,4294,{"$nulls":5},true]
[null,"Pikes Bay Marina, Bayfield, Wis.","STATE","INDUSTRY AND BUSINESS",2,3,3734,{"$nulls":5},true]
[null,"Pinelands Preservation Alliance","STATE","NGO",2,2,15730,{"$nulls":5},true]
[null,"Pizzo Native Plant Nursery","LOCAL","INDUSTRY AND BUSINESS",1,3,8649,{"$nulls":5},true]
[null,"Placeways LLC","INTERNATIONAL","INDUSTRY AND BUSINESS",5,3,6119,{"$nulls":5},true]
[null,"Plattsburgh North Country Chamber of Commerce","LOCAL","INDUSTRY AND BUSINESS",1,3,5324,{"$nulls":5},true]
[null,"Plum Creek Foundation","LOCAL","NGO",1,2,7737,{"$nulls":5},true]
[null,"PNC Foundation","REGIONAL","NGO",3,2,9977,{"$nulls":5},true]
[null,"Point No Point Treaty Council","Tribal","GOVERNMENT",13,1,2201,{"$nulls":5},true]
[null,"Pointe-au-Chien Indian Tribe","STATE","GOVERNMENT",2,1,15535,{"$nulls":5},true]
[null,"Pontchartrain Blue Crab","Unknown","Unknown",0,0,9823,{"$nulls":5},true]
[null,"Port Angeles Marina","LOCAL","INDUSTRY AND BUSINESS",1,3,4346,{"$nulls":5},true]
[null,"Port Bay Improvement Association","LOCAL","Unknown",1,0,14970,{"$nulls":5},true]
[null,"Port Mansfield Fishing Tournament","LOCAL","NGO",1,2,12290,{"$nulls":5},true]
[null,"Port of Astoria","LOCAL","INDUSTRY AND BUSINESS",1,3,10159,{"$nulls":5},true]
[null,"Port of Camas-Washougal, WA","LOCAL","GOVERNMENT",1,1,4275,{"$nulls":5},true]
[null,"Port of Edmonds Marina","LOCAL","INDUSTRY AND BUSINESS",1,3,4348,{"$nulls":5},true]
[null,"Port of Gold Beach, OR","LOCAL","GOVERNMENT",1,1,2212,{"$nulls":5},true]
[null,"Port of Kennewick, WA","LOCAL","GOVERNMENT",1,1,8446,{"$nulls":5},true]
[null,"Port of Newport, OR","LOCAL","GOVERNMENT",1,1,2218,{"$nulls":5},true]
[null,"Port of Palacios, TX","LOCAL","GOVERNMENT",1,1,12292,{"$nulls":5},true]
[null,"Port of San Diego, CA","LOCAL","GOVERNMENT",1,1,8447,{"$nulls":5},true]
[null,"Port of Seattle, WA - Shilshole Bay Marina","LOCAL","GOVERNMENT",1,1,2228,{"$nulls":5},true]
[null,"Port of Toledo","LOCAL","OTHER PARTNERS",1,6,17324,{"$nulls":5},true]
[null,"Port Orford / Langlois School District","LOCAL","GOVERNMENT",1,1,11679,{"$nulls":5},true]
[null,"Port Stanley Ontario Beach Patrol","INTERNATIONAL","GOVERNMENT",5,1,17070,{"$nulls":5},true]
[null,"Portage Public Marina","LOCAL","GOVERNMENT",1,1,14804,{"$nulls":5},true]
[null,"PortFish Ltd","LOCAL","INDUSTRY AND BUSINESS",1,3,11495,{"$nulls":5},true]
[null,"Portland Public Schools","LOCAL","ACADEMIC INSTITUTION",1,4,8736,{"$nulls":5},true]
[null,"Poseidon Marina","STATE","INDUSTRY AND BUSINESS",2,3,3949,{"$nulls":5},true]
[null,"Powers School District","LOCAL","ACADEMIC INSTITUTION",1,4,14239,{"$nulls":5},true]
[null,"Prairie Crossing","LOCAL","GOVERNMENT",1,1,8651,{"$nulls":5},true]
[null,"Preferred Freezer","INTERNATIONAL","INDUSTRY AND BUSINESS",5,3,8184,{"$nulls":5},true]
[null,"Presque Isle Audubon","LOCAL","NGO",1,2,16653,{"$nulls":5},true]
[null,"Presque Isle Bay Public Advisory Committee for the RAP","LOCAL","ACADEMIC INSTITUTION",1,4,2241,{"$nulls":5},true]
[null,"Pribilof Island Collaborative","LOCAL","NGO",1,2,2244,{"$nulls":5},true]
[null,"Prince Charles Charities, International Sustainability Unit","INTERNATIONAL","NGO",5,2,13190,{"$nulls":5},true]
[null,"Prince George HOA","LOCAL","INDUSTRY AND BUSINESS",1,3,16204,{"$nulls":5},true]
[null,"Princess Cruises","INTERNATIONAL","INDUSTRY AND BUSINESS",5,3,2251,{"$nulls":5},true]
[null,"Pristine Products Oyster Farm","STATE","INDUSTRY AND BUSINESS",2,3,11001,{"$nulls":5},true]
[null,"Project CATE (Conservation Action through Education) Foundation","LOCAL","NGO",1,2,13895,{"$nulls":5},true]
[null,"Project WET","REGIONAL","NGO",3,2,5921,{"$nulls":5},true]
[null,"Protectores de Cuencas","STATE","NGO",2,2,15732,{"$nulls":5},true]
[null,"Providence Historical Society","LOCAL","NGO",1,2,12391,{"$nulls":5},true]
[null,"Public Access Shoreline Hawaii","STATE","NGO",2,2,2262,{"$nulls":5},true]
[null,"Publix Charities","FEDERAL or NATIONAL","INDUSTRY AND BUSINESS",4,3,14053,{"$nulls":5},true]
[null,"Puerto Rico Health Department","STATE","GOVERNMENT",2,1,8881,{"$nulls":5},true]
[null,"Puerto Rico State Agency for Emergency and Disaster Management (AEMEAD)","STATE","GOVERNMENT",2,1,14045,{"$nulls":5},true]
[null,"Puget Sound Naval Shipyard","FEDERAL or NATIONAL","GOVERNMENT",4,1,2268,{"$nulls":5},true]
[null,"Puget Sound State Caucus","STATE","GOVERNMENT",2,1,4514,{"$nulls":5},true]
[null,"Purdue Extension Issue Based Action Team","STATE","ACADEMIC INSTITUTION",2,4,13805,{"$nulls":5},true]
[null,"Purdue University Department of Civil Engineering","STATE","ACADEMIC INSTITUTION",2,4,14748,{"$nulls":5},true]
[null,"Pure Michigan","STATE","GOVERNMENT",2,1,9197,{"$nulls":5},true]
[null,"Put-in-Bay Township Park District","LOCAL","GOVERNMENT",1,1,15280,{"$nulls":5},{"$f":"AND(  NOT(ISERROR(FIND(UPPER($B$7),UPPER($B10062),1))),  OR($D$7=\"\",NOT(ISERROR(FIND(UPPER($D$7),UPPER($B10062),1)))),    OR($D$8=\"\",(ISERROR(FIND(UPPER($D$8),UPPER($B10062),1))))           )","v":true}]
[null,"Qawalangin Tribe","LOCAL","GOVERNMENT",1,1,17210,{"$nulls":5},true]
[null,"Quality Foods","STATE","INDUSTRY AND BUSINESS",2,3,3954,{"$nulls":5},true]
[null,"Queen Emma Land Company","STATE","INDUSTRY AND BUSINESS",2,3,16259,{"$nulls":5},true]
[null,"Quileute Tribe","Tribal","GOVERNMENT",13,1,2288,{"$nulls":5},true]
[null,"Quonsett Development Corp.","STATE","INDUSTRY AND BUSINESS",2,3,5188,{"$nulls":5},true]
[null,"R/V Coastal Surveyor","LOCAL","INDUSTRY AND BUSINESS",1,3,6846,{"$nulls":5},true]
[null,"Racine Public Health Department","REGIONAL","GOVERNMENT",3,1,10364,{"$nulls":5},true]
[null,"Radio station KMUN","LOCAL","INDUSTRY AND BUSINESS",1,3,14532,{"$nulls":5},true]
[null,"Ralston-Cunningham Associates","LOCAL","INDUSTRY AND BUSINESS",1,3,2296,{"$nulls":5},true]
[null,"RAND Corporation","Unknown","Unknown",0,0,6637,{"$nulls":5},true]
[null,"Rappahannock River Oysters","LOCAL","INDUSTRY AND BUSINESS",1,3,17407,{"$nulls":5},true]
[null,"Ravenel, SC","LOCAL","GOVERNMENT",1,1,4934,{"$nulls":5},true]
[null,"RDM Shrimp Farm","REGIONAL","INDUSTRY AND BUSINESS",3,3,8608,{"$nulls":5},true]
[null,"Recreational Fisheries Information Program (RecFIN)","REGIONAL","NGO",3,2,3408,{"$nulls":5},true]
[null,"Red Bank Public School District","LOCAL","ACADEMIC INSTITUTION",1,4,7517,{"$nulls":5},true]
[null,"Red Mug Coffeehouse and Bake Shop","LOCAL","INDUSTRY AND BUSINESS",1,3,11496,{"$nulls":5},true]
[null,"Redwood Community Action Agency","LOCAL","NGO",1,2,2304,{"$nulls":5},true]
[null,"Reef Check Foundation","LOCAL","NGO",1,2,6727,{"$nulls":5},true]
[null,"Regatta Pointe Marina","LOCAL","INDUSTRY AND BUSINESS",1,3,15618,{"$nulls":5},true]
[null,"Regional Aquaculture Coordinator (US DOC, NOAA, NMFS)","FEDERAL or NATIONAL","GOVERNMENT",4,1,5192,{"$nulls":5},true]
[null,"Reid Middleton","FEDERAL or NATIONAL","INDUSTRY AND BUSINESS",4,3,4117,{"$nulls":5},true]
[null,"Remington Vernick","LOCAL","INDUSTRY AND BUSINESS",1,3,15029,{"$nulls":5},true]
[null,"Renaissance Computing Institute (RENCI)","LOCAL","SEA GRANT PROGRAMS",1,5,4714,{"$nulls":5},true]
[null,"Republic of the Marshall Islands Ailuk Atoll Local Government","LOCAL","GOVERNMENT",1,1,11711,{"$nulls":5},true]
[null,"Republic of the Marshall Islands Billfish Club","REGIONAL","NGO",3,2,10610,{"$nulls":5},true]
[null,"Republic of the Marshall Islands MarTina Corporation","REGIONAL","INDUSTRY AND BUSINESS",3,3,11715,{"$nulls":5},true]
[null,"Republic of the Marshall Islands, Economic, Policy, Planning and Statistics Office","FEDERAL or NATIONAL","GOVERNMENT",4,1,12934,{"$nulls":5},true]
[null,"Republic of the Marshall Islands, Lae Atoll Local Government","LOCAL","GOVERNMENT",1,1,16290,{"$nulls":5},true]
[null,"Resource Analysts International","INTERNATIONAL","INDUSTRY AND BUSINESS",5,3,2320,{"$nulls":5},true]
[null,"Resources for the Future","FEDERAL or NATIONAL","NGO",4,2,2322,{"$nulls":5},true]
[null,"Restore America’s Estuaries","FEDERAL or NATIONAL","NGO",4,2,2324,{"$nulls":5},true]
[null,"Rhahamangala University of Technology, Tanyaburi (Thailand)","INTERNATIONAL","ACADEMIC INSTITUTION",5,4,6396,{"$nulls":5},true]
[null,"Rhode Island  Saltwater Anglers","STATE","INDUSTRY AND BUSINESS",2,3,2335,{"$nulls":5},true]
[null,"Rhode Island Commerce Corporation","STATE","GOVERNMENT",2,1,15948,{"$nulls":5},true]
[null,"Rhode Island Department of Health (RI DOH)","STATE","GOVERNMENT",2,1,2339,{"$nulls":5},true]
[null,"Rhode Island Land and Water Partnership","STATE","NGO",2,2,14590,{"$nulls":5},true]
[null,"Rhode Island Nursery & Landscaping Association","STATE","INDUSTRY AND BUSINESS",2,3,9570,{"$nulls":5},true]
[null,"Rhode Island School of Design (RISD)","STATE","ACADEMIC INSTITUTION",2,4,6828,{"$nulls":5},true]
[null,"Rich Sea Pak Corporation","INTERNATIONAL","INDUSTRY AND BUSINESS",5,3,2344,{"$nulls":5},true]
[null,"Richard Stockton College of NJ","Unknown","Unknown",0,0,10008,{"$nulls":5},true]
[null,"Ricky's Coast to Coast Nets","LOCAL","INDUSTRY AND BUSINESS",1,3,10334,{"$nulls":5},true]
[null,"Rio Grande Valley Chapter Texas Master Naturalist","LOCAL","ACADEMIC INSTITUTION",1,4,12293,{"$nulls":5},true]
[null,"Rite Aid Pharmacy","STATE","INDUSTRY AND BUSINESS",2,3,3956,{"$nulls":5},true]
[null,"Riveredge Nature Center","LOCAL","NGO",1,2,7049,{"$nulls":5},true]
[null,"Riverside Kayak Connection","LOCAL","INDUSTRY AND BUSINESS",1,3,6001,{"$nulls":5},true]
[null,"Rivtow Marine Ltd.","REGIONAL","INDUSTRY AND BUSINESS",3,3,7463,{"$nulls":5},true]
[null,"Robertsdale High School","Unknown","Unknown",0,0,6639,{"$nulls":5},true]
[null,"Rock Solid Fishing","LOCAL","INDUSTRY AND BUSINESS",1,3,12729,{"$nulls":5},true]
[null,"Rockingham Planning Commission","LOCAL","GOVERNMENT",1,1,3793,{"$nulls":5},true]
[null,"Rockvam Boat Yards","LOCAL","INDUSTRY AND BUSINESS",1,3,8762,{"$nulls":5},true]
[null,"Roger Williams School of Law","STATE","ACADEMIC INSTITUTION",2,4,2356,{"$nulls":5},true]
[null,"Rogers Street Fishing Village","LOCAL","OTHER PARTNERS",1,6,2358,{"$nulls":5},true]
[null,"Romy's Kahuku Prawn and Fish, Inc.","FEDERAL or NATIONAL","INDUSTRY AND BUSINESS",4,3,2360,{"$nulls":5},true]
[null,"Rose Fisheries","FEDERAL or NATIONAL","INDUSTRY AND BUSINESS",4,3,2361,{"$nulls":5},true]
[null,"Rosemount Inn","LOCAL","INDUSTRY AND BUSINESS",1,3,7309,{"$nulls":5},true]
[null,"Rowan University","STATE","ACADEMIC INSTITUTION",2,4,4890,{"$nulls":5},true]
[null,"Rubenstein Ecosystem Science Laboratory","LOCAL","ACADEMIC INSTITUTION",1,4,5332,{"$nulls":5},true]
[null,"Rural Policy Research Institute","REGIONAL","NGO",3,2,11325,{"$nulls":5},true]
[null,"Rush County Solid Waste Management District","LOCAL","GOVERNMENT",1,1,8654,{"$nulls":5},true]
[null,"Rutgers Office of Continuing Professional Education","LOCAL","ACADEMIC INSTITUTION",1,4,9064,{"$nulls":5},true]
[null,"Rutgers University, Department of Earth and Planetary Sciences","STATE","ACADEMIC INSTITUTION",2,4,10010,{"$nulls":5},true]
[null,"S & S Trawls","LOCAL","INDUSTRY AND BUSINESS",1,3,10332,{"$nulls":5},true]
[null,"S2TEM Centers SC","STATE","NGO",2,2,13352,{"$nulls":5},true]
[null,"Saddleback College","LOCAL","ACADEMIC INSTITUTION",1,4,10709,{"$nulls":5},true]
[null,"Safety and Emergency Management","LOCAL","GOVERNMENT",1,1,8858,{"$nulls":5},true]
[null,"Sail Newport","LOCAL","NGO",1,2,13018,{"$nulls":5},true]
[null,"Sailfin Pet Shop","LOCAL","INDUSTRY AND BUSINESS",1,3,14827,{"$nulls":5},true]
[null,"Sakonnet Mussel Farms","LOCAL","INDUSTRY AND BUSINESS",1,3,7582,{"$nulls":5},true]
[null,"Salem Boys and Girls Club","LOCAL","NGO",1,2,2377,{"$nulls":5},true]
[null,"Salmon Drift Creek Watershed Council","LOCAL","NGO",1,2,10160,{"$nulls":5},true]
[null,"Salt Pond's Coalition","LOCAL","NGO",1,2,9573,{"$nulls":5},true]
[null,"Salt Water Farms","LOCAL","INDUSTRY AND BUSINESS",1,3,15949,{"$nulls":5},true]
[null,"Samani Fisheries LLC","STATE","INDUSTRY AND BUSINESS",2,3,10975,{"$nulls":5},true]
[null,"San Diego Association of Governments (SANDAG)","LOCAL","GOVERNMENT",1,1,8528,{"$nulls":5},true]
[null,"San Diego Bay Interagency Water Quality Panel","LOCAL","GOVERNMENT",1,1,2385,{"$nulls":5},true]
[null,"San Diego Unified School District","LOCAL","ACADEMIC INSTITUTION",1,4,16414,{"$nulls":5},true]
[null,"San Francisco Bay Regional Water Quality Control Board","LOCAL","GOVERNMENT",1,1,15130,{"$nulls":5},true]
[null,"San Francisco Estuary Institute (SFEI)","LOCAL","NGO",1,2,6902,{"$nulls":5},true]
[null,"San Juan County Marine Resources Committee, Northwest Straits Commission","LOCAL","OTHER PARTNERS",1,6,4422,{"$nulls":5},true]
[null,"Sand County Foundation","LOCAL","NGO",1,2,2399,{"$nulls":5},true]
[null,"Sandusky Yacht Club, Sandusky","LOCAL","INDUSTRY AND BUSINESS",1,3,2401,{"$nulls":5},true]
[null,"Sandy Pond Channel Dredging Association","LOCAL","OTHER PARTNERS",1,6,8505,{"$nulls":5},true]
[null,"Santa Barbara County School District","LOCAL","ACADEMIC INSTITUTION",1,4,2403,{"$nulls":5},true]
[null,"Santa Barbara Museum of Natural History: Sustainable Fisheries Program","LOCAL","NGO",1,2,6776,{"$nulls":5},true]
[null,"Santa Monica Bay Audubon Society","LOCAL","NGO",1,2,2404,{"$nulls":5},true]
[null,"Santa Monica Pier Aquarium","LOCAL","NGO",1,2,2407,{"$nulls":5},true]
[null,"Santee Education Complex","LOCAL","ACADEMIC INSTITUTION",1,4,17086,{"$nulls":5},true]
[null,"Sarah’s Creek Shellfish","LOCAL","INDUSTRY AND BUSINESS",1,3,2410,{"$nulls":5},true]
[null,"Sassafra River Foundation","Unknown","NGO",0,2,5160,{"$nulls":5},true]
[null,"Sauk Prairie Police Department","LOCAL","GOVERNMENT",1,1,8656,{"$nulls":5},true]
[null,"Sause Brothers Towing","REGIONAL","INDUSTRY AND BUSINESS",3,3,7466,{"$nulls":5},true]
[null,"Save Bristol Harbor","LOCAL","NGO",1,2,5180,{"$nulls":5},true]
[null,"Save our Sodus","LOCAL","NGO",1,2,16384,{"$nulls":5},true]
[null,"Save the Harbor/Save the Bay","LOCAL","NGO",1,2,6428,{"$nulls":5},true]
[null,"SBTDC -Grand Valley State University","STATE","ACADEMIC INSTITUTION",2,4,9238,{"$nulls":5},true]
[null,"SC Small Business Chamber of Commerce","STATE","NGO",2,2,13995,{"$nulls":5},true]
[null,"Scenic Galveston","LOCAL","NGO",1,2,6132,{"$nulls":5},true]
[null,"Schoodic Institute","REGIONAL","NGO",3,2,13864,{"$nulls":5},true]
[null,"School of Resource and Environmental Management, Simon Fraser University (SFU)","INTERNATIONAL","ACADEMIC INSTITUTION",5,4,2490,{"$nulls":5},true]
[null,"Science & Spanish Club Network (SSCN)","REGIONAL","NGO",3,2,15643,{"$nulls":5},true]
[null,"Science Systems and Applications, Inc. (SSAI)","Unknown","Unknown",0,0,6644,{"$nulls":5},true]
[null,"Science, Education, Adventure Lab, Monterey Bay (S.E.A.)","STATE","GOVERNMENT",2,1,3422,{"$nulls":5},true]
[null,"Scott’s Bait and Tackle , NJ","LOCAL","INDUSTRY AND BUSINESS",1,3,11265,{"$nulls":5},true]
[null,"SCUBA Quest-Sarasota","LOCAL","INDUSTRY AND BUSINESS",1,3,13001,{"$nulls":5},true]
[null,"Sea Bird Electronics","Unknown","NGO",0,2,17295,{"$nulls":5},true]
[null,"Sea Fish Industry Authority","Unknown","Unknown",0,0,5111,{"$nulls":5},true]
[null,"Sea Grant Climate Network","FEDERAL or NATIONAL","SEA GRANT PROGRAMS",4,5,4899,{"$nulls":5},true]
[null,"Sea Grant in the Gulf of Mexico","REGIONAL","GOVERNMENT",3,1,17079,{"$nulls":5},true]
[null,"Sea Island Company","FEDERAL or NATIONAL","NGO",4,2,2438,{"$nulls":5},true]
[null,"Sea Link Marine Services","REGIONAL","INDUSTRY AND BUSINESS",3,3,7467,{"$nulls":5},true]
[null,"Sea Safari Ltd","STATE","INDUSTRY AND BUSINESS",2,3,3959,{"$nulls":5},true]
[null,"Sea Watch International","INTERNATIONAL","NGO",5,2,6959,{"$nulls":5},true]
[null,"Seabrook Hull Associates","Unknown","Unknown",0,0,3602,{"$nulls":5},true]
[null,"Seafish Industry Authority, UK (SIA)","Unknown2","SEA GRANT PROGRAMS",6,5,3461,{"$nulls":5},true]
[null,"Seafood Center","LOCAL","INDUSTRY AND BUSINESS",1,3,10714,{"$nulls":5},true]
[null,"Seafood Laboratory (US EPA)","FEDERAL or NATIONAL","GOVERNMENT",4,1,2445,{"$nulls":5},true]
[null,"Seafood School","FEDERAL or NATIONAL","NGO",4,2,2448,{"$nulls":5},true]
[null,"Seahorse Coastal Consulting, LLC","Unknown","Unknown",0,0,6647,{"$nulls":5},true]
[null,"Sealife Aquarium (Legoland)","REGIONAL","NGO",3,2,10716,{"$nulls":5},true]
[null,"Seaside Heights","LOCAL","NGO",1,2,10559,{"$nulls":5},true]
[null,"Seattle Fishermen's Memorial Committee","LOCAL","NGO",1,2,847,{"$nulls":5},true]
[null,"Seattle MESA (Mathematics, Engineering, Science Achievement)","LOCAL","NGO",1,2,15085,{"$nulls":5},true]
[null,"Seattle University","LOCAL","ACADEMIC INSTITUTION",1,4,2457,{"$nulls":5},true]
[null,"SeaWeb","INTERNATIONAL","INDUSTRY AND BUSINESS",5,3,2460,{"$nulls":5},true]
[null,"Secretariat of the Pacific Community","INTERNATIONAL","NGO",5,2,2461,{"$nulls":5},true]
[null,"Seims Sea Farms","STATE","INDUSTRY AND BUSINESS",2,3,11002,{"$nulls":5},true]
[null,"Seneca Nation of Indians","LOCAL","OTHER PARTNERS",1,6,2463,{"$nulls":5},true]
[null,"Sentinel Site Program (NOAA)","FEDERAL or NATIONAL","GOVERNMENT",4,1,13093,{"$nulls":5},true]
[null,"Sewee Outpost","LOCAL","INDUSTRY AND BUSINESS",1,3,16199,{"$nulls":5},true]
[null,"Share the Beach Sea Turtle Volunteer Program","Unknown","Unknown",0,0,6648,{"$nulls":5},true]
[null,"Shaughnessy Printing Co.","FEDERAL or NATIONAL","INDUSTRY AND BUSINESS",4,3,2467,{"$nulls":5},true]
[null,"Sheboygan County (WI)","LOCAL","GOVERNMENT",1,1,7766,{"$nulls":5},true]
[null,"Sheldon Lake State Park (TPWD)","STATE","GOVERNMENT",2,1,6086,{"$nulls":5},true]
[null,"Shell Oil and Exploration Co.","Unknown","Unknown",0,0,9832,{"$nulls":5},true]
[null,"Shells Unlimited","LOCAL","INDUSTRY AND BUSINESS",1,3,17411,{"$nulls":5},true]
[null,"Shelton High School","LOCAL","ACADEMIC INSTITUTION",1,4,7363,{"$nulls":5},true]
[null,"Sheridan Shore Yacht Club","LOCAL","INDUSTRY AND BUSINESS",1,3,14749,{"$nulls":5},true]
[null,"Shippensburg University","STATE","ACADEMIC INSTITUTION",2,4,7014,{"$nulls":5},true]
[null,"Shoals Marine Lab","Unknown","Unknown",0,0,15236,{"$nulls":5},true]
[null,"Shorecrest Community Club","LOCAL","NGO",1,2,7416,{"$nulls":5},true]
[null,"Showalter High School","LOCAL","ACADEMIC INSTITUTION",1,4,16647,{"$nulls":5},true]
[null,"Shrimp Mariculture Facility, Texas A&M","STATE","ACADEMIC INSTITUTION",2,4,2482,{"$nulls":5},true]
[null,"Sierra Club New Orleans Chapter","Unknown","Unknown",0,0,9834,{"$nulls":5},true]
[null,"Silgan Containers","INTERNATIONAL","INDUSTRY AND BUSINESS",5,3,8182,{"$nulls":5},true]
[null,"Silvio O. Conte National Fish and Wildlife Refuge (US DOI, FWS, NWR)","FEDERAL or NATIONAL","GOVERNMENT",4,1,2487,{"$nulls":5},true]
[null,"Singapore-MIT Alliance for Research and Technology (SMART)","INTERNATIONAL","ACADEMIC INSTITUTION",5,4,6830,{"$nulls":5},true]
[null,"Sister Bay, Village of","LOCAL","GOVERNMENT",1,1,8276,{"$nulls":5},true]
[null,"Siuslaw High School","LOCAL","ACADEMIC INSTITUTION",1,4,16583,{"$nulls":5},true]
[null,"Skidaway Institute of Oceanography","STATE","ACADEMIC INSTITUTION",2,4,2495,{"$nulls":5},true]
[null,"Skipjack Heritage Foundation","REGIONAL","INDUSTRY AND BUSINESS",3,3,8111,{"$nulls":5},true]
[null,"SkyTruth","INTERNATIONAL","NGO",5,2,14479,{"$nulls":5},true]
[null,"Slow Food N.H.","STATE","NGO",2,2,4080,{"$nulls":5},true]
[null,"Smart Growth America","REGIONAL","NGO",3,2,8251,{"$nulls":5},true]
[null,"Smith Partners","LOCAL","INDUSTRY AND BUSINESS",1,3,8778,{"$nulls":5},true]
[null,"Smith Point Seafood","LOCAL","INDUSTRY AND BUSINESS",1,3,5462,{"$nulls":5},true]
[null,"Smithsonian Museum of Natural History (SI)","FEDERAL or NATIONAL","GOVERNMENT",4,1,7040,{"$nulls":5},true]
[null,"Snohomish County Executive’s Office","LOCAL","GOVERNMENT",1,1,15086,{"$nulls":5},true]
[null,"Snyder Family","LOCAL","OTHER PARTNERS",1,6,13204,{"$nulls":5},true]
[null,"Society for Integrative and Comparative Biology","FEDERAL or NATIONAL","NGO",4,2,5894,{"$nulls":5},true]
[null,"Society Of Naval Architects","Unknown","Unknown",0,0,3606,{"$nulls":5},true]
[null,"Solander Group","INTERNATIONAL","INDUSTRY AND BUSINESS",5,3,4162,{"$nulls":5},true]
[null,"Sonoma Resource Conservation District","LOCAL","GOVERNMENT",1,1,16418,{"$nulls":5},true]
[null,"Sonoma State University (SSU)","STATE","ACADEMIC INSTITUTION",2,4,2512,{"$nulls":5},true]
[null,"Sound Rivers","STATE","NGO",2,2,16787,{"$nulls":5},true]
[null,"South Alabama Regional Planning Commission","STATE","NGO",2,2,2519,{"$nulls":5},true]
[null,"South Atlantic Fishery Management Council (SAFMC)","REGIONAL","GOVERNMENT",3,1,2520,{"$nulls":5},true]
[null,"South Bay Cities Council of Governments","REGIONAL","GOVERNMENT",3,1,8018,{"$nulls":5},true]
[null,"South Carolina Chamber of Commerce","STATE","INDUSTRY AND BUSINESS",2,3,2531,{"$nulls":5},true]
[null,"South Carolina Chapter of the American Planning Association","STATE","NGO",2,2,2532,{"$nulls":5},true]
[null,"South Carolina Department of Health and Environmental Control (SC DHEC)","STATE","GOVERNMENT",2,1,2538,{"$nulls":5},true]
[null,"South Carolina Energy Office","STATE","GOVERNMENT",2,1,11155,{"$nulls":5},true]
[null,"South Carolina Farm Bureau","STATE","NGO",2,2,13355,{"$nulls":5},true]
[null,"South Carolina Nature-Based Tourism Association","STATE","NGO",2,2,2551,{"$nulls":5},true]
[null,"South Carolina Public Schools","STATE","ACADEMIC INSTITUTION",2,4,2552,{"$nulls":5},true]
[null,"South Carolina Seafood Alliance","STATE","NGO",2,2,2555,{"$nulls":5},true]
[null,"South Carolina Steering Committee of the Southern Passages Project","STATE","NGO",2,2,2562,{"$nulls":5},true]
[null,"South Coast Connect for Success","LOCAL","NGO",1,2,14233,{"$nulls":5},true]
[null,"South Dade Anglers Fishing Club","REGIONAL","OTHER PARTNERS",3,6,16928,{"$nulls":5},true]
[null,"South Jersey Ports Corporation","STATE","GOVERNMENT",2,1,4850,{"$nulls":5},true]
[null,"South Mississippi Environmental and Agricultural Coordination Organization (SMEACO)","LOCAL","NGO",1,2,2571,{"$nulls":5},true]
[null,"South Point Seafood","STATE","INDUSTRY AND BUSINESS",2,3,3966,{"$nulls":5},true]
[null,"South River High School, Edgewater, MD","LOCAL","ACADEMIC INSTITUTION",1,4,7661,{"$nulls":5},true]
[null,"South Sound Mariculture","LOCAL","INDUSTRY AND BUSINESS",1,3,13205,{"$nulls":5},true]
[null,"South Texas Sailboats","LOCAL","INDUSTRY AND BUSINESS",1,3,6188,{"$nulls":5},true]
[null,"Southeast Alaska Tribal Ocean Research","LOCAL","GOVERNMENT",1,1,17212,{"$nulls":5},true]
[null,"Southeast Atlantic Marine Debris (SEA-MD)","REGIONAL","OTHER PARTNERS",3,6,8680,{"$nulls":5},true]
[null,"Southeast Coral Reef Initiative","REGIONAL","NGO",3,2,12997,{"$nulls":5},true]
[null,"Southeast Michigan Council of Governments","LOCAL","GOVERNMENT",1,1,2583,{"$nulls":5},true]
[null,"Southeast Regional Climate Hub (USDA)","REGIONAL","GOVERNMENT",3,1,16825,{"$nulls":5},true]
[null,"Southeast Watershed Alliance","REGIONAL","NGO",3,2,9537,{"$nulls":5},true]
[null,"Southeastern Wildlife Conservation Group","Unknown","Unknown",0,0,6654,{"$nulls":5},true]
[null,"Southern California Association of Governments","REGIONAL","GOVERNMENT",3,1,8019,{"$nulls":5},true]
[null,"Southern California Lobster and Trap Fishermen's Association","LOCAL","INDUSTRY AND BUSINESS",1,3,7959,{"$nulls":5},true]
[null,"Southern Cross Sea Farms","Unknown","Unknown",0,0,15218,{"$nulls":5},true]
[null,"Southern Illinois University, Carbondale","STATE","ACADEMIC INSTITUTION",2,4,3609,{"$nulls":5},true]
[null,"Southern Mississippi Planning and   Development District","STATE","GOVERNMENT",2,1,4851,{"$nulls":5},true]
[null,"Southern Ocean County Chamber of Commerce","LOCAL","NGO",1,2,13146,{"$nulls":5},true]
[null,"Southern Shores","LOCAL","GOVERNMENT",1,1,13968,{"$nulls":5},true]
[null,"Southern University Law School","STATE","ACADEMIC INSTITUTION",2,4,2600,{"$nulls":5},true]
[null,"Southside School District","LOCAL","ACADEMIC INSTITUTION",1,4,4219,{"$nulls":5},true]
[null,"Southwest Informational Floodplain Team (SWIFT) Community Rating System (CRS) User Group","STATE","Unknown",2,0,15642,{"$nulls":5},true]
[null,"Soy Aquaculture Alliance","REGIONAL","INDUSTRY AND BUSINESS",3,3,9240,{"$nulls":5},true]
[null,"Sparks Marketing","Unknown","Unknown",0,0,10011,{"$nulls":5},true]
[null,"Spirit Mountain Recreation Area","LOCAL","INDUSTRY AND BUSINESS",1,3,2607,{"$nulls":5},true]
[null,"Sport Fishing Alliance, LTD","LOCAL","INDUSTRY AND BUSINESS",1,3,7836,{"$nulls":5},true]
[null,"Spring Lake Beach Patrol","LOCAL","OTHER PARTNERS",1,6,9077,{"$nulls":5},true]
[null,"Springs Towers","LOCAL","INDUSTRY AND BUSINESS",1,3,14000,{"$nulls":5},true]
[null,"Squalicum High School","LOCAL","ACADEMIC INSTITUTION",1,4,4220,{"$nulls":5},true]
[null,"St. Albans Area Watershed Association","LOCAL","NGO",1,2,5335,{"$nulls":5},true]
[null,"St. Bernard Economic Development Program","LOCAL","GOVERNMENT",1,1,15491,{"$nulls":5},true]
[null,"St. Clair County Parks and Recreation Commission","LOCAL","GOVERNMENT",1,1,9231,{"$nulls":5},true]
[null,"St. James Parish, LA","LOCAL","GOVERNMENT",1,1,8357,{"$nulls":5},true]
[null,"St. James Sportfishing Club","LOCAL","NGO",1,2,16827,{"$nulls":5},true]
[null,"St. Joseph Academy Science Club","LOCAL","OTHER PARTNERS",1,6,15509,{"$nulls":5},true]
[null,"St. Louis River Citizens Action Committee","LOCAL","GOVERNMENT",1,1,2621,{"$nulls":5},true]
[null,"St. Louis University","STATE","ACADEMIC INSTITUTION",2,4,15262,{"$nulls":5},true]
[null,"St. Mary's County, MD","LOCAL","GOVERNMENT",1,1,8244,{"$nulls":5},true]
[null,"St. Regis Mohawk Tribe","Tribal","GOVERNMENT",13,1,2623,{"$nulls":5},true]
[null,"St. Stanislaus College","Unknown","Unknown",0,0,6658,{"$nulls":5},true]
[null,"Stanford University, Hopkins Marine Station","STATE","ACADEMIC INSTITUTION",2,4,2625,{"$nulls":5},true]
[null,"State and Federal Contractor’s Water Agency","STATE","GOVERNMENT",2,1,16404,{"$nulls":5},true]
[null,"State Council of Higher Education for Virginia (SCHEV)","STATE","GOVERNMENT",2,1,17417,{"$nulls":5},true]
[null,"State of Mississippi","STATE","GOVERNMENT",2,1,13825,{"$nulls":5},true]
[null,"State University of New York (SUNY)","STATE","ACADEMIC INSTITUTION",2,4,2627,{"$nulls":5},true]
[null,"State University of New York, Brockport (SUNY)","STATE","ACADEMIC INSTITUTION",2,4,2629,{"$nulls":5},true]
[null,"State University of New York, Potsdam (SUNY)","STATE","ACADEMIC INSTITUTION",2,4,3616,{"$nulls":5},true]
[null,"Steel Pier of Atlantic City","LOCAL","NGO",1,2,13885,{"$nulls":5},{"$f":"AND(  NOT(ISERROR(FIND(UPPER($B$7),UPPER($B11598),1))),  OR($D$7=\"\",NOT(ISERROR(FIND(UPPER($D$7),UPPER($B11598),1)))),    OR($D$8=\"\",(ISERROR(FIND(UPPER($D$8),UPPER($B11598),1))))           )","v":true}]
[null,"STEM NH","STATE","NGO",2,2,12529,{"$nulls":5},true]
[null,"Steve the Snake Man","LOCAL","OTHER PARTNERS",1,6,16016,{"$nulls":5},true]
[null,"Stewardship Network of the San Juans","LOCAL","NGO",1,2,8678,{"$nulls":5},true]
[null,"Stockholm Environmental Institute (SEI-US)","INTERNATIONAL","NGO",5,2,8068,{"$nulls":5},true]
[null,"Stony Brook University","STATE","ACADEMIC INSTITUTION",2,4,10012,{"$nulls":5},true]
[null,"Stormwater Authority of the City of Chester","LOCAL","NGO",1,2,16638,{"$nulls":5},true]
[null,"Strategic Energy Innovations","FEDERAL or NATIONAL","NGO",4,2,2641,{"$nulls":5},true]
[null,"Striped Bass Growers Association","FEDERAL or NATIONAL","INDUSTRY AND BUSINESS",4,3,2644,{"$nulls":5},true]
[null,"Strong Vincent High School","LOCAL","ACADEMIC INSTITUTION",1,4,2646,{"$nulls":5},true]
[null,"Subcommittee on Ocean Science and Technology (SOST)","FEDERAL or NATIONAL","GOVERNMENT",4,1,13089,{"$nulls":5},true]
[null,"Suffolk County Boards of Cooperative Educational Services (BOCES)","LOCAL","GOVERNMENT",1,1,2651,{"$nulls":5},true]
[null,"Sullivan's Island, SC","LOCAL","GOVERNMENT",1,1,4939,{"$nulls":5},true]
[null,"Sun Foundation","REGIONAL","NGO",3,2,17492,{"$nulls":5},true]
[null,"Sunrise Food and Liquor","Unknown","INDUSTRY AND BUSINESS",0,3,9445,{"$nulls":5},true]
[null,"Superior Foods","REGIONAL","SEA GRANT PROGRAMS",3,5,12486,{"$nulls":5},true]
[null,"Surf City Beach Patrol","LOCAL","OTHER PARTNERS",1,6,9084,{"$nulls":5},true]
[null,"Surfrider","INTERNATIONAL","NGO",5,2,8721,{"$nulls":5},true]
[null,"Surfside Beach, SC","LOCAL","GOVERNMENT",1,1,4742,{"$nulls":5},true]
[null,"Sussex Avenue School of the Arts and Sciences","LOCAL","ACADEMIC INSTITUTION",1,4,9051,{"$nulls":5},{"$f":"AND(  NOT(ISERROR(FIND(UPPER($B$7),UPPER($B11726),1))),  OR($D$7=\"\",NOT(ISERROR(FIND(UPPER($D$7),UPPER($B11726),1)))),    OR($D$8=\"\",(ISERROR(FIND(UPPER($D$8),UPPER($B11726),1))))           )","v":true}]
[null,"Sussex County Emergency Operations Center","LOCAL","GOVERNMENT",1,1,5774,{"$nulls":5},true]
[null,"Sustainability Solutions Initiative","STATE","OTHER PARTNERS",2,6,8531,{"$nulls":5},true]
[null,"Sustainable Jersey","STATE","OTHER PARTNERS",2,6,14095,{"$nulls":5},true]
[null,"Swantown Marina","LOCAL","INDUSTRY AND BUSINESS",1,3,4363,{"$nulls":5},true]
[null,"Sweet Home Youth Watershed Council","LOCAL","NGO",1,2,6359,{"$nulls":5},true]
[null,"Swenson College of Science and Engineering, Univ. of Minnesota Duluth","Unknown","Unknown",0,0,15691,{"$nulls":5},true]
[null,"Symplicity Corporation","LOCAL","INDUSTRY AND BUSINESS",1,3,5966,{"$nulls":5},true]
[null,"T&M Engineering","Unknown","INDUSTRY AND BUSINESS",0,3,10565,{"$nulls":5},true]
[null,"Tabb Middle School","LOCAL","ACADEMIC INSTITUTION",1,4,10803,{"$nulls":5},true]
[null,"Tahoma Audubon","LOCAL","NGO",1,2,13207,{"$nulls":5},{"$f":"AND(  NOT(ISERROR(FIND(UPPER($B$7),UPPER($B11790),1))),  OR($D$7=\"\",NOT(ISERROR(FIND(UPPER($D$7),UPPER($B11790),1)))),    OR($D$8=\"\",(ISERROR(FIND(UPPER($D$8),UPPER($B11790),1))))           )","v":true}]
[null,"Talbot County Economic Development Commission","LOCAL","GOVERNMENT",1,1,2679,{"$nulls":5},true]
[null,"Tampa Bay Estuary Program","LOCAL","GOVERNMENT",1,1,11157,{"$nulls":5},true]
[null,"Tarkill Aquaculture Ventures, LLC","LOCAL","INDUSTRY AND BUSINESS",1,3,17419,{"$nulls":5},true]
[null,"Taylor County","LOCAL","GOVERNMENT",1,1,12979,{"$nulls":5},true]
[null,"Taylor United (TU)","FEDERAL or NATIONAL","GOVERNMENT",4,1,3434,{"$nulls":5},true]
[null,"Ted Gray and Associates, Inc.","FEDERAL or NATIONAL","INDUSTRY AND BUSINESS",4,3,2684,{"$nulls":5},true]
[null,"Teledyne","Unknown","INDUSTRY AND BUSINESS",0,3,5778,{"$nulls":5},true]
[null,"Terns LLC","REGIONAL","OTHER PARTNERS",3,6,12528,{"$nulls":5},true]
[null,"Terry Brothers, Inc.","FEDERAL or NATIONAL","INDUSTRY AND BUSINESS",4,3,2688,{"$nulls":5},true]
[null,"Tetra Tech, India","INTERNATIONAL","ACADEMIC INSTITUTION",5,4,10305,{"$nulls":5},true]
[null,"Texas A&M University - Department of Political Science","STATE","ACADEMIC INSTITUTION",2,4,14372,{"$nulls":5},true]
[null,"Texas A&M University System, Texas Water Resources Institute (TAMU)","STATE","ACADEMIC INSTITUTION",2,4,6037,{"$nulls":5},true]
[null,"Texas A&M University, College of Architecture (TAMU)","STATE","ACADEMIC INSTITUTION",2,4,15373,{"$nulls":5},true]
[null,"Texas A&M University, Mac Resources","STATE","INDUSTRY AND BUSINESS",2,3,12310,{"$nulls":5},true]
[null,"Texas A&M University-Corpus Christi, Lone Star UAS Center of Excellence & Innovation (TAMUCC)","STATE","ACADEMIC INSTITUTION",2,4,15386,{"$nulls":5},true]
[null,"Texas A&M University-Kingsville (TAMU)","STATE","ACADEMIC INSTITUTION",2,4,6129,{"$nulls":5},true]
[null,"Texas Coastal Aububon TERN Project","STATE","NGO",2,2,12313,{"$nulls":5},true]
[null,"Texas Department of Agriculture","STATE","GOVERNMENT",2,1,6192,{"$nulls":5},true]
[null,"Texas Festivals & Events Association","STATE","INDUSTRY AND BUSINESS",2,3,6840,{"$nulls":5},true]
[null,"Texas International Fishing Tournament","LOCAL","NGO",1,2,12316,{"$nulls":5},true]
[null,"Texas Sea Grant","STATE","SEA GRANT PROGRAMS",2,5,3296,{"$nulls":5},true]
[null,"Texas State Aquarium","STATE","NGO",2,2,6036,{"$nulls":5},true]
[null,"Texas Wesleyan School of Law","STATE","ACADEMIC INSTITUTION",2,4,13918,{"$nulls":5},true]
[null,"The Abalone Farm, Inc.","FEDERAL or NATIONAL","INDUSTRY AND BUSINESS",4,3,2703,{"$nulls":5},true]
[null,"The Association of Zoos and Aquariums (AZA)","INTERNATIONAL","NGO",5,2,2706,{"$nulls":5},true]
[null,"The Berry Patch-Westport, OR","LOCAL","INDUSTRY AND BUSINESS",1,3,6360,{"$nulls":5},true]
[null,"The Campaign for Sensible Growth","INTERNATIONAL","NGO",5,2,2707,{"$nulls":5},true]
[null,"The Coastal Society","INTERNATIONAL","NGO",5,2,2709,{"$nulls":5},true]
[null,"The Consortium for Plant Biotechnology Research, Inc.","FEDERAL or NATIONAL","NGO",4,2,2713,{"$nulls":5},true]
[null,"The David and Lucille Packard Foundation (DLPF)","INTERNATIONAL","NGO",5,2,3437,{"$nulls":5},true]
[null,"The Edistonian","LOCAL","INDUSTRY AND BUSINESS",1,3,16201,{"$nulls":5},true]
[null,"The Eugene Register Guard newspaper","LOCAL","INDUSTRY AND BUSINESS",1,3,14536,{"$nulls":5},true]
[null,"The Fisherman Magazine","REGIONAL","INDUSTRY AND BUSINESS",3,3,16398,{"$nulls":5},true]
[null,"The Furbish Company","LOCAL","INDUSTRY AND BUSINESS",1,3,11564,{"$nulls":5},true]
[null,"The Greene School","STATE","ACADEMIC INSTITUTION",2,4,15947,{"$nulls":5},true]
[null,"The Imaginarium Science Discovery Center","LOCAL","OTHER PARTNERS",1,6,5407,{"$nulls":5},true]
[null,"The Kula Nia Foundation","FEDERAL or NATIONAL","NGO",4,2,2724,{"$nulls":5},true]
[null,"The Makah Nation","Tribal","GOVERNMENT",13,1,2726,{"$nulls":5},true]
[null,"The Massachusetts Marine Renewable Energy Center (MREC)","STATE","ACADEMIC INSTITUTION",2,4,6712,{"$nulls":5},true]
[null,"The Mississippi River Gulf of Mexico Watershed Nutrient and Hypoxia Task Force","Unknown","Unknown",0,0,6663,{"$nulls":5},true]
[null,"The Nature Conservancy (TNC)","INTERNATIONAL","NGO",5,2,2732,{"$nulls":5},true]
[null,"The Nature Conservancy of the Great Lakes (TNC)","INTERNATIONAL","NGO",5,2,2736,{"$nulls":5},true]
[null,"The Nature Conservancy, Vermont Chapter (TNC)","STATE","NGO",2,2,5337,{"$nulls":5},true]
[null,"The North Carolina Coastal Reserve & National Estuarine Research Reserve (US DOC, NOAA, NOS, NERRS)","FEDERAL or NATIONAL","GOVERNMENT",4,1,1907,{"$nulls":5},true]
[null,"The Openlands Project","FEDERAL or NATIONAL","NGO",4,2,2739,{"$nulls":5},true]
[null,"The Pulse Team","LOCAL","INDUSTRY AND BUSINESS",1,3,15903,{"$nulls":5},true]
[null,"The Riley Center, College of Charleston","STATE","ACADEMIC INSTITUTION",2,4,15136,{"$nulls":5},true]
[null,"The Saltwater Grill","LOCAL","INDUSTRY AND BUSINESS",1,3,13905,{"$nulls":5},true]
[null,"The Shrimp Shack","STATE","INDUSTRY AND BUSINESS",2,3,3963,{"$nulls":5},true]
[null,"The University of Vermont Upward Bound","REGIONAL","ACADEMIC INSTITUTION",3,4,8321,{"$nulls":5},true]
[null,"The Washed Ashore Project","INTERNATIONAL","NGO",5,2,17484,{"$nulls":5},true]
[null,"The Windmill","LOCAL","INDUSTRY AND BUSINESS",1,3,13887,{"$nulls":5},true]
[null,"Thomas Hoyne Elementary School","LOCAL","ACADEMIC INSTITUTION",1,4,8601,{"$nulls":5},true]
[null,"Thoroughgood Oyster Farms","LOCAL","INDUSTRY AND BUSINESS",1,3,17421,{"$nulls":5},true]
[null,"Three Rivers Park District","LOCAL","GOVERNMENT",1,1,2746,{"$nulls":5},true]
[null,"Thurston County, Resource Stewardship Department","LOCAL","GOVERNMENT",1,1,13209,{"$nulls":5},true]
[null,"Thurston County, WA","LOCAL","GOVERNMENT",1,1,7353,{"$nulls":5},true]
[null,"TideRight, LLC","LOCAL","INDUSTRY AND BUSINESS",1,3,15625,{"$nulls":5},true]
[null,"Tierra Data","LOCAL","INDUSTRY AND BUSINESS",1,3,13210,{"$nulls":5},true]
[null,"Tierra resources","REGIONAL","INDUSTRY AND BUSINESS",3,3,15475,{"$nulls":5},true]
[null,"Tillamook Creamery Association","LOCAL","INDUSTRY AND BUSINESS",1,3,10166,{"$nulls":5},true]
[null,"Timmons Group","STATE","INDUSTRY AND BUSINESS",2,3,13681,{"$nulls":5},true]
[null,"Tinicum Township","LOCAL","GOVERNMENT",1,1,16642,{"$nulls":5},true]
[null,"Togiak Traditional Council","LOCAL","NGO",1,2,8046,{"$nulls":5},true]
[null,"Toledo-Lucas County Convention and Visitors Bureau","STATE","INDUSTRY AND BUSINESS",2,3,13316,{"$nulls":5},true]
[null,"Toledo-Lucas County Public Library","STATE","GOVERNMENT",2,1,13318,{"$nulls":5},true]
[null,"Tony’s Seafood","Unknown","Unknown",0,0,9848,{"$nulls":5},true]
[null,"TOTAL France","INTERNATIONAL","INDUSTRY AND BUSINESS",5,3,6836,{"$nulls":5},true]
[null,"Tournament Directors Foundation of Texas","STATE","NGO",2,2,12321,{"$nulls":5},true]
[null,"Town of Bayou La Batre","Unknown","Unknown",0,0,6667,{"$nulls":5},true]
[null,"Town of Brooksville, ME","LOCAL","GOVERNMENT",1,1,13865,{"$nulls":5},true]
[null,"Town of Cary, NC","LOCAL","GOVERNMENT",1,1,16993,{"$nulls":5},true]
[null,"Town of Dauphin Island","LOCAL","GOVERNMENT",1,1,9982,{"$nulls":5},true]
[null,"Town of Dewey Beach, DE","LOCAL","GOVERNMENT",1,1,5784,{"$nulls":5},true]
[null,"Town of Exeter, NH","LOCAL","GOVERNMENT",1,1,3785,{"$nulls":5},true]
[null,"Town of Grand Isle CZM Committee","Unknown","Unknown",0,0,9849,{"$nulls":5},true]
[null,"Town of Hampton, NH","LOCAL","GOVERNMENT",1,1,9542,{"$nulls":5},true]
[null,"Town of Jacksonport, Wis.","LOCAL","GOVERNMENT",1,1,11461,{"$nulls":5},true]
[null,"Town of Kennebunk, ME","LOCAL","GOVERNMENT",1,1,5203,{"$nulls":5},true]
[null,"Town of Laurel, DE","LOCAL","OTHER PARTNERS",1,6,9373,{"$nulls":5},true]
[null,"Town of Manhasset, NY","LOCAL","GOVERNMENT",1,1,2779,{"$nulls":5},true]
[null,"Town of Middletown","LOCAL","GOVERNMENT",1,1,10487,{"$nulls":5},true]
[null,"Town of Newfields, NH","LOCAL","GOVERNMENT",1,1,6912,{"$nulls":5},true]
[null,"Town of Ocean Isle, NC","LOCAL","GOVERNMENT",1,1,12789,{"$nulls":5},true]
[null,"Town of Oriental, NC","LOCAL","GOVERNMENT",1,1,14435,{"$nulls":5},true]
[null,"Town of Prospect Harbor, ME","LOCAL","GOVERNMENT",1,1,7268,{"$nulls":5},true]
[null,"Town of Richland","LOCAL","GOVERNMENT",1,1,8508,{"$nulls":5},true]
[null,"Town of Sandy Creek, NY","LOCAL","GOVERNMENT",1,1,5861,{"$nulls":5},true]
[null,"Town of South Kingstown","LOCAL","GOVERNMENT",1,1,10489,{"$nulls":5},true]
[null,"Town of St. Albans","LOCAL","GOVERNMENT",1,1,5339,{"$nulls":5},true]
[null,"Town of Swampscott, MA","LOCAL","GOVERNMENT",1,1,6452,{"$nulls":5},true]
[null,"Town of Winter Harbor, ME","LOCAL","GOVERNMENT",1,1,7264,{"$nulls":5},true]
[null,"Town of York Harbor, ME","LOCAL","GOVERNMENT",1,1,5229,{"$nulls":5},true]
[null,"Trace Register, LLC","FEDERAL or NATIONAL","INDUSTRY AND BUSINESS",4,3,8347,{"$nulls":5},true]
[null,"Trade Adjustment Act (US DOL, ETA)","FEDERAL or NATIONAL","GOVERNMENT",4,1,5039,{"$nulls":5},true]
[null,"Travel Tender","Unknown","Unknown",0,0,9449,{"$nulls":5},true]
[null,"Triangle Sport and Marine","LOCAL","INDUSTRY AND BUSINESS",1,3,16128,{"$nulls":5},true]
[null,"Trident Seafoods","INTERNATIONAL","INDUSTRY AND BUSINESS",5,3,4366,{"$nulls":5},true]
[null,"Trinity Montessori School","LOCAL","ACADEMIC INSTITUTION",1,4,7141,{"$nulls":5},true]
[null,"True World Foods","FEDERAL or NATIONAL","INDUSTRY AND BUSINESS",4,3,2794,{"$nulls":5},true]
[null,"Trussell Technologies Inc.","Unknown","Unknown",0,0,8937,{"$nulls":5},true]
[null,"Tulane Water Resources Institute","Unknown","Unknown",0,0,9851,{"$nulls":5},true]
[null,"Turtle Island Restoration Network","LOCAL","NGO",1,2,14136,{"$nulls":5},true]
[null,"Tuskegee University","STATE","ACADEMIC INSTITUTION",2,4,9983,{"$nulls":5},true]
[null,"Two Rivers City Parks","LOCAL","GOVERNMENT",1,1,2800,{"$nulls":5},true]
[null,"U. S. Coast Guard Auxiliary","Unknown","Unknown",0,0,9853,{"$nulls":5},true]
[null,"U.S. Agriculture Coalition for Cuba","FEDERAL or NATIONAL","OTHER PARTNERS",4,6,14869,{"$nulls":5},true]
[null,"U.S. Drug Enforcement Agency (DEA)","LOCAL","GOVERNMENT",1,1,7754,{"$nulls":5},true]
[null,"U.S. House Committee on Natural Resources","FEDERAL or NATIONAL","GOVERNMENT",4,1,8083,{"$nulls":5},true]
[null,"U.S. House Committee on Transportation and Infrastructure - Subcommittee on Coast Guard and Maritime Transportation, Democratic Staff","FEDERAL or NATIONAL","GOVERNMENT",4,1,5542,{"$nulls":5},true]
[null,"U.S. Representative Bill Cassidy - Louisiana","FEDERAL or NATIONAL","GOVERNMENT",4,1,5572,{"$nulls":5},true]
[null,"U.S. Representative Don Young - Alaska","FEDERAL or NATIONAL","GOVERNMENT",4,1,8088,{"$nulls":5},true]
[null,"U.S. Representative Lois Capps - California","FEDERAL or NATIONAL","GOVERNMENT",4,1,5568,{"$nulls":5},true]
[null,"U.S. Representative Mike Thompson - California","FEDERAL or NATIONAL","GOVERNMENT",4,1,5536,{"$nulls":5},true]
[null,"U.S. Senator Benjamin Cardin - Maryland","FEDERAL or NATIONAL","GOVERNMENT",4,1,5567,{"$nulls":5},true]
[null,"U.S. Senator Debbie Stabenow - Michigan","FEDERAL or NATIONAL","GOVERNMENT",4,1,5571,{"$nulls":5},true]
[null,"U.S. Senator Patty Murray - Washington","FEDERAL or NATIONAL","GOVERNMENT",4,1,5560,{"$nulls":5},true]
[null,"U.S. Soybean Export Council","INTERNATIONAL","INDUSTRY AND BUSINESS",5,3,12537,{"$nulls":5},true]
[null,"UAF College of Fisheries and Ocean Sciences","STATE","ACADEMIC INSTITUTION",2,4,17254,{"$nulls":5},true]
[null,"Uessert Star Systems","Unknown","Unknown",0,0,3626,{"$nulls":5},true]
[null,"UGA Graduate School","STATE","ACADEMIC INSTITUTION",2,4,10360,{"$nulls":5},true]
[null,"UK Ocean Acidification Research Programme","INTERNATIONAL","OTHER PARTNERS",5,6,10529,{"$nulls":5},true]
[null,"Unalaska Parks, Culture and Recreation Center","LOCAL","GOVERNMENT",1,1,2807,{"$nulls":5},true]
[null,"Undersea Medical Society, Inc.","Unknown","Unknown",0,0,3627,{"$nulls":5},true]
[null,"Unicord Corp","INTERNATIONAL","INDUSTRY AND BUSINESS",5,3,8187,{"$nulls":5},true]
[null,"Union, Town of","LOCAL","GOVERNMENT",1,1,8277,{"$nulls":5},true]
[null,"United Coalition to Protect Panhe (Tribal legal & environemntal advocacy)","Unknown","OTHER PARTNERS",0,6,7960,{"$nulls":5},true]
[null,"United Nations Children's Fund (UNICEF)","INTERNATIONAL","GOVERNMENT",5,1,16830,{"$nulls":5},true]
[null,"United Seafood","STATE","INDUSTRY AND BUSINESS",2,3,12322,{"$nulls":5},true]
[null,"United States Department of Agriculture, Natural Resources Conservation Service","FEDERAL or NATIONAL","GOVERNMENT",4,1,9984,{"$nulls":5},true]
[null,"United States Naval Academy, Science Technology Engineering Mathematics (USNA STEM)","STATE","ACADEMIC INSTITUTION",2,4,11580,{"$nulls":5},true]
[null,"United Women of East Africa","LOCAL","NGO",1,2,13262,{"$nulls":5},true]
[null,"Universidad de Los Lagos, iMAR","INTERNATIONAL","ACADEMIC INSTITUTION",5,4,3495,{"$nulls":5},true]
[null,"Universidade Federal da Paraiba","INTERNATIONAL","ACADEMIC INSTITUTION",5,4,2817,{"$nulls":5},true]
[null,"Università del Piemonte Orientale, Alessandria, Italy","INTERNATIONAL","ACADEMIC INSTITUTION",5,4,8386,{"$nulls":5},true]
[null,"University Consortium for Geographic Information","INTERNATIONAL","ACADEMIC INSTITUTION",5,4,3745,{"$nulls":5},true]
[null,"University of Alabama (UA)","STATE","ACADEMIC INSTITUTION",2,4,2824,{"$nulls":5},true]
[null,"University of Alaska Anchorage, Institute of Social and Economic Research (UAA)","STATE","ACADEMIC INSTITUTION",2,4,5449,{"$nulls":5},true]
[null,"University of Alaska Fairbanks, Alaska Center for Climate Assessment and Policy (UAF)","STATE","ACADEMIC INSTITUTION",2,4,5452,{"$nulls":5},true]
[null,"University of Alaska Fairbanks, Kodiak Seafood and Marine Science Center","STATE","ACADEMIC INSTITUTION",2,4,10999,{"$nulls":5},true]
[null,"University of Alaska Southeast, Research Experiences for Undergraduate Students","STATE","ACADEMIC INSTITUTION",2,4,5457,{"$nulls":5},true]
[null,"University of Arkansas Risk Management Center","STATE","ACADEMIC INSTITUTION",2,4,5040,{"$nulls":5},{"$f":"AND(  NOT(ISERROR(FIND(UPPER($B$7),UPPER($B12750),1))),  OR($D$7=\"\",NOT(ISERROR(FIND(UPPER($D$7),UPPER($B12750),1)))),    OR($D$8=\"\",(ISERROR(FIND(UPPER($D$8),UPPER($B12750),1))))           )","v":true}]
[null,"University of British Columbia (Canada UBC)","INTERNATIONAL","ACADEMIC INSTITUTION",5,4,2833,{"$nulls":5},true]
[null,"University of California Davis","Unknown","Unknown",0,0,14112,{"$nulls":5},true]
[null,"University of California San Diego","Unknown","Unknown",0,0,14108,{"$nulls":5},true]
[null,"University of California, Davis (UCD)","STATE","ACADEMIC INSTITUTION",2,4,2838,{"$nulls":5},true]
[null,"University of California, Merced","STATE","ACADEMIC INSTITUTION",2,4,8262,{"$nulls":5},true]
[null,"University of California, San Diego School of Medicine (UCSD)","STATE","ACADEMIC INSTITUTION",2,4,3758,{"$nulls":5},true]
[null,"University of California, Santa Cruz, Institute of Marine Sciences (UCSC)","STATE","ACADEMIC INSTITUTION",2,4,8422,{"$nulls":5},true]
[null,"University Of Colorado, Boulder (UC)","STATE","ACADEMIC INSTITUTION",2,4,3628,{"$nulls":5},true]
[null,"University of Connecticut American Studies Program","STATE","ACADEMIC INSTITUTION",2,4,14951,{"$nulls":5},true]
[null,"University of Connecticut Law School","STATE","ACADEMIC INSTITUTION",2,4,7610,{"$nulls":5},true]
[null,"University of Connecticut, Department of Geography","STATE","ACADEMIC INSTITUTION",2,4,16905,{"$nulls":5},true]
[null,"University of Connecticut, Department of Marine Sciences, Natural Resources Management and Engineering (UCONN)","STATE","ACADEMIC INSTITUTION",2,4,2858,{"$nulls":5},true]
[null,"University of Connecticut, School of Engineering","STATE","ACADEMIC INSTITUTION",2,4,9346,{"$nulls":5},true]
[null,"University of Delaware Center for Carbon Free Power Integration","STATE","ACADEMIC INSTITUTION",2,4,15943,{"$nulls":5},true]
[null,"University of Delaware Center for the Study of Marine Policy (UDEL)","STATE","ACADEMIC INSTITUTION",2,4,2868,{"$nulls":5},true]
[null,"University of Findlay","STATE","ACADEMIC INSTITUTION",2,4,6863,{"$nulls":5},true]
[null,"University of Georgia Carl Vinson Institute of Government","STATE","GOVERNMENT",2,1,13942,{"$nulls":5},true]
[null,"University of Georgia Marine Extension Service (UGA)","STATE","ACADEMIC INSTITUTION",2,4,2872,{"$nulls":5},true]
[null,"University Of Guam (UG)","STATE","ACADEMIC INSTITUTION",2,4,3630,{"$nulls":5},true]
[null,"University Of Guam Marine Laboratory (UG)","STATE","ACADEMIC INSTITUTION",2,4,3631,{"$nulls":5},true]
[null,"University of Hawaii at Hilo Ku'ula Course","STATE","ACADEMIC INSTITUTION",2,4,10831,{"$nulls":5},true]
[null,"University of Hawaii at Manoa","STATE","ACADEMIC INSTITUTION",2,4,11061,{"$nulls":5},true]
[null,"University of Hawaii at Manoa, Botany Department","STATE","ACADEMIC INSTITUTION",2,4,13071,{"$nulls":5},true]
[null,"University of Hawaii at Manoa, College of Engineering","STATE","ACADEMIC INSTITUTION",2,4,10715,{"$nulls":5},true]
[null,"University of Hawaii at Manoa, Department of Microbiology (UHM)","STATE","ACADEMIC INSTITUTION",2,4,10077,{"$nulls":5},true]
[null,"University of Hawaii at Manoa, Department of Oeanography (UHM)","STATE","ACADEMIC INSTITUTION",2,4,10051,{"$nulls":5},true]
[null,"University of Hawaii at Manoa, Hawaii Institute of Marine Biology, School of Ocean & Earth Sciences & Technology,  ","Unknown","Unknown",0,0,14357,{"$nulls":5},true]
[null,"University of Hawaii at Manoa, National Disaster Preparedness Training Center","STATE","ACADEMIC INSTITUTION",2,4,8333,{"$nulls":5},true]
[null,"University of Hawaii at Manoa, Office of the Vice Chancellor of Budget and Facilities","REGIONAL","ACADEMIC INSTITUTION",3,4,10828,{"$nulls":5},true]
[null,"University of Hawaii at Manoa, Water Resources Research Center (UHM)","STATE","ACADEMIC INSTITUTION",2,4,2904,{"$nulls":5},true]
[null,"University of Hawaii Marine Option Program","STATE","ACADEMIC INSTITUTION",2,4,14270,{"$nulls":5},true]
[null,"University of Hawaii Sea Grant College Program, Hanauma Bay Education Program","STATE","SEA GRANT PROGRAMS",2,5,9386,{"$nulls":5},true]
[null,"University of Hawaii, Office of Sustainability (UH)","STATE","ACADEMIC INSTITUTION",2,4,2907,{"$nulls":5},true]
[null,"University of Houston-Clear Lake, Environmental Institute of Houston","STATE","ACADEMIC INSTITUTION",2,4,6138,{"$nulls":5},true]
[null,"University of Illinois Cooperative Extension","STATE","ACADEMIC INSTITUTION",2,4,2909,{"$nulls":5},true]
[null,"University of Illinois Police Department","LOCAL","ACADEMIC INSTITUTION",1,4,10896,{"$nulls":5},true]
[null,"University of Iowa, Ames (UI)","STATE","ACADEMIC INSTITUTION",2,4,2910,{"$nulls":5},true]
[null,"University of Maine - Orono","Unknown","Unknown",0,0,14693,{"$nulls":5},{"$f":"AND(  NOT(ISERROR(FIND(UPPER($B$7),UPPER($B13006),1))),  OR($D$7=\"\",NOT(ISERROR(FIND(UPPER($D$7),UPPER($B13006),1)))),    OR($D$8=\"\",(ISERROR(FIND(UPPER($D$8),UPPER($B13006),1))))           )","v":true}]
[null,"University of Maine Cooperative Extension (UMaine)","STATE","ACADEMIC INSTITUTION",2,4,2915,{"$nulls":5},true]
[null,"University of Maine School of Law","Unknown","Unknown",0,0,14707,{"$nulls":5},true]
[null,"University of Maryland - College Park","Unknown","Unknown",0,0,14640,{"$nulls":5},true]
[null,"University of Maryland Baltimore County","STATE","SEA GRANT PROGRAMS",2,5,4753,{"$nulls":5},true]
[null,"University of Maryland Center for Environmental Science, Chesapeake Biological Laboratory","STATE","ACADEMIC INSTITUTION",2,4,10070,{"$nulls":5},true]
[null,"University of Maryland College Park, Global Land Cover Facility","STATE","ACADEMIC INSTITUTION",2,4,9315,{"$nulls":5},true]
[null,"University of Maryland Environmental Science and Policy Program","STATE","ACADEMIC INSTITUTION",2,4,14574,{"$nulls":5},true]
[null,"University of Maryland, Center for Smart Growth (UMD)","STATE","ACADEMIC INSTITUTION",2,4,2921,{"$nulls":5},true]
[null,"University of Maryland, Horn Point","STATE","ACADEMIC INSTITUTION",2,4,3856,{"$nulls":5},true]
[null,"University of Massachusetts, Boston","STATE","ACADEMIC INSTITUTION",2,4,10058,{"$nulls":5},true]
[null,"University of Miami - RSMAS","Unknown","Unknown",0,0,14699,{"$nulls":5},true]
[null,"University of Michigan - Michigan Sea Grant","STATE","SEA GRANT PROGRAMS",2,5,15243,{"$nulls":5},true]
[null,"University of Michigan (UM), School of Natural Resources and Environment (SNRE)","STATE","ACADEMIC INSTITUTION",2,4,9505,{"$nulls":5},true]
[null,"University of Minnesota (UMN) Landscapte Arboretum","LOCAL","ACADEMIC INSTITUTION",1,4,17073,{"$nulls":5},true]
[null,"University Of Minnesota Duluth","STATE","ACADEMIC INSTITUTION",2,4,9893,{"$nulls":5},true]
[null,"University of Minnesota Extension Service (UMN)","STATE","ACADEMIC INSTITUTION",2,4,2934,{"$nulls":5},true]
[null,"University of Minnesota, Department of Horticulture Science (UMN)","STATE","ACADEMIC INSTITUTION",2,4,2939,{"$nulls":5},true]
[null,"University of Minnesota, Duluth, Biology Department (UMD)","STATE","ACADEMIC INSTITUTION",2,4,7503,{"$nulls":5},true]
[null,"University of Minnesota, Duluth, Department of Civil Engineering (UMD)","STATE","ACADEMIC INSTITUTION",2,4,10073,{"$nulls":5},true]
[null,"University of Minnesota, Extension for Woodland Advisors (UMN)","REGIONAL","ACADEMIC INSTITUTION",3,4,6223,{"$nulls":5},true]
[null,"University of Minnesota, Extension Shoreland Education Program (UMN)","REGIONAL","ACADEMIC INSTITUTION",3,4,6224,{"$nulls":5},true]
[null,"University of Mississippi School of Law","STATE","ACADEMIC INSTITUTION",2,4,6669,{"$nulls":5},true]
[null,"University of Montana (UMT)","STATE","ACADEMIC INSTITUTION",2,4,9553,{"$nulls":5},true]
[null,"University of Nagasaki (Japan)","STATE","ACADEMIC INSTITUTION",2,4,2946,{"$nulls":5},true]
[null,"University of New Hampshire, Carsey School of Public Policy (UNH)","STATE","ACADEMIC INSTITUTION",2,4,6917,{"$nulls":5},true]
[null,"University of New Hampshire, Durham","Unknown","Unknown",0,0,14724,{"$nulls":5},true]
[null,"University of New Hampshire, Institute for the Study of Earth, Oceans and Space (UNH EOS)","STATE","ACADEMIC INSTITUTION",2,4,8041,{"$nulls":5},true]
[null,"University of New Orleans, Department of Biological Science, Estuarine Research Laboratory","STATE","NGO",2,2,17656,{"$nulls":5},true]
[null,"University of North Carolina Center for Law, Environment, Adaptation, and Resources","STATE","ACADEMIC INSTITUTION",2,4,12795,{"$nulls":5},true]
[null,"University of North Carolina School of Law","STATE","ACADEMIC INSTITUTION",2,4,12797,{"$nulls":5},true]
[null,"University of North Carolina, Greensboro (UNCG)","STATE","ACADEMIC INSTITUTION",2,4,2959,{"$nulls":5},true]
[null,"University of Notre Dame","Unknown","Unknown",0,0,14723,{"$nulls":5},true]
[null,"University of Oregon (UO)","STATE","ACADEMIC INSTITUTION",2,4,2964,{"$nulls":5},true]
[null,"University of Pennsylvania","STATE","ACADEMIC INSTITUTION",2,4,10013,{"$nulls":5},true]
[null,"University of Puerto Rico (UPR)","STATE","ACADEMIC INSTITUTION",2,4,3823,{"$nulls":5},true]
[null,"University Of Puerto Rico, Mayaguez (UPR)","STATE","ACADEMIC INSTITUTION",2,4,3650,{"$nulls":5},true]
[null,"University of Rhode Island Department of Natural Resource Science","STATE","ACADEMIC INSTITUTION",2,4,10865,{"$nulls":5},true]
[null,"University of Rhode Island, Cooperative Extension Department of Fisheries, Animal and Veterinary Sciences (URI FAVS)","STATE","ACADEMIC INSTITUTION",2,4,2973,{"$nulls":5},true]
[null,"University of Rhode Island, Dept. of Environmental & Resource Economics (URI)","STATE","ACADEMIC INSTITUTION",2,4,6801,{"$nulls":5},true]
[null,"University of Rhode Island, Office of Marine Programs","STATE","ACADEMIC INSTITUTION",2,4,7583,{"$nulls":5},true]
[null,"University of Salisbury","STATE","ACADEMIC INSTITUTION",2,4,6697,{"$nulls":5},true]
[null,"University of South Alabama (USA)","STATE","ACADEMIC INSTITUTION",2,4,2979,{"$nulls":5},true]
[null,"University of South Florida (USF)","STATE","ACADEMIC INSTITUTION",2,4,2981,{"$nulls":5},true]
[null,"University of Southern California, Center for Dark Energy Biosphere Institute (USC)","LOCAL","ACADEMIC INSTITUTION",1,4,8023,{"$nulls":5},true]
[null,"University of Southern Denmark","INTERNATIONAL","ACADEMIC INSTITUTION",5,4,4065,{"$nulls":5},true]
[null,"University of Tampa","LOCAL","GOVERNMENT",1,1,12944,{"$nulls":5},true]
[null,"University of Texas - Brownsville","STATE","ACADEMIC INSTITUTION",2,4,7571,{"$nulls":5},true]
[null,"University of Texas at Arlington (UTA)","STATE","ACADEMIC INSTITUTION",2,4,15391,{"$nulls":5},true]
[null,"University of Texas at Austin, Marine Science Institute (UT, UTMSI)","STATE","ACADEMIC INSTITUTION",2,4,6029,{"$nulls":5},true]
[null,"University of Texas, Port Aransas (UTPA)","STATE","ACADEMIC INSTITUTION",2,4,9288,{"$nulls":5},true]
[null,"University of the Netherlands","INTERNATIONAL","ACADEMIC INSTITUTION",5,4,12366,{"$nulls":5},true]
[null,"University of Toledo","STATE","ACADEMIC INSTITUTION",2,4,2997,{"$nulls":5},true]
[null,"University of Vermont Department of Plant and Soil Sciences (UVM PSS)","STATE","ACADEMIC INSTITUTION",2,4,10078,{"$nulls":5},true]
[null,"University of Virginia (UVA), Batten School of Leadership and Public Policy","STATE","ACADEMIC INSTITUTION",2,4,17433,{"$nulls":5},true]
[null,"University Of Virginia, Charlottesville (UVA)","STATE","ACADEMIC INSTITUTION",2,4,3656,{"$nulls":5},true]
[null,"University of Washington, Applied Physics Laboratory (UW)","STATE","ACADEMIC INSTITUTION",2,4,4450,{"$nulls":5},true]
[null,"University of Washington, Center for Conservation Biology, Department of Biology, College of Arts and Sciences (UW)","STATE","ACADEMIC INSTITUTION",2,4,4472,{"$nulls":5},true]
[null,"University of Washington, Department of Aeronautics and Astronautics, College of Engineering  (UW)","STATE","ACADEMIC INSTITUTION",2,4,8462,{"$nulls":5},true]
[null,"University of Washington, Department of Civil and Environmental Engineering, College of Engineering (UW)","STATE","ACADEMIC INSTITUTION",2,4,4479,{"$nulls":5},true]
[null,"University of Washington, Department of Radiology, School of Medicine (UW)","STATE","ACADEMIC INSTITUTION",2,4,8461,{"$nulls":5},true]
[null,"University of Washington, Mechanical Engineering, College of Engineering (UW)","STATE","ACADEMIC INSTITUTION",2,4,6883,{"$nulls":5},true]
[null,"University of Washington, Research and Teaching Hatchery, School of Aquatic and Fishery Sciences, College of the Environment (UW)","STATE","ACADEMIC INSTITUTION",2,4,4489,{"$nulls":5},true]
[null,"University of Washington, Rural Technology Initiative, School of Forest Resources, College of the Environment (UW)","STATE","ACADEMIC INSTITUTION",2,4,4465,{"$nulls":5},true]
[null,"University of Washington, The NatureMapping Program, School of Forest Resources, College of the Envrionment (UW)","STATE","ACADEMIC INSTITUTION",2,4,4467,{"$nulls":5},true]
[null,"University of Washington, Washington Rare Plant Care and Conservation Program, UW Botanic Gardens, School of Forest Resources, College of the Environment (UW)","STATE","ACADEMIC INSTITUTION",2,4,4497,{"$nulls":5},true]
[null,"University of Wisconsin Digital Collections","STATE","ACADEMIC INSTITUTION",2,4,7332,{"$nulls":5},true]
[null,"University of Wisconsin, Great Lakes WATER Institute (UW)","STATE","ACADEMIC INSTITUTION",2,4,3010,{"$nulls":5},true]
[null,"University of Wisconsin, Green Bay","LOCAL","ACADEMIC INSTITUTION",1,4,9621,{"$nulls":5},true]
[null,"University of Wisconsin, Madison Dept. Civil and Environmental Engineering","Unknown","Unknown",0,0,15708,{"$nulls":5},true]
[null,"University of Wisconsin, Milwaukee Great Lakes WATER Institute (UWM)","STATE","ACADEMIC INSTITUTION",2,4,3025,{"$nulls":5},true]
[null,"University of Wisconsin, Milwaukee Jason Project (UWM)","STATE","ACADEMIC INSTITUTION",2,4,3026,{"$nulls":5},true]
[null,"University of Wisconsin-Milwaukee School of Freshwater Sciences","Unknown","Unknown",0,0,15831,{"$nulls":5},true]
[null,"Universtiy of Santa Catarina, Brazil","INTERNATIONAL","ACADEMIC INSTITUTION",5,4,7668,{"$nulls":5},true]
[null,"UOG Communications Program","Unknown","Unknown",0,0,8917,{"$nulls":5},true]
[null,"Upper Township","LOCAL","GOVERNMENT",1,1,15026,{"$nulls":5},true]
[null,"Urban Farm Project","LOCAL","NGO",1,2,10713,{"$nulls":5},true]
[null,"Urban Land Institute-South Carolina","STATE","NGO",2,2,4959,{"$nulls":5},true]
[null,"Urbana Park District","LOCAL","GOVERNMENT",1,1,5920,{"$nulls":5},true]
[null,"URS Greiner Woodward Clyde","INTERNATIONAL","INDUSTRY AND BUSINESS",5,3,3036,{"$nulls":5},true]
[null,"US Army Corps of Engineers Field Research Facility, Duck, N.C. (DoD, Army, USACE)","STATE","GOVERNMENT",2,1,3887,{"$nulls":5},true]
[null,"US Bureau of Land Management","FEDERAL or NATIONAL","GOVERNMENT",4,1,17217,{"$nulls":5},true]
[null,"US Coast Guard (US DHS, USCG)","FEDERAL or NATIONAL","GOVERNMENT",4,1,3043,{"$nulls":5},true]
[null,"US Coast Guard Marine Patrols (US DHS, USCG)","FEDERAL or NATIONAL","GOVERNMENT",4,1,3048,{"$nulls":5},true]
[null,"US Coast Guard Station Port Angeles (US DHS, USCG)","FEDERAL or NATIONAL","GOVERNMENT",4,1,4763,{"$nulls":5},true]
[null,"US Department of Agriculture (USDA)","FEDERAL or NATIONAL","GOVERNMENT",4,1,3052,{"$nulls":5},true]
[null,"US Department of Housing and Urban Development (HUD)","FEDERAL or NATIONAL","GOVERNMENT",4,1,3059,{"$nulls":5},true]
[null,"US Department of Transportation (US DOT)","FEDERAL or NATIONAL","GOVERNMENT",4,1,3064,{"$nulls":5},true]
[null,"US Environmental Protection Agency (US EPA), Great Lakes National Program Office","FEDERAL or NATIONAL","GOVERNMENT",4,1,9507,{"$nulls":5},true]
[null,"US Foreign Agriculture Service (USDA, FAS)","FEDERAL or NATIONAL","GOVERNMENT",4,1,3771,{"$nulls":5},true]
[null,"US Global Change Research Program","REGIONAL","OTHER PARTNERS",3,6,16604,{"$nulls":5},true]
[null,"US House of Representatives, Office of Congressman Robert Wittman","FEDERAL or NATIONAL","GOVERNMENT",4,1,17440,{"$nulls":5},true]
[null,"US Naval Research Lab","Unknown","Unknown",0,0,15666,{"$nulls":5},true]
[null,"US Virgin Islands Sea Grant","STATE","ACADEMIC INSTITUTION",2,4,12799,{"$nulls":5},true]
[null,"USDA NIFA Regional Water Center","FEDERAL or NATIONAL","GOVERNMENT",4,1,9059,{"$nulls":5},true]
[null,"USDA, Soil Conservation District, St. Tammany and Tangipahoa Parishes, Louisiana","FEDERAL or NATIONAL","GOVERNMENT",4,1,17657,{"$nulls":5},true]
[null,"USGS Lake Ontario Biological Field Station","FEDERAL or NATIONAL","GOVERNMENT",4,1,10183,{"$nulls":5},true]
[null,"UTEC Survey Inc.","INTERNATIONAL","INDUSTRY AND BUSINESS",5,3,7688,{"$nulls":5},true]
[null,"Vadnais Lakes Area Water Management Organization","REGIONAL","NGO",3,2,8761,{"$nulls":5},true]
[null,"van Bueren Trusts","STATE","OTHER PARTNERS",2,6,5187,{"$nulls":5},true]
[null,"Various NC recreatIonal fishermen","STATE","INDUSTRY AND BUSINESS",2,3,12680,{"$nulls":5},true]
[null,"Velux Foundation","INTERNATIONAL","NGO",5,2,10824,{"$nulls":5},true]
[null,"Veritas Economic Consulting, LLC","LOCAL","INDUSTRY AND BUSINESS",1,3,5970,{"$nulls":5},true]
[null,"Vermilion Parish Police Jury","LOCAL","GOVERNMENT",1,1,17636,{"$nulls":5},true]
[null,"Vermillion Development Group","STATE","INDUSTRY AND BUSINESS",2,3,5943,{"$nulls":5},true]
[null,"Vermont Department of Environmental Conservation, Water Quality Division","STATE","GOVERNMENT",2,1,5351,{"$nulls":5},true]
[null,"Vermont League of Cities and Towns","STATE","NGO",2,2,5356,{"$nulls":5},true]
[null,"Vermont Technical College","STATE","ACADEMIC INSTITUTION",2,4,7063,{"$nulls":5},true]
[null,"Vet's Live Bait & Tackle","Unknown","INDUSTRY AND BUSINESS",0,3,9454,{"$nulls":5},true]
[null,"Victus De'Aqua","LOCAL","INDUSTRY AND BUSINESS",1,3,11501,{"$nulls":5},true]
[null,"Village of Argenta","LOCAL","GOVERNMENT",1,1,14761,{"$nulls":5},true]
[null,"Village of Freeport, NY","LOCAL","GOVERNMENT",1,1,6860,{"$nulls":5},true]
[null,"Village of Gambell","LOCAL","GOVERNMENT",1,1,10982,{"$nulls":5},true]
[null,"Village of Oscoda","LOCAL","GOVERNMENT",1,1,9217,{"$nulls":5},true]
[null,"Village of Sodus Point Neighborhood Association","LOCAL","NGO",1,2,16385,{"$nulls":5},{"$f":"AND(  NOT(ISERROR(FIND(UPPER($B$7),UPPER($B13774),1))),  OR($D$7=\"\",NOT(ISERROR(FIND(UPPER($D$7),UPPER($B13774),1)))),    OR($D$8=\"\",(ISERROR(FIND(UPPER($D$8),UPPER($B13774),1))))           )","v":true}]
[null,"Village of Whitefish Bay","Unknown","Unknown",0,0,15834,{"$nulls":5},true]
[null,"Vineland Public Schools","LOCAL","ACADEMIC INSTITUTION",1,4,7534,{"$nulls":5},true]
[null,"Virginia Association of Marine Industries","STATE","NGO",2,2,5487,{"$nulls":5},true]
[null,"Virginia Blue Crab Industry Panel","STATE","GOVERNMENT",2,1,10809,{"$nulls":5},true]
[null,"Virginia Coastal Program","STATE","GOVERNMENT",2,1,3101,{"$nulls":5},true]
[null,"Virginia Commonwealth University (VCU), Center for Environmental Studies","STATE","ACADEMIC INSTITUTION",2,4,17458,{"$nulls":5},true]
[null,"Virginia Cooperative Extension","STATE","ACADEMIC INSTITUTION",2,4,13658,{"$nulls":5},true]
[null,"Virginia Department of Game and Inland Fisheries (VA GIF)","STATE","GOVERNMENT",2,1,3106,{"$nulls":5},true]
[null,"Virginia Estuarine and Coastal Observing System (VECOS)","STATE","ACADEMIC INSTITUTION",2,4,6821,{"$nulls":5},true]
[null,"Virginia Farm Bureau","STATE","GOVERNMENT",2,1,5465,{"$nulls":5},true]
[null,"Virginia Institute of Marine Science (VIMS), Eastern Shore Laboratory","STATE","ACADEMIC INSTITUTION",2,4,17447,{"$nulls":5},true]
[null,"Virginia Israel Advisory Board","STATE","INDUSTRY AND BUSINESS",2,3,9010,{"$nulls":5},true]
[null,"Virginia Marine Trades Association","STATE","NGO",2,2,7252,{"$nulls":5},true]
[null,"Virginia Polytechnic Institute and State University (VT)","STATE","ACADEMIC INSTITUTION",2,4,3111,{"$nulls":5},true]
[null,"Virginia Sea Grant","STATE","SEA GRANT PROGRAMS",2,5,3298,{"$nulls":5},true]
[null,"Virginia Seafood Council","STATE","NGO",2,2,3113,{"$nulls":5},true]
[null,"Virginia Watermen's Association","STATE","INDUSTRY AND BUSINESS",2,3,13643,{"$nulls":5},true]
[null,"Vista Fleet - River Quest","LOCAL","INDUSTRY AND BUSINESS",1,3,6273,{"$nulls":5},true]
[null,"Volusia County Environmental Management","LOCAL","GOVERNMENT",1,1,16831,{"$nulls":5},true]
[null,"W.L. Baumler Company","STATE","INDUSTRY AND BUSINESS",2,3,13321,{"$nulls":5},true]
[null,"Wabash River Enhancement Corporation","LOCAL","GOVERNMENT",1,1,8742,{"$nulls":5},true]
[null,"Wageningen University","INTERNATIONAL","ACADEMIC INSTITUTION",5,4,15011,{"$nulls":5},true]
[null,"Waimea Hawaiian Civic Club","REGIONAL","NGO",3,2,16297,{"$nulls":5},true]
[null,"Waipa Foundation","FEDERAL or NATIONAL","NGO",4,2,3119,{"$nulls":5},true]
[null,"Walking Fish Community Supported Fishery","STATE","INDUSTRY AND BUSINESS",2,3,3975,{"$nulls":5},true]
[null,"Wallingford Imaging Systems (Industry and Business)","REGIONAL","INDUSTRY AND BUSINESS",3,3,10042,{"$nulls":5},true]
[null,"Walterboro, SC","LOCAL","GOVERNMENT",1,1,4948,{"$nulls":5},true]
[null,"Waquoit Bay National Estuarine Research Reserve, Cape Cod Commission","Unknown","Unknown",0,0,15672,{"$nulls":5},true]
[null,"Ward Oyster Company","STATE","INDUSTRY AND BUSINESS",2,3,15634,{"$nulls":5},true]
[null,"Warrenton High School","LOCAL","ACADEMIC INSTITUTION",1,4,17330,{"$nulls":5},true]
[null,"Washington and Lee University","STATE","ACADEMIC INSTITUTION",2,4,5158,{"$nulls":5},true]
[null,"Washington City Regional Planning Council","LOCAL","GOVERNMENT",1,1,3128,{"$nulls":5},true]
[null,"Washington County Council of Governments","LOCAL","GOVERNMENT",1,1,3131,{"$nulls":5},true]
[null,"Washington Department of Agriculture (WA WADA)","STATE","GOVERNMENT",2,1,3133,{"$nulls":5},true]
[null,"Washington Island, Wis.","LOCAL","GOVERNMENT",1,1,3747,{"$nulls":5},true]
[null,"Washington Science Teachers Association","STATE","NGO",2,2,4530,{"$nulls":5},true]
[null,"Washington Shell Fish, Inc.","STATE","INDUSTRY AND BUSINESS",2,3,3147,{"$nulls":5},true]
[null,"Washington State Department of Fish and Wildlife","STATE","GOVERNMENT",2,1,3137,{"$nulls":5},true]
[null,"Washington State Department of Parks and Recreation","STATE","GOVERNMENT",2,1,4796,{"$nulls":5},true]
[null,"Washington State Parks and Recreation Commission","STATE","GOVERNMENT",2,1,3141,{"$nulls":5},true]
[null,"Washington State University Extension Island County (WSU)","STATE","ACADEMIC INSTITUTION",2,4,4812,{"$nulls":5},true]
[null,"Washington State University Extension Skagit County (WSU)","STATE","ACADEMIC INSTITUTION",2,4,4817,{"$nulls":5},true]
[null,"Washington State University Extension, Jefferson County (WSU)","LOCAL","ACADEMIC INSTITUTION",1,4,4226,{"$nulls":5},true]
[null,"Washington State University Extension, Thurston County (WSU)","LOCAL","ACADEMIC INSTITUTION",1,4,4232,{"$nulls":5},true]
[null,"Washington State University Extension, Whatcom County (WSU)","LOCAL","ACADEMIC INSTITUTION",1,4,4233,{"$nulls":5},true]
[null,"Washington Township","LOCAL","GOVERNMENT",1,1,7724,{"$nulls":5},true]
[null,"Water Resource Inventory Area 8","LOCAL","GOVERNMENT",1,1,4428,{"$nulls":5},true]
[null,"Water Resources Institute (WRI)","REGIONAL","NGO",3,2,3151,{"$nulls":5},true]
[null,"Waterborne, Inc.","FEDERAL or NATIONAL","INDUSTRY AND BUSINESS",4,3,3153,{"$nulls":5},true]
[null,"Watershed Center Grand Traverse Bay","LOCAL","NGO",1,2,9508,{"$nulls":5},true]
[null,"Watershed Council","REGIONAL","Unknown",3,0,3154,{"$nulls":5},true]
[null,"Wayne County Sheriff's Department","LOCAL","GOVERNMENT",1,1,13879,{"$nulls":5},true]
[null,"Weather Predict Consulting Inc.","INTERNATIONAL","INDUSTRY AND BUSINESS",5,3,7937,{"$nulls":5},true]
[null,"Weather-Ready Nation","FEDERAL or NATIONAL","OTHER PARTNERS",4,6,15866,{"$nulls":5},true]
[null,"Wellfleet Shellfish Advisory Board","LOCAL","GOVERNMENT",1,1,11536,{"$nulls":5},true]
[null,"Wells National Estuarine Research Reserve (US DOC, NOAA, NOS, NERRS)","FEDERAL or NATIONAL","GOVERNMENT",4,1,3161,{"$nulls":5},true]
[null,"Wesleyville Borough","LOCAL","OTHER PARTNERS",1,6,3165,{"$nulls":5},true]
[null,"West Coast Center for Oceans and Human Health (US DOC, NOAA, NMFS, NWFSC)","FEDERAL or NATIONAL","GOVERNMENT",4,1,4112,{"$nulls":5},true]
[null,"West Coast Salmon Genetic Stock Identification Collaboration, Project CROOS, Collaborative Research on Oregon Ocean Salmon, OSU","STATE","ACADEMIC INSTITUTION",2,4,4499,{"$nulls":5},true]
[null,"West Florida Regional Planning Council","REGIONAL","GOVERNMENT",3,1,15446,{"$nulls":5},true]
[null,"West Michigan Shoreline Regional Development Commission (WMSRDC)","LOCAL","NGO",1,2,4804,{"$nulls":5},true]
[null,"West Virginia Department of Environmental Protection (WVDEP)","STATE","GOVERNMENT",2,1,15909,{"$nulls":5},true]
[null,"West Virginia Invasive Species Working Group (WVISWG)","STATE","GOVERNMENT",2,1,15915,{"$nulls":5},true]
[null,"West Virginia University (WVU)","STATE","ACADEMIC INSTITUTION",2,4,5149,{"$nulls":5},true]
[null,"Westerly Chamber of Commerce","LOCAL","INDUSTRY AND BUSINESS",1,3,9577,{"$nulls":5},true]
[null,"Western Association of Food and Drug Officials","REGIONAL","NGO",3,2,4915,{"$nulls":5},{"$f":"AND(  NOT(ISERROR(FIND(UPPER($B$7),UPPER($B14222),1))),  OR($D$7=\"\",NOT(ISERROR(FIND(UPPER($D$7),UPPER($B14222),1)))),    OR($D$8=\"\",(ISERROR(FIND(UPPER($D$8),UPPER($B14222),1))))           )","v":true}]
[null,"Western Lake Erie Basin Conservation Effects Assessment Project (CEAP)","REGIONAL","NGO",3,2,17036,{"$nulls":5},true]
[null,"Western Michigan University (WMU)","STATE","ACADEMIC INSTITUTION",2,4,3181,{"$nulls":5},true]
[null,"Western Pacific Tropical Research Center (WPTRC)","LOCAL","ACADEMIC INSTITUTION",1,4,6767,{"$nulls":5},true]
[null,"Western States Petroleum Association","REGIONAL","INDUSTRY AND BUSINESS",3,3,7961,{"$nulls":5},true]
[null,"Western Washington University, Huxley College of the Environment (WWU)","STATE","ACADEMIC INSTITUTION",2,4,4503,{"$nulls":5},true]
[null,"Westmaster College","Unknown","Unknown",0,0,3675,{"$nulls":5},true]
[null,"WestRock","INTERNATIONAL","INDUSTRY AND BUSINESS",5,3,15264,{"$nulls":5},true]
[null,"Wetlands Foundation of West Michigan","STATE","NGO",2,2,3194,{"$nulls":5},true]
[null,"Whale Fest Kodiak","LOCAL","NGO",1,2,14042,{"$nulls":5},true]
[null,"Whatcom County Health Department","LOCAL","GOVERNMENT",1,1,4300,{"$nulls":5},true]
[null,"Whatcom ECO Network","LOCAL","OTHER PARTNERS",1,6,8474,{"$nulls":5},true]
[null,"White Cap Seafoods","INTERNATIONAL","INDUSTRY AND BUSINESS",5,3,8213,{"$nulls":5},true]
[null,"White River Township","LOCAL","GOVERNMENT",1,1,6003,{"$nulls":5},true]
[null,"Whiteland Police Department","LOCAL","GOVERNMENT",1,1,16166,{"$nulls":5},true]
[null,"WHRO","STATE","INDUSTRY AND BUSINESS",2,3,15636,{"$nulls":5},true]
[null,"Wild Ocean Aquaculture LLC","LOCAL","INDUSTRY AND BUSINESS",1,3,9545,{"$nulls":5},true]
[null,"WildCoast","FEDERAL or NATIONAL","NGO",4,2,3497,{"$nulls":5},true]
[null,"Wildlife Habitat Council","INTERNATIONAL","NGO",5,2,3208,{"$nulls":5},true]
[null,"Wiley Elementary School","LOCAL","ACADEMIC INSTITUTION",1,4,8602,{"$nulls":5},true]
[null,"Willapa Gillnetters Association","LOCAL","INDUSTRY AND BUSINESS",1,3,3212,{"$nulls":5},true]
[null,"William McDonough & Partners","Unknown","Unknown",0,0,8900,{"$nulls":5},true]
[null,"Williams College, Mystic Seaport Maritime Studies Program","STATE","ACADEMIC INSTITUTION",2,4,6922,{"$nulls":5},true]
[null,"Willy Street Co-op","LOCAL","INDUSTRY AND BUSINESS",1,3,9626,{"$nulls":5},true]
[null,"Windemere Real Estate","REGIONAL","INDUSTRY AND BUSINESS",3,3,3216,{"$nulls":5},true]
[null,"Windsor School","LOCAL","ACADEMIC INSTITUTION",1,4,6453,{"$nulls":5},true]
[null,"Winooski Natural Resources Conservation District","LOCAL","GOVERNMENT",1,1,5363,{"$nulls":5},true]
[null,"Winsor Foods","INTERNATIONAL","INDUSTRY AND BUSINESS",5,3,8192,{"$nulls":5},true]
[null,"Wisconsin Coastal Management Program","STATE","GOVERNMENT",2,1,15308,{"$nulls":5},true]
[null,"Wisconsin Commercial Ports Association","STATE","NGO",2,2,3224,{"$nulls":5},{"$f":"AND(  NOT(ISERROR(FIND(UPPER($B$7),UPPER($B14414),1))),  OR($D$7=\"\",NOT(ISERROR(FIND(UPPER($D$7),UPPER($B14414),1)))),    OR($D$8=\"\",(ISERROR(FIND(UPPER($D$8),UPPER($B14414),1))))           )","v":true}]
[null,"Wisconsin Department of Tourism","STATE","GOVERNMENT",2,1,3752,{"$nulls":5},true]
[null,"Wisconsin Lake Superior Basin Team","STATE","NGO",2,2,3232,{"$nulls":5},true]
[null,"Wisconsin Libraries Delivery Network","STATE","GOVERNMENT",2,1,3233,{"$nulls":5},true]
[null,"Wisconsin Sea Grant","Unknown","Unknown",0,0,9868,{"$nulls":5},true]
[null,"Wise Preservation Planning LLC","LOCAL","INDUSTRY AND BUSINESS",1,3,14627,{"$nulls":5},true]
[null,"Wishtoyo Foundation","Unknown","NGO",0,2,17290,{"$nulls":5},true]
[null,"Wolf Ridge Environmental Learning Center","REGIONAL","ACADEMIC INSTITUTION",3,4,8758,{"$nulls":5},true]
[null,"Woodland Hills Academy","LOCAL","ACADEMIC INSTITUTION",1,4,6226,{"$nulls":5},true]
[null,"Woodrow Wilson High School","LOCAL","ACADEMIC INSTITUTION",1,4,9046,{"$nulls":5},true]
[null,"Woods Hole Oceanographic Institution's Coastal Systems Group","FEDERAL or NATIONAL","ACADEMIC INSTITUTION",4,4,14092,{"$nulls":5},true]
[null,"Worcester Polytechnic Institute (WPI)","REGIONAL","ACADEMIC INSTITUTION",3,4,7981,{"$nulls":5},true]
[null,"World Airports","LOCAL","GOVERNMENT",1,1,10733,{"$nulls":5},true]
[null,"World Fish Center","INTERNATIONAL","NGO",5,2,3250,{"$nulls":5},true]
[null,"World Wildlife Fund International","INTERNATIONAL","NGO",5,2,10820,{"$nulls":5},true]
[null,"Wreck Pond Brook Watershed Regional Stormwater Management Plan Committee","LOCAL","GOVERNMENT",1,1,9067,{"$nulls":5},true]
[null,"WSRS-TV","LOCAL","INDUSTRY AND BUSINESS",1,3,13923,{"$nulls":5},true]
[null,"Wyndham SeaWatch Plantation","LOCAL","INDUSTRY AND BUSINESS",1,3,13343,{"$nulls":5},true]
[null,"Yakima Nation","Tribal","GOVERNMENT",13,1,8477,{"$nulls":5},true]
[null,"Yankee Fisherman’s Cooperative","REGIONAL","INDUSTRY AND BUSINESS",3,3,3260,{"$nulls":5},true]
[null,"Yellowstone National Park","STATE","GOVERNMENT",2,1,9102,{"$nulls":5},true]
[null,"York County Public Schools","LOCAL","GOVERNMENT",1,1,17480,{"$nulls":5},true]
[null,"Young Womens Christian Association","Unknown","NGO",0,2,6965,{"$nulls":5},true]
[null,"Youth Diving With a Purpose Association","LOCAL","NGO",1,2,12999,{"$nulls":5},true]
[null,"Z Smith Reynolds Foundation","STATE","NGO",2,2,5009,{"$nulls":5},true]
[null,"Zeigler Brothers Inc","LOCAL","INDUSTRY AND BUSINESS",1,3,3680,{"$nulls":5},true]
[{"$nulls":12},true]
[{"$nulls":12},true]
[{"$nulls":12},true]
[{"$nulls":12},true]
[{"$nulls":12},true]
[{"$nulls":12},true]
[{"$nulls":12},true]
[{"$nulls":12},true]
[{"$nulls":12},true]
[{"$nulls":12},true]
[{"$nulls":12},true]
[{"$nulls":12},true]
[{"$nulls":12},true]
[{"$nulls":12},true]
[{"$nulls":12},true]
[{"$nulls":12},true]
[{"$nulls":12},true]
[{"$nulls":12},true]
[{"$nulls":12},true]
[{"$nulls":12},true]
[{"$nulls":12},true]
[{"$nulls":12},true]
[{"$nulls":12},true]
[{"$nulls":12},true]
[{"$nulls":12},true]
[{"$nulls":12},true]
[{"$nulls":12},true]
[{"$nulls":12},true]
[{"$nulls":12},true]
[{"$nulls":12},true]
[{"$nulls":12},true]
[{"$nulls":12},true]
[{"$nulls":12},true]
[{"$nulls":12},true]
[{"$nulls":12},true]
[{"$nulls":12},true]
[{"$nulls":12},true]
[{"$nulls":12},true]
[{"$nulls":12},true]
[{"$nulls":12},true]
[{"$nulls":12},true]
[{"$nulls":12},true]
[{"$nulls":12},true]
[{"$nulls":12},true]
[{"$nulls":12},true]
[{"$nulls":12},true]
[{"$nulls":12},true]
[{"$nulls":12},true]
[{"$nulls":12},true]
[{"$nulls":12},true]
[{"$nulls":12},true]
[{"$nulls":12},true]
[{"$nulls":12},true]
[{"$nulls":12},true]
[{"$nulls":12},true]
[{"$nulls":12},true]
[{"$nulls":12},true]
[{"$nulls":12},true]
[{"$nulls":12},true]
[{"$nulls":12},true]
[{"$nulls":12},true]
[{"$nulls":12},true]
[{"$nulls":12},true]
[{"$nulls":12},true]
[{"$nulls":12},true]
[{"$nulls":12},true]
[{"$nulls":12},true]
[{"$nulls":12},true]
[{"$nulls":12},true]
[{"$nulls":12},true]
[{"$nulls":12},true]
[{"$nulls":12},true]
[{"$nulls":12},true]
[{"$nulls":12},true]
[{"$nulls":12},true]
[{"$nulls":12},true]
[{"$nulls":12},true]
[{"$nulls":12},true]
[{"$nulls":12},true]
[{"$nulls":12},true]
[{"$nulls":12},true]
[{"$nulls":12},true]
[{"$nulls":12},true]
[{"$nulls":12},true]
[{"$nulls":12},true]
[{"$nulls":12},true]
[{"$nulls":12},true]
[{"$nulls":12},{"$f":"AND(  NOT(ISERROR(FIND(UPPER($B$7),UPPER($B15182),1))),  OR($D$7=\"\",NOT(ISERROR(FIND(UPPER($D$7),UPPER($B15182),1)))),    OR($D$8=\"\",(ISERROR(FIND(UPPER($D$8),UPPER($B15182),1))))           )","v":true}]
[{"$nulls":12},true]
[{"$nulls":12},true]
[{"$nulls":12},true]
[{"$nulls":12},true]
[{"$nulls":12},true]
[{"$nulls":12},true]
[{"$nulls":12},true]
[{"$nulls":12},true]
[{"$nulls":12},true]
[{"$nulls":12},true]
[{"$nulls":12},true]
[{"$nulls":12},true]
[{"$nulls":12},true]
[{"$nulls":12},true]
[{"$nulls":12},true]
[{"$nulls":12},true]
[{"$nulls":12},true]
[{"$nulls":12},true]
[{"$nulls":12},true]
[{"$nulls":12},true]
[{"$nulls":12},true]
[{"$nulls":12},true]
[{"$nulls":12},true]
[{"$nulls":12},true]
[{"$nulls":12},true]
[{"$nulls":12},true]
[{"$nulls":12},true]
[{"$nulls":12},true]
[{"$nulls":12},true]
[{"$nulls":12},true]
[{"$nulls":12},true]
[{"$nulls":12},true]
[{"$nulls":12},true]
[{"$nulls":12},true]
[{"$nulls":12},true]
[{"$nulls":12},true]
[{"$nulls":12},true]
[{"$nulls":12},{"$f":"AND(  NOT(ISERROR(FIND(UPPER($B$7),UPPER($B15438),1))),  OR($D$7=\"\",NOT(ISERROR(FIND(UPPER($D$7),UPPER($B15438),1)))),    OR($D$8=\"\",(ISERROR(FIND(UPPER($D$8),UPPER($B15438),1))))           )","v":true}]
[{"$nulls":12},true]
[{"$nulls":12},true]
[{"$nulls":12},true]
[{"$nulls":12},true]
[{"$nulls":12},true]
[{"$nulls":12},true]
[{"$nulls":12},true]
[{"$nulls":12},true]
[{"$nulls":12},true]
[{"$nulls":12},true]
[{"$nulls":12},{"$f":"AND(  NOT(ISERROR(FIND(UPPER($B$7),UPPER($B15502),1))),  OR($D$7=\"\",NOT(ISERROR(FIND(UPPER($D$7),UPPER($B15502),1)))),    OR($D$8=\"\",(ISERROR(FIND(UPPER($D$8),UPPER($B15502),1))))           )","v":true}]
[{"$nulls":12},true]
[{"$nulls":12},true]
[{"$nulls":12},true]
[{"$nulls":12},true]
[{"$nulls":12},true]
[{"$nulls":12},true]
[{"$nulls":12},true]
[{"$nulls":12},true]
[{"$nulls":12},true]
[{"$nulls":12},true]
[{"$nulls":12},true]
[{"$nulls":12},true]
[{"$nulls":12},true]
[{"$nulls":12},true]
[{"$nulls":12},true]
[{"$nulls":12},true]
[{"$nulls":12},true]
[{"$nulls":12},true]
[{"$nulls":12},true]
[{"$nulls":12},true]
[{"$nulls":12},true]
[{"$nulls":12},true]
[{"$nulls":12},true]
[{"$nulls":12},true]
[{"$nulls":12},true]
[{"$nulls":12},true]
[{"$nulls":12},true]
[{"$nulls":12},true]
[{"$nulls":12},true]
[{"$nulls":12},true]
[{"$nulls":12},true]
[{"$nulls":12},true]
[{"$nulls":12},true]
[{"$nulls":12},true]
[{"$nulls":12},true]
[{"$nulls":12},true]
[{"$nulls":12},true]
[{"$nulls":12},true]
[{"$nulls":12},true]
[{"$nulls":12},true]
[{"$nulls":12},true]
[{"$nulls":12},true]
[{"$nulls":12},true]
[{"$nulls":12},true]
[{"$nulls":12},true]
[{"$nulls":12},true]
[{"$nulls":12},true]
[{"$nulls":12},true]
[{"$nulls":12},true]
[{"$nulls":12},true]
[{"$nulls":12},true]
[{"$nulls":12},true]
[{"$nulls":12},true]
[{"$nulls":12},true]
[{"$nulls":12},true]
[{"$nulls":12},true]
[{"$nulls":12},true]
[{"$nulls":12},true]
[{"$nulls":12},true]
[{"$nulls":12},true]
[{"$nulls":12},true]
[{"$nulls":12},true]
[{"$nulls":12},true]
[{"$nulls":12},{"$f":"AND(  NOT(ISERROR(FIND(UPPER($B$7),UPPER($B15566),1))),  OR($D$7=\"\",NOT(ISERROR(FIND(UPPER($D$7),UPPER($B15566),1)))),    OR($D$8=\"\",(ISERROR(FIND(UPPER($D$8),UPPER($B15566),1))))           )","v":true}]
[{"$nulls":12},true]
[{"$nulls":12},true]
[{"$nulls":12},true]
[{"$nulls":12},true]
[{"$nulls":12},true]
[{"$nulls":12},true]
[{"$nulls":12},true]
[{"$nulls":12},true]
[{"$nulls":12},true]
[{"$nulls":12},true]
[{"$nulls":12},true]
[{"$nulls":12},true]
[{"$nulls":12},true]
[{"$nulls":12},true]
[{"$nulls":12},true]
[{"$nulls":12},true]
[{"$nulls":12},true]
[{"$nulls":12},true]
[{"$nulls":12},true]
[{"$nulls":12},true]
[{"$nulls":12},true]
[{"$nulls":12},true]
[{"$nulls":12},true]
[{"$nulls":12},true]
[{"$nulls":12},true]
[{"$nulls":12},true]
[{"$nulls":12},true]
[{"$nulls":12},true]
[{"$nulls":12},true]
[{"$nulls":12},true]
[{"$nulls":12},true]
[{"$nulls":12},true]
[{"$nulls":12},true]
[{"$nulls":12},true]
[{"$nulls":12},true]
[{"$nulls":12},true]
[{"$nulls":12},true]
[{"$nulls":12},true]
[{"$nulls":12},true]
[{"$nulls":12},true]
[{"$nulls":12},true]
[{"$nulls":12},true]
[{"$nulls":12},true]
[{"$nulls":12},true]
[{"$nulls":12},true]
[{"$nulls":12},true]
[{"$nulls":12},true]
[{"$nulls":12},true]
[{"$nulls":12},true]
[{"$nulls":12},true]
[{"$nulls":12},true]
[{"$nulls":12},true]
[{"$nulls":12},true]
[{"$nulls":12},true]
[{"$nulls":12},true]
[{"$nulls":12},true]
[{"$nulls":12},true]
[{"$nulls":12},true]
[{"$nulls":12},true]
[{"$nulls":12},true]
[{"$nulls":12},true]
[{"$nulls":12},true]
[{"$nulls":12},true]
[{"$nulls":12},{"$f":"AND(  NOT(ISERROR(FIND(UPPER($B$7),UPPER($B15630),1))),  OR($D$7=\"\",NOT(ISERROR(FIND(UPPER($D$7),UPPER($B15630),1)))),    OR($D$8=\"\",(ISERROR(FIND(UPPER($D$8),UPPER($B15630),1))))           )","v":true}]
[{"$nulls":12},true]
[{"$nulls":12},true]
[{"$nulls":12},true]
[{"$nulls":12},true]
[{"$nulls":12},true]
[{"$nulls":12},true]
[{"$nulls":12},true]
[{"$nulls":12},true]
[{"$nulls":12},true]
[{"$nulls":12},true]
[{"$nulls":12},true]
[{"$nulls":12},true]
[{"$nulls":12},true]
[{"$nulls":12},true]
[{"$nulls":12},true]
[{"$nulls":12},true]
[{"$nulls":12},true]
[{"$nulls":12},true]
[{"$nulls":12},true]
[{"$nulls":12},true]
[{"$nulls":12},true]
[{"$nulls":12},true]
[{"$nulls":12},true]
[{"$nulls":12},true]
[{"$nulls":12},true]
[{"$nulls":12},true]
[{"$nulls":12},true]
[{"$nulls":12},true]
[{"$nulls":12},true]
[{"$nulls":12},true]
[{"$nulls":12},true]
[{"$nulls":12},true]
[{"$nulls":12},true]
[{"$nulls":12},true]
[{"$nulls":12},true]
[{"$nulls":12},true]
[{"$nulls":12},true]
[{"$nulls":12},true]
[{"$nulls":12},true]
[{"$nulls":12},true]
[{"$nulls":12},true]
[{"$nulls":12},true]
[{"$nulls":12},true]
[{"$nulls":12},true]
[{"$nulls":12},true]
[{"$nulls":12},true]
[{"$nulls":12},true]
[{"$nulls":12},true]
[{"$nulls":12},true]
[{"$nulls":12},true]
[{"$nulls":12},true]
[{"$nulls":12},true]
[{"$nulls":12},true]
[{"$nulls":12},true]
[{"$nulls":12},true]
[{"$nulls":12},true]
[{"$nulls":12},true]
[{"$nulls":12},true]
[{"$nulls":12},true]
[{"$nulls":12},true]
[{"$nulls":12},true]
[{"$nulls":12},true]
[{"$nulls":12},true]
[{"$nulls":12},{"$f":"AND(  NOT(ISERROR(FIND(UPPER($B$7),UPPER($B15694),1))),  OR($D$7=\"\",NOT(ISERROR(FIND(UPPER($D$7),UPPER($B15694),1)))),    OR($D$8=\"\",(ISERROR(FIND(UPPER($D$8),UPPER($B15694),1))))           )","v":true}]
[{"$nulls":12},true]
[{"$nulls":12},true]
[{"$nulls":12},true]
[{"$nulls":12},true]
[{"$nulls":12},true]
[{"$nulls":12},true]
[{"$nulls":12},true]
[{"$nulls":12},true]
[{"$nulls":12},true]
[{"$nulls":12},true]
[{"$nulls":12},true]
[{"$nulls":12},true]
[{"$nulls":12},true]
[{"$nulls":12},true]
[{"$nulls":12},true]
[{"$nulls":12},true]
[{"$nulls":12},true]
[{"$nulls":12},true]
[{"$nulls":12},true]
[{"$nulls":12},true]
[{"$nulls":12},true]
[{"$nulls":12},true]
[{"$nulls":12},true]
[{"$nulls":12},true]
[{"$nulls":12},true]
[{"$nulls":12},true]
[{"$nulls":12},true]
[{"$nulls":12},true]
[{"$nulls":12},true]
[{"$nulls":12},true]
[{"$nulls":12},true]
[{"$nulls":12},true]
[{"$nulls":12},true]
[{"$nulls":12},true]
[{"$nulls":12},true]
[{"$nulls":12},true]
[{"$nulls":12},true]
[{"$nulls":12},true]
[{"$nulls":12},true]
[{"$nulls":12},true]
[{"$nulls":12},true]
[{"$nulls":12},true]
[{"$nulls":12},true]
[{"$nulls":12},true]
[{"$nulls":12},true]
[{"$nulls":12},true]
[{"$nulls":12},true]
[{"$nulls":12},true]
[{"$nulls":12},true]
[{"$nulls":12},true]
[{"$nulls":12},true]
[{"$nulls":12},true]
[{"$nulls":12},true]
[{"$nulls":12},true]
[{"$nulls":12},true]
[{"$nulls":12},true]
[{"$nulls":12},true]
[{"$nulls":12},true]
[{"$nulls":12},true]
[{"$nulls":12},true]
[{"$nulls":12},true]
[{"$nulls":12},true]
[{"$nulls":12},true]
[{"$nulls":12},{"$f":"AND(  NOT(ISERROR(FIND(UPPER($B$7),UPPER($B15758),1))),  OR($D$7=\"\",NOT(ISERROR(FIND(UPPER($D$7),UPPER($B15758),1)))),    OR($D$8=\"\",(ISERROR(FIND(UPPER($D$8),UPPER($B15758),1))))           )","v":true}]
[{"$nulls":12},true]
[{"$nulls":12},true]
[{"$nulls":12},true]
[{"$nulls":12},true]
[{"$nulls":12},true]
[{"$nulls":12},true]
[{"$nulls":12},true]
[{"$nulls":12},true]
[{"$nulls":12},true]
[{"$nulls":12},true]
[{"$nulls":12},true]
[{"$nulls":12},true]
[{"$nulls":12},true]
[{"$nulls":12},true]
[{"$nulls":12},true]
[{"$nulls":12},true]
[{"$nulls":12},true]
[{"$nulls":12},true]
[{"$nulls":12},true]
[{"$nulls":12},true]
[{"$nulls":12},true]
[{"$nulls":12},true]
[{"$nulls":12},true]
[{"$nulls":12},true]
[{"$nulls":12},true]
[{"$nulls":12},true]
[{"$nulls":12},true]
[{"$nulls":12},true]
[{"$nulls":12},true]
[{"$nulls":12},true]
[{"$nulls":12},true]
[{"$nulls":12},true]
[{"$nulls":12},true]
[{"$nulls":12},true]
[{"$nulls":12},true]
[{"$nulls":12},true]
[{"$nulls":12},true]
[{"$nulls":12},true]
[{"$nulls":12},true]
[{"$nulls":12},true]
[{"$nulls":12},true]
[{"$nulls":12},true]
[{"$nulls":12},true]
[{"$nulls":12},true]
[{"$nulls":12},true]
[{"$nulls":12},true]
[{"$nulls":12},true]
[{"$nulls":12},true]
[{"$nulls":12},true]
[{"$nulls":12},true]
[{"$nulls":12},true]
[{"$nulls":12},true]
[{"$nulls":12},true]
[{"$nulls":12},true]
[{"$nulls":12},true]
[{"$nulls":12},true]
[{"$nulls":12},true]
[{"$nulls":12},true]
[{"$nulls":12},true]
[{"$nulls":12},true]
[{"$nulls":12},true]
[{"$nulls":12},true]
[{"$nulls":12},true]
[{"$nulls":12},{"$f":"AND(  NOT(ISERROR(FIND(UPPER($B$7),UPPER($B15822),1))),  OR($D$7=\"\",NOT(ISERROR(FIND(UPPER($D$7),UPPER($B15822),1)))),    OR($D$8=\"\",(ISERROR(FIND(UPPER($D$8),UPPER($B15822),1))))           )","v":true}]
[{"$nulls":12},true]
[{"$nulls":12},true]
[{"$nulls":12},true]
[{"$nulls":12},true]
[{"$nulls":12},true]
[{"$nulls":12},true]
[{"$nulls":12},true]
[{"$nulls":12},true]
[{"$nulls":12},true]
[{"$nulls":12},true]
[{"$nulls":12},true]
[{"$nulls":12},true]
[{"$nulls":12},true]
[{"$nulls":12},true]
[{"$nulls":12},true]
[{"$nulls":12},true]
[{"$nulls":12},true]
[{"$nulls":12},true]
[{"$nulls":12},true]
[{"$nulls":12},true]
[{"$nulls":12},true]
[{"$nulls":12},true]
[{"$nulls":12},true]
[{"$nulls":12},true]
[{"$nulls":12},true]
[{"$nulls":12},true]
[{"$nulls":12},true]
[{"$nulls":12},true]
[{"$nulls":12},true]
[{"$nulls":12},true]
[{"$nulls":12},true]
[{"$nulls":12},true]
[{"$nulls":12},true]
[{"$nulls":12},true]
[{"$nulls":12},true]
[{"$nulls":12},true]
[{"$nulls":12},true]
[{"$nulls":12},true]
[{"$nulls":12},true]
[{"$nulls":12},true]
[{"$nulls":12},true]
[{"$nulls":12},true]
[{"$nulls":12},true]
[{"$nulls":12},true]
[{"$nulls":12},true]
[{"$nulls":12},true]
[{"$nulls":12},true]
[{"$nulls":12},true]
[{"$nulls":12},true]
[{"$nulls":12},true]
[{"$nulls":12},true]
[{"$nulls":12},true]
[{"$nulls":12},true]
[{"$nulls":12},true]
[{"$nulls":12},true]
[{"$nulls":12},true]
[{"$nulls":12},true]
[{"$nulls":12},true]
[{"$nulls":12},true]
[{"$nulls":12},true]
[{"$nulls":12},true]
[{"$nulls":12},true]
[{"$nulls":12},true]
[{"$nulls":12},{"$f":"AND(  NOT(ISERROR(FIND(UPPER($B$7),UPPER($B15886),1))),  OR($D$7=\"\",NOT(ISERROR(FIND(UPPER($D$7),UPPER($B15886),1)))),    OR($D$8=\"\",(ISERROR(FIND(UPPER($D$8),UPPER($B15886),1))))           )","v":true}]
[{"$nulls":12},true]
[{"$nulls":12},true]
[{"$nulls":12},true]
[{"$nulls":12},true]
[{"$nulls":12},true]
[{"$nulls":12},true]
[{"$nulls":12},true]
[{"$nulls":12},true]
[{"$nulls":12},true]
[{"$nulls":12},true]
[{"$nulls":12},true]
[{"$nulls":12},true]
[{"$nulls":12},true]
[{"$nulls":12},true]
[{"$nulls":12},true]
[{"$nulls":12},true]
[{"$nulls":12},true]
[{"$nulls":12},true]
[{"$nulls":12},true]
[{"$nulls":12},true]
[{"$nulls":12},true]
[{"$nulls":12},true]
[{"$nulls":12},true]
[{"$nulls":12},true]
[{"$nulls":12},true]
[{"$nulls":12},true]
[{"$nulls":12},true]
[{"$nulls":12},true]
[{"$nulls":12},true]
[{"$nulls":12},true]
[{"$nulls":12},true]
[{"$nulls":12},true]
[{"$nulls":12},true]
[{"$nulls":12},true]
[{"$nulls":12},true]
[{"$nulls":12},true]
[{"$nulls":12},true]
[{"$nulls":12},true]
[{"$nulls":12},true]
[{"$nulls":12},true]
[{"$nulls":12},true]
[{"$nulls":12},true]
[{"$nulls":12},true]
[{"$nulls":12},true]
[{"$nulls":12},true]
[{"$nulls":12},true]
[{"$nulls":12},true]
[{"$nulls":12},true]
[{"$nulls":12},true]
[{"$nulls":12},true]
[{"$nulls":12},true]
[{"$nulls":12},true]
[{"$nulls":12},true]
[{"$nulls":12},true]
[{"$nulls":12},true]
[{"$nulls":12},true]
[{"$nulls":12},true]
[{"$nulls":12},true]
[{"$nulls":12},true]
[{"$nulls":12},true]
[{"$nulls":12},true]
[{"$nulls":12},true]
[{"$nulls":12},true]
[{"$nulls":12},{"$f":"AND(  NOT(ISERROR(FIND(UPPER($B$7),UPPER($B15950),1))),  OR($D$7=\"\",NOT(ISERROR(FIND(UPPER($D$7),UPPER($B15950),1)))),    OR($D$8=\"\",(ISERROR(FIND(UPPER($D$8),UPPER($B15950),1))))           )","v":true}]
[{"$nulls":12},true]
[{"$nulls":12},true]
[{"$nulls":12},true]
[{"$nulls":12},true]
[{"$nulls":12},true]
[{"$nulls":12},true]
[{"$nulls":12},true]
[{"$nulls":12},true]
[{"$nulls":12},true]
[{"$nulls":12},true]
[{"$nulls":12},true]
[{"$nulls":12},true]
[{"$nulls":12},true]
[{"$nulls":12},true]
[{"$nulls":12},true]
[{"$nulls":12},true]
[{"$nulls":12},true]
[{"$nulls":12},true]
[{"$nulls":12},true]
[{"$nulls":12},true]
[{"$nulls":12},true]
[{"$nulls":12},true]
[{"$nulls":12},true]
[{"$nulls":12},true]
[{"$nulls":12},true]
[{"$nulls":12},true]
[{"$nulls":12},true]
[{"$nulls":12},true]
[{"$nulls":12},true]
[{"$nulls":12},true]
[{"$nulls":12},true]
[{"$nulls":12},true]
[{"$nulls":12},true]
[{"$nulls":12},true]
[{"$nulls":12},true]
[{"$nulls":12},true]
[{"$nulls":12},true]
[{"$nulls":12},true]
[{"$nulls":12},true]
[{"$nulls":12},true]
[{"$nulls":12},true]
[{"$nulls":12},true]
[{"$nulls":12},true]
[{"$nulls":12},true]
[{"$nulls":12},true]
[{"$nulls":12},true]
[{"$nulls":12},true]
[{"$nulls":12},true]
[{"$nulls":12},true]
[{"$nulls":12},true]

{"sheet":"90-2formulas","index":7,"n_rows":40,"n_cols":23,"rows_kept":40}
["Generated from row:",2,"OMB no. ","0648-0362",{"$nulls":9},"S1","(default worksheet name)"]
[null,null,"Don't use after","2013-12-31",{"$nulls":9},{"$f":"VALUE(MID(N1,2,99))+1","v":2},"default data row = (above numerical) plus one"]
[null,"(from ProjectRecord Data)",{"$nulls":12},"(temp workspace for a current cell value)"]
[null,"SEA GRANT PROJECT SUMMARY FORM 90-2",null,null,"National Office does not track these fields:",null,"NSGO use only",{"$nulls":7},"(temp workspace for a new selected value)"]
[{"$nulls":13},{"$f":"IF(N3=\"\",IF(N4=\"\",\"\",N4),IF(N4=\"\",N3,N3&\"; \"&N4))","v":""},"(function to concatenate the above two cells)"]
["INSTITUTION (Program): ",{"$f":"INDIRECT(\"'ProjDataInput'!a\"&TEXT($N$2,\"###\"))","v":0},null,"ICODE: ",{"$nulls":15},"INSTITUTION (Program): ","DE",null,"ICODE: "]
["TITLE: ",{"$f":"MID(INDIRECT(\"'ProjDataInput'!C\"&TEXT($N$2,\"###\")),1,999)","v":""},null,"REV. DATE:",{"$nulls":9},"","(Program listed on first 90-2)",{"$nulls":4},"TITLE: ","Sea Grant Extension Program",null,"REV. DATE:"]
[{"$nulls":3},"INIT. DATE:",{"$nulls":18},"INIT. DATE:"]
[null," PROJECT NUMBER",null,"COMPL. DATE:",{"$nulls":15},"PREFIX (A,C,E,M,P or R): "," PROJECT NUMBER",null,"COMPL. DATE:"]
[{"$f":"LEFT(INDIRECT(\"'ProjDataInput'!b\"&TEXT($N$2,\"###\")),2)","v":""},{"$f":"MID(INDIRECT(\"'ProjDataInput'!b\"&TEXT($N$2,\"###\")),3,999)","v":""},null,"PROJECT STATUS: ",{"$nulls":16},"A/X-10",null,"PROJECT STATUS: "]
[{"$nulls":3},"SUBPRROGRAM: ",{"$nulls":18},"SUBPRROGRAM: "]
[]
["PI: ",{"$f":"MID(INDIRECT(\"'ProjDataInput'!j\"&TEXT($N$2,\"###\")),1,999)","v":""},null,"EFFORT: ",{"$nulls":15},"PI: ","Kenneth La Valley",null,"EFFORT: "]
["AFFILIATION: ",{"$f":"MID(INDIRECT(\"'ProjDataInput'!k\"&TEXT($N$2,\"###\")),1,999)","v":""},null,"AFFIL. CODE: ",null,null,"Worksheet",{"$nulls":12},"AFFILIATION: ","University of New Hampshire, Cooperative Extension (UNH)",null,"AFFIL. CODE: "]
[{"$nulls":6},"tools:"]
["2nd PI: ",{"$f":"MID(INDIRECT(\"'ProjDataInput'!L\"&TEXT($N$2,\"###\")),1,999)","v":""},null,"EFFORT: ",{"$nulls":15},"2nd PI: ","p2",null,"EFFORT: "]
["AFFILIATION: ",{"$f":"MID(INDIRECT(\"'ProjDataInput'!m\"&TEXT($N$2,\"###\")),1,999)","v":""},null,"AFFIL. CODE: ",{"$nulls":15},"AFFILIATION: ","a2",null,"AFFIL. CODE: "]
[]
["3rd PI: ",{"$f":"MID(INDIRECT(\"'ProjDataInput'!n\"&TEXT($N$2,\"###\")),1,999)","v":""},null,"EFFORT: ",{"$nulls":15},"3rd PI: ","p3",null,"EFFORT: "]
["AFFILIATION: ",{"$f":"MID(INDIRECT(\"'ProjDataInput'!o\"&TEXT($N$2,\"###\")),1,999)","v":""},null,"AFFIL. CODE: ",{"$nulls":15},"AFFILIATION: ","a3",null,"AFFIL. CODE: "]
[]
["4th PI: ",{"$f":"MID(INDIRECT(\"'ProjDataInput'!p\"&TEXT($N$2,\"###\")),1,999)","v":""},null,"EFFORT: ",{"$nulls":15},"4th PI: ","p4",null,"EFFORT: "]
["AFFILIATION: ",{"$f":"MID(INDIRECT(\"'ProjDataInput'!q\"&TEXT($N$2,\"###\")),1,999)","v":""},null,"AFFIL. CODE: ",{"$nulls":15},"AFFILIATION: ","a4",null,"AFFIL. CODE: "]
[{"$nulls":3},"LAST YR FEDERAL: ",{"$nulls":18},"LAST YR FEDERAL: "]
["FEDERAL $ REQUEST: ",{"$f":"INDIRECT(\"'ProjDataInput'!h\"&TEXT($N$2,\"###\"))","v":0},null,"LAST YR MATCH: ",{"$nulls":15},"FEDERAL $ REQUEST: ",332631,null,"LAST YR MATCH: "]
["MATCH $: ",{"$f":"INDIRECT(\"'ProjDataInput'!i\"&TEXT($N$2,\"###\"))","v":0},null,"RELATED PROJECTS: ",{"$nulls":15},"MATCH $: ",127250,null,"RELATED PROJECTS: "]
[{"$nulls":3},"PARENT PROJECTS: ",{"$nulls":18},"PARENT PROJECTS: "]
["CLASSIFICATION CODES: ",{"$f":"MID(INDIRECT(\"'ProjDataInput'!f\"&TEXT($N$2,\"###\")),1,999)","v":""},null,"KEYWORDS: ",{"$nulls":15},"CLASSIFICATION CODES: ","151 Marine Extension Service - Core",null,"KEYWORDS: "]
[null,"(Primary Code First)",null,"MULTIPROGRAM? ",{"$nulls":16},"(Primary Code First)",null,"MULTIPROGRAM? "]
["FOCUS AREAS: ",{"$f":"MID(INDIRECT(\"'ProjDataInput'!d\"&TEXT($N$2,\"###\")),1,999)","v":""},null,"OTHER INFORMATION: ",{"$nulls":15},"FOCUS AREAS: ","0954 Sustainable Fisheries and Aquaculture; 0951 Healthy Coastal Ecosystems",null,"OTHER INFORMATION: "]
[null,"(Primary Focus Area First)",{"$nulls":18},"(Primary Focus Area First)"]
["PARTNERS: ",{"$f":"MID(INDIRECT(\"'ProjDataInput'!e\"&TEXT($N$2,\"###\")),1,999)","v":""},{"$nulls":17},"PARTNERS: ","Alaska Sea Grant; American Fisheries Society (AFS); Aquaculture Industry; Atlantic States Marine Fisheries Commission (ASMFC); Blue Alaska Sea Grant; American Fisheries Society (AFS); Aquaculture Industry; Atlantic States Marine Fisheries Commission (ASMFC); Blue Ocean Society; Center for Coastal and Ocean Mapping, Joint Hydrographic Center (US DOC, NOAA, NOS, CCOM-JHC); City of Portsmouth, NH; Coastal and Estuarine Research Federation (ERF); Coastal Conservation Association; Commercial Fisheries News; Commercial Fishing Industry; Connecticut Sea Grant; Delaware Sea Grant; Eastman's Fresh Catch; Eastman’s Fishing Fleet; eXtension; Farm Service Agency (USDA); Fishermen's Voice; Granite State Fish; Granite State Whale Watch; Great Bay Aquaculture, LLCOcean Society; Center for Coastal and Ocean Mapping, Joint Hydrographic Center (US DOC, NOAA, NOS, CCOM-JHC); City of Portsmouth, NH; Coastal and Estuarine Research Federation (ERF); Coastal Conservation Association; Commercial Fisheries News; Commercial Fishing Industry; Connecticut Sea Grant; Delaware Sea Grant; Eastman's Fresh Catch; Eastman’s Fishing Fleet; eXtension; Farm Service Agency (USDA); Fishermen's Voice; Granite State Fish; Granite State Whale Watch; Great Bay Aquaculture, LLC"]
[]
["OBJECTIVES: ",{"$f":"MID(INDIRECT(\"'ProjDataInput'!g\"&TEXT($N$2,\"###\")),1,19999)","v":""},{"$nulls":17},"OBJECTIVES: ","Objectives: Innovative collaborations between the fishing industry and research communities have continued since 1999. Two cooperative research funding organizations, the Northeast Consortium (NEC) and the Cooperative Research Partnership Program (CRPP), have supported these collaborations. The Northeast Consortium received limited funds from NOAA/NMFS and was able to offer a 2010 RFP ($1.2 million). The NMFS CRPP program initiated a collaborative approach to funding fisheries research in the Northeast. A broad agency announcement, or BAA, was released for regional partnerships to submit multi-year projects targeting conservation engineering and fisheries science. Two projects in particular were funded, GEARNET and REDNET. Both included the N.H. Sea Grant Fisheries Program to coordinate extension and outreach. \nMethodology: As in 2009, the NOAA S-K grant program was appropriated $5 million in 2010 to support fisheries, aquaculture and fisheries social science projects in the Northeast. A new investment in aquaculture research and extension occurred within the National Sea Grant program, which offered $4.8 million to fund research and $2.0 million for aquaculture extension. Although funding for broad topic collaborative research projects has suffered, organizations like the above have allowed for partnerships and cooperative projects to continue, and for aquaculture research, to grow. It has continued to be critical for the fisheries extension program to identify and support the development of outreach and technology transfer mechanisms that will encourage the incorporation of conservation minded fishing gear into the industry. \nRationale: With the transition from days-at-sea groundfish management to the current sector allocation system, the small vessel fishing fleet in Maine, N.H. and Mass. has suffered economically, making it even more important that the industry diversify and pursue innovative marketing strategies to sustain their operations. In addition to these challenges, groundfishermen are facing cuts in the allowable catch for their most marketable species (e.g. cod) upwards of 70%.  Although lobster catches have recently reached all-time highs, record low boat prices and increasing operational costs, such as fuel expenses, are presenting significant challenges to the sustainability of lobstering as well. The Fisheries Extension program continues to invest a significant portion of its resources and time to work with the industry, local organizations and seafood wholesalers and retailers to increase awareness of and demand and to facilitate development of alternative supply chains that deliver locally branded seafood that deliver higher profits to boats. \nData Sharing Plan: dsp"]
[]
["METHODOLOGY: ",{"$nulls":18},"METHODOLOGY: "]
[null,"(The Data Sharing Plan may be included in the Methodology section)"]
["RATIONALE: ",{"$nulls":18},"RATIONALE: "]
[]
["DATA SHARING PLAN: ",{"$f":"MID(INDIRECT(\"'ProjDataInput'!r\"&TEXT($N$2,\"###\")),1,19999)","v":""},{"$nulls":17},"DATA SHARING PLAN: "]

{"sheet":"FocusAreas","index":8,"n_rows":950,"n_cols":16,"rows_kept":950}
[{"$nulls":13},"worksheet:","90-2-Start Here"]
[null,null,"Select one Focus Area (single-click on that cell). Hit \"Add\".",{"$nulls":10},"row:",30]
[]
[{"$nulls":14},"SEA GRANT PROJECT SUMMARY FORM 90-2"]
[null,null,{"$f":"IF(O6<>\"\",\"\",\"(Did you fill out the 'Institution' field on the 90-2 form?)\")","v":""}]
[{"$nulls":13},"program:","NJ"]
[null,"Plan ",{"$f":"O7","v":2018},{"$nulls":10},"year:",2018,"<-- change this to 2014 to see earlier focus areas"]
[null,"Program",{"$f":"O6","v":"NJ"}]
[{"$nulls":13},2392,"Environmental Literacy and Workforce Development"]
[null,"FA ID","Focus Area","Plan","Program","Plan Start Year","Plan End Year","find?  ",{"$nulls":5},{"$f":"CONCATENATE(TEXT(N9,\"0000\"),\" \",O9)","v":"2392 Environmental Literacy and Workforce Development"}]
[null,2369,"Healthy Coastal Ecosystems","Alaska Sea Grant Strategic Plan 2018-2021","AK",2018,2021,{"$f":"AND(O$6=E11,O$7>=F11,O$7<=G11,C$7=F11)","v":false}]
[null,2370,"Sustainable Fisheries and Aquaculture","Alaska Sea Grant Strategic Plan 2018-2021","AK",2018,2021,{"$f":"AND(O$6=E12,O$7>=F12,O$7<=G12,C$7=F12)","v":false}]
[null,2371,"Resilient Communities and Economies","Alaska Sea Grant Strategic Plan 2018-2021","AK",2018,2021,false]
[null,2372,"Environmental Literacy and Workforce Development","Alaska Sea Grant Strategic Plan 2018-2021","AK",2018,2021,false]
[null,2385,"Healthy Coastal Ecosystems","California Sea Grant Strategic Plan 2018-2021","CA",2018,2021,false]
[null,2386,"Sustainable Fisheries and Aquaculture","California Sea Grant Strategic Plan 2018-2021","CA",2018,2021,false]
[null,2387,"Resilient Coastal Communities and Economies","California Sea Grant Strategic Plan 2018-2021","CA",2018,2021,false]
[null,2388,"Education, Training and Public Information","California Sea Grant Strategic Plan 2018-2021","CA",2018,2021,false]
[null,2320,"Coastal Ecosystems and Watersheds","Connecticut Sea Grant Strategic Plan 2018-2021","CT",2018,2021,false]
[null,2321,"Fisheries and Aquaculture","Connecticut Sea Grant Strategic Plan 2018-2021","CT",2018,2021,false]
[null,2322,"Resilient Communities","Connecticut Sea Grant Strategic Plan 2018-2021","CT",2018,2021,false]
[null,2323,"Environmental Literacy and Workforce Development","Connecticut Sea Grant Strategic Plan 2018-2021","CT",2018,2021,false]
[null,2408,"Healthy Coastal Ecosystem (HCE)","Delaware Sea Grant: Strategic Plan (2018-2021)","DE",2018,2021,false]
[null,2409,"Resilient Communities & Economies (RCE)","Delaware Sea Grant: Strategic Plan (2018-2021)","DE",2018,2021,false]
[null,2410,"Sustainable Fisheries and Aquaculture (SFA)","Delaware Sea Grant: Strategic Plan (2018-2021)","DE",2018,2021,false]
[null,2411,"Environmental Literacy and Workforce Development (ELWD)","Delaware Sea Grant: Strategic Plan (2018-2021)","DE",2018,2021,false]
[null,2429,"Healthy Coastal Environments","Florida Sea Grant College Program: Strategic Plan 2018-2021","FL",2018,2021,false]
[null,2430,"Sustainable Fisheries and Aquaculture","Florida Sea Grant College Program: Strategic Plan 2018-2021","FL",2018,2021,false]
[null,2431,"Resilient Communities and Economies","Florida Sea Grant College Program: Strategic Plan 2018-2021","FL",2018,2021,false]
[null,2432,"Environmental Literacy and Workforce Development","Florida Sea Grant College Program: Strategic Plan 2018-2021","FL",2018,2021,false]
[null,2284,"Environment Literacy and Workforce Development","The Georgia Sea Grant College Program Strategic Plan 2018-2021","GA",2018,2021,false]
[null,2285,"Healthy Coastal Ecosystems","The Georgia Sea Grant College Program Strategic Plan 2018-2021","GA",2018,2021,false]
[null,2286,"Sustainable Fisheries and Aquaculture","The Georgia Sea Grant College Program Strategic Plan 2018-2021","GA",2018,2021,false]
[null,2287,"Resilient Communities and Economies","The Georgia Sea Grant College Program Strategic Plan 2018-2021","GA",2018,2021,false]
[null,2397,"Healthy Coastal Ecosystems","University of Guam Sea Grant Strategic Plan 2018-2021","GU",2018,2021,false]
[null,2398,"Environmental Literacy and Workforce Development","University of Guam Sea Grant Strategic Plan 2018-2021","GU",2018,2021,false]
[null,2389,"Healthy Coastal Ecosystems","University of Hawaii Sea Grant College Program 2018-2021 Strategic Plan","HI",2018,2021,false]
[null,2390,"Sustainable Fisheries and Aquaculture","University of Hawaii Sea Grant College Program 2018-2021 Strategic Plan","HI",2018,2021,false]
[null,2391,"Resilient Communities and Economies","University of Hawaii Sea Grant College Program 2018-2021 Strategic Plan","HI",2018,2021,false]
[null,2392,"Environmental Literacy and Workforce Development","University of Hawaii Sea Grant College Program 2018-2021 Strategic Plan","HI",2018,2021,false]
[null,2332,"Resilient Communities and Economies","Illinois-Indiana Sea Grant Strategic Plan 2018-2021","IL-IN",2018,2021,false]
[null,2333,"Environmental Literacy and Workforce Development","Illinois-Indiana Sea Grant Strategic Plan 2018-2021","IL-IN",2018,2021,false]
[null,2334,"Healthy Coastal Ecosystems","Illinois-Indiana Sea Grant Strategic Plan 2018-2021","IL-IN",2018,2021,false]
[null,2316,"Healthy Coastal Ecosystems","Louisiana Sea Grant Strategic Plan 2018-2021","LA",2018,2021,false]
[null,2317,"Environmental Literacy and Workforce Development","Louisiana Sea Grant Strategic Plan 2018-2021","LA",2018,2021,false]
[null,2318,"Resilient Communities and Economies","Louisiana Sea Grant Strategic Plan 2018-2021","LA",2018,2021,false]
[null,2319,"Sustainable Fisheries and Aquaculture","Louisiana Sea Grant Strategic Plan 2018-2021","LA",2018,2021,false]
[null,2296,"Healthy Coastal Ecosystems","National Sea Grant Law Center: 2018-2021 Strategic Plan","NSGLC",2018,2021,false]
[null,2297,"Sustainable Fisheries and Aquaculture","National Sea Grant Law Center: 2018-2021 Strategic Plan","NSGLC",2018,2021,false]
[null,2298,"Resilient Communities and Economies","National Sea Grant Law Center: 2018-2021 Strategic Plan","NSGLC",2018,2021,false]
[null,2299,"Environmental Literacy and Workforce Development","National Sea Grant Law Center: 2018-2021 Strategic Plan","NSGLC",2018,2021,false]
[null,2300,"Cross-cutting Programming","National Sea Grant Law Center: 2018-2021 Strategic Plan","NSGLC",2018,2021,false]
[null,2342,"Resilient Communities and Economies","Lake Champlain Sea Grant 2018-2021","LC",2018,2021,false]
[null,2343,"Environmental Literacy and Workforce Development","Lake Champlain Sea Grant 2018-2021","LC",2018,2021,false]
[null,2373,"Healthy Coastal Ecosystems","Science Serving Maryland's Coasts, Maryland Sea Grant: Strategic Plan 2018-2021","MD",2018,2021,false]
[null,2374,"Sustainable Fisheries and Aquaculture","Science Serving Maryland's Coasts, Maryland Sea Grant: Strategic Plan 2018-2021","MD",2018,2021,false]
[null,2375,"Resilient Communities and Economies","Science Serving Maryland's Coasts, Maryland Sea Grant: Strategic Plan 2018-2021","MD",2018,2021,false]
[null,2376,"Effective Environmental Science Education","Science Serving Maryland's Coasts, Maryland Sea Grant: Strategic Plan 2018-2021","MD",2018,2021,false]
[null,2412,"Healthy Coastal Ecosystems","Maine Sea Grant Strategic Plan: Marine Science for Maine People in a Time of Rapid Change","ME",2018,2021,false]
[null,2413,"Resilient Communities","Maine Sea Grant Strategic Plan: Marine Science for Maine People in a Time of Rapid Change","ME",2018,2021,false]
[null,2414,"Safe and Sustainable Seafood","Maine Sea Grant Strategic Plan: Marine Science for Maine People in a Time of Rapid Change","ME",2018,2021,false]
[null,2415,"Communities Preparing for a Changing Climate","Maine Sea Grant Strategic Plan: Marine Science for Maine People in a Time of Rapid Change","ME",2018,2021,false]
[null,2416,"Environmental Literacy and Workforce Development","Maine Sea Grant Strategic Plan: Marine Science for Maine People in a Time of Rapid Change","ME",2018,2021,false]
[null,2277,"Healthy Coastal Ecosystems","Michigan Sea Grant Strategic Plan 2018-2021","MI",2018,2021,false]
[null,2278,"Resilient Communities and Economies","Michigan Sea Grant Strategic Plan 2018-2021","MI",2018,2021,false]
[null,2279,"Sustainable Fisheries and Aquaculture","Michigan Sea Grant Strategic Plan 2018-2021","MI",2018,2021,false]
[null,2290,"Environmental Literacy and Workforce Development","Michigan Sea Grant Strategic Plan 2018-2021","MI",2018,2021,false]
[null,2404,"Healthy Coastal Ecosystems","MIT Sea Grant Strategic Plan 2018-2021","MIT",2018,2021,false]
[null,2405,"Environmental Literacy and Workforce Development","MIT Sea Grant Strategic Plan 2018-2021","MIT",2018,2021,false]
[null,2406,"Sustainable Fisheries and Aquaculture","MIT Sea Grant Strategic Plan 2018-2021","MIT",2018,2021,false]
[null,2407,"Resilient Communities and Economies","MIT Sea Grant Strategic Plan 2018-2021","MIT",2018,2021,false]
[null,2353,"Healthy Coastal Ecosystems","MN Sea Grant Strategic Plan 2018-2021","MN",2018,2021,false]
[null,2354,"Sustainable Fisheries and Aquaculture","MN Sea Grant Strategic Plan 2018-2021","MN",2018,2021,false]
[null,2355,"Resilient Communities and Economies ","MN Sea Grant Strategic Plan 2018-2021","MN",2018,2021,false]
[null,2356,"Environmental Literacy and Workforce Development ","MN Sea Grant Strategic Plan 2018-2021","MN",2018,2021,false]
[null,2357,"Healthy Coastal Ecosystems","Mississippi-Alabama Sea Grant Consortium 2018-21 Strategic Plan","MS-AL",2018,2021,{"$f":"AND(O$6=E76,O$7>=F76,O$7<=G76,C$7=F76)","v":false}]
[null,2358,"Sustainable Fisheries and Aquaculture","Mississippi-Alabama Sea Grant Consortium 2018-21 Strategic Plan","MS-AL",2018,2021,false]
[null,2359,"Resilient Communities and Economies","Mississippi-Alabama Sea Grant Consortium 2018-21 Strategic Plan","MS-AL",2018,2021,false]
[null,2360,"Environmental Literacy and Workforce Development","Mississippi-Alabama Sea Grant Consortium 2018-21 Strategic Plan","MS-AL",2018,2021,false]
[null,2349,"Healthy Coastal Ecosystems","2018-2021 North Carolina Sea Grant College Program Strategic Plan","NC",2018,2021,false]
[null,2350,"Resilient Communities and Economies","2018-2021 North Carolina Sea Grant College Program Strategic Plan","NC",2018,2021,false]
[null,2351,"Sustainable Fisheries and Aquaculture","2018-2021 North Carolina Sea Grant College Program Strategic Plan","NC",2018,2021,false]
[null,2352,"Environmental Literacy and Workforce Development","2018-2021 North Carolina Sea Grant College Program Strategic Plan","NC",2018,2021,false]
[null,2399,"Resilient Communities and Economies","New Hampshire Sea Grant Strategic Plan 2018-2021","NH",2018,2021,false]
[null,2417,"Healthy Coastal Ecosystems","New Hampshire Sea Grant Strategic Plan 2018-2021","NH",2018,2021,false]
[null,2418,"Environmental Literacy and Workforce Development","New Hampshire Sea Grant Strategic Plan 2018-2021","NH",2018,2021,false]
[null,2419,"Sustainable Fisheries and Aquaculture","New Hampshire Sea Grant Strategic Plan 2018-2021","NH",2018,2021,false]
[null,2361,"Healthy Coastal Ecosystems (HCE)           ","NEW JERSEY SEA GRANT CONSORTIUM - STRATEGIC PLAN 2018-2021","NJ",2018,2021,true]
[null,2362,"Sustainable Fisheries and Aquaculture (SFA)","NEW JERSEY SEA GRANT CONSORTIUM - STRATEGIC PLAN 2018-2021","NJ",2018,2021,true]
[null,2363,"Resilient Communities and Economies (RCE)","NEW JERSEY SEA GRANT CONSORTIUM - STRATEGIC PLAN 2018-2021","NJ",2018,2021,true]
[null,2364,"Environmental Literacy and Workforce Development (ELWD)","NEW JERSEY SEA GRANT CONSORTIUM - STRATEGIC PLAN 2018-2021","NJ",2018,2021,true]
[null,2393,"Healthy New York Coastal Ecosystems","New York Sea Grant 2018-2021 Strategic Plan","NY",2018,2021,false]
[null,2394,"Sustainable New York Fisheries, Aquaculture and Seafood Businesses","New York Sea Grant 2018-2021 Strategic Plan","NY",2018,2021,false]
[null,2395,"Resilient New York Communities and Economies","New York Sea Grant 2018-2021 Strategic Plan","NY",2018,2021,false]
[null,2396,"Environmental Literacy & Workforce Development in New York","New York Sea Grant 2018-2021 Strategic Plan","NY",2018,2021,false]
[null,2381,"Healthy Coastal Ecosystems","Ohio Sea Grant College Program: Strategic Plan 2018-2021","OH",2018,2021,false]
[null,2382,"Sustainable Fisheries and Aquaculture","Ohio Sea Grant College Program: Strategic Plan 2018-2021","OH",2018,2021,false]
[null,2383,"Resilient Communities and Economies","Ohio Sea Grant College Program: Strategic Plan 2018-2021","OH",2018,2021,false]
[null,2384,"Environmental Literacy and Workforce Development","Ohio Sea Grant College Program: Strategic Plan 2018-2021","OH",2018,2021,false]
[null,2295,"Ecological, social, and economic aspects of coastal development","Oregon Sea Grant Strategic Plan:  2018-2021","OR",2018,2021,false]
[null,2307,"Ecological, social, and economic aspects of coastal development","Oregon Sea Grant Strategic Plan:  2018-2021","OR",2018,2021,false]
[null,2308,"Adaptation to acute or chronic hazards","Oregon Sea Grant Strategic Plan:  2018-2021","OR",2018,2021,false]
[null,2309,"Adaptation to acute and chronic hazards","Oregon Sea Grant Strategic Plan:  2018-2021","OR",2018,2021,false]
[null,2310,"Adaptation to acute and chronic hazards","Oregon Sea Grant Strategic Plan:  2018-2021","OR",2018,2021,false]
[null,2311,"Human and natural dimensions of coastal and marine fisheries","Oregon Sea Grant Strategic Plan:  2018-2021","OR",2018,2021,false]
[null,2312,"Human and natural dimensions of coastal and marine fisheries","Oregon Sea Grant Strategic Plan:  2018-2021","OR",2018,2021,false]
[null,2313,"Cultural beliefs, learning, and valuation of coastal and marine issues","Oregon Sea Grant Strategic Plan:  2018-2021","OR",2018,2021,false]
[null,2314,"Cultural beliefs, learning, and valuation of coastal and marine issues","Oregon Sea Grant Strategic Plan:  2018-2021","OR",2018,2021,false]
[null,2315,"Cultural beliefs, learning, and valuation of coastal and marine issues","Oregon Sea Grant Strategic Plan:  2018-2021","OR",2018,2021,false]
[null,2335,"Healthy Coastal Ecosystems","Pennsylvania Sea Grant 2018-21 Strategic Plan","PA",2018,2021,false]
[null,2336,"Resilient Communities and Economies","Pennsylvania Sea Grant 2018-21 Strategic Plan","PA",2018,2021,false]
[null,2337,"Environmental Literacy and Workforce Development","Pennsylvania Sea Grant 2018-21 Strategic Plan","PA",2018,2021,false]
[null,2345,"Healthy Ecosystems and Habitats","Puerto Rico Sea Grant Strategic Plan 2018-2021","PR",2018,2021,false]
[null,2346,"Environmental Literacy and Workforce Development","Puerto Rico Sea Grant Strategic Plan 2018-2021","PR",2018,2021,false]
[null,2347,"Resilient Communities and Economies","Puerto Rico Sea Grant Strategic Plan 2018-2021","PR",2018,2021,false]
[null,2348,"Sustainable Fisheries and Aquaculture","Puerto Rico Sea Grant Strategic Plan 2018-2021","PR",2018,2021,false]
[null,2377,"Healthy Coastal Ecosystems","Rhode Island Sea Grant Strategic Plan 2018 - 2021","RI",2018,2021,false]
[null,2378,"Sustainable Fisheries and Aquaculture","Rhode Island Sea Grant Strategic Plan 2018 - 2021","RI",2018,2021,false]
[null,2379,"Resilient Communities and Economies","Rhode Island Sea Grant Strategic Plan 2018 - 2021","RI",2018,2021,false]
[null,2380,"Environmental Literacy and Workforce Development","Rhode Island Sea Grant Strategic Plan 2018 - 2021","RI",2018,2021,false]
[null,2327,"Healthy Coastal Ecosystems","The Changing Face of Coastal South Carolina:  Building a Resilient Future","SC",2018,2021,false]
[null,2328,"Sustainable Coastal Development and Economy","The Changing Face of Coastal South Carolina:  Building a Resilient Future","SC",2018,2021,false]
[null,2329,"Weather and Climate Resilience","The Changing Face of Coastal South Carolina:  Building a Resilient Future","SC",2018,2021,false]
[null,2330,"Sustainable Fisheries and Aquaculture","The Changing Face of Coastal South Carolina:  Building a Resilient Future","SC",2018,2021,false]
[null,2331,"Scientific Literacy and Workforce Development","The Changing Face of Coastal South Carolina:  Building a Resilient Future","SC",2018,2021,false]
[null,2420,"Resilient Communities and Economies","Texas Sea Grant College Program Strategic Plan 2018-2021","TX",2018,2021,false]
[null,2421,"Sustainable Fisheries and Aquaculture","Texas Sea Grant College Program Strategic Plan 2018-2021","TX",2018,2021,false]
[null,2422,"Healthy Coastal Ecosystems","Texas Sea Grant College Program Strategic Plan 2018-2021","TX",2018,2021,false]
[null,2423,"STEM Education and Workforce Development","Texas Sea Grant College Program Strategic Plan 2018-2021","TX",2018,2021,false]
[null,2306,"Healthy Coastal Ecosystems","University of Southern California Sea Grant Strategic Plan 2018 - 2021","USC",2018,2021,false]
[null,2324,"Sustainable Fisheries and Aquaculture","University of Southern California Sea Grant Strategic Plan 2018 - 2021","USC",2018,2021,false]
[null,2325,"Resilient Communities and Economies","University of Southern California Sea Grant Strategic Plan 2018 - 2021","USC",2018,2021,false]
[null,2326,"Environmental Literacy and Workforce Development","University of Southern California Sea Grant Strategic Plan 2018 - 2021","USC",2018,2021,false]
[null,2425,"Environmental Literacy and Workforce Development","Virginia Sea Grant Strategic Plan: 2018-2021","VA",2018,2021,false]
[null,2426,"Healthy Coastal Ecosystems","Virginia Sea Grant Strategic Plan: 2018-2021","VA",2018,2021,false]
[null,2427,"Sustainable Fisheries and Aquaculture","Virginia Sea Grant Strategic Plan: 2018-2021","VA",2018,2021,false]
[null,2428,"Resilient Communities and Economies","Virginia Sea Grant Strategic Plan: 2018-2021","VA",2018,2021,false]
[null,2365,"Sustainable Fisheries and Aquaculture","Washington Sea Grant 2018-2022 Strategic Plan","WA",2018,2021,false]
[null,2366,"Healthy Coastal Ecosystems","Washington Sea Grant 2018-2022 Strategic Plan","WA",2018,2021,false]
[null,2367,"Resilient Communities and Economies","Washington Sea Grant 2018-2022 Strategic Plan","WA",2018,2021,{"$f":"AND(O$6=E140,O$7>=F140,O$7<=G140,C$7=F140)","v":false}]
[null,2368,"Ocean Literacy and Workforce Development","Washington Sea Grant 2018-2022 Strategic Plan","WA",2018,2021,false]
[null,2338,"Healthy Coastal Ecosystems","Woods Hole Sea Grant in the 21st Century: Issues, Opportunities and Action for Massachusetts 2018-2021","WHOI",2018,2021,false]
[null,2339,"Resilient Communities and Economies","Woods Hole Sea Grant in the 21st Century: Issues, Opportunities and Action for Massachusetts 2018-2021","WHOI",2018,2021,false]
[null,2340,"Environmental Literacy and Workforce Development","Woods Hole Sea Grant in the 21st Century: Issues, Opportunities and Action for Massachusetts 2018-2021","WHOI",2018,2021,false]
[null,2341,"Sustainable Fisheries and Aquaculture","Woods Hole Sea Grant in the 21st Century: Issues, Opportunities and Action for Massachusetts 2018-2021","WHOI",2018,2021,false]
[null,2400,"Healthy Coastal Ecosystems ","2018-21 Strategic Plan University of Wisconsin Sea Grant College Program","WI",2018,2021,false]
[null,2401,"Resilient Communities and Economies","2018-21 Strategic Plan University of Wisconsin Sea Grant College Program","WI",2018,2021,false]
[null,2402,"Sustainable Fisheries and Aquaculture ","2018-21 Strategic Plan University of Wisconsin Sea Grant College Program","WI",2018,2021,false]
[null,2403,"Environmental Literacy and Workforce Development ","2018-21 Strategic Plan University of Wisconsin Sea Grant College Program","WI",2018,2021,false]
[null,2169,"Healthy Coastal Ecosystems","Alaska Sea Grant College Program Strategic Plan 2014-2017","AK",2014,2017,false]
[null,2170,"Sustainable Fisheries and Aquaculture","Alaska Sea Grant College Program Strategic Plan 2014-2017","AK",2014,2017,false]
[null,2171,"Resilient Communities and Economies","Alaska Sea Grant College Program Strategic Plan 2014-2017","AK",2014,2017,false]
[null,2172,"Environmental Literacy and Workforce Development","Alaska Sea Grant College Program Strategic Plan 2014-2017","AK",2014,2017,false]
[null,2089,"Healthy Coastal and Marine Ecosystems (HCME)","California Sea Grant Strategic Plan 2014–2017","CA",2014,2017,false]
[null,2106,"Resilient Coastal Communities (RCC)","California Sea Grant Strategic Plan 2014–2017","CA",2014,2017,false]
[null,2107,"Safe and Sustainable Fisheries & Seafood Supply (SSFS)","California Sea Grant Strategic Plan 2014–2017","CA",2014,2017,false]
[null,2109,"Education, Training and Public Information","California Sea Grant Strategic Plan 2014–2017","CA",2014,2017,false]
[null,2180,"Healthy Coastal Ecosystems and Economy","CONNECTICUT SEA GRANT STRATEGIC PLAN 2014-2017","CT",2014,2017,false]
[null,2181,"Seafood Production and Consumption","CONNECTICUT SEA GRANT STRATEGIC PLAN 2014-2017","CT",2014,2017,false]
[null,2182,"Hazard Resilient Coastal Communities","CONNECTICUT SEA GRANT STRATEGIC PLAN 2014-2017","CT",2014,2017,false]
[null,2183,"Ocean and Coastal Literacy and Workforce Development","CONNECTICUT SEA GRANT STRATEGIC PLAN 2014-2017","CT",2014,2017,false]
[null,2184,"Healthy Coastal Ecosystems and Economy","CONNECTICUT SEA GRANT STRATEGIC PLAN 2014-2017","CT",2014,2017,false]
[null,2185,"Healthy Coastal Ecosystems","Delaware Sea Grant: Strategic Plan (2014-2017)","DE",2014,2018,false]
[null,2186,"Resilient Communities and Economies","Delaware Sea Grant: Strategic Plan (2014-2017)","DE",2014,2018,false]
[null,2187,"Environmental Literacy and Workforce Development","Delaware Sea Grant: Strategic Plan (2014-2017)","DE",2014,2018,false]
[null,2188,"Sustainable Fisheries and Aquaculture","Delaware Sea Grant: Strategic Plan (2014-2017)","DE",2014,2018,false]
[null,2151,"Healthy Oceans and Coasts","Florida Sea Grant College Program: Strategic Plan 2014-2017","FL",2014,2017,false]
[null,2152,"Sustainable Coastal Communities and Economies","Florida Sea Grant College Program: Strategic Plan 2014-2017","FL",2014,2017,false]
[null,2153,"Safe and Sustainable Seafood","Florida Sea Grant College Program: Strategic Plan 2014-2017","FL",2014,2017,false]
[null,2154,"Hazard-Resilient and Climate-Ready Coasts","Florida Sea Grant College Program: Strategic Plan 2014-2017","FL",2014,2017,false]
[null,2155,"Education and Workforce Development","Florida Sea Grant College Program: Strategic Plan 2014-2017","FL",2014,2017,false]
[null,2088,"Healthy Coastal Ecosystems","Georgia Sea Grant Strategic Plan 2014-2018","GA",2014,2018,false]
[null,2204,"Sustainable Coastal Development","Georgia Sea Grant Strategic Plan 2014-2018","GA",2014,2018,false]
[null,2205,"Hazard Resiliency in Coastal Communities","Georgia Sea Grant Strategic Plan 2014-2018","GA",2014,2018,false]
[null,2206,"Sustainable Fisheries and Aquaculture","Georgia Sea Grant Strategic Plan 2014-2018","GA",2014,2018,false]
[null,2211,"Environmental Literacy and Workforce Development","Georgia Sea Grant Strategic Plan 2014-2018","GA",2014,2018,false]
[null,2237,"Environmental Literacy and Workforce Development","UOGSG Strategic Plan 2013-2017","GU",2013,2017,false]
[null,2259,"Resilient Communities and Economies","UOGSG Strategic Plan 2013-2017","GU",2013,2017,false]
[null,2260,"Healthy Coastal Ecosystems","UOGSG Strategic Plan 2013-2017","GU",2013,2017,false]
[null,2261,"Sustainable Fisheries and Aquaculture","UOGSG Strategic Plan 2013-2017","GU",2013,2017,false]
[null,2165,"Sustainable Coastal Development","University of Hawaii Sea Grant College Program 2014-2017 Strategic Plan","HI",2014,2017,false]
[null,2166,"Hazard Resilient Coastal Communities","University of Hawaii Sea Grant College Program 2014-2017 Strategic Plan","HI",2014,2017,false]
[null,2167,"Sustainable Coastal Tourism","University of Hawaii Sea Grant College Program 2014-2017 Strategic Plan","HI",2014,2017,false]
[null,2168,"Sustainable Aquaculture and Fisheries","University of Hawaii Sea Grant College Program 2014-2017 Strategic Plan","HI",2014,2017,false]
[null,2189,"Healthy Coastal Ecosystems","Illinois-Indiana Sea Grant Strategic Plan 2014-2017","IL-IN",2014,2017,false]
[null,2190,"Resilient Communities and Economies","Illinois-Indiana Sea Grant Strategic Plan 2014-2017","IL-IN",2014,2017,false]
[null,2191,"Environmental Literacy and Workforce Development","Illinois-Indiana Sea Grant Strategic Plan 2014-2017","IL-IN",2014,2017,false]
[null,2192,"Sustainable Aquaculture","Illinois-Indiana Sea Grant Strategic Plan 2014-2017","IL-IN",2014,2017,false]
[null,2142,"Education and Workforce Development","Louisiana Sea Grant Strategic Plan 2014 - 2018","LA",2014,2018,false]
[null,2143,"Healthy Coastal Ecosystems and Habitats","Louisiana Sea Grant Strategic Plan 2014 - 2018","LA",2014,2018,false]
[null,2144,"Resilient Communities and Economies","Louisiana Sea Grant Strategic Plan 2014 - 2018","LA",2014,2018,false]
[null,2145,"Sustainable Fisheries and Aquaculture","Louisiana Sea Grant Strategic Plan 2014 - 2018","LA",2014,2018,false]
[null,2233,"Healthy Coastal Ecosystems","National Sea Grant Law Center: 2014-2017 Strategic Plan","NSGLC",2014,2017,false]
[null,2234,"Sustainable Fisheries and Aquaculture ","National Sea Grant Law Center: 2014-2017 Strategic Plan","NSGLC",2014,2017,false]
[null,2235,"Resilient Communities and Economies ","National Sea Grant Law Center: 2014-2017 Strategic Plan","NSGLC",2014,2017,false]
[null,2236,"Environmental Literacy and Workforce Development ","National Sea Grant Law Center: 2014-2017 Strategic Plan","NSGLC",2014,2017,false]
[null,2200,"Healthy Coastal Ecosystems ","Lake Champlain Sea Grant","LC",2014,2017,false]
[null,2201,"Sustainable Sports Fisheries and Aquaculture ","Lake Champlain Sea Grant","LC",2014,2017,false]
[null,2202,"Resilient Basin Communities and Economies","Lake Champlain Sea Grant","LC",2014,2017,false]
[null,2203,"Environmental Literacy ","Lake Champlain Sea Grant","LC",2014,2017,false]
[null,2116,"Resilient Ecosystem Processes and Responses","Science Serving Maryland's Coasts, Maryland Sea Grant: Strategic Plan 2014-2017","MD",2014,2017,false]
[null,2117,"Sustainable Fisheries and Aquaculture","Science Serving Maryland's Coasts, Maryland Sea Grant: Strategic Plan 2014-2017","MD",2014,2017,false]
[null,2118,"Robust Communities and Economies","Science Serving Maryland's Coasts, Maryland Sea Grant: Strategic Plan 2014-2017","MD",2014,2017,false]
[null,2164,"Effective Environmental Science Education","Science Serving Maryland's Coasts, Maryland Sea Grant: Strategic Plan 2014-2017","MD",2014,2017,{"$f":"AND(O$6=E204,O$7>=F204,O$7<=G204,C$7=F204)","v":false}]
[null,2216,"Healthy Coastal Ecosystems","Maine Sea Grant College Program Strategic Plan","ME",2014,2017,false]
[null,2217,"Safe and Sustainable Seafood","Maine Sea Grant College Program Strategic Plan","ME",2014,2017,false]
[null,2218,"Resilient Communities","Maine Sea Grant College Program Strategic Plan","ME",2014,2017,false]
[null,2219,"Communities Preparing for a Changing Climate","Maine Sea Grant College Program Strategic Plan","ME",2014,2017,false]
[null,2220,"Environmental Literacy and Workforce Development","Maine Sea Grant College Program Strategic Plan","ME",2014,2017,false]
[null,2160,"Healthy Coastal Ecosystems","Michigan Sea Grant Strategic Plan","MI",2014,2017,false]
[null,2161,"Sustainable Fisheries and Aquaculture","Michigan Sea Grant Strategic Plan","MI",2014,2017,false]
[null,2162,"Resilient Communities and Economies ","Michigan Sea Grant Strategic Plan","MI",2014,2017,false]
[null,2163,"Environmental Literacy and Workforce Development","Michigan Sea Grant Strategic Plan","MI",2014,2017,false]
[null,2120,"Healthy Coastal Ecosystems","MIT Sea Grant Strategic Plan, 2014-2017","MIT",2014,2017,false]
[null,2126,"Sustainable Fisheries and Aquaculture","MIT Sea Grant Strategic Plan, 2014-2017","MIT",2014,2017,false]
[null,2127,"Resilient Communities and Economies","MIT Sea Grant Strategic Plan, 2014-2017","MIT",2014,2017,false]
[null,2128,"Environmental Literacy and Workforce Development","MIT Sea Grant Strategic Plan, 2014-2017","MIT",2014,2017,false]
[null,2207,"Healthy Coastal Ecosystems","2014-2017 Mississippi-Alabama Sea Grant Consortium Strategic Plan","MS-AL",2014,2017,false]
[null,2208,"Sustainable Fisheries and Aquaculture","2014-2017 Mississippi-Alabama Sea Grant Consortium Strategic Plan","MS-AL",2014,2017,false]
[null,2209,"Resilient Communities and Economies","2014-2017 Mississippi-Alabama Sea Grant Consortium Strategic Plan","MS-AL",2014,2017,false]
[null,2210,"Environmental Literacy and Workforce Development","2014-2017 Mississippi-Alabama Sea Grant Consortium Strategic Plan","MS-AL",2014,2017,false]
[null,2090,"ENVIRONMENTAL LITERACY AND CAREER INITIATION","North Carolina Sea Grant Strategic Plan 2014-2017","NC",2014,2017,false]
[null,2091,"HEALTHY COASTAL ECOSYSTEMS ","North Carolina Sea Grant Strategic Plan 2014-2017","NC",2014,2017,false]
[null,2092,"SUSTAINABLE COASTAL DEVELOPMENT","North Carolina Sea Grant Strategic Plan 2014-2017","NC",2014,2017,false]
[null,2093,"SAFE AND SUSTAINABLE SEAFOOD SUPPLY","North Carolina Sea Grant Strategic Plan 2014-2017","NC",2014,2017,false]
[null,2094,"HAZARD RESILIENCE IN COASTAL COMMUNITIES","North Carolina Sea Grant Strategic Plan 2014-2017","NC",2014,2017,false]
[null,2146,"Environmental Literacy and Workforce Development","New Hampshire Sea Grant Strategic Plan 2014-2017","NH",2014,2017,false]
[null,2147,"Healthy Coastal Ecosystems","New Hampshire Sea Grant Strategic Plan 2014-2017","NH",2014,2017,false]
[null,2148,"Resilient Communities and Economies","New Hampshire Sea Grant Strategic Plan 2014-2017","NH",2014,2017,false]
[null,2149,"Sustainable Fisheries and Aquaculture","New Hampshire Sea Grant Strategic Plan 2014-2017","NH",2014,2017,false]
[null,2095,"Healthy Coastal Ecosystems","New Jersey Sea Grant Consortium Strategic Plan","NJ",2014,2017,false]
[null,2096,"Sustainable Fisheries and Aquaculture","New Jersey Sea Grant Consortium Strategic Plan","NJ",2014,2017,false]
[null,2097,"Resilient Communities and Economies","New Jersey Sea Grant Consortium Strategic Plan","NJ",2014,2017,false]
[null,2098,"Enviormental Literacy and Workforce Development","New Jersey Sea Grant Consortium Strategic Plan","NJ",2014,2017,false]
[null,2086,"Healthy New York Coastal Ecosystems and Habitats","New York Sea Grant 2014-2017 Strategic Plan","NY",2014,2018,false]
[null,2227,"Sustainable New York Fisheries and New York Seafood Businesses, including Aquaculture ","New York Sea Grant 2014-2017 Strategic Plan","NY",2014,2018,false]
[null,2228,"Resilient New York Communities and Economies","New York Sea Grant 2014-2017 Strategic Plan","NY",2014,2018,false]
[null,2229,"Environmental Literacy and Workforce Development in New York ","New York Sea Grant 2014-2017 Strategic Plan","NY",2014,2018,false]
[null,2221,"Healthy Coastal Ecosystems","Ohio Sea Grant College Program: Strategic Plan 2014 - 2017","OH",2014,2017,false]
[null,2222,"Sustainable Fisheries and Aquaculture","Ohio Sea Grant College Program: Strategic Plan 2014 - 2017","OH",2014,2017,false]
[null,2223,"Resilient Communities and Economies","Ohio Sea Grant College Program: Strategic Plan 2014 - 2017","OH",2014,2017,false]
[null,2224,"Environmental Literacy and Workforce Development","Ohio Sea Grant College Program: Strategic Plan 2014 - 2017","OH",2014,2017,false]
[null,2173,"Resilient Communities and Economies","Oregon Sea Grant Strategic Plan: 2014-2017","OR",2014,2017,false]
[null,2174,"Sustainable Fisheries and Aquaculture","Oregon Sea Grant Strategic Plan: 2014-2017","OR",2014,2017,false]
[null,2114,"Environmental Literacy and Workforce","Oregon Sea Grant Strategic Plan: 2014-2017","OR",2014,2017,false]
[null,2115,"Healthy Coastal Ecosystems","Oregon Sea Grant Strategic Plan: 2014-2017","OR",2014,2017,false]
[null,2175,"Healthy Coastal Ecosystems","PENNSYLVANIA SEA GRANT 2014-2017 Strategic Plan","PA",2014,2017,false]
[null,2176,"Resilient Communities and Economies","PENNSYLVANIA SEA GRANT 2014-2017 Strategic Plan","PA",2014,2017,false]
[null,2177,"Sustainable Fisheries and Aquaculture","PENNSYLVANIA SEA GRANT 2014-2017 Strategic Plan","PA",2014,2017,false]
[null,2178,"Environmental Literacy and Workforce Development","PENNSYLVANIA SEA GRANT 2014-2017 Strategic Plan","PA",2014,2017,false]
[null,2179,"Healthy Ecosystems and Habitats ","PR Sea Grant Strategic Plan 2014-2017","PR",2014,2017,false]
[null,2197,"Resilient Communities and Economies ","PR Sea Grant Strategic Plan 2014-2017","PR",2014,2017,false]
[null,2198,"Education and Workforce Development ","PR Sea Grant Strategic Plan 2014-2017","PR",2014,2017,false]
[null,2110,"Healthy Coastal Ecosystem","Rhode Island Sea Grant Strategic Plan 2014 - 2017","RI",2014,2018,false]
[null,2111,"Sustainable Fisheries and Aquaculture","Rhode Island Sea Grant Strategic Plan 2014 - 2017","RI",2014,2018,false]
[null,2112,"Resilient Communities and Economies","Rhode Island Sea Grant Strategic Plan 2014 - 2017","RI",2014,2018,false]
[null,2113,"Environmental Literacy and Workforce Development","Rhode Island Sea Grant Strategic Plan 2014 - 2017","RI",2014,2018,false]
[null,2081,"The Coastal and Ocean Landscape","The Changing Face of Coastal South Carolina:  Enhancing Understanding - Informing Decision-making","SC",2014,2018,false]
[null,2082,"Sustainable Coastal Development and Economy","The Changing Face of Coastal South Carolina:  Enhancing Understanding - Informing Decision-making","SC",2014,2018,false]
[null,2083,"Sustainable Fisheries and Aquaculture","The Changing Face of Coastal South Carolina:  Enhancing Understanding - Informing Decision-making","SC",2014,2018,false]
[null,2084,"Hazard Resilience in Coastal Communities","The Changing Face of Coastal South Carolina:  Enhancing Understanding - Informing Decision-making","SC",2014,2018,false]
[null,2085,"Scientific Literacy and Workforce Development","The Changing Face of Coastal South Carolina:  Enhancing Understanding - Informing Decision-making","SC",2014,2018,false]
[null,2122,"Healthy Coastal Ecosystems","Texas Sea Grant College Program: 2014-2017 Strategic Plan","TX",2014,2017,false]
[null,2123,"Sustainable Fisheries and Aquaculture","Texas Sea Grant College Program: 2014-2017 Strategic Plan","TX",2014,2017,false]
[null,2124,"Resilient Communities and Economies","Texas Sea Grant College Program: 2014-2017 Strategic Plan","TX",2014,2017,false]
[null,2125,"Environmental Literacy and Workforce Development","Texas Sea Grant College Program: 2014-2017 Strategic Plan","TX",2014,2017,false]
[null,2136,"Healthy Coastal Ecosystems","USC SG STRATEGIC PLAN 2014-2017","USC",2014,2017,false]
[null,2137,"Sustainable Fisheries and Aquaculture","USC SG STRATEGIC PLAN 2014-2017","USC",2014,2017,{"$f":"AND(O$6=E268,O$7>=F268,O$7<=G268,C$7=F268)","v":false}]
[null,2139,"Resilient Communities and Economies","USC SG STRATEGIC PLAN 2014-2017","USC",2014,2017,false]
[null,2140,"Environmental Literacy and Workforce Development","USC SG STRATEGIC PLAN 2014-2017","USC",2014,2017,false]
[null,2121,"Healthy Coastal Ecosystems","Virginia Sea Grant Strategic Plan: Update 2014-2017","VA",2013,2014,false]
[null,2129,"Environmental Literacy and Workforce Development ","Virginia Sea Grant Strategic Plan: Update 2014-2017","VA",2013,2014,false]
[null,2130,"Resilient Communities and Economies","Virginia Sea Grant Strategic Plan: Update 2014-2017","VA",2013,2014,false]
[null,2131,"Sustainable Fisheries and Aquaculture","Virginia Sea Grant Strategic Plan: Update 2014-2017","VA",2013,2014,false]
[null,2132,"Healthy Coastal Ecosystems","Washington Sea Grant 2014-2018 Strategic Plan","WA",2014,2018,false]
[null,2133,"Sustainable Fisheries and Aquaculture","Washington Sea Grant 2014-2018 Strategic Plan","WA",2014,2018,false]
[null,2134,"Resilient Communities and Economies","Washington Sea Grant 2014-2018 Strategic Plan","WA",2014,2018,false]
[null,2135,"Ocean Literacy and Workforce Development","Washington Sea Grant 2014-2018 Strategic Plan","WA",2014,2018,false]
[null,2156,"Healthy Coastal Ecosystems","Woods Hole Sea Grant in the 21st Century: Issues, Opportunities, and Action for Massachusetts","WHOI",2014,2017,false]
[null,2157,"Sustainable Fisheries and Aquaculture","Woods Hole Sea Grant in the 21st Century: Issues, Opportunities, and Action for Massachusetts","WHOI",2014,2017,false]
[null,2158,"Resilient Communities and Economies","Woods Hole Sea Grant in the 21st Century: Issues, Opportunities, and Action for Massachusetts","WHOI",2014,2017,false]
[null,2159,"Environmental Literacy and Workforce Development","Woods Hole Sea Grant in the 21st Century: Issues, Opportunities, and Action for Massachusetts","WHOI",2014,2017,false]
[null,2212,"Healthy Great Lakes Coastal Ecosystems","2014-17 Strategic Plan University of Wisconsin Sea Grant College Program","WI",2014,2017,false]
[null,2213,"Sustainable Fisheries and Aquaculture in the Great Lakes Region","2014-17 Strategic Plan University of Wisconsin Sea Grant College Program","WI",2014,2017,false]
[null,2214,"Resilient Great Lakes Communities and Economies","2014-17 Strategic Plan University of Wisconsin Sea Grant College Program","WI",2014,2017,false]
[null,2215,"Environmental Literacy and Workforce Development in the Great Lakes Region","2014-17 Strategic Plan University of Wisconsin Sea Grant College Program","WI",2014,2017,false]
[null,2233,"Healthy Coastal Ecosystems","National Sea Grant Law Center: 2014-2017 Strategic Plan","NSGLC",2014,2017,false]
[null,2234,"Sustainable Fisheries and Aquaculture ","National Sea Grant Law Center: 2014-2017 Strategic Plan","NSGLC",2014,2017,false]
[null,2235,"Resilient Communities and Economies ","National Sea Grant Law Center: 2014-2017 Strategic Plan","NSGLC",2014,2017,false]
[null,2236,"Environmental Literacy and Workforce Development ","National Sea Grant Law Center: 2014-2017 Strategic Plan","NSGLC",2014,2017,false]
[null,2231,"Water Resource Sustainability","University of Hawaii Sea Grant College Program 2014-2017 Strategic Plan","HI",2014,2017,false]
[null,2274,"Indigenous Cultural Heritage","University of Hawaii Sea Grant College Program 2014-2017 Strategic Plan","HI",2014,2017,false]
[null,2193,"Healthy Coastal Ecosystems","MN Sea Grant Strategic Plan 2014 - 2017","MN",2014,2017,false]
[null,2194,"Sustainable Fisheries and Aquaculture","MN Sea Grant Strategic Plan 2014 - 2017","MN",2014,2017,false]
[null,2195,"Resilient Communities and Economies","MN Sea Grant Strategic Plan 2014 - 2017","MN",2014,2017,false]
[null,2196,"Environmental Literacy and Workforce Development","MN Sea Grant Strategic Plan 2014 - 2017","MN",2014,2017,false]
[{"$nulls":7},false]
[{"$nulls":7},false]
[{"$nulls":7},false]
[{"$nulls":7},false]
[{"$nulls":7},false]
[{"$nulls":7},false]
[{"$nulls":7},false]
[{"$nulls":7},false]
[{"$nulls":7},false]
[{"$nulls":7},false]
[{"$nulls":7},false]
[{"$nulls":7},false]
[{"$nulls":7},false]
[{"$nulls":7},false]
[{"$nulls":7},false]
[{"$nulls":7},false]
[{"$nulls":7},false]
[{"$nulls":7},false]
[{"$nulls":7},false]
[{"$nulls":7},false]
[{"$nulls":7},false]
[{"$nulls":7},false]
[{"$nulls":7},false]
[{"$nulls":7},false]
[{"$nulls":7},false]
[{"$nulls":7},false]
[{"$nulls":7},false]
[{"$nulls":7},false]
[{"$nulls":7},false]
[{"$nulls":7},false]
[{"$nulls":7},false]
[{"$nulls":7},false]
[{"$nulls":7},false]
[{"$nulls":7},false]
[{"$nulls":7},false]
[{"$nulls":7},{"$f":"AND(O$6=E332,O$7>=F332,O$7<=G332,C$7=F332)","v":false}]
[{"$nulls":7},false]
[{"$nulls":7},false]
[{"$nulls":7},false]
[{"$nulls":7},false]
[{"$nulls":7},false]
[{"$nulls":7},false]
[{"$nulls":7},false]
[{"$nulls":7},false]
[{"$nulls":7},false]
[{"$nulls":7},false]
[{"$nulls":7},false]
[{"$nulls":7},false]
[{"$nulls":7},false]
[{"$nulls":7},false]
[{"$nulls":7},false]
[{"$nulls":7},false]
[{"$nulls":7},false]
[{"$nulls":7},false]
[{"$nulls":7},false]
[{"$nulls":7},false]
[{"$nulls":7},false]
[{"$nulls":7},false]
[{"$nulls":7},false]
[{"$nulls":7},false]
[{"$nulls":7},false]
[{"$nulls":7},false]
[{"$nulls":7},false]
[{"$nulls":7},false]
[{"$nulls":7},false]
[{"$nulls":7},false]
[{"$nulls":7},false]
[{"$nulls":7},false]
[{"$nulls":7},false]
[{"$nulls":7},false]
[{"$nulls":7},false]
[{"$nulls":7},false]
[{"$nulls":7},false]
[{"$nulls":7},false]
[{"$nulls":7},false]
[{"$nulls":7},false]
[{"$nulls":7},false]
[{"$nulls":7},false]
[{"$nulls":7},false]
[{"$nulls":7},false]
[{"$nulls":7},false]
[{"$nulls":7},false]
[{"$nulls":7},false]
[{"$nulls":7},false]
[{"$nulls":7},false]
[{"$nulls":7},false]
[{"$nulls":7},false]
[{"$nulls":7},false]
[{"$nulls":7},false]
[{"$nulls":7},false]
[{"$nulls":7},false]
[{"$nulls":7},false]
[{"$nulls":7},false]
[{"$nulls":7},false]
[{"$nulls":7},false]
[{"$nulls":7},false]
[{"$nulls":7},false]
[{"$nulls":7},false]
[{"$nulls":7},false]
[{"$nulls":7},{"$f":"AND(O$6=E396,O$7>=F396,O$7<=G396,C$7=F396)","v":false}]
[{"$nulls":7},false]
[{"$nulls":7},false]
[{"$nulls":7},false]
[{"$nulls":7},false]
[{"$nulls":7},false]
[{"$nulls":7},false]
[{"$nulls":7},false]
[{"$nulls":7},false]
[{"$nulls":7},false]
[{"$nulls":7},false]
[{"$nulls":7},false]
[{"$nulls":7},false]
[{"$nulls":7},false]
[{"$nulls":7},false]
[{"$nulls":7},false]
[{"$nulls":7},false]
[{"$nulls":7},false]
[{"$nulls":7},false]
[{"$nulls":7},false]
[{"$nulls":7},false]
[{"$nulls":7},false]
[{"$nulls":7},false]
[{"$nulls":7},false]
[{"$nulls":7},false]
[{"$nulls":7},false]
[{"$nulls":7},false]
[{"$nulls":7},false]
[{"$nulls":7},false]
[{"$nulls":7},false]
[{"$nulls":7},false]
[{"$nulls":7},false]
[{"$nulls":7},false]
[{"$nulls":7},false]
[{"$nulls":7},false]
[{"$nulls":7},false]
[{"$nulls":7},false]
[{"$nulls":7},false]
[{"$nulls":7},false]
[{"$nulls":7},false]
[{"$nulls":7},false]
[{"$nulls":7},false]
[{"$nulls":7},false]
[{"$nulls":7},false]
[{"$nulls":7},false]
[{"$nulls":7},false]
[{"$nulls":7},false]
[{"$nulls":7},false]
[{"$nulls":7},false]
[{"$nulls":7},false]
[{"$nulls":7},false]
[{"$nulls":7},false]
[{"$nulls":7},false]
[{"$nulls":7},false]
[{"$nulls":7},false]
[{"$nulls":7},false]
[{"$nulls":7},false]
[{"$nulls":7},false]
[{"$nulls":7},false]
[{"$nulls":7},false]
[{"$nulls":7},false]
[{"$nulls":7},false]
[{"$nulls":7},false]
[{"$nulls":7},false]
[{"$nulls":7},{"$f":"AND(O$6=E460,O$7>=F460,O$7<=G460,C$7=F460)","v":false}]
[{"$nulls":7},false]
[{"$nulls":7},false]
[{"$nulls":7},false]
[{"$nulls":7},false]
[{"$nulls":7},false]
[{"$nulls":7},false]
[{"$nulls":7},false]
[{"$nulls":7},false]
[{"$nulls":7},false]
[{"$nulls":7},false]
[{"$nulls":7},false]
[{"$nulls":7},false]
[{"$nulls":7},false]
[{"$nulls":7},false]
[{"$nulls":7},false]
[{"$nulls":7},false]
[{"$nulls":7},false]
[{"$nulls":7},false]
[{"$nulls":7},false]
[{"$nulls":7},false]
[{"$nulls":7},false]
[{"$nulls":7},false]
[{"$nulls":7},false]
[{"$nulls":7},false]
[{"$nulls":7},false]
[{"$nulls":7},false]
[{"$nulls":7},false]
[{"$nulls":7},false]
[{"$nulls":7},false]
[{"$nulls":7},false]
[{"$nulls":7},false]
[{"$nulls":7},false]
[{"$nulls":7},false]
[{"$nulls":7},false]
[{"$nulls":7},false]
[{"$nulls":7},false]
[{"$nulls":7},false]
[{"$nulls":7},false]
[{"$nulls":7},false]
[{"$nulls":7},false]
[{"$nulls":7},false]
[{"$nulls":7},false]
[{"$nulls":7},false]
[{"$nulls":7},false]
[{"$nulls":7},false]
[{"$nulls":7},false]
[{"$nulls":7},false]
[{"$nulls":7},false]
[{"$nulls":7},false]
[{"$nulls":7},false]
[{"$nulls":7},false]
[{"$nulls":7},false]
[{"$nulls":7},false]
[{"$nulls":7},false]
[{"$nulls":7},false]
[{"$nulls":7},false]
[{"$nulls":7},false]
[{"$nulls":7},false]
[{"$nulls":7},false]
[{"$nulls":7},false]
[{"$nulls":7},false]
[{"$nulls":7},false]
[{"$nulls":7},false]
[{"$nulls":7},{"$f":"AND(O$6=E524,O$7>=F524,O$7<=G524,C$7=F524)","v":false}]
[{"$nulls":7},false]
[{"$nulls":7},false]
[{"$nulls":7},false]
[{"$nulls":7},false]
[{"$nulls":7},false]
[{"$nulls":7},false]
[{"$nulls":7},false]
[{"$nulls":7},false]
[{"$nulls":7},false]
[{"$nulls":7},false]
[{"$nulls":7},false]
[{"$nulls":7},false]
[{"$nulls":7},false]
[{"$nulls":7},false]
[{"$nulls":7},false]
[{"$nulls":7},false]
[{"$nulls":7},false]
[{"$nulls":7},false]
[{"$nulls":7},false]
[{"$nulls":7},false]
[{"$nulls":7},false]
[{"$nulls":7},false]
[{"$nulls":7},false]
[{"$nulls":7},false]
[{"$nulls":7},false]
[{"$nulls":7},false]
[{"$nulls":7},false]
[{"$nulls":7},false]
[{"$nulls":7},false]
[{"$nulls":7},false]
[{"$nulls":7},false]
[{"$nulls":7},false]
[{"$nulls":7},false]
[{"$nulls":7},false]
[{"$nulls":7},false]
[{"$nulls":7},false]
[{"$nulls":7},false]
[{"$nulls":7},false]
[{"$nulls":7},false]
[{"$nulls":7},false]
[{"$nulls":7},false]
[{"$nulls":7},false]
[{"$nulls":7},false]
[{"$nulls":7},false]
[{"$nulls":7},false]
[{"$nulls":7},false]
[{"$nulls":7},false]
[{"$nulls":7},false]
[{"$nulls":7},false]
[{"$nulls":7},false]
[{"$nulls":7},false]
[{"$nulls":7},false]
[{"$nulls":7},false]
[{"$nulls":7},false]
[{"$nulls":7},false]
[{"$nulls":7},false]
[{"$nulls":7},false]
[{"$nulls":7},false]
[{"$nulls":7},false]
[{"$nulls":7},false]
[{"$nulls":7},false]
[{"$nulls":7},false]
[{"$nulls":7},false]
[{"$nulls":7},{"$f":"AND(O$6=E588,O$7>=F588,O$7<=G588,C$7=F588)","v":false}]
[{"$nulls":7},false]
[{"$nulls":7},false]
[{"$nulls":7},false]
[{"$nulls":7},false]
[{"$nulls":7},false]
[{"$nulls":7},false]
[{"$nulls":7},false]
[{"$nulls":7},false]
[{"$nulls":7},false]
[{"$nulls":7},false]
[{"$nulls":7},false]
[{"$nulls":7},false]
[{"$nulls":7},false]
[{"$nulls":7},false]
[{"$nulls":7},false]
[{"$nulls":7},false]
[{"$nulls":7},false]
[{"$nulls":7},false]
[{"$nulls":7},false]
[{"$nulls":7},false]
[{"$nulls":7},false]
[{"$nulls":7},false]
[{"$nulls":7},false]
[{"$nulls":7},false]
[{"$nulls":7},false]
[{"$nulls":7},false]
[{"$nulls":7},false]
[{"$nulls":7},false]
[{"$nulls":7},false]
[{"$nulls":7},false]
[{"$nulls":7},false]
[{"$nulls":7},false]
[{"$nulls":7},false]
[{"$nulls":7},false]
[{"$nulls":7},false]
[{"$nulls":7},false]
[{"$nulls":7},false]
[{"$nulls":7},false]
[{"$nulls":7},false]
[{"$nulls":7},false]
[{"$nulls":7},false]
[{"$nulls":7},false]
[{"$nulls":7},false]
[{"$nulls":7},false]
[{"$nulls":7},false]
[{"$nulls":7},false]
[{"$nulls":7},false]
[{"$nulls":7},false]
[{"$nulls":7},false]
[{"$nulls":7},false]
[{"$nulls":7},false]
[{"$nulls":7},false]
[{"$nulls":7},false]
[{"$nulls":7},false]
[{"$nulls":7},false]
[{"$nulls":7},false]
[{"$nulls":7},false]
[{"$nulls":7},false]
[{"$nulls":7},false]
[{"$nulls":7},false]
[{"$nulls":7},false]
[{"$nulls":7},false]
[{"$nulls":7},false]
[{"$nulls":7},{"$f":"AND(O$6=E652,O$7>=F652,O$7<=G652,C$7=F652)","v":false}]
[{"$nulls":7},false]
[{"$nulls":7},false]
[{"$nulls":7},false]
[{"$nulls":7},false]
[{"$nulls":7},false]
[{"$nulls":7},false]
[{"$nulls":7},false]
[{"$nulls":7},false]
[{"$nulls":7},false]
[{"$nulls":7},false]
[{"$nulls":7},false]
[{"$nulls":7},false]
[{"$nulls":7},false]
[{"$nulls":7},false]
[{"$nulls":7},false]
[{"$nulls":7},false]
[{"$nulls":7},false]
[{"$nulls":7},false]
[{"$nulls":7},false]
[{"$nulls":7},false]
[{"$nulls":7},false]
[{"$nulls":7},false]
[{"$nulls":7},false]
[{"$nulls":7},false]
[{"$nulls":7},false]
[{"$nulls":7},false]
[{"$nulls":7},false]
[{"$nulls":7},false]
[{"$nulls":7},false]
[{"$nulls":7},false]
[{"$nulls":7},false]
[{"$nulls":7},false]
[{"$nulls":7},false]
[{"$nulls":7},false]
[{"$nulls":7},false]
[{"$nulls":7},false]
[{"$nulls":7},false]
[{"$nulls":7},false]
[{"$nulls":7},false]
[{"$nulls":7},false]
[{"$nulls":7},false]
[{"$nulls":7},false]
[{"$nulls":7},false]
[{"$nulls":7},false]
[{"$nulls":7},false]
[{"$nulls":7},false]
[{"$nulls":7},false]
[{"$nulls":7},false]
[{"$nulls":7},false]
[{"$nulls":7},false]
[{"$nulls":7},false]
[{"$nulls":7},false]
[{"$nulls":7},false]
[{"$nulls":7},false]
[{"$nulls":7},false]
[{"$nulls":7},false]
[{"$nulls":7},false]
[{"$nulls":7},false]
[{"$nulls":7},false]
[{"$nulls":7},false]
[{"$nulls":7},false]
[{"$nulls":7},false]
[{"$nulls":7},false]
[{"$nulls":7},{"$f":"AND(O$6=E716,O$7>=F716,O$7<=G716,C$7=F716)","v":false}]
[{"$nulls":7},false]
[{"$nulls":7},false]
[{"$nulls":7},false]
[{"$nulls":7},false]
[{"$nulls":7},false]
[{"$nulls":7},false]
[{"$nulls":7},false]
[{"$nulls":7},false]
[{"$nulls":7},false]
[{"$nulls":7},false]
[{"$nulls":7},false]
[{"$nulls":7},false]
[{"$nulls":7},false]
[{"$nulls":7},false]
[{"$nulls":7},false]
[{"$nulls":7},false]
[{"$nulls":7},false]
[{"$nulls":7},false]
[{"$nulls":7},false]
[{"$nulls":7},false]
[{"$nulls":7},false]
[{"$nulls":7},false]
[{"$nulls":7},false]
[{"$nulls":7},false]
[{"$nulls":7},false]
[{"$nulls":7},false]
[{"$nulls":7},false]
[{"$nulls":7},false]
[{"$nulls":7},false]
[{"$nulls":7},false]
[{"$nulls":7},false]
[{"$nulls":7},false]
[{"$nulls":7},false]
[{"$nulls":7},false]
[{"$nulls":7},false]
[{"$nulls":7},false]
[{"$nulls":7},false]
[{"$nulls":7},false]
[{"$nulls":7},false]
[{"$nulls":7},false]
[{"$nulls":7},false]
[{"$nulls":7},false]
[{"$nulls":7},false]
[{"$nulls":7},false]
[{"$nulls":7},false]
[{"$nulls":7},false]
[{"$nulls":7},false]
[{"$nulls":7},false]
[{"$nulls":7},false]
[{"$nulls":7},false]
[{"$nulls":7},false]
[{"$nulls":7},false]
[{"$nulls":7},false]
[{"$nulls":7},false]
[{"$nulls":7},false]
[{"$nulls":7},false]
[{"$nulls":7},false]
[{"$nulls":7},false]
[{"$nulls":7},false]
[{"$nulls":7},false]
[{"$nulls":7},false]
[{"$nulls":7},false]
[{"$nulls":7},false]
[{"$nulls":7},{"$f":"AND(O$6=E780,O$7>=F780,O$7<=G780,C$7=F780)","v":false}]
[{"$nulls":7},false]
[{"$nulls":7},false]
[{"$nulls":7},false]
[{"$nulls":7},false]
[{"$nulls":7},false]
[{"$nulls":7},false]
[{"$nulls":7},false]
[{"$nulls":7},false]
[{"$nulls":7},false]
[{"$nulls":7},false]
[{"$nulls":7},false]
[{"$nulls":7},false]
[{"$nulls":7},false]
[{"$nulls":7},false]
[{"$nulls":7},false]
[{"$nulls":7},false]
[{"$nulls":7},false]
[{"$nulls":7},false]
[{"$nulls":7},false]
[{"$nulls":7},false]
[{"$nulls":7},false]
[{"$nulls":7},false]
[{"$nulls":7},false]
[{"$nulls":7},false]
[{"$nulls":7},false]
[{"$nulls":7},false]
[{"$nulls":7},false]
[{"$nulls":7},false]
[{"$nulls":7},false]
[{"$nulls":7},false]
[{"$nulls":7},false]
[{"$nulls":7},false]
[{"$nulls":7},false]
[{"$nulls":7},false]
[{"$nulls":7},false]
[{"$nulls":7},false]
[{"$nulls":7},false]
[{"$nulls":7},false]
[{"$nulls":7},false]
[{"$nulls":7},false]
[{"$nulls":7},false]
[{"$nulls":7},false]
[{"$nulls":7},false]
[{"$nulls":7},false]
[{"$nulls":7},false]
[{"$nulls":7},false]
[{"$nulls":7},false]
[{"$nulls":7},false]
[{"$nulls":7},false]
[{"$nulls":7},false]
[{"$nulls":7},false]
[{"$nulls":7},false]
[{"$nulls":7},false]
[{"$nulls":7},false]
[{"$nulls":7},false]
[{"$nulls":7},false]
[{"$nulls":7},false]
[{"$nulls":7},false]
[{"$nulls":7},false]
[{"$nulls":7},false]
[{"$nulls":7},false]
[{"$nulls":7},false]
[{"$nulls":7},false]
[{"$nulls":7},{"$f":"AND(O$6=E844,O$7>=F844,O$7<=G844,C$7=F844)","v":false}]
[{"$nulls":7},false]
[{"$nulls":7},false]
[{"$nulls":7},false]
[{"$nulls":7},false]
[{"$nulls":7},false]
[{"$nulls":7},false]
[{"$nulls":7},false]
[{"$nulls":7},false]
[{"$nulls":7},false]
[{"$nulls":7},false]
[{"$nulls":7},false]
[{"$nulls":7},false]
[{"$nulls":7},false]
[{"$nulls":7},false]
[{"$nulls":7},false]
[{"$nulls":7},false]
[{"$nulls":7},false]
[{"$nulls":7},false]
[{"$nulls":7},false]
[{"$nulls":7},false]
[{"$nulls":7},false]
[{"$nulls":7},false]
[{"$nulls":7},false]
[{"$nulls":7},false]
[{"$nulls":7},false]
[{"$nulls":7},false]
[{"$nulls":7},false]
[{"$nulls":7},false]
[{"$nulls":7},false]
[{"$nulls":7},false]
[{"$nulls":7},false]
[{"$nulls":7},false]
[{"$nulls":7},false]
[{"$nulls":7},false]
[{"$nulls":7},false]
[{"$nulls":7},false]
[{"$nulls":7},false]
[{"$nulls":7},false]
[{"$nulls":7},false]
[{"$nulls":7},false]
[{"$nulls":7},false]
[{"$nulls":7},false]
[{"$nulls":7},false]
[{"$nulls":7},false]
[{"$nulls":7},false]
[{"$nulls":7},false]
[{"$nulls":7},false]
[{"$nulls":7},false]
[{"$nulls":7},false]
[{"$nulls":7},false]
[{"$nulls":7},false]
[{"$nulls":7},false]
[{"$nulls":7},false]
[{"$nulls":7},false]
[{"$nulls":7},false]
[{"$nulls":7},false]
[{"$nulls":7},false]
[{"$nulls":7},false]
[{"$nulls":7},false]
[{"$nulls":7},false]
[{"$nulls":7},false]
[{"$nulls":7},false]
[{"$nulls":7},false]
[{"$nulls":7},{"$f":"AND(O$6=E908,O$7>=F908,O$7<=G908,C$7=F908)","v":false}]
[{"$nulls":7},false]
[{"$nulls":7},false]
[{"$nulls":7},false]
[{"$nulls":7},false]
[{"$nulls":7},false]
[{"$nulls":7},false]
[{"$nulls":7},false]
[{"$nulls":7},false]
[{"$nulls":7},false]
[{"$nulls":7},false]
[{"$nulls":7},false]
[{"$nulls":7},false]
[{"$nulls":7},false]
[{"$nulls":7},false]
[{"$nulls":7},false]
[{"$nulls":7},false]
[{"$nulls":7},false]
[{"$nulls":7},false]
[{"$nulls":7},false]
[{"$nulls":7},false]
[{"$nulls":7},false]
[{"$nulls":7},false]
[{"$nulls":7},false]
[{"$nulls":7},false]
[{"$nulls":7},false]
[{"$nulls":7},false]
[{"$nulls":7},false]
[{"$nulls":7},false]
[{"$nulls":7},{"$f":"AND(O$6=E937,O$7>=F937,O$7<=G937)","v":false}]
[{"$nulls":7},false]
[{"$nulls":7},false]
[{"$nulls":7},false]
[{"$nulls":7},false]
[{"$nulls":7},false]
[{"$nulls":7},false]
[{"$nulls":7},false]
[{"$nulls":7},false]
[{"$nulls":7},false]
[{"$nulls":7},false]
[{"$nulls":7},false]
[{"$nulls":7},false]
[{"$nulls":7},false]

{"sheet":"SPcodes","index":9,"n_rows":117,"n_cols":15,"rows_kept":117}
[null,"Find the appropriate classification code below. You may shorten the list",{"$nulls":12},"90-2-Start Here"]
[null,"by entering part or all of a word to search for, and clicking 'Search'.",{"$nulls":12},28]
["search for:",{"$nulls":12},"worksheet: ","S1-Start Here"]
[null,"Select one classification code (single-click on that cell)",{"$nulls":11},"row:",28]
[null,"then hit 'Add'."]
["No","Classification Code"]
[10,"Commercial Biotechnology",null,{"$f":"OR(NOT(ISERROR(SEARCH(B$3,B7))),NOT(ISERROR(SEARCH(B$3,TEXT(A7,\"000\")))))","v":true}]
[11,"Molecular Genetics",null,true]
[12,"Natural Products: Chemistry and Biological Activity",null,true,{"$nulls":9},170,"Program Administration"]
[13,"Bioprocessing, Bioreaction, Cell and Tissue Culture",null,true,{"$nulls":9},{"$f":"CONCATENATE(TEXT(N9,\"000\"),\" \",O9)","v":"170 Program Administration"}]
[20,"Environmental Technology",null,true]
[21,"Enhancement of Environmental Monitoring and Assessment",null,true]
[22,"Pollution Control and Prevention",null,true]
[23,"Remediation",null,true]
[30,"Revitalize the Nation's Commercial Fisheries",null,true]
[31,"Ecosystem-Based Fisheries Management",null,true]
[32,"Fisheries Social and Economic Impacts",null,true]
[33,"Minimizing Bycatch",null,true]
[34,"Enhancing Wild Stocks through Aquaculture",null,true]
[40,"Develop Sustainable U.S. Aquaculture",null,true]
[41,"Administration and Coordination",null,true]
[42,"Developing and Improving Grow-out Systems",null,true]
[43,"Improving Husbandry",null,true]
[44,"Enhancing Aquaculture through Biotechnology",null,true]
[50,"Enhance Competitiveness through Advances in Seafood Technology",null,true]
[51,"Product Quality and Safety",null,true]
[52,"Processing Technology and Practices",null,true]
[53,"Waste Management and Byproduct Recovery",null,true]
[54,"Product Development",null,true]
[60,"Coastal Business Development",null,true]
[61,"Fishing Industries",null,true]
[62,"Coastal Recreation Businesses",null,true]
[63,"Marine Trades Industry",null,true]
[70,"Coastal Community Development",null,true]
[71,"Sustainable Coastal Tourism ",null,true]
[72,"Communities in Transition",null,true]
[73,"Coastal and Waterfront Redevelopment/ Working Waterfronts",null,true]
[74,"Ports,Harbors and Clean Marinas",null,true]
[75,"Planning and Decision-Making Information",null,true]
[76,"Coastal & Waterway Access",null,true]
[77,"Green Infrastructure, Green Building and Community Design",null,true]
[80,"Revitalizing Marine Infrastructure",null,true]
[81,"Inspection and Condition Surveys",null,true]
[82,"Environmental and Operational Loadings",null,true]
[83,"Structure Performance Assessments",null,true]
[84,"Rehabilitation, Repair, and Recycling Procedures ",null,true]
[90,"Coastal and Great Lakes Water Quality",null,true]
[91,"Toxics",null,true]
[92,"Biological Contaminants",null,true]
[93,"Nutrients",null,true]
[94,"Sedimentation",null,true]
[95,"Biotoxins/Harmful Algal Blooms",null,true]
[96,"Nonpoint Source Pollution",null,true]
[97,"Chemical and Oil Spills",null,true]
[100,"Coastal and Great Lakes Habitats",null,true]
[101,"Habitat Structure and Function",null,true]
[102,"Habitat Restoration",null,true]
[103,"Aquatic Invasive Species",null,true]
[104,"Cumulative Impacts on Habitats",null,true]
[105,"Integrated Ecosystem Based Management",null,true]
[106,"Ecosystem Services",null,true]
[107,"Endangered Species",null,true]
[108,"Marine Debris",null,true]
[110,"Sustainable Development",null,true]
[111,"Socioeconomic Dimensions of Environmental Change",null,true]
[112,"Coastal Management Policy Tools",null,true]
[113,"Multiple Use Management and Conflict Resolution/ CMSP",null,true]
[114,"Water Availability",null,true]
[115,"Cumulative Impacts of Development",null,true]
[120,"Coastal and Natural Hazards",null,true]
[121,"Severe Storms",null,true]
[122,"Earthquakes and Tsunamis",null,{"$f":"OR(NOT(ISERROR(SEARCH(B$3,B72))),NOT(ISERROR(SEARCH(B$3,TEXT(A72,\"000\")))))","v":true}]
[123,"Coastal Planning and Building Construction Techniques",null,true]
[124,"Shoreline Processes and Erosion",null,true]
[125,"Floodplain Management",null,true]
[126,"Coastal Inundation",null,true]
[127,"Hazard Mitigation & Adaptation",null,true]
[130,"Safety at Sea",null,true]
[131,"Vessel Stability Research",null,true]
[132,"Equipment Design and Testing",null,true]
[133,"Survival and Safety ",null,true]
[134,"Recreational and Commercial Diving",null,true]
[140,"Education",null,true]
[141,"Education - Pre-college",null,true]
[142,"Education - University",null,true]
[143,"Education - Informal",null,true]
[150,"Marine Advisory Extension Service",null,true]
[151,"Marine Extension Service - Core",null,true]
[152,"Marine Extension Service - Special Projects",null,true]
[160,"Communications",null,true]
[161,"Communications - Core",null,true]
[162,"Communications - Special Projects",null,true]
[170,"Program Administration",null,true]
[170,"Program Administration",null,true]
[171,"Future Selected Projects",null,true]
[180,"Program Development",null,true]
[180,"Program Development",null,true]
[190,"OTHER",null,true]
[200,"Climate ",null,true]
[201,"Climate Modeling",null,true]
[202,"Climate Impacts",null,true]
[203,"Climate Literacy",null,true]
[204,"Climate Mitigation",null,true]
[205,"Climate Adaptation",null,true]
[206,"Ocean Acidification    ",null,true]
[210,"Energy ",null,true]
[211,"Alternative and Renewable Energy",null,true]
[212,"Energy Conservation",null,true]
[213,"Traditional Energy",null,true]
[220,"Social Science",null,true]
[220,"Social Science",null,true]
[221,"Information on socioeconomic context",null,true]
[222,"Impact evaluation",null,true]
[230,"Marine & Aquatic Literacy",null,true]
[231,"Pre-College GK-12 Literacy",null,true]
[232,"University Literacy",null,true]
[233,"Informal Literacy",null,true]

{"sheet":"TRLs","index":10,"n_rows":14,"n_cols":15,"rows_kept":14,"merged":[[3,1,3,6],[5,2,5,6],[6,2,6,6],[7,2,7,6],[8,2,8,6],[9,2,9,6],[10,2,10,6],[11,2,11,6],[12,2,12,6],[13,2,13,6]]}
["SELECT READINESS LEVELS",{"$nulls":13},"90-2-Start Here"]
[null,null,"selected: ",{"$f":"IF(IF(H6,\"1;\",\"\")&IF(H7,\"2;\",\"\")&IF(H8,\"3;\",\"\")&IF(H9,\"4;\",\"\")&IF(H10,\"5;\",\"\")&IF(H11,\"6;\",\"\")&IF(H12,\"7;\",\"\")&IF(H13,\"8;\",\"\")&IF(H14,\"9;\",\"\")=\"\",\"\",LEFT(IF(H6,\"1;\",\"\")&IF(H7,\"2;\",\"\")&IF(H8,\"3;\",\"\")&IF(H9,\"4;\",\"\")&IF(H10,\"5;\",\"\")&IF(H11,\"6;\",\"\")&IF(H12,\"7;\",\"\")&IF(H13,\"8;\",\"\")&IF(H14,\"9;\",\"\"),LEN(IF(H6,\"1;\",\"\")&IF(H7,\"2;\",\"\")&IF(H8,\"3;\",\"\")&IF(H9,\"4;\",\"\")&IF(H10,\"5;\",\"\")&IF(H11,\"6;\",\"\")&IF(H12,\"7;\",\"\")&IF(H13,\"8;\",\"\")&IF(H14,\"9;\",\"\"))-1))","v":""},{"$nulls":10},5]
[]
["Click\nthe\ncheckbox\nâ","RESEARCH PROJECTS: Please use the checkboxes to select all of the Readiness Levels that describe components of your project. \nAfter you have selected the appropriate Readiness Levels, click on \"Return\". Click on \"Cancel\" to return without assigning any levels,\n\nNON-RESEARCH PROJECTS: No action is needed. Click \"Cancel\""]
[]
[null,1,"RL 1: Basic research: experimental or theoretical work undertaken primarily to acquire new knowledge of the underlying foundations of phenomena and observable facts, without any particular application or use in view. Basic research can be oriented or directed towards some broad fields of general interest, with the explicit goal of a range of future applications (OECD, 2015);",{"$nulls":4},false]
[null,2,"RL 2: Applied research: original investigation undertaken in order to acquire new knowledge. It is, however, directed primarily towards a specific, practical aim or objective. Applied research is undertaken either to determine possible uses for the findings of basic research or to determine new methods or ways of achieving specific and predetermined objectives (OECD, 2015).",{"$nulls":4},false]
[null,3,"RL 3: Proof-of-concept for system, process, product, service or tool; this can be considered an early phase of experimental development; feasibility studies may be included;",{"$nulls":4},false]
[null,4,"RL 4: Successful evaluation of system, subsystem, process, product, service or tool in laboratory or other experimental environment; this can be considered an intermediate phase of development;",{"$nulls":4},false]
[null,5,"RL 5: Successful evaluation of system, subsystem process, product, service or tool in relevant environment through testing and prototyping; this can be considered the final stage of development before demonstration begins;",{"$nulls":4},false]
[null,6,"RL 6: Demonstration of prototype system, subsystem, process, product, service or tool in relevant or test environment (potential demonstrated);",{"$nulls":4},false]
[null,7,"RL 7: Prototype system, process, product, service or tool demonstrated in an operational or other relevant environment (functionality demonstrated in near-real world environment; subsystem components fully integrated into system).",{"$nulls":4},false]
[null,8,"RL 8: Finalized system, process, product, service or tool tested, and shown to operate or function as expected within user's environment; user training and documentation completed; operator or user approval given;",{"$nulls":4},false]
[null,9,"RL 9: System, process, product, service or tool deployed and used routinely.",{"$nulls":4},false]

{"sheet":"ProgramIDs","index":11,"n_rows":38,"n_cols":4,"rows_kept":38}
["Abbrev","Names","Program ID","Abbrev"]
["AK","ALASKA SEA GRANT",1,"AK"]
["CA","CALIFORNIA SEA GRANT",2,"CA"]
["CT","CONNECTICUT SEA GRANT",3,"CT"]
["DE","DELAWARE SEA GRANT",4,"DE"]
["FL","FLORIDA SEA GRANT",6,"FL"]
["GA","GEORGIA SEA GRANT",7,"GA"]
["HI","HAWAII SEA GRANT",8,"HI"]
["IL-IN","Illinois-Indiana Sea Grant",9,"IL-IN"]
["LA","LOUISIANA SEA GRANT",11,"LA"]
["ME","MAINE SEA GRANT",12,"ME"]
["MD","MARYLAND SEA GRANT",13,"MD"]
["MIT","Massachusetts Institute of Technology SEA GRANT",14,"MIT"]
["MI","MICHIGAN SEA GRANT",15,"MI"]
["MN","MINNESOTA SEA GRANT",16,"MN"]
["MS-AL","MISSISSIPPI-ALABAMA SEA GRANT",17,"MS-AL"]
["NH","NEW HAMPSHIRE SEA GRANT",18,"NH"]
["NJ","NEW JERSEY SEA GRANT",19,"NJ"]
["NY","NEW YORK SEA GRANT",20,"NY"]
["NC","NORTH CAROLINA SEA GRANT",21,"NC"]
["OH","OHIO SEA GRANT",22,"OH"]
["OR","OREGON SEA GRANT",23,"OR"]
["PA","PENNSYLVANIA SEA GRANT",24,"PA"]
["PR","PUERTO RICO SEA GRANT",25,"PR"]
["RI","RHODE ISLAND SEA GRANT",26,"RI"]
["SC","SOUTH CAROLINA SEA GRANT",27,"SC"]
["USC","UNIVERSITY OF SOUTHERN CALIFORNIA SEA GRANT",28,"USC"]
["TX","TEXAS SEA GRANT",29,"TX"]
["LC","LAKE CHAMPLAIN SEA GRANT",30,"LC"]
["VA","VIRGINIA SEA GRANT",31,"VA"]
["WA","WASHINGTON SEA GRANT",32,"WA"]
["WI","WISCONSIN SEA GRANT",33,"WI"]
["WHOI","Woods Hole Oceanographic Institution Sea Grant",34,"WHOI"]
["NSGCP","NATIONAL SEA GRANT COLLEGE PROGRAM",47,"NSGCP"]
["LAW","SEA GRANT LAW CENTER",48,"LAW"]
["NSGO","National Sea Grant Office",49,"NSGO"]
["GU","GUAM SEA GRANT",50,"GU"]
["LIB","NATIONAL SEA GRANT LIBRARY",51,"LIB"]

{"sheet":"ProjectRecords","index":12,"n_rows":4,"n_cols":40,"rows_kept":4}
[null,null,"B6",null,"B7","B30","B32","B28",null,"B25","B26","B13","B14","B16","B17","B19","B20","B22","B23","G6","G7","G8","G9","G10","G11","B40",null,"E8","E9","E34","B11","numbers below are drawn from the yearly breakdown tabs",{"$nulls":7},"E12"]
["ID","worksheet","Abbrev","Proj No","Title","Focus Area","Partner","Class Code","Abstracts","Total Fed","Total Mat","PI1","Affiliation1","PI2","Affiliation2","PI3","Affiliation3","PI4","AFFIL4","NSGO1","NSGO2","NSGO3","NSGO4","NSGO5","NSGO6","Data Sharing Plan","Comments","StartDate","EndDate","MultiProgram","Competitive","FedYear1","MatchYear1","FedYear2","MatchYear2","FedYear3","MatchYear3","FedYear4","MatchYear4","TRL"]
[null,{"$f":"MID(CELL(\"filename\",'90-2-Start Here'!$B$1),FIND(\"]\",CELL(\"filename\",'90-2-Start Here'!$B$1))+1,24)","v":"90-2-Start Here"},{"$f":"IF(INDIRECT(\"'\"&$B3&\"'!\"&C$1)=\"\",\"\",INDIRECT(\"'\"&$B3&\"'!\"&C$1))","v":""},{"$f":"INDIRECT(\"'\"&B3&\"'!A10\")&INDIRECT(\"'\"&B3&\"'!B10\")","v":""},{"$f":"INDIRECT(\"'\"&$B3&\"'!\"&E$1)","v":""},{"$f":"INDIRECT(\"'\"&$B3&\"'!\"&F$1)","v":0},"","",{"$f":"IF(INDIRECT(\"'\"&$B3&\"'!b34\")=\"\",\"\",\"Objectives: \")&INDIRECT(\"'\"&$B3&\"'!b34\")&IF(INDIRECT(\"'\"&$B3&\"'!b36\")=\"\",\" \",\"\nMethodology: \")&INDIRECT(\"'\"&$B3&\"'!b36\")&IF(INDIRECT(\"'\"&$B3&\"'!b38\")=\"\",\" \",\"\nRationale: \")&INDIRECT(\"'\"&$B3&\"'!b38\")&IF(INDIRECT(\"'\"&$B3&\"'!b40\")=\"\",\" \",\"\nData Sharing Plan: \")&INDIRECT(\"'\"&$B3&\"'!b40\")","v":"   "},{"$f":"INDIRECT(\"'\"&$B3&\"'!\"&J$1)","v":0},0,"","","","","","","","",0,0,0,0,0,0,{"$f":"INDIRECT(\"'\"&$B3&\"'!\"&Z$1)","v":""},null,{"$f":"IF(INDIRECT(\"'\"&$B3&\"'!\"&AB$1)=0,\"\",INDIRECT(\"'\"&$B3&\"'!\"&AB$1))","v":""},{"$f":"IF(INDIRECT(\"'\"&$B3&\"'!\"&AC$1)=0,\"\",INDIRECT(\"'\"&$B3&\"'!\"&AC$1))","v":""},{"$f":"INDIRECT(\"'\"&$B3&\"'!\"&AD$1)&\"\"","v":""},{"$f":"INDIRECT(\"'\"&$B3&\"'!\"&AE$1)*1","v":0},{"$f":"'Yearly Breakdown'!C10","v":0},{"$f":"'Yearly Breakdown'!D10","v":0},{"$f":"'Yearly Breakdown'!C11","v":0},{"$f":"'Yearly Breakdown'!D11","v":0},{"$f":"'Yearly Breakdown'!C12","v":0},{"$f":"'Yearly Breakdown'!D12","v":0},{"$f":"'Yearly Breakdown'!C13","v":0},{"$f":"'Yearly Breakdown'!D13","v":0},{"$f":"IF(INDIRECT(\"'\"&$B3&\"'!\"&AN$1)=0,\"\",INDIRECT(\"'\"&$B3&\"'!\"&AN$1))","v":""}]
[null,{"$f":"MID(CELL(\"filename\",'second 90-2'!$B$1),FIND(\"]\",CELL(\"filename\",'second 90-2'!$B$1))+1,24)","v":"second 90-2"},{"$f":"IF(INDIRECT(\"'\"&$B4&\"'!\"&C$1)=\"\",\"\",INDIRECT(\"'\"&$B4&\"'!\"&C$1))","v":""},"","",0,"","",{"$f":"IF(INDIRECT(\"'\"&$B4&\"'!b34\")=\"\",\"\",\"Objectives: \")&INDIRECT(\"'\"&$B4&\"'!b34\")&IF(INDIRECT(\"'\"&$B4&\"'!b36\")=\"\",\" \",\"\nMethodology: \")&INDIRECT(\"'\"&$B4&\"'!b36\")&IF(INDIRECT(\"'\"&$B4&\"'!b38\")=\"\",\" \",\"\nRationale: \")&INDIRECT(\"'\"&$B4&\"'!b38\")&IF(INDIRECT(\"'\"&$B4&\"'!b40\")=\"\",\" \",\"\nData Sharing Plan: \")&INDIRECT(\"'\"&$B4&\"'!b40\")","v":"   "},{"$f":"INDIRECT(\"'\"&$B4&\"'!\"&J$1)","v":0},0,"","","","","","","","",0,0,0,0,0,0,{"$f":"INDIRECT(\"'\"&$B4&\"'!\"&Z$1)","v":""},null,{"$f":"IF(INDIRECT(\"'\"&$B4&\"'!\"&AB$1)=0,\"\",INDIRECT(\"'\"&$B4&\"'!\"&AB$1))","v":""},{"$f":"IF(INDIRECT(\"'\"&$B4&\"'!\"&AC$1)=0,\"\",INDIRECT(\"'\"&$B4&\"'!\"&AC$1))","v":""},{"$f":"INDIRECT(\"'\"&$B4&\"'!\"&AD$1)&\"\"","v":""},{"$f":"INDIRECT(\"'\"&$B4&\"'!\"&AE$1)*1","v":0},{"$f":"'Yearly Breakdown (2)'!C10","v":0},{"$f":"'Yearly Breakdown (2)'!D10","v":0},{"$f":"'Yearly Breakdown (2)'!C11","v":0},{"$f":"'Yearly Breakdown (2)'!D11","v":0},{"$f":"'Yearly Breakdown (2)'!C12","v":0},{"$f":"'Yearly Breakdown (2)'!D12","v":0},{"$f":"'Yearly Breakdown (2)'!C13","v":0},{"$f":"'Yearly Breakdown (2)'!D13","v":0},{"$f":"IF(INDIRECT(\"'\"&$B4&\"'!\"&AN$1)=0,\"\",INDIRECT(\"'\"&$B4&\"'!\"&AN$1))","v":""}]

{"sheet":"FundingRecords","index":13,"n_rows":9,"n_cols":8,"rows_kept":9}
["Program ID number","Year","Proj No","Grant","Amendment","Fund Source","Federal","Match"]
[{"$f":"VLOOKUP('90-2-Start Here'!B6,ProgramIDs!A$2:C$38,3,0)","v":{"$error":"#N/A"}},{"$f":"YEAR('90-2-Start Here'!E8)","v":1900},{"$f":"ProjectRecords!D3","v":""},{"$f":"\"\"&ProjectRecords!U3","v":"0"},{"$f":"\"\"&ProjectRecords!V3","v":"0"},{"$f":"\"\"&ProjectRecords!W3","v":"0"},{"$f":"'Yearly Breakdown'!C10","v":0},{"$f":"'Yearly Breakdown'!D10","v":0}]
[{"$f":"VLOOKUP('90-2-Start Here'!B6,ProgramIDs!A$2:C$38,3,0)","v":{"$error":"#N/A"}},{"$f":"1+B2","v":1901},{"$f":"ProjectRecords!D3","v":""},{"$f":"\"\"&ProjectRecords!U3","v":"0"},{"$f":"\"\"&ProjectRecords!V3","v":"0"},{"$f":"\"\"&ProjectRecords!W3","v":"0"},{"$f":"'Yearly Breakdown'!C11","v":0},{"$f":"'Yearly Breakdown'!D11","v":0}]
[{"$f":"VLOOKUP('90-2-Start Here'!B6,ProgramIDs!A$2:C$38,3,0)","v":{"$error":"#N/A"}},{"$f":"1+B3","v":1902},{"$f":"ProjectRecords!D3","v":""},{"$f":"\"\"&ProjectRecords!U3","v":"0"},{"$f":"\"\"&ProjectRecords!V3","v":"0"},{"$f":"\"\"&ProjectRecords!W3","v":"0"},{"$f":"'Yearly Breakdown'!C12","v":0},{"$f":"'Yearly Breakdown'!D12","v":0}]
[{"$f":"VLOOKUP('90-2-Start Here'!B6,ProgramIDs!A$2:C$38,3,0)","v":{"$error":"#N/A"}},1903,{"$f":"ProjectRecords!D3","v":""},{"$f":"\"\"&ProjectRecords!U3","v":"0"},{"$f":"\"\"&ProjectRecords!V3","v":"0"},{"$f":"\"\"&ProjectRecords!W3","v":"0"},{"$f":"'Yearly Breakdown'!C13","v":0},{"$f":"'Yearly Breakdown'!D13","v":0}]
[{"$f":"VLOOKUP('second 90-2'!B6,ProgramIDs!A$2:C$38,3,0)","v":{"$error":"#N/A"}},{"$f":"YEAR('second 90-2'!E8)","v":1900},{"$f":"ProjectRecords!D4","v":""},{"$f":"\"\"&ProjectRecords!U4","v":"0"},{"$f":"\"\"&ProjectRecords!V4","v":"0"},{"$f":"\"\"&ProjectRecords!W4","v":"0"},{"$f":"'Yearly Breakdown (2)'!C14","v":0},{"$f":"'Yearly Breakdown (2)'!D14","v":0}]
[{"$f":"VLOOKUP('second 90-2'!B6,ProgramIDs!A$2:C$38,3,0)","v":{"$error":"#N/A"}},{"$f":"1+B6","v":1901},{"$f":"ProjectRecords!D4","v":""},{"$f":"\"\"&ProjectRecords!U4","v":"0"},{"$f":"\"\"&ProjectRecords!V4","v":"0"},{"$f":"\"\"&ProjectRecords!W4","v":"0"},{"$f":"'Yearly Breakdown (2)'!C15","v":0},{"$f":"'Yearly Breakdown (2)'!D15","v":0}]
[{"$f":"VLOOKUP('second 90-2'!B6,ProgramIDs!A$2:C$38,3,0)","v":{"$error":"#N/A"}},{"$f":"1+B7","v":1902},{"$f":"ProjectRecords!D4","v":""},{"$f":"\"\"&ProjectRecords!U4","v":"0"},{"$f":"\"\"&ProjectRecords!V4","v":"0"},{"$f":"\"\"&ProjectRecords!W4","v":"0"},{"$f":"'Yearly Breakdown (2)'!C16","v":0},{"$f":"'Yearly Breakdown (2)'!D16","v":0}]
[{"$f":"VLOOKUP('second 90-2'!B6,ProgramIDs!A$2:C$38,3,0)","v":{"$error":"#N/A"}},1903,{"$f":"ProjectRecords!D4","v":""},{"$f":"\"\"&ProjectRecords!U4","v":"0"},{"$f":"\"\"&ProjectRecords!V4","v":"0"},{"$f":"\"\"&ProjectRecords!W4","v":"0"},{"$f":"'Yearly Breakdown (2)'!C17","v":0},{"$f":"'Yearly Breakdown (2)'!D17","v":0}]

{"sheet":"yearly breakdown worksheet","index":14,"n_rows":27,"n_cols":23,"rows_kept":27}
["Program ID number","Year","Proj No","Federal","Match","unique","row index","years","projects","PI","Title","FED","MATCH","FED","MATCH","FED","MATCH","FED","MATCH",null,null,"COMMENT",2014]
[{"$f":"FundDataInput!A2","v":0},{"$f":"FundDataInput!B2","v":0},{"$f":"FundDataInput!C2","v":0},{"$f":"FundDataInput!D2","v":0},{"$f":"FundDataInput!E2","v":0},null,null,2014,{"$f":"IF(#REF!=\"(select)\",\"\",#REF!)&#REF!","v":{"$error":"#REF!"}},null,null,{"$f":"SUMIFS($D$2:$D$27,$C$2:$C$27,\"=\"&I2,$B$2:$B$27,\"=\"&H$2)","v":0},{"$f":"SUMIFS($E$2:$E$27,$C$2:$C$27,\"=\"&I2,$B$2:$B$27,\"=\"&H$2)","v":0},{"$f":"SUMIFS($D$2:$D$27,$C$2:$C$27,\"=\"&I2,$B$2:$B$27,\"=\"&H$3)","v":0},{"$f":"SUMIFS($E$2:$E$27,$C$2:$C$27,\"=\"&I2,$B$2:$B$27,\"=\"&H$3)","v":0},{"$f":"SUMIFS($D$2:$D$27,$C$2:$C$27,\"=\"&I2,$B$2:$B$27,\"=\"&H$4)","v":0},{"$f":"SUMIFS($E$2:$E$27,$C$2:$C$27,\"=\"&I2,$B$2:$B$27,\"=\"&H$4)","v":0},{"$f":"SUMIFS($D$2:$D$27,$C$2:$C$27,\"=\"&I2,$B$2:$B$27,\"=\"&H$5)","v":0},{"$f":"SUMIFS($E$2:$E$27,$C$2:$C$27,\"=\"&I2,$B$2:$B$27,\"=\"&H$5)","v":0},null,null,{"$f":"LEFT(ProjDataInput!S2,32000)","v":""},2014]
[{"$f":"FundDataInput!A3","v":0},{"$f":"FundDataInput!B3","v":0},{"$f":"FundDataInput!C3","v":0},{"$f":"FundDataInput!D3","v":0},{"$f":"FundDataInput!E3","v":0},null,null,{"$f":"H2+1","v":2015},{"$f":"IF(#REF!=\"(select)\",\"\",#REF!)&#REF!","v":{"$error":"#REF!"}},null,null,{"$f":"SUMIFS($D$2:$D$27,$C$2:$C$27,\"=\"&I3,$B$2:$B$27,\"=\"&H$2)","v":0},{"$f":"SUMIFS($E$2:$E$27,$C$2:$C$27,\"=\"&I3,$B$2:$B$27,\"=\"&H$2)","v":0},{"$f":"SUMIFS($D$2:$D$27,$C$2:$C$27,\"=\"&I3,$B$2:$B$27,\"=\"&H$3)","v":0},{"$f":"SUMIFS($E$2:$E$27,$C$2:$C$27,\"=\"&I3,$B$2:$B$27,\"=\"&H$3)","v":0},{"$f":"SUMIFS($D$2:$D$27,$C$2:$C$27,\"=\"&I3,$B$2:$B$27,\"=\"&H$4)","v":0},{"$f":"SUMIFS($E$2:$E$27,$C$2:$C$27,\"=\"&I3,$B$2:$B$27,\"=\"&H$4)","v":0},{"$f":"SUMIFS($D$2:$D$27,$C$2:$C$27,\"=\"&I3,$B$2:$B$27,\"=\"&H$5)","v":0},{"$f":"SUMIFS($E$2:$E$27,$C$2:$C$27,\"=\"&I3,$B$2:$B$27,\"=\"&H$5)","v":0},null,null,"",{"$f":"IF(B3<2000,9999,B3)","v":9999}]
[{"$f":"FundDataInput!A4","v":0},{"$f":"FundDataInput!B4","v":0},{"$f":"FundDataInput!C4","v":0},{"$f":"FundDataInput!D4","v":0},{"$f":"FundDataInput!E4","v":0},null,null,{"$f":"H3+1","v":2016},{"$nulls":3},{"$f":"SUMIFS($D$2:$D$27,$C$2:$C$27,\"=\"&I4,$B$2:$B$27,\"=\"&H$2)","v":0},{"$f":"SUMIFS($E$2:$E$27,$C$2:$C$27,\"=\"&I4,$B$2:$B$27,\"=\"&H$2)","v":0},{"$f":"SUMIFS($D$2:$D$27,$C$2:$C$27,\"=\"&I4,$B$2:$B$27,\"=\"&H$3)","v":0},{"$f":"SUMIFS($E$2:$E$27,$C$2:$C$27,\"=\"&I4,$B$2:$B$27,\"=\"&H$3)","v":0},{"$f":"SUMIFS($D$2:$D$27,$C$2:$C$27,\"=\"&I4,$B$2:$B$27,\"=\"&H$4)","v":0},{"$f":"SUMIFS($E$2:$E$27,$C$2:$C$27,\"=\"&I4,$B$2:$B$27,\"=\"&H$4)","v":0},{"$f":"SUMIFS($D$2:$D$27,$C$2:$C$27,\"=\"&I4,$B$2:$B$27,\"=\"&H$5)","v":0},{"$f":"SUMIFS($E$2:$E$27,$C$2:$C$27,\"=\"&I4,$B$2:$B$27,\"=\"&H$5)","v":0},null,null,"",9999]
[{"$f":"FundDataInput!A5","v":0},{"$f":"FundDataInput!B5","v":0},{"$f":"FundDataInput!C5","v":0},{"$f":"FundDataInput!D5","v":0},{"$f":"FundDataInput!E5","v":0},null,null,2017,{"$nulls":3},{"$f":"SUMIFS($D$2:$D$27,$C$2:$C$27,\"=\"&I5,$B$2:$B$27,\"=\"&H$2)","v":0},{"$f":"SUMIFS($E$2:$E$27,$C$2:$C$27,\"=\"&I5,$B$2:$B$27,\"=\"&H$2)","v":0},{"$f":"SUMIFS($D$2:$D$27,$C$2:$C$27,\"=\"&I5,$B$2:$B$27,\"=\"&H$3)","v":0},{"$f":"SUMIFS($E$2:$E$27,$C$2:$C$27,\"=\"&I5,$B$2:$B$27,\"=\"&H$3)","v":0},{"$f":"SUMIFS($D$2:$D$27,$C$2:$C$27,\"=\"&I5,$B$2:$B$27,\"=\"&H$4)","v":0},{"$f":"SUMIFS($E$2:$E$27,$C$2:$C$27,\"=\"&I5,$B$2:$B$27,\"=\"&H$4)","v":0},{"$f":"SUMIFS($D$2:$D$27,$C$2:$C$27,\"=\"&I5,$B$2:$B$27,\"=\"&H$5)","v":0},{"$f":"SUMIFS($E$2:$E$27,$C$2:$C$27,\"=\"&I5,$B$2:$B$27,\"=\"&H$5)","v":0},null,null,"",9999]
[{"$f":"FundDataInput!A6","v":0},{"$f":"FundDataInput!B6","v":0},{"$f":"FundDataInput!C6","v":0},{"$f":"FundDataInput!D6","v":0},{"$f":"FundDataInput!E6","v":0},{"$nulls":17},9999]
[{"$f":"FundDataInput!A7","v":0},{"$f":"FundDataInput!B7","v":0},{"$f":"FundDataInput!C7","v":0},{"$f":"FundDataInput!D7","v":0},{"$f":"FundDataInput!E7","v":0},{"$nulls":17},9999]
[{"$f":"FundDataInput!A8","v":0},{"$f":"FundDataInput!B8","v":0},{"$f":"FundDataInput!C8","v":0},{"$f":"FundDataInput!D8","v":0},{"$f":"FundDataInput!E8","v":0},{"$nulls":17},9999]
[{"$f":"FundDataInput!A9","v":0},{"$f":"FundDataInput!B9","v":0},{"$f":"FundDataInput!C9","v":0},{"$f":"FundDataInput!D9","v":0},{"$f":"FundDataInput!E9","v":0},{"$nulls":17},9999]
[{"$f":"FundDataInput!A10","v":0},{"$f":"FundDataInput!B10","v":0},{"$f":"FundDataInput!C10","v":0},{"$f":"FundDataInput!D10","v":0},{"$f":"FundDataInput!E10","v":0},{"$nulls":17},9999]
[{"$f":"FundDataInput!A11","v":0},{"$f":"FundDataInput!B11","v":0},{"$f":"FundDataInput!C11","v":0},{"$f":"FundDataInput!D11","v":0},{"$f":"FundDataInput!E11","v":0},{"$nulls":17},9999]
[{"$f":"FundDataInput!A12","v":0},{"$f":"FundDataInput!B12","v":0},{"$f":"FundDataInput!C12","v":0},{"$f":"FundDataInput!D12","v":0},{"$f":"FundDataInput!E12","v":0},{"$nulls":17},9999]
[{"$f":"FundDataInput!A13","v":0},{"$f":"FundDataInput!B13","v":0},{"$f":"FundDataInput!C13","v":0},{"$f":"FundDataInput!D13","v":0},{"$f":"FundDataInput!E13","v":0},{"$nulls":17},9999]
[{"$f":"FundDataInput!A14","v":0},{"$f":"FundDataInput!B14","v":0},{"$f":"FundDataInput!C14","v":0},{"$f":"FundDataInput!D14","v":0},{"$f":"FundDataInput!E14","v":0},{"$nulls":17},9999]
[{"$f":"FundDataInput!A15","v":0},{"$f":"FundDataInput!B15","v":0},{"$f":"FundDataInput!C15","v":0},{"$f":"FundDataInput!D15","v":0},{"$f":"FundDataInput!E15","v":0},{"$nulls":17},9999]
[{"$f":"FundDataInput!A16","v":0},{"$f":"FundDataInput!B16","v":0},{"$f":"FundDataInput!C16","v":0},{"$f":"FundDataInput!D16","v":0},{"$f":"FundDataInput!E16","v":0},{"$nulls":17},9999]
[{"$f":"FundDataInput!A17","v":0},{"$f":"FundDataInput!B17","v":0},{"$f":"FundDataInput!C17","v":0},{"$f":"FundDataInput!D17","v":0},{"$f":"FundDataInput!E17","v":0},{"$nulls":17},9999]
[{"$f":"FundDataInput!A18","v":0},{"$f":"FundDataInput!B18","v":0},{"$f":"FundDataInput!C18","v":0},{"$f":"FundDataInput!D18","v":0},{"$f":"FundDataInput!E18","v":0},{"$nulls":17},9999]
[{"$f":"FundDataInput!A19","v":0},{"$f":"FundDataInput!B19","v":0},{"$f":"FundDataInput!C19","v":0},{"$f":"FundDataInput!D19","v":0},{"$f":"FundDataInput!E19","v":0},{"$nulls":17},9999]
[{"$f":"FundDataInput!A20","v":0},{"$f":"FundDataInput!B20","v":0},{"$f":"FundDataInput!C20","v":0},{"$f":"FundDataInput!D20","v":0},{"$f":"FundDataInput!E20","v":0},{"$nulls":17},9999]
[{"$f":"FundDataInput!A21","v":0},{"$f":"FundDataInput!B21","v":0},{"$f":"FundDataInput!C21","v":0},{"$f":"FundDataInput!D21","v":0},{"$f":"FundDataInput!E21","v":0},{"$nulls":17},9999]
[{"$f":"FundDataInput!A22","v":0},{"$f":"FundDataInput!B22","v":0},{"$f":"FundDataInput!C22","v":0},{"$f":"FundDataInput!D22","v":0},{"$f":"FundDataInput!E22","v":0},{"$nulls":17},9999]
[{"$f":"FundDataInput!A23","v":0},{"$f":"FundDataInput!B23","v":0},{"$f":"FundDataInput!C23","v":0},{"$f":"FundDataInput!D23","v":0},{"$f":"FundDataInput!E23","v":0},{"$nulls":17},9999]
[{"$f":"FundDataInput!A24","v":0},{"$f":"FundDataInput!B24","v":0},{"$f":"FundDataInput!C24","v":0},{"$f":"FundDataInput!D24","v":0},{"$f":"FundDataInput!E24","v":0},{"$nulls":17},9999]
[{"$f":"FundDataInput!A25","v":0},{"$f":"FundDataInput!B25","v":0},{"$f":"FundDataInput!C25","v":0},{"$f":"FundDataInput!D25","v":0},{"$f":"FundDataInput!E25","v":0},{"$nulls":17},9999]
[{"$f":"FundDataInput!A26","v":0},{"$f":"FundDataInput!B26","v":0},{"$f":"FundDataInput!C26","v":0},{"$f":"FundDataInput!D26","v":0},{"$f":"FundDataInput!E26","v":0},{"$nulls":17},9999]
[{"$f":"FundDataInput!A27","v":0},{"$f":"FundDataInput!B27","v":0},{"$f":"FundDataInput!C27","v":0},{"$f":"FundDataInput!D27","v":0},{"$f":"FundDataInput!E27","v":0},{"$nulls":17},9999]

{"sheet":"CHECK DATA FIT","index":15,"n_rows":27,"n_cols":10,"rows_kept":27}
["CHECK FIT OF SYSTEM DATA "]
[]
["PROJECT RECORDS (into \"ProjDataInput\" Tab)",{"$nulls":5},"FUND RECORDS (into \"FundDataInput\" Tab)"]
[]
["NOTE: Field names don't have to match the name of your column header, the",{"$nulls":5},"NOTE: Field names don't have to match the name of your column header, the"]
["columns just have to be in the correct order",{"$nulls":5},"columns just have to be in the correct order"]
[{"$nulls":3},"Data row shown:"]
["FIELD NAME","YOUR COLUMN HEADER","YOUR Nth DATA ROW",{"$f":"\"N = \"","v":"N = "},1,null,"FIELD NAME","YOUR COLUMN HEADER","YOUR Nth DATA ROW"]
["ProgramName",{"$f":"LEFT(INDIRECT(ADDRESS(1,ROW(B9)-8,1,TRUE,\"ProjDataInput\")),48)","v":"ProgramName"},{"$f":"LEFT(INDIRECT(ADDRESS($E$8+1,ROW(B9)-8,1,TRUE,\"ProjDataInput\")),48)","v":""},{"$f":"\" \"","v":" "},null,null,"ProgramID",{"$f":"LEFT(INDIRECT(ADDRESS(1,ROW(B9)-8,1,TRUE,\"FundDataInput\")),48)","v":"Program ID number"},{"$f":"INDIRECT(ADDRESS($E$8+1,ROW(B9)-8,1,TRUE,\"FundDataInput\"))","v":0},{"$f":"\" \"","v":" "}]
["ProjectNumber",{"$f":"LEFT(INDIRECT(ADDRESS(1,ROW(B10)-8,1,TRUE,\"ProjDataInput\")),48)","v":"ProjectNumber"},{"$f":"LEFT(INDIRECT(ADDRESS($E$8+1,ROW(B10)-8,1,TRUE,\"ProjDataInput\")),48)","v":""},{"$f":"\" \"","v":" "},null,null,"Year",{"$f":"LEFT(INDIRECT(ADDRESS(1,ROW(B10)-8,1,TRUE,\"FundDataInput\")),48)","v":"Year"},{"$f":"INDIRECT(ADDRESS($E$8+1,ROW(B10)-8,1,TRUE,\"FundDataInput\"))","v":0},{"$f":"\" \"","v":" "}]
["ProjectTitle","ProjectTitle",""," ",null,null,"ProjectNumber","Proj No",{"$f":"LEFT(INDIRECT(ADDRESS($E$8+1,ROW(B11)-8,1,TRUE,\"FundDataInput\")),48)","v":""}," "]
["ProgramFocusAreas","ProgramFocusArea",""," ",null,null,"Federal","Federal",0," "]
["ProgramPartners","ProgramPartners",""," ",null,null,"Match","Match",0," "]
["ClassificationCodes","ClassificationCodes",""," ",null,null,"Comments ","Comments",{"$f":"LEFT(INDIRECT(ADDRESS($E$8+1,ROW(B14)-8,1,TRUE,\"FundDataInput\")),48)","v":""}," "]
["Abstract","Abstract",""," "]
["TotalFederal","TotalFederal",{"$f":"INDIRECT(ADDRESS($E$8+1,ROW(B16)-8,1,TRUE,\"ProjDataInput\"))","v":0}," "]
["TotalMatch","TotalMatch",{"$f":"INDIRECT(ADDRESS($E$8+1,ROW(B17)-8,1,TRUE,\"ProjDataInput\"))","v":0}," "]
["PI1","PI1",""," "]
["Affiliation1","Affiliation1",""," "]
["PI2","PI2",""," "]
["Affiliation2","Affiliation2",""," "]
["PI3","PI3",""," "]
["Affiliation3","Affiliation3",""," "]
["PI4","PI4",""," "]
["Affiliation4","AFFIL4",""," "]
["DataSharingPlan","Data Sharing Plan",""," "]
["Comments","COMMENTS",""," "]

{"sheet":"ProjDataInput","index":16,"n_rows":1,"n_cols":19,"rows_kept":1}
["ProgramName","ProjectNumber","ProjectTitle","ProgramFocusArea","ProgramPartners","ClassificationCodes","Abstract","TotalFederal","TotalMatch","PI1","Affiliation1","PI2","Affiliation2","PI3","Affiliation3","PI4","AFFIL4","Data Sharing Plan","COMMENTS"]

{"sheet":"FundDataInput","index":17,"n_rows":1,"n_cols":6,"rows_kept":1}
["Program ID number","Year","Proj No","Federal","Match","Comments"]